Workbook

Sheet Velkomst

Sheet Tabel 1 H
A1: Tabel 1. Forsikrede medlemmer
A3: Hovedstaden
C5: Mænd | E5: Kvinder | G5: I alt
A7: Civ. ing. | C7: 12200 | E7: 4777 | G7: 16977
A8: Diplom ing. | C8: 9882 | E8: 2483 | G8: 12365
A9: Cand. Scient. Tek. | C9: 4997 | E9: 4611 | G9: 9608
A10: MA. Hum. | C10: 6051 | E10: 13486 | G10: 19537
A11: MA. Nat. | C11: 3617 | E11: 3587 | G11: 7204
A12: MA. Ph.d. | C12: 688 | E12: 548 | G12: 1236
A13: MA. Samf. | C13: 890 | E13: 2199 | G13: 3089
A14: Øvrige Mag. | C14: 524 | E14: 1030 | G14: 1554
A15: Agronom | C15: 382 | E15: 424 | G15: 806
A16: Landsk. Arkt. | C16: 129 | E16: 339 | G16: 468
A17: Hortonom | C17: 57 | E17: 102 | G17: 159
A18: Forstkand. | C18: 194 | E18: 66 | G18: 260
A19: Jordbrugsakad. | C19: 762 | E19: 931 | G19: 1693
A20: Mejeriing. | C20: 59 | E20: 72 | G20: 131
A21: Levn.m.kand. | C21: 41 | E21: 263 | G21: 304
A22: Dyrlæge | C22: 164 | E22: 754 | G22: 918
A23: Farmaceut | C23: 1025 | E23: 2676 | G23: 3701
A24: Læge | C24: 1464 | E24: 3598 | G24: 5062
A25: Tandlæge | C25: 129 | E25: 705 | G25: 834
A26: Arkitekt | C26: 1632 | E26: 1988 | G26: 3620
A27: Landinspek. | C27: 146 | E27: 51 | G27: 197
A28: Bibliotekar | C28: 467 | E28: 1270 | G28: 1737
A29: Musikudd. | C29: 145 | E29: 184 | G29: 329
A30: Teolog | C30: 207 | E30: 345 | G30: 552
A31: Psykolog | C31: 653 | E31: 2862 | G31: 3515
A32: Jurist | C32: 3130 | E32: 6321 | G32: 9451
A33: Økonom | C33: 3373 | E33: 2074 | G33: 5447
A34: Samf. Adm. | C34: 6681 | E34: 9894 | G34: 16575
A35: Cand. Merc. | C35: 9969 | E35: 9724 | G35: 19693
A36: HA | C36: 1287 | E36: 1056 | G36: 2343
A37: HD | C37: 1355 | E37: 1188 | G37: 2543
A38: Komm. og Sprog | C38: 609 | E38: 3332 | G38: 3941
A39: Cand. IT. | C39: 1346 | E39: 1094 | G39: 2440
A40: Bac. Samf. | C40: 322 | E40: 378 | G40: 700
A41: Bac. Hum. | C41: 618 | E41: 1058 | G41: 1676
A42: Bac. Nat. | C42: 657 | E42: 498 | G42: 1155
A43: Andre | C43: 5708 | E43: 6750 | G43: 12458
A45: Total | C45: 80798 | E45: 91787 | G45: 172585
A47: Ingeniører i alt | C47: 22082 | E47: 7260 | G47: 29342
A48: Magistre i alt | C48: 11770 | E48: 20850 | G48: 32620
A49: DJØF'ere i alt | C49: 24440 | E49: 29069 | G49: 53509
A56: København
C58: Mænd | E58: Kvinder | G58: I alt
A60: Civ. ing. | C60: 4083 | E60: 1575 | G60: 5658
A61: Diplom ing. | C61: 2532 | E61: 606 | G61: 3138
A62: Cand. Scient. Tek. | C62: 2733 | E62: 2534 | G62: 5267
A63: MA. Hum. | C63: 4016 | E63: 8202 | G63: 12218
A64: MA. Nat. | C64: 1544 | E64: 1560 | G64: 3104
A65: MA. Ph.d. | C65: 360 | E65: 277 | G65: 637
A66: MA. Samf. | C66: 634 | E66: 1518 | G66: 2152
A67: Øvrige Mag. | C67: 321 | E67: 582 | G67: 903
A68: Agronom | C68: 129 | E68: 148 | G68: 277
A69: Landsk. Arkt. | C69: 75 | E69: 176 | G69: 251
A70: Hortonom | C70: 21 | E70: 32 | G70: 53
A71: Forstkand. | C71: 60 | E71: 25 | G71: 85
A72: Jordbrugsakad. | C72: 285 | E72: 381 | G72: 666
A73: Mejeriing. | C73: 20 | E73: 28 | G73: 48
A74: Levn.m.kand. | C74: 23 | E74: 132 | G74: 155
A75: Dyrlæge | C75: 54 | E75: 267 | G75: 321
A76: Farmaceut | C76: 415 | E76: 854 | G76: 1269
A77: Læge | C77: 674 | E77: 1666 | G77: 2340
A78: Tandlæge | C78: 50 | E78: 254 | G78: 304
A79: Arkitekt | C79: 1035 | E79: 1234 | G79: 2269
A80: Landinspek. | C80: 47 | E80: 14 | G80: 61
A81: Bibliotekar | C81: 263 | E81: 569 | G81: 832
A82: Musikudd. | C82: 67 | E82: 84 | G82: 151
A83: Teolog | C83: 93 | E83: 152 | G83: 245
A84: Psykolog | C84: 419 | E84: 1578 | G84: 1997
A85: Jurist | C85: 1519 | E85: 2760 | G85: 4279
A86: Økonom | C86: 1593 | E86: 955 | G86: 2548
A87: Samf. Adm. | C87: 3966 | E87: 5851 | G87: 9817
A88: Cand. Merc. | C88: 4831 | E88: 4737 | G88: 9568
A89: HA | C89: 548 | E89: 436 | G89: 984
A90: HD | C90: 468 | E90: 561 | G90: 1029
A91: Komm. og Sprog | C91: 395 | E91: 1475 | G91: 1870
A92: Cand. IT. | C92: 824 | E92: 708 | G92: 1532
A93: Bac. Samf. | C93: 192 | E93: 222 | G93: 414
A94: Bac. Hum. | C94: 398 | E94: 643 | G94: 1041
A95: Bac. Nat. | C95: 350 | E95: 289 | G95: 639
A96: Andre | C96: 3007 | E96: 3612 | G96: 6619
A98: Total | C98: 37759 | E98: 46316 | G98: 84075
A100: Ingeniører i alt | C100: 6615 | E100: 2181 | G100: 8796
A101: Magistre i alt | C101: 6875 | E101: 12139 | G101: 19014
A102: DJØF'ere i alt | C102: 12457 | E102: 14739 | G102: 27196
A109: Frederiksberg
C111: Mænd | E111: Kvinder | G111: I alt
A113: Civ. ing. | C113: 772 | E113: 301 | G113: 1073
A114: Diplom ing. | C114: 458 | E114: 109 | G114: 567
A115: Cand. Scient. Tek. | C115: 392 | E115: 388 | G115: 780
A116: MA. Hum. | C116: 547 | E116: 1251 | G116: 1798
A117: MA. Nat. | C117: 265 | E117: 238 | G117: 503
A118: MA. Ph.d. | C118: 67 | E118: 66 | G118: 133
A119: MA. Samf. | C119: 91 | E119: 210 | G119: 301
A120: Øvrige Mag. | C120: 37 | E120: 84 | G120: 121
A121: Agronom | C121: 47 | E121: 34 | G121: 81
A122: Landsk. Arkt. | C122: 13 | E122: 25 | G122: 38
A123: Hortonom | C123: 0 | E123: 7 | G123: 7
A124: Forstkand. | C124: 9 | E124: 5 | G124: 14
A125: Jordbrugsakad. | C125: 69 | E125: 71 | G125: 140
A126: Mejeriing. | C126: 9 | E126: 6 | G126: 15
A127: Levn.m.kand. | C127: 7 | E127: 31 | G127: 38
A128: Dyrlæge | C128: 17 | E128: 59 | G128: 76
A129: Farmaceut | C129: 61 | E129: 167 | G129: 228
A130: Læge | C130: 147 | E130: 322 | G130: 469
A131: Tandlæge | C131: 7 | E131: 58 | G131: 65
A132: Arkitekt | C132: 202 | E132: 223 | G132: 425
A133: Landinspek. | C133: 12 | E133: 4 | G133: 16
A134: Bibliotekar | C134: 37 | E134: 104 | G134: 141
A135: Musikudd. | C135: 15 | E135: 10 | G135: 25
A136: Teolog | C136: 7 | E136: 31 | G136: 38
A137: Psykolog | C137: 58 | E137: 275 | G137: 333
A138: Jurist | C138: 381 | E138: 653 | G138: 1034
A139: Økonom | C139: 334 | E139: 228 | G139: 562
A140: Samf. Adm. | C140: 677 | E140: 1013 | G140: 1690
A141: Cand. Merc. | C141: 1187 | E141: 1145 | G141: 2332
A142: HA | C142: 111 | E142: 96 | G142: 207
A143: HD | C143: 129 | E143: 97 | G143: 226
A144: Komm. og Sprog | C144: 53 | E144: 335 | G144: 388
A145: Cand. IT. | C145: 118 | E145: 90 | G145: 208
A146: Bac. Samf. | C146: 28 | E146: 33 | G146: 61
A147: Bac. Hum. | C147: 62 | E147: 119 | G147: 181
A148: Bac. Nat. | C148: 40 | E148: 42 | G148: 82
A149: Andre | C149: 528 | E149: 634 | G149: 1162
A151: Total | C151: 6925 | E151: 8493 | G151: 15418
A153: Ingeniører i alt | C153: 1230 | E153: 410 | G153: 1640
A154: Magistre i alt | C154: 1007 | E154: 1849 | G154: 2856
A155: DJØF'ere i alt | C155: 2690 | E155: 3135 | G155: 5825
A162: Ballerup
C164: Mænd | E164: Kvinder | G164: I alt
A166: Civ. ing. | C166: 352 | E166: 144 | G166: 496
A167: Diplom ing. | C167: 386 | E167: 109 | G167: 495
A168: Cand. Scient. Tek. | C168: 92 | E168: 89 | G168: 181
A169: MA. Hum. | C169: 59 | E169: 141 | G169: 200
A170: MA. Nat. | C170: 85 | E170: 85 | G170: 170
A171: MA. Ph.d. | C171: 13 | E171: 9 | G171: 22
A172: MA. Samf. | C172: 14 | E172: 11 | G172: 25
A173: Øvrige Mag. | C173: 7 | E173: 19 | G173: 26
A174: Agronom | C174: 10 | E174: 13 | G174: 23
A175: Landsk. Arkt. | C175: 2 | E175: 6 | G175: 8
A176: Hortonom | C176: 1 | E176: 2 | G176: 3
A177: Forstkand. | C177: 3 | E177: 1 | G177: 4
A178: Jordbrugsakad. | C178: 16 | E178: 22 | G178: 38
A179: Mejeriing. | C179: 1 | E179: 2 | G179: 3
A180: Levn.m.kand. | C180: 0 | E180: 3 | G180: 3
A181: Dyrlæge | C181: 4 | E181: 23 | G181: 27
A182: Farmaceut | C182: 32 | E182: 91 | G182: 123
A183: Læge | C183: 30 | E183: 53 | G183: 83
A184: Tandlæge | C184: 1 | E184: 14 | G184: 15
A185: Arkitekt | C185: 8 | E185: 8 | G185: 16
A186: Landinspek. | C186: 4 | E186: 1 | G186: 5
A187: Bibliotekar | C187: 12 | E187: 33 | G187: 45
A188: Musikudd. | C188: 3 | E188: 6 | G188: 9
A189: Teolog | C189: 3 | E189: 7 | G189: 10
A190: Psykolog | C190: 8 | E190: 39 | G190: 47
A191: Jurist | C191: 25 | E191: 72 | G191: 97
A192: Økonom | C192: 55 | E192: 20 | G192: 75
A193: Samf. Adm. | C193: 73 | E193: 102 | G193: 175
A194: Cand. Merc. | C194: 120 | E194: 134 | G194: 254
A195: HA | C195: 21 | E195: 17 | G195: 38
A196: HD | C196: 22 | E196: 14 | G196: 36
A197: Komm. og Sprog | C197: 11 | E197: 64 | G197: 75
A198: Cand. IT. | C198: 17 | E198: 14 | G198: 31
A199: Bac. Samf. | C199: 1 | E199: 5 | G199: 6
A200: Bac. Hum. | C200: 5 | E200: 6 | G200: 11
A201: Bac. Nat. | C201: 16 | E201: 6 | G201: 22
A202: Andre | C202: 90 | E202: 75 | G202: 165
A204: Total | C204: 1586 | E204: 1438 | G204: 3024
A206: Ingeniører i alt | C206: 738 | E206: 253 | G206: 991
A207: Magistre i alt | C207: 178 | E207: 265 | G207: 443
A208: DJØF'ere i alt | C208: 294 | E208: 345 | G208: 639
A215: Brøndby
C217: Mænd | E217: Kvinder | G217: I alt
A219: Civ. ing. | C219: 92 | E219: 31 | G219: 123
A220: Diplom ing. | C220: 138 | E220: 23 | G220: 161
A221: Cand. Scient. Tek. | C221: 34 | E221: 21 | G221: 55
A222: MA. Hum. | C222: 18 | E222: 57 | G222: 75
A223: MA. Nat. | C223: 32 | E223: 25 | G223: 57
A224: MA. Ph.d. | C224: 3 | E224: 4 | G224: 7
A225: MA. Samf. | C225: 8 | E225: 7 | G225: 15
A226: Øvrige Mag. | C226: 6 | E226: 7 | G226: 13
A227: Agronom | C227: 2 | E227: 3 | G227: 5
A228: Landsk. Arkt. | C228: 0 | E228: 5 | G228: 5
A229: Hortonom | C229: 0 | E229: 2 | G229: 2
A230: Forstkand. | C230: 0 | E230: 1 | G230: 1
A231: Jordbrugsakad. | C231: 2 | E231: 11 | G231: 13
A232: Mejeriing. | C232: 0 | E232: 0 | G232: 0
A233: Levn.m.kand. | C233: 0 | E233: 1 | G233: 1
A234: Dyrlæge | C234: 2 | E234: 5 | G234: 7
A235: Farmaceut | C235: 11 | E235: 21 | G235: 32
A236: Læge | C236: 11 | E236: 22 | G236: 33
A237: Tandlæge | C237: 3 | E237: 11 | G237: 14
A238: Arkitekt | C238: 1 | E238: 3 | G238: 4
A239: Landinspek. | C239: 1 | E239: 0 | G239: 1
A240: Bibliotekar | C240: 6 | E240: 9 | G240: 15
A241: Musikudd. | C241: 0 | E241: 0 | G241: 0
A242: Teolog | C242: 3 | E242: 3 | G242: 6
A243: Psykolog | C243: 3 | E243: 8 | G243: 11
... 1048 more rows

Sheet Tabel 2 H
A1: Tabel 2. Antal bruttoledighedsberørte og gennemsnitlig antal ledige brutto
A3: Hovedstaden
C5: Mænd | F5: Kvinder | I5: I alt
C6: Ledigheds- berørte | D6: Gns. brutto- ledighed | F6: Ledigheds- berørte | G6: Gns. brutto- ledighed | I6: Ledigheds- berørte | J6: Gns. brutto- ledighed
A9: Civ. ing. | C9: 338 | D9: 302.9882118 | F9: 172 | G9: 157.7334248 | I9: 510 | J9: 460.7216366
A10: Diplom ing. | C10: 285 | D10: 258.6334435 | F10: 78 | G10: 65.19740535 | I10: 363 | J10: 323.8308489
A11: Cand. Scient. Tek. | C11: 445 | D11: 393.3923782 | F11: 555 | G11: 474.7152747 | I11: 1000 | J11: 868.107653
A12: MA. Hum. | C12: 540 | D12: 462.6669993 | F12: 1281 | G12: 1097.1515 | I12: 1821 | J12: 1559.818499
A13: MA. Nat. | C13: 108 | D13: 93.11357824 | F13: 164 | G13: 143.9499782 | I13: 272 | J13: 237.0635564
A14: MA. Ph.d. | C14: 29 | D14: 24.86122373 | F14: 37 | G14: 32.61398366 | I14: 66 | J14: 57.47520738
A15: MA. Samf. | C15: 130 | D15: 115.884114 | F15: 275 | G15: 239.5172457 | I15: 405 | J15: 355.4013597
A16: Øvrige Mag. | C16: 61 | D16: 54.50508327 | F16: 76 | G16: 66.16977484 | I16: 137 | J16: 120.6748581
A17: Agronom | C17: 14 | D17: 12.28965259 | F17: 31 | G17: 28.34591156 | I17: 45 | J17: 40.63556415
A18: Landsk. Arkt. | C18: 13 | D18: 12.24162665 | F18: 29 | G18: 25.6265203 | I18: 42 | J18: 37.86814695
A19: Hortonom | C19: 2 | D19: 1.307303686 | F19: 2 | G19: 1.999625772 | I19: 4 | J19: 3.306929458
A20: Forstkand. | C20: 10 | D20: 9.302688206 | F20: 5 | G20: 4.513815256 | I20: 15 | J20: 13.81650346
A21: Jordbrugsakad. | C21: 39 | D21: 35.14127113 | F21: 67 | G21: 60.48587289 | I21: 106 | J21: 95.62714402
A22: Mejeriing. | C22: 1 | D22: 0.9536580802 | F22: 6 | G22: 5.445019647 | I22: 7 | J22: 6.398677727
A23: Levn.m.kand. | C23: 8 | D23: 6.762302751 | F23: 39 | G23: 33.61504397 | I23: 47 | J23: 40.37734672
A24: Dyrlæge | C24: 11 | D24: 9.819123059 | F24: 40 | G24: 31.01914801 | I24: 51 | J24: 40.83827107
A25: Farmaceut | C25: 50 | D25: 46.74546248 | F25: 116 | G25: 104.9192291 | I25: 166 | J25: 151.6646916
A26: Læge | C26: 18 | D26: 15.12505457 | F26: 47 | G26: 37.22135595 | I26: 65 | J26: 52.34641053
A27: Tandlæge | C27: 2 | D27: 1.625397617 | F27: 15 | G27: 12.3726065 | I27: 17 | J27: 13.99800412
A28: Arkitekt | C28: 110 | D28: 102.1037859 | F28: 158 | G28: 134.8468783 | I28: 268 | J28: 236.9506643
A29: Landinspek. | C29: 1 | D29: 0.9998128859 | F29: 1 | G29: 0.9998128859 | I29: 2 | J29: 1.999625772
A30: Bibliotekar | C30: 21 | D30: 18.55610304 | F30: 63 | G30: 54.87556914 | I30: 84 | J30: 73.43167218
A31: Musikudd. | C31: 5 | D31: 3.878874821 | F31: 5 | G31: 4.41901079 | I31: 10 | J31: 8.297885611
A32: Teolog | C32: 9 | D32: 6.356888917 | F32: 19 | G32: 15.93588224 | I32: 28 | J32: 22.29277116
A33: Psykolog | C33: 44 | D33: 38.04278675 | F33: 142 | G33: 123.4553733 | I33: 186 | J33: 161.49816
A34: Jurist | C34: 68 | D34: 57.15337117 | F34: 146 | G34: 128.4906131 | I34: 214 | J34: 185.6439843
A35: Økonom | C35: 86 | D35: 74.54250608 | F35: 48 | G35: 40.78587912 | I35: 134 | J35: 115.3283852
A36: Samf. Adm. | C36: 361 | D36: 318.1762615 | F36: 611 | G36: 541.940373 | I36: 972 | J36: 860.1166344
A37: Cand. Merc. | C37: 511 | D37: 448.6222167 | F37: 562 | G37: 474.0603755 | I37: 1073 | J37: 922.6825922
A38: HA | C38: 100 | D38: 83.54955404 | F38: 75 | G38: 60.75406973 | I38: 175 | J38: 144.3036238
A39: HD | C39: 128 | D39: 111.0653028 | F39: 144 | G39: 117.6292646 | I39: 272 | J39: 228.6945675
A40: Komm. og Sprog | C40: 59 | D40: 52.43934385 | F40: 225 | G40: 195.6090563 | I40: 284 | J40: 248.0484002
A41: Cand. IT. | C41: 68 | D41: 59.83097362 | F41: 94 | G41: 81.42081956 | I41: 162 | J41: 141.2517932
A42: Bac. Samf. | C42: 17 | D42: 13.86328198 | F42: 22 | G42: 18.71078401 | I42: 39 | J42: 32.57406599
A43: Bac. Hum. | C43: 66 | D43: 54.6398054 | F43: 125 | G43: 106.7816379 | I43: 191 | J43: 161.4214433
A44: Bac. Nat. | C44: 58 | D44: 49.41495665 | F44: 52 | G44: 45.1125803 | I44: 110 | J44: 94.52753696
A45: Andre | C45: 350 | D45: 305.1543691 | F45: 605 | G45: 511.4825672 | I45: 955 | J45: 816.6369363
A47: Total | C47: 4127 | D47: 3620.607497 | F47: 6065 | G47: 5219.43741 | I47: 10192 | J47: 8840.044907
A49: Ingeniører i alt | C49: 623 | D49: 561.6216553 | F49: 250 | G49: 222.9308302 | I49: 873 | J49: 784.5524855
A50: Magistre i alt | C50: 868 | D50: 751.0309986 | F50: 1833 | G50: 1579.402482 | I50: 2701 | J50: 2330.433481
A51: DJØF'ere i alt | C51: 1126 | D51: 982.0439094 | F51: 1442 | G51: 1246.03131 | I51: 2568 | J51: 2228.07522
A56: København
C58: Mænd | F58: Kvinder | I58: I alt
C59: Ledigheds- berørte | D59: Gns. brutto- ledighed | F59: Ledigheds- berørte | G59: Gns. brutto- ledighed | I59: Ledigheds- berørte | J59: Gns. brutto- ledighed
A62: Civ. ing. | C62: 160 | D62: 142.3146011 | F62: 72 | G62: 67.1546186 | I62: 232 | J62: 209.4692197
A63: Diplom ing. | C63: 104 | D63: 92.23289465 | F63: 30 | G63: 24.90425996 | I63: 134 | J63: 117.1371546
A64: Cand. Scient. Tek. | C64: 285 | D64: 251.7245681 | F64: 358 | G64: 307.3092996 | I64: 643 | J64: 559.0338676
A65: MA. Hum. | C65: 404 | D65: 348.8773155 | F65: 911 | G65: 781.4863095 | I65: 1315 | J65: 1130.363625
A66: MA. Nat. | C66: 66 | D66: 59.05632134 | F66: 89 | G66: 77.29620158 | I66: 155 | J66: 136.3525229
A67: MA. Ph.d. | C67: 16 | D67: 13.29445519 | F67: 20 | G67: 17.63924406 | I67: 36 | J67: 30.93369925
A68: MA. Samf. | C68: 100 | D68: 88.63469095 | F68: 203 | G68: 175.2005239 | I68: 303 | J68: 263.8352149
A69: Øvrige Mag. | C69: 42 | D69: 38.26233394 | F69: 49 | G69: 42.4137716 | I69: 91 | J69: 80.67610553
A70: Agronom | C70: 6 | D70: 5.860412898 | F70: 16 | G70: 15.27536955 | I70: 22 | J70: 21.13578245
A71: Landsk. Arkt. | C71: 11 | D71: 10.33431048 | F71: 19 | G71: 16.53776586 | I71: 30 | J71: 26.87207634
A72: Hortonom | C72: 1 | D72: 0.9998128859 | F72: 0 | G72: 0 | I72: 1 | J72: 0.9998128859
A73: Forstkand. | C73: 7 | D73: 6.303249548 | F73: 4 | G73: 3.698621593 | I73: 11 | J73: 10.00187114
A74: Jordbrugsakad. | C74: 25 | D74: 23.49778582 | F74: 39 | G74: 35.511757 | I74: 64 | J74: 59.00954282
A75: Mejeriing. | C75: 1 | D75: 0.9536580802 | F75: 3 | G75: 2.953283852 | I75: 4 | J75: 3.906941932
A76: Levn.m.kand. | C76: 5 | D76: 4.409031373 | F76: 25 | G76: 21.92540385 | I76: 30 | J76: 26.33443523
A77: Dyrlæge | C77: 6 | D77: 4.876192852 | F77: 23 | G77: 18.34154556 | I77: 29 | J77: 23.21773841
A78: Farmaceut | C78: 34 | D78: 30.88692073 | F78: 56 | G78: 51.30480883 | I78: 90 | J78: 82.19172956
A79: Læge | C79: 12 | D79: 9.334497599 | F79: 31 | G79: 25.42817938 | I79: 43 | J79: 34.76267698
A80: Tandlæge | C80: 2 | D80: 1.625397617 | F80: 5 | G80: 4.090937442 | I80: 7 | J80: 5.716335059
A81: Arkitekt | C81: 80 | D81: 74.00611239 | F81: 119 | G81: 101.6391193 | I81: 199 | J81: 175.6452317
A82: Landinspek. | C82: 0 | D82: 0 | F82: 1 | G82: 0.9998128859 | I82: 1 | J82: 0.9998128859
A83: Bibliotekar | C83: 14 | D83: 13.45163101 | F83: 36 | G83: 33.24642924 | I83: 50 | J83: 46.69806025
A84: Musikudd. | C84: 2 | D84: 1.120813323 | F84: 3 | G84: 2.999438658 | I84: 5 | J84: 4.12025198
A85: Teolog | C85: 8 | D85: 5.357076031 | F85: 13 | G85: 11.4912992 | I85: 21 | J85: 16.84837523
A86: Psykolog | C86: 33 | D86: 29.9769226 | F86: 91 | G86: 78.03218362 | I86: 124 | J86: 108.0091062
A87: Jurist | C87: 39 | D87: 33.38052766 | F87: 79 | G87: 67.81824986 | I87: 118 | J87: 101.1987775
A88: Økonom | C88: 53 | D88: 45.26102414 | F88: 30 | G88: 24.07908688 | I88: 83 | J88: 69.34011102
A89: Samf. Adm. | C89: 258 | D89: 231.3852679 | F89: 442 | G89: 387.2762427 | I89: 700 | J89: 618.6615106
A90: Cand. Merc. | C90: 309 | D90: 274.2499844 | F90: 320 | G90: 268.7662945 | I90: 629 | J90: 543.0162789
A91: HA | C91: 49 | D91: 42.78799975 | F91: 48 | G91: 39.97068546 | I91: 97 | J91: 82.75868521
A92: HD | C92: 61 | D92: 52.67760244 | F92: 95 | G92: 77.7284351 | I92: 156 | J92: 130.4060375
A93: Komm. og Sprog | C93: 43 | D93: 38.54300505 | F93: 138 | G93: 117.7770848 | I93: 181 | J93: 156.3200898
A94: Cand. IT. | C94: 55 | D94: 48.52990707 | F94: 66 | G94: 56.16478513 | I94: 121 | J94: 104.6946922
A95: Bac. Samf. | C95: 10 | D95: 7.501403356 | F95: 15 | G95: 13.52273436 | I95: 25 | J95: 21.02413772
A96: Bac. Hum. | C96: 50 | D96: 40.90999813 | F96: 85 | G96: 71.80440342 | I96: 135 | J96: 112.7144015
A97: Bac. Nat. | C97: 40 | D97: 34.17950477 | F97: 38 | G97: 32.91835589 | I97: 78 | J97: 67.09786066
A98: Andre | C98: 217 | D98: 189.6332564 | F98: 364 | G98: 313.486559 | I98: 581 | J98: 503.1198154
A100: Total | C100: 2583 | D100: 2272.932701 | F100: 3897 | G100: 3352.681345 | I100: 6480 | J100: 5625.614046
A102: Ingeniører i alt | C102: 264 | D102: 234.5474958 | F102: 102 | G102: 92.05887856 | I102: 366 | J102: 326.6063744
A103: Magistre i alt | C103: 628 | D103: 548.1251169 | F103: 1272 | G103: 1094.036051 | I103: 1900 | J103: 1642.161168
A104: DJØF'ere i alt | C104: 708 | D104: 627.0648038 | F104: 919 | G104: 787.9105595 | I104: 1627 | J104: 1414.975363
A109: Frederiksberg
C111: Mænd | F111: Kvinder | I111: I alt
C112: Ledigheds- berørte | D112: Gns. brutto- ledighed | F112: Ledigheds- berørte | G112: Gns. brutto- ledighed | I112: Ledigheds- berørte | J112: Gns. brutto- ledighed
A115: Civ. ing. | C115: 26 | D115: 21.77446517 | F115: 8 | G115: 7.998503087 | I115: 34 | J115: 29.77296825
A116: Diplom ing. | C116: 20 | D116: 18.34154556 | F116: 4 | G116: 3.906941932 | I116: 24 | J116: 22.24848749
A117: Cand. Scient. Tek. | C117: 32 | D117: 29.03573879 | F117: 35 | G117: 28.75257282 | I117: 67 | J117: 57.78831161
A118: MA. Hum. | C118: 52 | D118: 43.79779205 | F118: 98 | G118: 82.67261274 | I118: 150 | J118: 126.4704048
A119: MA. Nat. | C119: 12 | D119: 10.41601697 | F119: 13 | G119: 11.61229963 | I119: 25 | J119: 22.0283166
A120: MA. Ph.d. | C120: 6 | D120: 5.535458118 | F120: 4 | G120: 3.906941932 | I120: 10 | J120: 9.44240005
A121: MA. Samf. | C121: 12 | D121: 11.23994262 | F121: 22 | G121: 19.49728685 | I121: 34 | J121: 30.73722946
A122: Øvrige Mag. | C122: 3 | D122: 2.907129046 | F122: 11 | G122: 10.29688767 | I122: 14 | J122: 13.20401672
A123: Agronom | C123: 2 | D123: 1.58423252 | F123: 3 | G123: 2.999438658 | I123: 5 | J123: 4.583671178
A124: Landsk. Arkt. | C124: 2 | D124: 1.90731616 | F124: 1 | G124: 0.9998128859 | I124: 3 | J124: 2.907129046
A125: Hortonom | C125: 0 | D125: 0 | F125: 0 | G125: 0 | I125: 0 | J125: 0
A126: Forstkand. | C126: 0 | D126: 0 | F126: 0 | G126: 0 | I126: 0 | J126: 0
A127: Jordbrugsakad. | C127: 4 | D127: 3.491548681 | F127: 4 | G127: 3.999251544 | I127: 8 | J127: 7.490800225
A128: Mejeriing. | C128: 0 | D128: 0 | F128: 2 | G128: 1.491922909 | I128: 2 | J128: 1.491922909
A129: Levn.m.kand. | C129: 3 | D129: 2.353271378 | F129: 4 | G129: 3.306929458 | I129: 7 | J129: 5.660200836
A130: Dyrlæge | C130: 2 | D130: 1.943491549 | F130: 0 | G130: 0 | I130: 2 | J130: 1.943491549
A131: Farmaceut | C131: 5 | D131: 4.906754818 | F131: 7 | G131: 6.068733238 | I131: 12 | J131: 10.97548806
A132: Læge | C132: 2 | D132: 1.999625772 | F132: 2 | G132: 1.815006549 | I132: 4 | J132: 3.814632321
A133: Tandlæge | C133: 0 | D133: 0 | F133: 2 | G133: 1.800037423 | I133: 2 | J133: 1.800037423
A134: Arkitekt | C134: 14 | D134: 13.44352273 | F134: 12 | G134: 10.54824425 | I134: 26 | J134: 23.99176698
A135: Landinspek. | C135: 0 | D135: 0 | F135: 0 | G135: 0 | I135: 0 | J135: 0
A136: Bibliotekar | C136: 1 | D136: 0.2151811888 | F136: 6 | G136: 5.402607123 | I136: 7 | J136: 5.617788312
A137: Musikudd. | C137: 1 | D137: 0.9998128859 | F137: 0 | G137: 0 | I137: 1 | J137: 0.9998128859
A138: Teolog | C138: 0 | D138: 0 | F138: 2 | G138: 1.722696938 | I138: 2 | J138: 1.722696938
A139: Psykolog | C139: 3 | D139: 1.604815069 | F139: 17 | G139: 15.57849436 | I139: 20 | J139: 17.18330942
A140: Jurist | C140: 10 | D140: 8.718268571 | F140: 15 | G140: 14.52628953 | I140: 25 | J140: 23.2445581
A141: Økonom | C141: 3 | D141: 2.395683902 | F141: 5 | G141: 4.876816566 | I141: 8 | J141: 7.272500468
A142: Samf. Adm. | C142: 30 | D142: 27.12779891 | F142: 50 | G142: 46.66625086 | I142: 80 | J142: 73.79404977
A143: Cand. Merc. | C143: 56 | D143: 49.19166719 | F143: 75 | G143: 62.24661635 | I143: 131 | J143: 111.4382835
A144: HA | C144: 10 | D144: 6.898896027 | F144: 3 | G144: 2.126863344 | I144: 13 | J144: 9.025759371
A145: HD | C145: 15 | D145: 12.73560781 | F145: 12 | G145: 9.6925092 | I145: 27 | J145: 22.42811701
A146: Komm. og Sprog | C146: 3 | D146: 2.469282106 | F146: 22 | G146: 19.29083765 | I146: 25 | J146: 21.76011975
A147: Cand. IT. | C147: 5 | D147: 4.445206761 | F147: 6 | G147: 5.809892098 | I147: 11 | J147: 10.25509886
A148: Bac. Samf. | C148: 2 | D148: 1.593588224 | F148: 1 | G148: 0.5008420133 | I148: 3 | J148: 2.094430238
A149: Bac. Hum. | C149: 5 | D149: 4.147071665 | F149: 12 | G149: 10.63618786 | I149: 17 | J149: 14.78325953
A150: Bac. Nat. | C150: 5 | D150: 4.62733113 | F150: 5 | G150: 4.687831348 | I150: 10 | J150: 9.315162477
A151: Andre | C151: 28 | D151: 25.63462858 | F151: 52 | G151: 44.7726564 | I151: 80 | J151: 70.40728497
A153: Total | C153: 370 | D153: 323.9911433 | F153: 511 | G153: 446.2115636 | I153: 881 | J153: 770.2027069
A155: Ingeniører i alt | C155: 46 | D155: 40.11601073 | F155: 12 | G155: 11.90544502 | I155: 58 | J155: 52.02145575
A156: Magistre i alt | C156: 85 | D156: 73.8963388 | F156: 148 | G156: 127.9860288 | I156: 233 | J156: 201.8823676
A157: DJØF'ere i alt | C157: 109 | D157: 94.3323146 | F157: 148 | G157: 130.4428366 | I157: 257 | J157: 224.7751513
A162: Ballerup
C164: Mænd | F164: Kvinder | I164: I alt
C165: Ledigheds- berørte | D165: Gns. brutto- ledighed | F165: Ledigheds- berørte | G165: Gns. brutto- ledighed | I165: Ledigheds- berørte | J165: Gns. brutto- ledighed
A168: Civ. ing. | C168: 5 | D168: 4.99906443 | F168: 0 | G168: 0 | I168: 5 | J168: 4.99906443
A169: Diplom ing. | C169: 11 | D169: 9.611426433 | F169: 3 | G169: 1.508139462 | I169: 14 | J169: 11.1195659
A170: Cand. Scient. Tek. | C170: 7 | D170: 6.214058504 | F170: 10 | G170: 9.951974054 | I170: 17 | J170: 16.16603256
A171: MA. Hum. | C171: 2 | D171: 1.744526913 | F171: 7 | G171: 6.573317533 | I171: 9 | J171: 8.317844446
A172: MA. Nat. | C172: 1 | D172: 0.8438844882 | F172: 2 | G172: 1.307303686 | I172: 3 | J172: 2.151188174
A173: MA. Ph.d. | C173: 0 | D173: 0 | F173: 1 | G173: 0.5002182998 | I173: 1 | J173: 0.5002182998
A174: MA. Samf. | C174: 0 | D174: 0 | F174: 0 | G174: 0 | I174: 0 | J174: 0
A175: Øvrige Mag. | C175: 1 | D175: 0.9998128859 | F175: 1 | G175: 0.9998128859 | I175: 2 | J175: 1.999625772
A176: Agronom | C176: 0 | D176: 0 | F176: 1 | G176: 0.9998128859 | I176: 1 | J176: 0.9998128859
A177: Landsk. Arkt. | C177: 0 | D177: 0 | F177: 0 | G177: 0 | I177: 0 | J177: 0
A178: Hortonom | C178: 0 | D178: 0 | F178: 0 | G178: 0 | I178: 0 | J178: 0
A179: Forstkand. | C179: 0 | D179: 0 | F179: 0 | G179: 0 | I179: 0 | J179: 0
A180: Jordbrugsakad. | C180: 0 | D180: 0 | F180: 1 | G180: 0.9998128859 | I180: 1 | J180: 0.9998128859
A181: Mejeriing. | C181: 0 | D181: 0 | F181: 0 | G181: 0 | I181: 0 | J181: 0
A182: Levn.m.kand. | C182: 0 | D182: 0 | F182: 0 | G182: 0 | I182: 0 | J182: 0
A183: Dyrlæge | C183: 0 | D183: 0 | F183: 0 | G183: 0 | I183: 0 | J183: 0
A184: Farmaceut | C184: 0 | D184: 0 | F184: 2 | G184: 1.999625772 | I184: 2 | J184: 1.999625772
A185: Læge | C185: 0 | D185: 0 | F185: 0 | G185: 0 | I185: 0 | J185: 0
A186: Tandlæge | C186: 0 | D186: 0 | F186: 0 | G186: 0 | I186: 0 | J186: 0
A187: Arkitekt | C187: 1 | D187: 0.9998128859 | F187: 0 | G187: 0 | I187: 1 | J187: 0.9998128859
A188: Landinspek. | C188: 0 | D188: 0 | F188: 0 | G188: 0 | I188: 0 | J188: 0
A189: Bibliotekar | C189: 1 | D189: 0.9998128859 | F189: 2 | G189: 1.90731616 | I189: 3 | J189: 2.907129046
A190: Musikudd. | C190: 0 | D190: 0 | F190: 0 | G190: 0 | I190: 0 | J190: 0
A191: Teolog | C191: 0 | D191: 0 | F191: 0 | G191: 0 | I191: 0 | J191: 0
A192: Psykolog | C192: 1 | D192: 0.7222603381 | F192: 0 | G192: 0 | I192: 1 | J192: 0.7222603381
A193: Jurist | C193: 2 | D193: 0.7996008233 | F193: 3 | G193: 2.999438658 | I193: 5 | J193: 3.799039481
A194: Økonom | C194: 1 | D194: 0.9998128859 | F194: 0 | G194: 0 | I194: 1 | J194: 0.9998128859
A195: Samf. Adm. | C195: 5 | D195: 4.830038047 | F195: 2 | G195: 1.681531841 | I195: 7 | J195: 6.511569887
A196: Cand. Merc. | C196: 3 | D196: 2.202332689 | F196: 3 | G196: 2.676355018 | I196: 6 | J196: 4.878687707
A197: HA | C197: 4 | D197: 2.224162665 | F197: 1 | G197: 0.9998128859 | I197: 5 | J197: 3.22397555
A198: HD | C198: 4 | D198: 3.999251544 | F198: 0 | G198: 0 | I198: 4 | J198: 3.999251544
A199: Komm. og Sprog | C199: 0 | D199: 0 | F199: 4 | G199: 2.522297761 | I199: 4 | J199: 2.522297761
A200: Cand. IT. | C200: 0 | D200: 0 | F200: 2 | G200: 1.999625772 | I200: 2 | J200: 1.999625772
A201: Bac. Samf. | C201: 0 | D201: 0 | F201: 0 | G201: 0 | I201: 0 | J201: 0
A202: Bac. Hum. | C202: 0 | D202: 0 | F202: 0 | G202: 0 | I202: 0 | J202: 0
A203: Bac. Nat. | C203: 2 | D203: 1.999625772 | F203: 1 | G203: 0.3074908002 | I203: 3 | J203: 2.307116572
A204: Andre | C204: 4 | D204: 3.676167904 | F204: 4 | G204: 3.999251544 | I204: 8 | J204: 7.675419447
A206: Total | C206: 55 | D206: 47.86565209 | F206: 49 | G206: 42.93332502 | I206: 104 | J206: 90.79897711
A208: Ingeniører i alt | C208: 16 | D208: 14.61049086 | F208: 3 | G208: 1.508139462 | I208: 19 | J208: 16.11863032
A209: Magistre i alt | C209: 4 | D209: 3.588224287 | F209: 11 | G209: 9.380652404 | I209: 15 | J209: 12.96887669
A210: DJØF'ere i alt | C210: 15 | D210: 11.05594711 | F210: 9 | G210: 8.357138402 | I210: 24 | J210: 19.41308551
A215: Brøndby
C217: Mænd | F217: Kvinder | I217: I alt
C218: Ledigheds- berørte | D218: Gns. brutto- ledighed | F218: Ledigheds- berørte | G218: Gns. brutto- ledighed | I218: Ledigheds- berørte | J218: Gns. brutto- ledighed
A221: Civ. ing. | C221: 6 | D221: 5.537329258 | F221: 1 | G221: 0.9075032745 | I221: 7 | J221: 6.444832533
A222: Diplom ing. | C222: 2 | D222: 1.999625772 | F222: 0 | G222: 0 | I222: 2 | J222: 1.999625772
A223: Cand. Scient. Tek. | C223: 6 | D223: 5.711969064 | F223: 5 | G223: 4.823800911 | I223: 11 | J223: 10.53576997
A224: MA. Hum. | C224: 2 | D224: 1.974677228 | F224: 8 | G224: 5.588473773 | I224: 10 | J224: 7.563151001
A225: MA. Nat. | C225: 2 | D225: 1.168839269 | F225: 3 | G225: 2.999438658 | I225: 5 | J225: 4.168277927
A226: MA. Ph.d. | C226: 0 | D226: 0 | F226: 1 | G226: 0.9998128859 | I226: 1 | J226: 0.9998128859
A227: MA. Samf. | C227: 3 | D227: 2.671989023 | F227: 1 | G227: 0.9998128859 | I227: 4 | J227: 3.671801909
A228: Øvrige Mag. | C228: 2 | D228: 1.369675045 | F228: 1 | G228: 0.9998128859 | I228: 3 | J228: 2.369487931
A229: Agronom | C229: 0 | D229: 0 | F229: 0 | G229: 0 | I229: 0 | J229: 0
A230: Landsk. Arkt. | C230: 0 | D230: 0 | F230: 0 | G230: 0 | I230: 0 | J230: 0
A231: Hortonom | C231: 0 | D231: 0 | F231: 0 | G231: 0 | I231: 0 | J231: 0
A232: Forstkand. | C232: 0 | D232: 0 | F232: 0 | G232: 0 | I232: 0 | J232: 0
A233: Jordbrugsakad. | C233: 0 | D233: 0 | F233: 0 | G233: 0 | I233: 0 | J233: 0
A234: Mejeriing. | C234: 0 | D234: 0 | F234: 0 | G234: 0 | I234: 0 | J234: 0
A235: Levn.m.kand. | C235: 0 | D235: 0 | F235: 0 | G235: 0 | I235: 0 | J235: 0
A236: Dyrlæge | C236: 0 | D236: 0 | F236: 1 | G236: 0.8937815755 | I236: 1 | J236: 0.8937815755
A237: Farmaceut | C237: 0 | D237: 0 | F237: 1 | G237: 0.9998128859 | I237: 1 | J237: 0.9998128859
A238: Læge | C238: 0 | D238: 0 | F238: 0 | G238: 0 | I238: 0 | J238: 0
A239: Tandlæge | C239: 0 | D239: 0 | F239: 0 | G239: 0 | I239: 0 | J239: 0
A240: Arkitekt | C240: 0 | D240: 0 | F240: 1 | G240: 0.391692135 | I240: 1 | J240: 0.391692135
... 1079 more rows

Sheet Tabel 3 H
A1: Tabel 3. Ledige i procent af forsikrede
A3: Hovedstaden
C5: Mænd | F5: Kvinder | I5: I alt
C6: Ledigheds- berørte | D6: Gns. brutto- ledighed | F6: Ledigheds- berørte | G6: Gns. brutto- ledighed | I6: Ledigheds- berørte | J6: Gns. brutto- ledighed
A9: Civ. ing. | C9: =IF(OR('Tabel 1 H'!C7<5,'Tabel 2 H'!C9<0.5),"-",IFERROR('Tabel 2 H'!C9/'Tabel 1 H'!C7*100,"-")) -> 2.770491803 | D9: =IF(OR('Tabel 1 H'!C7<5,'Tabel 2 H'!D9<0.5),"-",IFERROR('Tabel 2 H'!D9/'Tabel 1 H'!C7*100,"-")) -> 2.483509933 | F9: =IF(OR('Tabel 1 H'!E7<5,'Tabel 2 H'!F9<0.5),"-",IFERROR('Tabel 2 H'!F9/'Tabel 1 H'!E7*100,"-")) -> 3.600586142 | G9: =IF(OR('Tabel 1 H'!E7<5,'Tabel 2 H'!G9<0.5),"-",IFERROR('Tabel 2 H'!G9/'Tabel 1 H'!E7*100,"-")) -> 3.301934788 | I9: =IF(OR('Tabel 1 H'!G7<5,'Tabel 2 H'!I9<0.5),"-",IFERROR('Tabel 2 H'!I9/'Tabel 1 H'!G7*100,"-")) -> 3.004064322 | J9: =IF(OR('Tabel 1 H'!G7<5,'Tabel 2 H'!J9<0.5),"-",IFERROR('Tabel 2 H'!J9/'Tabel 1 H'!G7*100,"-")) -> 2.713798885
A10: Diplom ing. | C10: =IF(OR('Tabel 1 H'!C8<5,'Tabel 2 H'!C10<0.5),"-",IFERROR('Tabel 2 H'!C10/'Tabel 1 H'!C8*100,"-")) -> 2.884031573 | D10: =IF(OR('Tabel 1 H'!C8<5,'Tabel 2 H'!D10<0.5),"-",IFERROR('Tabel 2 H'!D10/'Tabel 1 H'!C8*100,"-")) -> 2.617217603 | F10: =IF(OR('Tabel 1 H'!E8<5,'Tabel 2 H'!F10<0.5),"-",IFERROR('Tabel 2 H'!F10/'Tabel 1 H'!E8*100,"-")) -> 3.141361257 | G10: =IF(OR('Tabel 1 H'!E8<5,'Tabel 2 H'!G10<0.5),"-",IFERROR('Tabel 2 H'!G10/'Tabel 1 H'!E8*100,"-")) -> 2.625751323 | I10: =IF(OR('Tabel 1 H'!G8<5,'Tabel 2 H'!I10<0.5),"-",IFERROR('Tabel 2 H'!I10/'Tabel 1 H'!G8*100,"-")) -> 2.935705621 | J10: =IF(OR('Tabel 1 H'!G8<5,'Tabel 2 H'!J10<0.5),"-",IFERROR('Tabel 2 H'!J10/'Tabel 1 H'!G8*100,"-")) -> 2.618931248
A11: Cand. Scient. Tek. | C11: =IF(OR('Tabel 1 H'!C9<5,'Tabel 2 H'!C11<0.5),"-",IFERROR('Tabel 2 H'!C11/'Tabel 1 H'!C9*100,"-")) -> 8.905343206 | D11: =IF(OR('Tabel 1 H'!C9<5,'Tabel 2 H'!D11<0.5),"-",IFERROR('Tabel 2 H'!D11/'Tabel 1 H'!C9*100,"-")) -> 7.872571107 | F11: =IF(OR('Tabel 1 H'!E9<5,'Tabel 2 H'!F11<0.5),"-",IFERROR('Tabel 2 H'!F11/'Tabel 1 H'!E9*100,"-")) -> 12.03643461 | G11: =IF(OR('Tabel 1 H'!E9<5,'Tabel 2 H'!G11<0.5),"-",IFERROR('Tabel 2 H'!G11/'Tabel 1 H'!E9*100,"-")) -> 10.29527813 | I11: =IF(OR('Tabel 1 H'!G9<5,'Tabel 2 H'!I11<0.5),"-",IFERROR('Tabel 2 H'!I11/'Tabel 1 H'!G9*100,"-")) -> 10.40799334 | J11: =IF(OR('Tabel 1 H'!G9<5,'Tabel 2 H'!J11<0.5),"-",IFERROR('Tabel 2 H'!J11/'Tabel 1 H'!G9*100,"-")) -> 9.03525867
A12: MA. Hum. | C12: =IF(OR('Tabel 1 H'!C10<5,'Tabel 2 H'!C12<0.5),"-",IFERROR('Tabel 2 H'!C12/'Tabel 1 H'!C10*100,"-")) -> 8.924144769 | D12: =IF(OR('Tabel 1 H'!C10<5,'Tabel 2 H'!D12<0.5),"-",IFERROR('Tabel 2 H'!D12/'Tabel 1 H'!C10*100,"-")) -> 7.646124596 | F12: =IF(OR('Tabel 1 H'!E10<5,'Tabel 2 H'!F12<0.5),"-",IFERROR('Tabel 2 H'!F12/'Tabel 1 H'!E10*100,"-")) -> 9.498739433 | G12: =IF(OR('Tabel 1 H'!E10<5,'Tabel 2 H'!G12<0.5),"-",IFERROR('Tabel 2 H'!G12/'Tabel 1 H'!E10*100,"-")) -> 8.135484948 | I12: =IF(OR('Tabel 1 H'!G10<5,'Tabel 2 H'!I12<0.5),"-",IFERROR('Tabel 2 H'!I12/'Tabel 1 H'!G10*100,"-")) -> 9.320775964 | J12: =IF(OR('Tabel 1 H'!G10<5,'Tabel 2 H'!J12<0.5),"-",IFERROR('Tabel 2 H'!J12/'Tabel 1 H'!G10*100,"-")) -> 7.983920251
A13: MA. Nat. | C13: =IF(OR('Tabel 1 H'!C11<5,'Tabel 2 H'!C13<0.5),"-",IFERROR('Tabel 2 H'!C13/'Tabel 1 H'!C11*100,"-")) -> 2.985899917 | D13: =IF(OR('Tabel 1 H'!C11<5,'Tabel 2 H'!D13<0.5),"-",IFERROR('Tabel 2 H'!D13/'Tabel 1 H'!C11*100,"-")) -> 2.574331718 | F13: =IF(OR('Tabel 1 H'!E11<5,'Tabel 2 H'!F13<0.5),"-",IFERROR('Tabel 2 H'!F13/'Tabel 1 H'!E11*100,"-")) -> 4.572065793 | G13: =IF(OR('Tabel 1 H'!E11<5,'Tabel 2 H'!G13<0.5),"-",IFERROR('Tabel 2 H'!G13/'Tabel 1 H'!E11*100,"-")) -> 4.013102263 | I13: =IF(OR('Tabel 1 H'!G11<5,'Tabel 2 H'!I13<0.5),"-",IFERROR('Tabel 2 H'!I13/'Tabel 1 H'!G11*100,"-")) -> 3.775680178 | J13: =IF(OR('Tabel 1 H'!G11<5,'Tabel 2 H'!J13<0.5),"-",IFERROR('Tabel 2 H'!J13/'Tabel 1 H'!G11*100,"-")) -> 3.290721216
A14: MA. Ph.d. | C14: =IF(OR('Tabel 1 H'!C12<5,'Tabel 2 H'!C14<0.5),"-",IFERROR('Tabel 2 H'!C14/'Tabel 1 H'!C12*100,"-")) -> 4.215116279 | D14: =IF(OR('Tabel 1 H'!C12<5,'Tabel 2 H'!D14<0.5),"-",IFERROR('Tabel 2 H'!D14/'Tabel 1 H'!C12*100,"-")) -> 3.61354996 | F14: =IF(OR('Tabel 1 H'!E12<5,'Tabel 2 H'!F14<0.5),"-",IFERROR('Tabel 2 H'!F14/'Tabel 1 H'!E12*100,"-")) -> 6.751824818 | G14: =IF(OR('Tabel 1 H'!E12<5,'Tabel 2 H'!G14<0.5),"-",IFERROR('Tabel 2 H'!G14/'Tabel 1 H'!E12*100,"-")) -> 5.951456872 | I14: =IF(OR('Tabel 1 H'!G12<5,'Tabel 2 H'!I14<0.5),"-",IFERROR('Tabel 2 H'!I14/'Tabel 1 H'!G12*100,"-")) -> 5.339805825 | J14: =IF(OR('Tabel 1 H'!G12<5,'Tabel 2 H'!J14<0.5),"-",IFERROR('Tabel 2 H'!J14/'Tabel 1 H'!G12*100,"-")) -> 4.650097685
A15: MA. Samf. | C15: =IF(OR('Tabel 1 H'!C13<5,'Tabel 2 H'!C15<0.5),"-",IFERROR('Tabel 2 H'!C15/'Tabel 1 H'!C13*100,"-")) -> 14.60674157 | D15: =IF(OR('Tabel 1 H'!C13<5,'Tabel 2 H'!D15<0.5),"-",IFERROR('Tabel 2 H'!D15/'Tabel 1 H'!C13*100,"-")) -> 13.02068697 | F15: =IF(OR('Tabel 1 H'!E13<5,'Tabel 2 H'!F15<0.5),"-",IFERROR('Tabel 2 H'!F15/'Tabel 1 H'!E13*100,"-")) -> 12.5056844 | G15: =IF(OR('Tabel 1 H'!E13<5,'Tabel 2 H'!G15<0.5),"-",IFERROR('Tabel 2 H'!G15/'Tabel 1 H'!E13*100,"-")) -> 10.89209848 | I15: =IF(OR('Tabel 1 H'!G13<5,'Tabel 2 H'!I15<0.5),"-",IFERROR('Tabel 2 H'!I15/'Tabel 1 H'!G13*100,"-")) -> 13.11103917 | J15: =IF(OR('Tabel 1 H'!G13<5,'Tabel 2 H'!J15<0.5),"-",IFERROR('Tabel 2 H'!J15/'Tabel 1 H'!G13*100,"-")) -> 11.50538555
A16: Øvrige Mag. | C16: =IF(OR('Tabel 1 H'!C14<5,'Tabel 2 H'!C16<0.5),"-",IFERROR('Tabel 2 H'!C16/'Tabel 1 H'!C14*100,"-")) -> 11.64122137 | D16: =IF(OR('Tabel 1 H'!C14<5,'Tabel 2 H'!D16<0.5),"-",IFERROR('Tabel 2 H'!D16/'Tabel 1 H'!C14*100,"-")) -> 10.40173345 | F16: =IF(OR('Tabel 1 H'!E14<5,'Tabel 2 H'!F16<0.5),"-",IFERROR('Tabel 2 H'!F16/'Tabel 1 H'!E14*100,"-")) -> 7.378640777 | G16: =IF(OR('Tabel 1 H'!E14<5,'Tabel 2 H'!G16<0.5),"-",IFERROR('Tabel 2 H'!G16/'Tabel 1 H'!E14*100,"-")) -> 6.424249984 | I16: =IF(OR('Tabel 1 H'!G14<5,'Tabel 2 H'!I16<0.5),"-",IFERROR('Tabel 2 H'!I16/'Tabel 1 H'!G14*100,"-")) -> 8.815958816 | J16: =IF(OR('Tabel 1 H'!G14<5,'Tabel 2 H'!J16<0.5),"-",IFERROR('Tabel 2 H'!J16/'Tabel 1 H'!G14*100,"-")) -> 7.765434885
A17: Agronom | C17: =IF(OR('Tabel 1 H'!C15<5,'Tabel 2 H'!C17<0.5),"-",IFERROR('Tabel 2 H'!C17/'Tabel 1 H'!C15*100,"-")) -> 3.664921466 | D17: =IF(OR('Tabel 1 H'!C15<5,'Tabel 2 H'!D17<0.5),"-",IFERROR('Tabel 2 H'!D17/'Tabel 1 H'!C15*100,"-")) -> 3.217186542 | F17: =IF(OR('Tabel 1 H'!E15<5,'Tabel 2 H'!F17<0.5),"-",IFERROR('Tabel 2 H'!F17/'Tabel 1 H'!E15*100,"-")) -> 7.311320755 | G17: =IF(OR('Tabel 1 H'!E15<5,'Tabel 2 H'!G17<0.5),"-",IFERROR('Tabel 2 H'!G17/'Tabel 1 H'!E15*100,"-")) -> 6.685356499 | I17: =IF(OR('Tabel 1 H'!G15<5,'Tabel 2 H'!I17<0.5),"-",IFERROR('Tabel 2 H'!I17/'Tabel 1 H'!G15*100,"-")) -> 5.583126551 | J17: =IF(OR('Tabel 1 H'!G15<5,'Tabel 2 H'!J17<0.5),"-",IFERROR('Tabel 2 H'!J17/'Tabel 1 H'!G15*100,"-")) -> 5.041633269
A18: Landsk. Arkt. | C18: =IF(OR('Tabel 1 H'!C16<5,'Tabel 2 H'!C18<0.5),"-",IFERROR('Tabel 2 H'!C18/'Tabel 1 H'!C16*100,"-")) -> 10.07751938 | D18: =IF(OR('Tabel 1 H'!C16<5,'Tabel 2 H'!D18<0.5),"-",IFERROR('Tabel 2 H'!D18/'Tabel 1 H'!C16*100,"-")) -> 9.489633058 | F18: =IF(OR('Tabel 1 H'!E16<5,'Tabel 2 H'!F18<0.5),"-",IFERROR('Tabel 2 H'!F18/'Tabel 1 H'!E16*100,"-")) -> 8.554572271 | G18: =IF(OR('Tabel 1 H'!E16<5,'Tabel 2 H'!G18<0.5),"-",IFERROR('Tabel 2 H'!G18/'Tabel 1 H'!E16*100,"-")) -> 7.559445517 | I18: =IF(OR('Tabel 1 H'!G16<5,'Tabel 2 H'!I18<0.5),"-",IFERROR('Tabel 2 H'!I18/'Tabel 1 H'!G16*100,"-")) -> 8.974358974 | J18: =IF(OR('Tabel 1 H'!G16<5,'Tabel 2 H'!J18<0.5),"-",IFERROR('Tabel 2 H'!J18/'Tabel 1 H'!G16*100,"-")) -> 8.09148439
A19: Hortonom | C19: =IF(OR('Tabel 1 H'!C17<5,'Tabel 2 H'!C19<0.5),"-",IFERROR('Tabel 2 H'!C19/'Tabel 1 H'!C17*100,"-")) -> 3.50877193 | D19: =IF(OR('Tabel 1 H'!C17<5,'Tabel 2 H'!D19<0.5),"-",IFERROR('Tabel 2 H'!D19/'Tabel 1 H'!C17*100,"-")) -> 2.293515239 | F19: =IF(OR('Tabel 1 H'!E17<5,'Tabel 2 H'!F19<0.5),"-",IFERROR('Tabel 2 H'!F19/'Tabel 1 H'!E17*100,"-")) -> 1.960784314 | G19: =IF(OR('Tabel 1 H'!E17<5,'Tabel 2 H'!G19<0.5),"-",IFERROR('Tabel 2 H'!G19/'Tabel 1 H'!E17*100,"-")) -> 1.960417423 | I19: =IF(OR('Tabel 1 H'!G17<5,'Tabel 2 H'!I19<0.5),"-",IFERROR('Tabel 2 H'!I19/'Tabel 1 H'!G17*100,"-")) -> 2.51572327 | J19: =IF(OR('Tabel 1 H'!G17<5,'Tabel 2 H'!J19<0.5),"-",IFERROR('Tabel 2 H'!J19/'Tabel 1 H'!G17*100,"-")) -> 2.079829848
A20: Forstkand. | C20: =IF(OR('Tabel 1 H'!C18<5,'Tabel 2 H'!C20<0.5),"-",IFERROR('Tabel 2 H'!C20/'Tabel 1 H'!C18*100,"-")) -> 5.154639175 | D20: =IF(OR('Tabel 1 H'!C18<5,'Tabel 2 H'!D20<0.5),"-",IFERROR('Tabel 2 H'!D20/'Tabel 1 H'!C18*100,"-")) -> 4.795200106 | F20: =IF(OR('Tabel 1 H'!E18<5,'Tabel 2 H'!F20<0.5),"-",IFERROR('Tabel 2 H'!F20/'Tabel 1 H'!E18*100,"-")) -> 7.575757576 | G20: =IF(OR('Tabel 1 H'!E18<5,'Tabel 2 H'!G20<0.5),"-",IFERROR('Tabel 2 H'!G20/'Tabel 1 H'!E18*100,"-")) -> 6.839114024 | I20: =IF(OR('Tabel 1 H'!G18<5,'Tabel 2 H'!I20<0.5),"-",IFERROR('Tabel 2 H'!I20/'Tabel 1 H'!G18*100,"-")) -> 5.769230769 | J20: =IF(OR('Tabel 1 H'!G18<5,'Tabel 2 H'!J20<0.5),"-",IFERROR('Tabel 2 H'!J20/'Tabel 1 H'!G18*100,"-")) -> 5.314039793
A21: Jordbrugsakad. | C21: =IF(OR('Tabel 1 H'!C19<5,'Tabel 2 H'!C21<0.5),"-",IFERROR('Tabel 2 H'!C21/'Tabel 1 H'!C19*100,"-")) -> 5.118110236 | D21: =IF(OR('Tabel 1 H'!C19<5,'Tabel 2 H'!D21<0.5),"-",IFERROR('Tabel 2 H'!D21/'Tabel 1 H'!C19*100,"-")) -> 4.611715371 | F21: =IF(OR('Tabel 1 H'!E19<5,'Tabel 2 H'!F21<0.5),"-",IFERROR('Tabel 2 H'!F21/'Tabel 1 H'!E19*100,"-")) -> 7.196562836 | G21: =IF(OR('Tabel 1 H'!E19<5,'Tabel 2 H'!G21<0.5),"-",IFERROR('Tabel 2 H'!G21/'Tabel 1 H'!E19*100,"-")) -> 6.496871416 | I21: =IF(OR('Tabel 1 H'!G19<5,'Tabel 2 H'!I21<0.5),"-",IFERROR('Tabel 2 H'!I21/'Tabel 1 H'!G19*100,"-")) -> 6.261075015 | J21: =IF(OR('Tabel 1 H'!G19<5,'Tabel 2 H'!J21<0.5),"-",IFERROR('Tabel 2 H'!J21/'Tabel 1 H'!G19*100,"-")) -> 5.648384171
A22: Mejeriing. | C22: =IF(OR('Tabel 1 H'!C20<5,'Tabel 2 H'!C22<0.5),"-",IFERROR('Tabel 2 H'!C22/'Tabel 1 H'!C20*100,"-")) -> 1.694915254 | D22: =IF(OR('Tabel 1 H'!C20<5,'Tabel 2 H'!D22<0.5),"-",IFERROR('Tabel 2 H'!D22/'Tabel 1 H'!C20*100,"-")) -> 1.616369627 | F22: =IF(OR('Tabel 1 H'!E20<5,'Tabel 2 H'!F22<0.5),"-",IFERROR('Tabel 2 H'!F22/'Tabel 1 H'!E20*100,"-")) -> 8.333333333 | G22: =IF(OR('Tabel 1 H'!E20<5,'Tabel 2 H'!G22<0.5),"-",IFERROR('Tabel 2 H'!G22/'Tabel 1 H'!E20*100,"-")) -> 7.562527287 | I22: =IF(OR('Tabel 1 H'!G20<5,'Tabel 2 H'!I22<0.5),"-",IFERROR('Tabel 2 H'!I22/'Tabel 1 H'!G20*100,"-")) -> 5.34351145 | J22: =IF(OR('Tabel 1 H'!G20<5,'Tabel 2 H'!J22<0.5),"-",IFERROR('Tabel 2 H'!J22/'Tabel 1 H'!G20*100,"-")) -> 4.884486815
A23: Levn.m.kand. | C23: =IF(OR('Tabel 1 H'!C21<5,'Tabel 2 H'!C23<0.5),"-",IFERROR('Tabel 2 H'!C23/'Tabel 1 H'!C21*100,"-")) -> 19.51219512 | D23: =IF(OR('Tabel 1 H'!C21<5,'Tabel 2 H'!D23<0.5),"-",IFERROR('Tabel 2 H'!D23/'Tabel 1 H'!C21*100,"-")) -> 16.49342134 | F23: =IF(OR('Tabel 1 H'!E21<5,'Tabel 2 H'!F23<0.5),"-",IFERROR('Tabel 2 H'!F23/'Tabel 1 H'!E21*100,"-")) -> 14.82889734 | G23: =IF(OR('Tabel 1 H'!E21<5,'Tabel 2 H'!G23<0.5),"-",IFERROR('Tabel 2 H'!G23/'Tabel 1 H'!E21*100,"-")) -> 12.78138554 | I23: =IF(OR('Tabel 1 H'!G21<5,'Tabel 2 H'!I23<0.5),"-",IFERROR('Tabel 2 H'!I23/'Tabel 1 H'!G21*100,"-")) -> 15.46052632 | J23: =IF(OR('Tabel 1 H'!G21<5,'Tabel 2 H'!J23<0.5),"-",IFERROR('Tabel 2 H'!J23/'Tabel 1 H'!G21*100,"-")) -> 13.28202195
A24: Dyrlæge | C24: =IF(OR('Tabel 1 H'!C22<5,'Tabel 2 H'!C24<0.5),"-",IFERROR('Tabel 2 H'!C24/'Tabel 1 H'!C22*100,"-")) -> 6.707317073 | D24: =IF(OR('Tabel 1 H'!C22<5,'Tabel 2 H'!D24<0.5),"-",IFERROR('Tabel 2 H'!D24/'Tabel 1 H'!C22*100,"-")) -> 5.987270158 | F24: =IF(OR('Tabel 1 H'!E22<5,'Tabel 2 H'!F24<0.5),"-",IFERROR('Tabel 2 H'!F24/'Tabel 1 H'!E22*100,"-")) -> 5.305039788 | G24: =IF(OR('Tabel 1 H'!E22<5,'Tabel 2 H'!G24<0.5),"-",IFERROR('Tabel 2 H'!G24/'Tabel 1 H'!E22*100,"-")) -> 4.113945359 | I24: =IF(OR('Tabel 1 H'!G22<5,'Tabel 2 H'!I24<0.5),"-",IFERROR('Tabel 2 H'!I24/'Tabel 1 H'!G22*100,"-")) -> 5.555555556 | J24: =IF(OR('Tabel 1 H'!G22<5,'Tabel 2 H'!J24<0.5),"-",IFERROR('Tabel 2 H'!J24/'Tabel 1 H'!G22*100,"-")) -> 4.448613406
A25: Farmaceut | C25: =IF(OR('Tabel 1 H'!C23<5,'Tabel 2 H'!C25<0.5),"-",IFERROR('Tabel 2 H'!C25/'Tabel 1 H'!C23*100,"-")) -> 4.87804878 | D25: =IF(OR('Tabel 1 H'!C23<5,'Tabel 2 H'!D25<0.5),"-",IFERROR('Tabel 2 H'!D25/'Tabel 1 H'!C23*100,"-")) -> 4.560532925 | F25: =IF(OR('Tabel 1 H'!E23<5,'Tabel 2 H'!F25<0.5),"-",IFERROR('Tabel 2 H'!F25/'Tabel 1 H'!E23*100,"-")) -> 4.334828102 | G25: =IF(OR('Tabel 1 H'!E23<5,'Tabel 2 H'!G25<0.5),"-",IFERROR('Tabel 2 H'!G25/'Tabel 1 H'!E23*100,"-")) -> 3.920748471 | I25: =IF(OR('Tabel 1 H'!G23<5,'Tabel 2 H'!I25<0.5),"-",IFERROR('Tabel 2 H'!I25/'Tabel 1 H'!G23*100,"-")) -> 4.48527425 | J25: =IF(OR('Tabel 1 H'!G23<5,'Tabel 2 H'!J25<0.5),"-",IFERROR('Tabel 2 H'!J25/'Tabel 1 H'!G23*100,"-")) -> 4.097938167
A26: Læge | C26: =IF(OR('Tabel 1 H'!C24<5,'Tabel 2 H'!C26<0.5),"-",IFERROR('Tabel 2 H'!C26/'Tabel 1 H'!C24*100,"-")) -> 1.229508197 | D26: =IF(OR('Tabel 1 H'!C24<5,'Tabel 2 H'!D26<0.5),"-",IFERROR('Tabel 2 H'!D26/'Tabel 1 H'!C24*100,"-")) -> 1.033132143 | F26: =IF(OR('Tabel 1 H'!E24<5,'Tabel 2 H'!F26<0.5),"-",IFERROR('Tabel 2 H'!F26/'Tabel 1 H'!E24*100,"-")) -> 1.306281267 | G26: =IF(OR('Tabel 1 H'!E24<5,'Tabel 2 H'!G26<0.5),"-",IFERROR('Tabel 2 H'!G26/'Tabel 1 H'!E24*100,"-")) -> 1.034501277 | I26: =IF(OR('Tabel 1 H'!G24<5,'Tabel 2 H'!I26<0.5),"-",IFERROR('Tabel 2 H'!I26/'Tabel 1 H'!G24*100,"-")) -> 1.28407744 | J26: =IF(OR('Tabel 1 H'!G24<5,'Tabel 2 H'!J26<0.5),"-",IFERROR('Tabel 2 H'!J26/'Tabel 1 H'!G24*100,"-")) -> 1.034105305
A27: Tandlæge | C27: =IF(OR('Tabel 1 H'!C25<5,'Tabel 2 H'!C27<0.5),"-",IFERROR('Tabel 2 H'!C27/'Tabel 1 H'!C25*100,"-")) -> 1.550387597 | D27: =IF(OR('Tabel 1 H'!C25<5,'Tabel 2 H'!D27<0.5),"-",IFERROR('Tabel 2 H'!D27/'Tabel 1 H'!C25*100,"-")) -> 1.259998153 | F27: =IF(OR('Tabel 1 H'!E25<5,'Tabel 2 H'!F27<0.5),"-",IFERROR('Tabel 2 H'!F27/'Tabel 1 H'!E25*100,"-")) -> 2.127659574 | G27: =IF(OR('Tabel 1 H'!E25<5,'Tabel 2 H'!G27<0.5),"-",IFERROR('Tabel 2 H'!G27/'Tabel 1 H'!E25*100,"-")) -> 1.754979645 | I27: =IF(OR('Tabel 1 H'!G25<5,'Tabel 2 H'!I27<0.5),"-",IFERROR('Tabel 2 H'!I27/'Tabel 1 H'!G25*100,"-")) -> 2.038369305 | J27: =IF(OR('Tabel 1 H'!G25<5,'Tabel 2 H'!J27<0.5),"-",IFERROR('Tabel 2 H'!J27/'Tabel 1 H'!G25*100,"-")) -> 1.67841776
A28: Arkitekt | C28: =IF(OR('Tabel 1 H'!C26<5,'Tabel 2 H'!C28<0.5),"-",IFERROR('Tabel 2 H'!C28/'Tabel 1 H'!C26*100,"-")) -> 6.740196078 | D28: =IF(OR('Tabel 1 H'!C26<5,'Tabel 2 H'!D28<0.5),"-",IFERROR('Tabel 2 H'!D28/'Tabel 1 H'!C26*100,"-")) -> 6.256359433 | F28: =IF(OR('Tabel 1 H'!E26<5,'Tabel 2 H'!F28<0.5),"-",IFERROR('Tabel 2 H'!F28/'Tabel 1 H'!E26*100,"-")) -> 7.947686117 | G28: =IF(OR('Tabel 1 H'!E26<5,'Tabel 2 H'!G28<0.5),"-",IFERROR('Tabel 2 H'!G28/'Tabel 1 H'!E26*100,"-")) -> 6.783042169 | I28: =IF(OR('Tabel 1 H'!G26<5,'Tabel 2 H'!I28<0.5),"-",IFERROR('Tabel 2 H'!I28/'Tabel 1 H'!G26*100,"-")) -> 7.403314917 | J28: =IF(OR('Tabel 1 H'!G26<5,'Tabel 2 H'!J28<0.5),"-",IFERROR('Tabel 2 H'!J28/'Tabel 1 H'!G26*100,"-")) -> 6.54559846
A29: Landinspek. | C29: =IF(OR('Tabel 1 H'!C27<5,'Tabel 2 H'!C29<0.5),"-",IFERROR('Tabel 2 H'!C29/'Tabel 1 H'!C27*100,"-")) -> 0.6849315068 | D29: =IF(OR('Tabel 1 H'!C27<5,'Tabel 2 H'!D29<0.5),"-",IFERROR('Tabel 2 H'!D29/'Tabel 1 H'!C27*100,"-")) -> 0.6848033465 | F29: =IF(OR('Tabel 1 H'!E27<5,'Tabel 2 H'!F29<0.5),"-",IFERROR('Tabel 2 H'!F29/'Tabel 1 H'!E27*100,"-")) -> 1.960784314 | G29: =IF(OR('Tabel 1 H'!E27<5,'Tabel 2 H'!G29<0.5),"-",IFERROR('Tabel 2 H'!G29/'Tabel 1 H'!E27*100,"-")) -> 1.960417423 | I29: =IF(OR('Tabel 1 H'!G27<5,'Tabel 2 H'!I29<0.5),"-",IFERROR('Tabel 2 H'!I29/'Tabel 1 H'!G27*100,"-")) -> 1.015228426 | J29: =IF(OR('Tabel 1 H'!G27<5,'Tabel 2 H'!J29<0.5),"-",IFERROR('Tabel 2 H'!J29/'Tabel 1 H'!G27*100,"-")) -> 1.015038463
A30: Bibliotekar | C30: =IF(OR('Tabel 1 H'!C28<5,'Tabel 2 H'!C30<0.5),"-",IFERROR('Tabel 2 H'!C30/'Tabel 1 H'!C28*100,"-")) -> 4.496788009 | D30: =IF(OR('Tabel 1 H'!C28<5,'Tabel 2 H'!D30<0.5),"-",IFERROR('Tabel 2 H'!D30/'Tabel 1 H'!C28*100,"-")) -> 3.973469601 | F30: =IF(OR('Tabel 1 H'!E28<5,'Tabel 2 H'!F30<0.5),"-",IFERROR('Tabel 2 H'!F30/'Tabel 1 H'!E28*100,"-")) -> 4.960629921 | G30: =IF(OR('Tabel 1 H'!E28<5,'Tabel 2 H'!G30<0.5),"-",IFERROR('Tabel 2 H'!G30/'Tabel 1 H'!E28*100,"-")) -> 4.320910956 | I30: =IF(OR('Tabel 1 H'!G28<5,'Tabel 2 H'!I30<0.5),"-",IFERROR('Tabel 2 H'!I30/'Tabel 1 H'!G28*100,"-")) -> 4.835924007 | J30: =IF(OR('Tabel 1 H'!G28<5,'Tabel 2 H'!J30<0.5),"-",IFERROR('Tabel 2 H'!J30/'Tabel 1 H'!G28*100,"-")) -> 4.227499837
A31: Musikudd. | C31: =IF(OR('Tabel 1 H'!C29<5,'Tabel 2 H'!C31<0.5),"-",IFERROR('Tabel 2 H'!C31/'Tabel 1 H'!C29*100,"-")) -> 3.448275862 | D31: =IF(OR('Tabel 1 H'!C29<5,'Tabel 2 H'!D31<0.5),"-",IFERROR('Tabel 2 H'!D31/'Tabel 1 H'!C29*100,"-")) -> 2.675086083 | F31: =IF(OR('Tabel 1 H'!E29<5,'Tabel 2 H'!F31<0.5),"-",IFERROR('Tabel 2 H'!F31/'Tabel 1 H'!E29*100,"-")) -> 2.717391304 | G31: =IF(OR('Tabel 1 H'!E29<5,'Tabel 2 H'!G31<0.5),"-",IFERROR('Tabel 2 H'!G31/'Tabel 1 H'!E29*100,"-")) -> 2.401636299 | I31: =IF(OR('Tabel 1 H'!G29<5,'Tabel 2 H'!I31<0.5),"-",IFERROR('Tabel 2 H'!I31/'Tabel 1 H'!G29*100,"-")) -> 3.039513678 | J31: =IF(OR('Tabel 1 H'!G29<5,'Tabel 2 H'!J31<0.5),"-",IFERROR('Tabel 2 H'!J31/'Tabel 1 H'!G29*100,"-")) -> 2.522153681
A32: Teolog | C32: =IF(OR('Tabel 1 H'!C30<5,'Tabel 2 H'!C32<0.5),"-",IFERROR('Tabel 2 H'!C32/'Tabel 1 H'!C30*100,"-")) -> 4.347826087 | D32: =IF(OR('Tabel 1 H'!C30<5,'Tabel 2 H'!D32<0.5),"-",IFERROR('Tabel 2 H'!D32/'Tabel 1 H'!C30*100,"-")) -> 3.070960829 | F32: =IF(OR('Tabel 1 H'!E30<5,'Tabel 2 H'!F32<0.5),"-",IFERROR('Tabel 2 H'!F32/'Tabel 1 H'!E30*100,"-")) -> 5.507246377 | G32: =IF(OR('Tabel 1 H'!E30<5,'Tabel 2 H'!G32<0.5),"-",IFERROR('Tabel 2 H'!G32/'Tabel 1 H'!E30*100,"-")) -> 4.619096302 | I32: =IF(OR('Tabel 1 H'!G30<5,'Tabel 2 H'!I32<0.5),"-",IFERROR('Tabel 2 H'!I32/'Tabel 1 H'!G30*100,"-")) -> 5.072463768 | J32: =IF(OR('Tabel 1 H'!G30<5,'Tabel 2 H'!J32<0.5),"-",IFERROR('Tabel 2 H'!J32/'Tabel 1 H'!G30*100,"-")) -> 4.0385455
A33: Psykolog | C33: =IF(OR('Tabel 1 H'!C31<5,'Tabel 2 H'!C33<0.5),"-",IFERROR('Tabel 2 H'!C33/'Tabel 1 H'!C31*100,"-")) -> 6.7381317 | D33: =IF(OR('Tabel 1 H'!C31<5,'Tabel 2 H'!D33<0.5),"-",IFERROR('Tabel 2 H'!D33/'Tabel 1 H'!C31*100,"-")) -> 5.825847895 | F33: =IF(OR('Tabel 1 H'!E31<5,'Tabel 2 H'!F33<0.5),"-",IFERROR('Tabel 2 H'!F33/'Tabel 1 H'!E31*100,"-")) -> 4.961565339 | G33: =IF(OR('Tabel 1 H'!E31<5,'Tabel 2 H'!G33<0.5),"-",IFERROR('Tabel 2 H'!G33/'Tabel 1 H'!E31*100,"-")) -> 4.313604937 | I33: =IF(OR('Tabel 1 H'!G31<5,'Tabel 2 H'!I33<0.5),"-",IFERROR('Tabel 2 H'!I33/'Tabel 1 H'!G31*100,"-")) -> 5.291607397 | J33: =IF(OR('Tabel 1 H'!G31<5,'Tabel 2 H'!J33<0.5),"-",IFERROR('Tabel 2 H'!J33/'Tabel 1 H'!G31*100,"-")) -> 4.594542249
A34: Jurist | C34: =IF(OR('Tabel 1 H'!C32<5,'Tabel 2 H'!C34<0.5),"-",IFERROR('Tabel 2 H'!C34/'Tabel 1 H'!C32*100,"-")) -> 2.172523962 | D34: =IF(OR('Tabel 1 H'!C32<5,'Tabel 2 H'!D34<0.5),"-",IFERROR('Tabel 2 H'!D34/'Tabel 1 H'!C32*100,"-")) -> 1.825986299 | F34: =IF(OR('Tabel 1 H'!E32<5,'Tabel 2 H'!F34<0.5),"-",IFERROR('Tabel 2 H'!F34/'Tabel 1 H'!E32*100,"-")) -> 2.309761114 | G34: =IF(OR('Tabel 1 H'!E32<5,'Tabel 2 H'!G34<0.5),"-",IFERROR('Tabel 2 H'!G34/'Tabel 1 H'!E32*100,"-")) -> 2.032757682 | I34: =IF(OR('Tabel 1 H'!G32<5,'Tabel 2 H'!I34<0.5),"-",IFERROR('Tabel 2 H'!I34/'Tabel 1 H'!G32*100,"-")) -> 2.264310655 | J34: =IF(OR('Tabel 1 H'!G32<5,'Tabel 2 H'!J34<0.5),"-",IFERROR('Tabel 2 H'!J34/'Tabel 1 H'!G32*100,"-")) -> 1.964278746
A35: Økonom | C35: =IF(OR('Tabel 1 H'!C33<5,'Tabel 2 H'!C35<0.5),"-",IFERROR('Tabel 2 H'!C35/'Tabel 1 H'!C33*100,"-")) -> 2.549659057 | D35: =IF(OR('Tabel 1 H'!C33<5,'Tabel 2 H'!D35<0.5),"-",IFERROR('Tabel 2 H'!D35/'Tabel 1 H'!C33*100,"-")) -> 2.209976463 | F35: =IF(OR('Tabel 1 H'!E33<5,'Tabel 2 H'!F35<0.5),"-",IFERROR('Tabel 2 H'!F35/'Tabel 1 H'!E33*100,"-")) -> 2.31436837 | G35: =IF(OR('Tabel 1 H'!E33<5,'Tabel 2 H'!G35<0.5),"-",IFERROR('Tabel 2 H'!G35/'Tabel 1 H'!E33*100,"-")) -> 1.966532263 | I35: =IF(OR('Tabel 1 H'!G33<5,'Tabel 2 H'!I35<0.5),"-",IFERROR('Tabel 2 H'!I35/'Tabel 1 H'!G33*100,"-")) -> 2.460069763 | J35: =IF(OR('Tabel 1 H'!G33<5,'Tabel 2 H'!J35<0.5),"-",IFERROR('Tabel 2 H'!J35/'Tabel 1 H'!G33*100,"-")) -> 2.117282636
A36: Samf. Adm. | C36: =IF(OR('Tabel 1 H'!C34<5,'Tabel 2 H'!C36<0.5),"-",IFERROR('Tabel 2 H'!C36/'Tabel 1 H'!C34*100,"-")) -> 5.403382727 | D36: =IF(OR('Tabel 1 H'!C34<5,'Tabel 2 H'!D36<0.5),"-",IFERROR('Tabel 2 H'!D36/'Tabel 1 H'!C34*100,"-")) -> 4.762404752 | F36: =IF(OR('Tabel 1 H'!E34<5,'Tabel 2 H'!F36<0.5),"-",IFERROR('Tabel 2 H'!F36/'Tabel 1 H'!E34*100,"-")) -> 6.175459875 | G36: =IF(OR('Tabel 1 H'!E34<5,'Tabel 2 H'!G36<0.5),"-",IFERROR('Tabel 2 H'!G36/'Tabel 1 H'!E34*100,"-")) -> 5.477464857 | I36: =IF(OR('Tabel 1 H'!G34<5,'Tabel 2 H'!I36<0.5),"-",IFERROR('Tabel 2 H'!I36/'Tabel 1 H'!G34*100,"-")) -> 5.864253394 | J36: =IF(OR('Tabel 1 H'!G34<5,'Tabel 2 H'!J36<0.5),"-",IFERROR('Tabel 2 H'!J36/'Tabel 1 H'!G34*100,"-")) -> 5.18924063
A37: Cand. Merc. | C37: =IF(OR('Tabel 1 H'!C35<5,'Tabel 2 H'!C37<0.5),"-",IFERROR('Tabel 2 H'!C37/'Tabel 1 H'!C35*100,"-")) -> 5.12589026 | D37: =IF(OR('Tabel 1 H'!C35<5,'Tabel 2 H'!D37<0.5),"-",IFERROR('Tabel 2 H'!D37/'Tabel 1 H'!C35*100,"-")) -> 4.500172702 | F37: =IF(OR('Tabel 1 H'!E35<5,'Tabel 2 H'!F37<0.5),"-",IFERROR('Tabel 2 H'!F37/'Tabel 1 H'!E35*100,"-")) -> 5.779514603 | G37: =IF(OR('Tabel 1 H'!E35<5,'Tabel 2 H'!G37<0.5),"-",IFERROR('Tabel 2 H'!G37/'Tabel 1 H'!E35*100,"-")) -> 4.875158119 | I37: =IF(OR('Tabel 1 H'!G35<5,'Tabel 2 H'!I37<0.5),"-",IFERROR('Tabel 2 H'!I37/'Tabel 1 H'!G35*100,"-")) -> 5.448636571 | J37: =IF(OR('Tabel 1 H'!G35<5,'Tabel 2 H'!J37<0.5),"-",IFERROR('Tabel 2 H'!J37/'Tabel 1 H'!G35*100,"-")) -> 4.68533282
A38: HA | C38: =IF(OR('Tabel 1 H'!C36<5,'Tabel 2 H'!C38<0.5),"-",IFERROR('Tabel 2 H'!C38/'Tabel 1 H'!C36*100,"-")) -> 7.77000777 | D38: =IF(OR('Tabel 1 H'!C36<5,'Tabel 2 H'!D38<0.5),"-",IFERROR('Tabel 2 H'!D38/'Tabel 1 H'!C36*100,"-")) -> 6.491806841 | F38: =IF(OR('Tabel 1 H'!E36<5,'Tabel 2 H'!F38<0.5),"-",IFERROR('Tabel 2 H'!F38/'Tabel 1 H'!E36*100,"-")) -> 7.102272727 | G38: =IF(OR('Tabel 1 H'!E36<5,'Tabel 2 H'!G38<0.5),"-",IFERROR('Tabel 2 H'!G38/'Tabel 1 H'!E36*100,"-")) -> 5.7532263 | I38: =IF(OR('Tabel 1 H'!G36<5,'Tabel 2 H'!I38<0.5),"-",IFERROR('Tabel 2 H'!I38/'Tabel 1 H'!G36*100,"-")) -> 7.469056765 | J38: =IF(OR('Tabel 1 H'!G36<5,'Tabel 2 H'!J38<0.5),"-",IFERROR('Tabel 2 H'!J38/'Tabel 1 H'!G36*100,"-")) -> 6.158925471
A39: HD | C39: =IF(OR('Tabel 1 H'!C37<5,'Tabel 2 H'!C39<0.5),"-",IFERROR('Tabel 2 H'!C39/'Tabel 1 H'!C37*100,"-")) -> 9.446494465 | D39: =IF(OR('Tabel 1 H'!C37<5,'Tabel 2 H'!D39<0.5),"-",IFERROR('Tabel 2 H'!D39/'Tabel 1 H'!C37*100,"-")) -> 8.196701315 | F39: =IF(OR('Tabel 1 H'!E37<5,'Tabel 2 H'!F39<0.5),"-",IFERROR('Tabel 2 H'!F39/'Tabel 1 H'!E37*100,"-")) -> 12.12121212 | G39: =IF(OR('Tabel 1 H'!E37<5,'Tabel 2 H'!G39<0.5),"-",IFERROR('Tabel 2 H'!G39/'Tabel 1 H'!E37*100,"-")) -> 9.901453253 | I39: =IF(OR('Tabel 1 H'!G37<5,'Tabel 2 H'!I39<0.5),"-",IFERROR('Tabel 2 H'!I39/'Tabel 1 H'!G37*100,"-")) -> 10.69602831 | J39: =IF(OR('Tabel 1 H'!G37<5,'Tabel 2 H'!J39<0.5),"-",IFERROR('Tabel 2 H'!J39/'Tabel 1 H'!G37*100,"-")) -> 8.993101355
A40: Komm. og Sprog | C40: =IF(OR('Tabel 1 H'!C38<5,'Tabel 2 H'!C40<0.5),"-",IFERROR('Tabel 2 H'!C40/'Tabel 1 H'!C38*100,"-")) -> 9.688013136 | D40: =IF(OR('Tabel 1 H'!C38<5,'Tabel 2 H'!D40<0.5),"-",IFERROR('Tabel 2 H'!D40/'Tabel 1 H'!C38*100,"-")) -> 8.610729697 | F40: =IF(OR('Tabel 1 H'!E38<5,'Tabel 2 H'!F40<0.5),"-",IFERROR('Tabel 2 H'!F40/'Tabel 1 H'!E38*100,"-")) -> 6.75270108 | G40: =IF(OR('Tabel 1 H'!E38<5,'Tabel 2 H'!G40<0.5),"-",IFERROR('Tabel 2 H'!G40/'Tabel 1 H'!E38*100,"-")) -> 5.870619938 | I40: =IF(OR('Tabel 1 H'!G38<5,'Tabel 2 H'!I40<0.5),"-",IFERROR('Tabel 2 H'!I40/'Tabel 1 H'!G38*100,"-")) -> 7.206292819 | J40: =IF(OR('Tabel 1 H'!G38<5,'Tabel 2 H'!J40<0.5),"-",IFERROR('Tabel 2 H'!J40/'Tabel 1 H'!G38*100,"-")) -> 6.294047201
A41: Cand. IT. | C41: =IF(OR('Tabel 1 H'!C39<5,'Tabel 2 H'!C41<0.5),"-",IFERROR('Tabel 2 H'!C41/'Tabel 1 H'!C39*100,"-")) -> 5.052005944 | D41: =IF(OR('Tabel 1 H'!C39<5,'Tabel 2 H'!D41<0.5),"-",IFERROR('Tabel 2 H'!D41/'Tabel 1 H'!C39*100,"-")) -> 4.445094622 | F41: =IF(OR('Tabel 1 H'!E39<5,'Tabel 2 H'!F41<0.5),"-",IFERROR('Tabel 2 H'!F41/'Tabel 1 H'!E39*100,"-")) -> 8.592321755 | G41: =IF(OR('Tabel 1 H'!E39<5,'Tabel 2 H'!G41<0.5),"-",IFERROR('Tabel 2 H'!G41/'Tabel 1 H'!E39*100,"-")) -> 7.442488077 | I41: =IF(OR('Tabel 1 H'!G39<5,'Tabel 2 H'!I41<0.5),"-",IFERROR('Tabel 2 H'!I41/'Tabel 1 H'!G39*100,"-")) -> 6.639344262 | J41: =IF(OR('Tabel 1 H'!G39<5,'Tabel 2 H'!J41<0.5),"-",IFERROR('Tabel 2 H'!J41/'Tabel 1 H'!G39*100,"-")) -> 5.789007917
A42: Bac. Samf. | C42: =IF(OR('Tabel 1 H'!C40<5,'Tabel 2 H'!C42<0.5),"-",IFERROR('Tabel 2 H'!C42/'Tabel 1 H'!C40*100,"-")) -> 5.279503106 | D42: =IF(OR('Tabel 1 H'!C40<5,'Tabel 2 H'!D42<0.5),"-",IFERROR('Tabel 2 H'!D42/'Tabel 1 H'!C40*100,"-")) -> 4.305367075 | F42: =IF(OR('Tabel 1 H'!E40<5,'Tabel 2 H'!F42<0.5),"-",IFERROR('Tabel 2 H'!F42/'Tabel 1 H'!E40*100,"-")) -> 5.82010582 | G42: =IF(OR('Tabel 1 H'!E40<5,'Tabel 2 H'!G42<0.5),"-",IFERROR('Tabel 2 H'!G42/'Tabel 1 H'!E40*100,"-")) -> 4.949942859 | I42: =IF(OR('Tabel 1 H'!G40<5,'Tabel 2 H'!I42<0.5),"-",IFERROR('Tabel 2 H'!I42/'Tabel 1 H'!G40*100,"-")) -> 5.571428571 | J42: =IF(OR('Tabel 1 H'!G40<5,'Tabel 2 H'!J42<0.5),"-",IFERROR('Tabel 2 H'!J42/'Tabel 1 H'!G40*100,"-")) -> 4.653437998
A43: Bac. Hum. | C43: =IF(OR('Tabel 1 H'!C41<5,'Tabel 2 H'!C43<0.5),"-",IFERROR('Tabel 2 H'!C43/'Tabel 1 H'!C41*100,"-")) -> 10.67961165 | D43: =IF(OR('Tabel 1 H'!C41<5,'Tabel 2 H'!D43<0.5),"-",IFERROR('Tabel 2 H'!D43/'Tabel 1 H'!C41*100,"-")) -> 8.84139246 | F43: =IF(OR('Tabel 1 H'!E41<5,'Tabel 2 H'!F43<0.5),"-",IFERROR('Tabel 2 H'!F43/'Tabel 1 H'!E41*100,"-")) -> 11.8147448 | G43: =IF(OR('Tabel 1 H'!E41<5,'Tabel 2 H'!G43<0.5),"-",IFERROR('Tabel 2 H'!G43/'Tabel 1 H'!E41*100,"-")) -> 10.09278241 | I43: =IF(OR('Tabel 1 H'!G41<5,'Tabel 2 H'!I43<0.5),"-",IFERROR('Tabel 2 H'!I43/'Tabel 1 H'!G41*100,"-")) -> 11.39618138 | J43: =IF(OR('Tabel 1 H'!G41<5,'Tabel 2 H'!J43<0.5),"-",IFERROR('Tabel 2 H'!J43/'Tabel 1 H'!G41*100,"-")) -> 9.631351031
A44: Bac. Nat. | C44: =IF(OR('Tabel 1 H'!C42<5,'Tabel 2 H'!C44<0.5),"-",IFERROR('Tabel 2 H'!C44/'Tabel 1 H'!C42*100,"-")) -> 8.828006088 | D44: =IF(OR('Tabel 1 H'!C42<5,'Tabel 2 H'!D44<0.5),"-",IFERROR('Tabel 2 H'!D44/'Tabel 1 H'!C42*100,"-")) -> 7.521302382 | F44: =IF(OR('Tabel 1 H'!E42<5,'Tabel 2 H'!F44<0.5),"-",IFERROR('Tabel 2 H'!F44/'Tabel 1 H'!E42*100,"-")) -> 10.44176707 | G44: =IF(OR('Tabel 1 H'!E42<5,'Tabel 2 H'!G44<0.5),"-",IFERROR('Tabel 2 H'!G44/'Tabel 1 H'!E42*100,"-")) -> 9.058751065 | I44: =IF(OR('Tabel 1 H'!G42<5,'Tabel 2 H'!I44<0.5),"-",IFERROR('Tabel 2 H'!I44/'Tabel 1 H'!G42*100,"-")) -> 9.523809524 | J44: =IF(OR('Tabel 1 H'!G42<5,'Tabel 2 H'!J44<0.5),"-",IFERROR('Tabel 2 H'!J44/'Tabel 1 H'!G42*100,"-")) -> 8.184202334
A45: Andre | C45: =IF(OR('Tabel 1 H'!C43<5,'Tabel 2 H'!C45<0.5),"-",IFERROR('Tabel 2 H'!C45/'Tabel 1 H'!C43*100,"-")) -> 6.131744919 | D45: =IF(OR('Tabel 1 H'!C43<5,'Tabel 2 H'!D45<0.5),"-",IFERROR('Tabel 2 H'!D45/'Tabel 1 H'!C43*100,"-")) -> 5.34608215 | F45: =IF(OR('Tabel 1 H'!E43<5,'Tabel 2 H'!F45<0.5),"-",IFERROR('Tabel 2 H'!F45/'Tabel 1 H'!E43*100,"-")) -> 8.962962963 | G45: =IF(OR('Tabel 1 H'!E43<5,'Tabel 2 H'!G45<0.5),"-",IFERROR('Tabel 2 H'!G45/'Tabel 1 H'!E43*100,"-")) -> 7.577519514 | I45: =IF(OR('Tabel 1 H'!G43<5,'Tabel 2 H'!I45<0.5),"-",IFERROR('Tabel 2 H'!I45/'Tabel 1 H'!G43*100,"-")) -> 7.665756943 | J45: =IF(OR('Tabel 1 H'!G43<5,'Tabel 2 H'!J45<0.5),"-",IFERROR('Tabel 2 H'!J45/'Tabel 1 H'!G43*100,"-")) -> 6.555120696
A47: Total | C47: =IF(OR('Tabel 1 H'!C45<5,'Tabel 2 H'!C47<0.5),"-",IFERROR('Tabel 2 H'!C47/'Tabel 1 H'!C45*100,"-")) -> 5.107799698 | D47: =IF(OR('Tabel 1 H'!C45<5,'Tabel 2 H'!D47<0.5),"-",IFERROR('Tabel 2 H'!D47/'Tabel 1 H'!C45*100,"-")) -> 4.48106079 | F47: =IF(OR('Tabel 1 H'!E45<5,'Tabel 2 H'!F47<0.5),"-",IFERROR('Tabel 2 H'!F47/'Tabel 1 H'!E45*100,"-")) -> 6.607689542 | G47: =IF(OR('Tabel 1 H'!E45<5,'Tabel 2 H'!G47<0.5),"-",IFERROR('Tabel 2 H'!G47/'Tabel 1 H'!E45*100,"-")) -> 5.68646694 | I47: =IF(OR('Tabel 1 H'!G45<5,'Tabel 2 H'!I47<0.5),"-",IFERROR('Tabel 2 H'!I47/'Tabel 1 H'!G45*100,"-")) -> 5.905495843 | J47: =IF(OR('Tabel 1 H'!G45<5,'Tabel 2 H'!J47<0.5),"-",IFERROR('Tabel 2 H'!J47/'Tabel 1 H'!G45*100,"-")) -> 5.122139761
A49: Ingeniører i alt | C49: =IF(OR('Tabel 1 H'!C47<5,'Tabel 2 H'!C49<0.5),"-",IFERROR('Tabel 2 H'!C49/'Tabel 1 H'!C47*100,"-")) -> 2.821302418 | D49: =IF(OR('Tabel 1 H'!C47<5,'Tabel 2 H'!D49<0.5),"-",IFERROR('Tabel 2 H'!D49/'Tabel 1 H'!C47*100,"-")) -> 2.543345962 | F49: =IF(OR('Tabel 1 H'!E47<5,'Tabel 2 H'!F49<0.5),"-",IFERROR('Tabel 2 H'!F49/'Tabel 1 H'!E47*100,"-")) -> 3.443526171 | G49: =IF(OR('Tabel 1 H'!E47<5,'Tabel 2 H'!G49<0.5),"-",IFERROR('Tabel 2 H'!G49/'Tabel 1 H'!E47*100,"-")) -> 3.070672592 | I49: =IF(OR('Tabel 1 H'!G47<5,'Tabel 2 H'!I49<0.5),"-",IFERROR('Tabel 2 H'!I49/'Tabel 1 H'!G47*100,"-")) -> 2.97525731 | J49: =IF(OR('Tabel 1 H'!G47<5,'Tabel 2 H'!J49<0.5),"-",IFERROR('Tabel 2 H'!J49/'Tabel 1 H'!G47*100,"-")) -> 2.673820754
A50: Magistre i alt | C50: =IF(OR('Tabel 1 H'!C48<5,'Tabel 2 H'!C50<0.5),"-",IFERROR('Tabel 2 H'!C50/'Tabel 1 H'!C48*100,"-")) -> 7.374681393 | D50: =IF(OR('Tabel 1 H'!C48<5,'Tabel 2 H'!D50<0.5),"-",IFERROR('Tabel 2 H'!D50/'Tabel 1 H'!C48*100,"-")) -> 6.380892086 | F50: =IF(OR('Tabel 1 H'!E48<5,'Tabel 2 H'!F50<0.5),"-",IFERROR('Tabel 2 H'!F50/'Tabel 1 H'!E48*100,"-")) -> 8.791366906 | G50: =IF(OR('Tabel 1 H'!E48<5,'Tabel 2 H'!G50<0.5),"-",IFERROR('Tabel 2 H'!G50/'Tabel 1 H'!E48*100,"-")) -> 7.575071858 | I50: =IF(OR('Tabel 1 H'!G48<5,'Tabel 2 H'!I50<0.5),"-",IFERROR('Tabel 2 H'!I50/'Tabel 1 H'!G48*100,"-")) -> 8.280196199 | J50: =IF(OR('Tabel 1 H'!G48<5,'Tabel 2 H'!J50<0.5),"-",IFERROR('Tabel 2 H'!J50/'Tabel 1 H'!G48*100,"-")) -> 7.144186024
A51: DJØF'ere i alt | C51: =IF(OR('Tabel 1 H'!C49<5,'Tabel 2 H'!C51<0.5),"-",IFERROR('Tabel 2 H'!C51/'Tabel 1 H'!C49*100,"-")) -> 4.607201309 | D51: =IF(OR('Tabel 1 H'!C49<5,'Tabel 2 H'!D51<0.5),"-",IFERROR('Tabel 2 H'!D51/'Tabel 1 H'!C49*100,"-")) -> 4.018182936 | F51: =IF(OR('Tabel 1 H'!E49<5,'Tabel 2 H'!F51<0.5),"-",IFERROR('Tabel 2 H'!F51/'Tabel 1 H'!E49*100,"-")) -> 4.96061096 | G51: =IF(OR('Tabel 1 H'!E49<5,'Tabel 2 H'!G51<0.5),"-",IFERROR('Tabel 2 H'!G51/'Tabel 1 H'!E49*100,"-")) -> 4.28646087 | I51: =IF(OR('Tabel 1 H'!G49<5,'Tabel 2 H'!I51<0.5),"-",IFERROR('Tabel 2 H'!I51/'Tabel 1 H'!G49*100,"-")) -> 4.799192659 | J51: =IF(OR('Tabel 1 H'!G49<5,'Tabel 2 H'!J51<0.5),"-",IFERROR('Tabel 2 H'!J51/'Tabel 1 H'!G49*100,"-")) -> 4.163926106
A56: København
C58: Mænd | F58: Kvinder | I58: I alt
C59: Ledigheds- berørte | D59: Gns. brutto- ledighed | F59: Ledigheds- berørte | G59: Gns. brutto- ledighed | I59: Ledigheds- berørte | J59: Gns. brutto- ledighed
A62: Civ. ing. | C62: =IF(OR('Tabel 1 H'!C60<5,'Tabel 2 H'!C62<0.5),"-",IFERROR('Tabel 2 H'!C62/'Tabel 1 H'!C60*100,"-")) -> 3.91868724 | D62: =IF(OR('Tabel 1 H'!C60<5,'Tabel 2 H'!D62<0.5),"-",IFERROR('Tabel 2 H'!D62/'Tabel 1 H'!C60*100,"-")) -> 3.485540072 | F62: =IF(OR('Tabel 1 H'!E60<5,'Tabel 2 H'!F62<0.5),"-",IFERROR('Tabel 2 H'!F62/'Tabel 1 H'!E60*100,"-")) -> 4.571428571 | G62: =IF(OR('Tabel 1 H'!E60<5,'Tabel 2 H'!G62<0.5),"-",IFERROR('Tabel 2 H'!G62/'Tabel 1 H'!E60*100,"-")) -> 4.263785308 | I62: =IF(OR('Tabel 1 H'!G60<5,'Tabel 2 H'!I62<0.5),"-",IFERROR('Tabel 2 H'!I62/'Tabel 1 H'!G60*100,"-")) -> 4.10038883 | J62: =IF(OR('Tabel 1 H'!G60<5,'Tabel 2 H'!J62<0.5),"-",IFERROR('Tabel 2 H'!J62/'Tabel 1 H'!G60*100,"-")) -> 3.702177797
A63: Diplom ing. | C63: =IF(OR('Tabel 1 H'!C61<5,'Tabel 2 H'!C63<0.5),"-",IFERROR('Tabel 2 H'!C63/'Tabel 1 H'!C61*100,"-")) -> 4.107424961 | D63: =IF(OR('Tabel 1 H'!C61<5,'Tabel 2 H'!D63<0.5),"-",IFERROR('Tabel 2 H'!D63/'Tabel 1 H'!C61*100,"-")) -> 3.642689362 | F63: =IF(OR('Tabel 1 H'!E61<5,'Tabel 2 H'!F63<0.5),"-",IFERROR('Tabel 2 H'!F63/'Tabel 1 H'!E61*100,"-")) -> 4.95049505 | G63: =IF(OR('Tabel 1 H'!E61<5,'Tabel 2 H'!G63<0.5),"-",IFERROR('Tabel 2 H'!G63/'Tabel 1 H'!E61*100,"-")) -> 4.109613855 | I63: =IF(OR('Tabel 1 H'!G61<5,'Tabel 2 H'!I63<0.5),"-",IFERROR('Tabel 2 H'!I63/'Tabel 1 H'!G61*100,"-")) -> 4.270235819 | J63: =IF(OR('Tabel 1 H'!G61<5,'Tabel 2 H'!J63<0.5),"-",IFERROR('Tabel 2 H'!J63/'Tabel 1 H'!G61*100,"-")) -> 3.732860249
A64: Cand. Scient. Tek. | C64: =IF(OR('Tabel 1 H'!C62<5,'Tabel 2 H'!C64<0.5),"-",IFERROR('Tabel 2 H'!C64/'Tabel 1 H'!C62*100,"-")) -> 10.42810099 | D64: =IF(OR('Tabel 1 H'!C62<5,'Tabel 2 H'!D64<0.5),"-",IFERROR('Tabel 2 H'!D64/'Tabel 1 H'!C62*100,"-")) -> 9.210558656 | F64: =IF(OR('Tabel 1 H'!E62<5,'Tabel 2 H'!F64<0.5),"-",IFERROR('Tabel 2 H'!F64/'Tabel 1 H'!E62*100,"-")) -> 14.12786109 | G64: =IF(OR('Tabel 1 H'!E62<5,'Tabel 2 H'!G64<0.5),"-",IFERROR('Tabel 2 H'!G64/'Tabel 1 H'!E62*100,"-")) -> 12.12743881 | I64: =IF(OR('Tabel 1 H'!G62<5,'Tabel 2 H'!I64<0.5),"-",IFERROR('Tabel 2 H'!I64/'Tabel 1 H'!G62*100,"-")) -> 12.2080881 | J64: =IF(OR('Tabel 1 H'!G62<5,'Tabel 2 H'!J64<0.5),"-",IFERROR('Tabel 2 H'!J64/'Tabel 1 H'!G62*100,"-")) -> 10.61389534
A65: MA. Hum. | C65: =IF(OR('Tabel 1 H'!C63<5,'Tabel 2 H'!C65<0.5),"-",IFERROR('Tabel 2 H'!C65/'Tabel 1 H'!C63*100,"-")) -> 10.05976096 | D65: =IF(OR('Tabel 1 H'!C63<5,'Tabel 2 H'!D65<0.5),"-",IFERROR('Tabel 2 H'!D65/'Tabel 1 H'!C63*100,"-")) -> 8.687184152 | F65: =IF(OR('Tabel 1 H'!E63<5,'Tabel 2 H'!F65<0.5),"-",IFERROR('Tabel 2 H'!F65/'Tabel 1 H'!E63*100,"-")) -> 11.10704706 | G65: =IF(OR('Tabel 1 H'!E63<5,'Tabel 2 H'!G65<0.5),"-",IFERROR('Tabel 2 H'!G65/'Tabel 1 H'!E63*100,"-")) -> 9.527996946 | I65: =IF(OR('Tabel 1 H'!G63<5,'Tabel 2 H'!I65<0.5),"-",IFERROR('Tabel 2 H'!I65/'Tabel 1 H'!G63*100,"-")) -> 10.76280897 | J65: =IF(OR('Tabel 1 H'!G63<5,'Tabel 2 H'!J65<0.5),"-",IFERROR('Tabel 2 H'!J65/'Tabel 1 H'!G63*100,"-")) -> 9.251625675
A66: MA. Nat. | C66: =IF(OR('Tabel 1 H'!C64<5,'Tabel 2 H'!C66<0.5),"-",IFERROR('Tabel 2 H'!C66/'Tabel 1 H'!C64*100,"-")) -> 4.274611399 | D66: =IF(OR('Tabel 1 H'!C64<5,'Tabel 2 H'!D66<0.5),"-",IFERROR('Tabel 2 H'!D66/'Tabel 1 H'!C64*100,"-")) -> 3.824891278 | F66: =IF(OR('Tabel 1 H'!E64<5,'Tabel 2 H'!F66<0.5),"-",IFERROR('Tabel 2 H'!F66/'Tabel 1 H'!E64*100,"-")) -> 5.705128205 | G66: =IF(OR('Tabel 1 H'!E64<5,'Tabel 2 H'!G66<0.5),"-",IFERROR('Tabel 2 H'!G66/'Tabel 1 H'!E64*100,"-")) -> 4.954884717 | I66: =IF(OR('Tabel 1 H'!G64<5,'Tabel 2 H'!I66<0.5),"-",IFERROR('Tabel 2 H'!I66/'Tabel 1 H'!G64*100,"-")) -> 4.993556701 | J66: =IF(OR('Tabel 1 H'!G64<5,'Tabel 2 H'!J66<0.5),"-",IFERROR('Tabel 2 H'!J66/'Tabel 1 H'!G64*100,"-")) -> 4.392800352
A67: MA. Ph.d. | C67: =IF(OR('Tabel 1 H'!C65<5,'Tabel 2 H'!C67<0.5),"-",IFERROR('Tabel 2 H'!C67/'Tabel 1 H'!C65*100,"-")) -> 4.444444444 | D67: =IF(OR('Tabel 1 H'!C65<5,'Tabel 2 H'!D67<0.5),"-",IFERROR('Tabel 2 H'!D67/'Tabel 1 H'!C65*100,"-")) -> 3.692904218 | F67: =IF(OR('Tabel 1 H'!E65<5,'Tabel 2 H'!F67<0.5),"-",IFERROR('Tabel 2 H'!F67/'Tabel 1 H'!E65*100,"-")) -> 7.220216606 | G67: =IF(OR('Tabel 1 H'!E65<5,'Tabel 2 H'!G67<0.5),"-",IFERROR('Tabel 2 H'!G67/'Tabel 1 H'!E65*100,"-")) -> 6.367958144 | I67: =IF(OR('Tabel 1 H'!G65<5,'Tabel 2 H'!I67<0.5),"-",IFERROR('Tabel 2 H'!I67/'Tabel 1 H'!G65*100,"-")) -> 5.651491366 | J67: =IF(OR('Tabel 1 H'!G65<5,'Tabel 2 H'!J67<0.5),"-",IFERROR('Tabel 2 H'!J67/'Tabel 1 H'!G65*100,"-")) -> 4.856153728
A68: MA. Samf. | C68: =IF(OR('Tabel 1 H'!C66<5,'Tabel 2 H'!C68<0.5),"-",IFERROR('Tabel 2 H'!C68/'Tabel 1 H'!C66*100,"-")) -> 15.77287066 | D68: =IF(OR('Tabel 1 H'!C66<5,'Tabel 2 H'!D68<0.5),"-",IFERROR('Tabel 2 H'!D68/'Tabel 1 H'!C66*100,"-")) -> 13.98023517 | F68: =IF(OR('Tabel 1 H'!E66<5,'Tabel 2 H'!F68<0.5),"-",IFERROR('Tabel 2 H'!F68/'Tabel 1 H'!E66*100,"-")) -> 13.37285903 | G68: =IF(OR('Tabel 1 H'!E66<5,'Tabel 2 H'!G68<0.5),"-",IFERROR('Tabel 2 H'!G68/'Tabel 1 H'!E66*100,"-")) -> 11.54153649 | I68: =IF(OR('Tabel 1 H'!G66<5,'Tabel 2 H'!I68<0.5),"-",IFERROR('Tabel 2 H'!I68/'Tabel 1 H'!G66*100,"-")) -> 14.07992565 | J68: =IF(OR('Tabel 1 H'!G66<5,'Tabel 2 H'!J68<0.5),"-",IFERROR('Tabel 2 H'!J68/'Tabel 1 H'!G66*100,"-")) -> 12.26000069
A69: Øvrige Mag. | C69: =IF(OR('Tabel 1 H'!C67<5,'Tabel 2 H'!C69<0.5),"-",IFERROR('Tabel 2 H'!C69/'Tabel 1 H'!C67*100,"-")) -> 13.08411215 | D69: =IF(OR('Tabel 1 H'!C67<5,'Tabel 2 H'!D69<0.5),"-",IFERROR('Tabel 2 H'!D69/'Tabel 1 H'!C67*100,"-")) -> 11.9197302 | F69: =IF(OR('Tabel 1 H'!E67<5,'Tabel 2 H'!F69<0.5),"-",IFERROR('Tabel 2 H'!F69/'Tabel 1 H'!E67*100,"-")) -> 8.419243986 | G69: =IF(OR('Tabel 1 H'!E67<5,'Tabel 2 H'!G69<0.5),"-",IFERROR('Tabel 2 H'!G69/'Tabel 1 H'!E67*100,"-")) -> 7.287589621 | I69: =IF(OR('Tabel 1 H'!G67<5,'Tabel 2 H'!I69<0.5),"-",IFERROR('Tabel 2 H'!I69/'Tabel 1 H'!G67*100,"-")) -> 10.07751938 | J69: =IF(OR('Tabel 1 H'!G67<5,'Tabel 2 H'!J69<0.5),"-",IFERROR('Tabel 2 H'!J69/'Tabel 1 H'!G67*100,"-")) -> 8.934230956
A70: Agronom | C70: =IF(OR('Tabel 1 H'!C68<5,'Tabel 2 H'!C70<0.5),"-",IFERROR('Tabel 2 H'!C70/'Tabel 1 H'!C68*100,"-")) -> 4.651162791 | D70: =IF(OR('Tabel 1 H'!C68<5,'Tabel 2 H'!D70<0.5),"-",IFERROR('Tabel 2 H'!D70/'Tabel 1 H'!C68*100,"-")) -> 4.542955735 | F70: =IF(OR('Tabel 1 H'!E68<5,'Tabel 2 H'!F70<0.5),"-",IFERROR('Tabel 2 H'!F70/'Tabel 1 H'!E68*100,"-")) -> 10.81081081 | G70: =IF(OR('Tabel 1 H'!E68<5,'Tabel 2 H'!G70<0.5),"-",IFERROR('Tabel 2 H'!G70/'Tabel 1 H'!E68*100,"-")) -> 10.32119564 | I70: =IF(OR('Tabel 1 H'!G68<5,'Tabel 2 H'!I70<0.5),"-",IFERROR('Tabel 2 H'!I70/'Tabel 1 H'!G68*100,"-")) -> 7.942238267 | J70: =IF(OR('Tabel 1 H'!G68<5,'Tabel 2 H'!J70<0.5),"-",IFERROR('Tabel 2 H'!J70/'Tabel 1 H'!G68*100,"-")) -> 7.630246371
A71: Landsk. Arkt. | C71: =IF(OR('Tabel 1 H'!C69<5,'Tabel 2 H'!C71<0.5),"-",IFERROR('Tabel 2 H'!C71/'Tabel 1 H'!C69*100,"-")) -> 14.66666667 | D71: =IF(OR('Tabel 1 H'!C69<5,'Tabel 2 H'!D71<0.5),"-",IFERROR('Tabel 2 H'!D71/'Tabel 1 H'!C69*100,"-")) -> 13.77908065 | F71: =IF(OR('Tabel 1 H'!E69<5,'Tabel 2 H'!F71<0.5),"-",IFERROR('Tabel 2 H'!F71/'Tabel 1 H'!E69*100,"-")) -> 10.79545455 | G71: =IF(OR('Tabel 1 H'!E69<5,'Tabel 2 H'!G71<0.5),"-",IFERROR('Tabel 2 H'!G71/'Tabel 1 H'!E69*100,"-")) -> 9.396457874 | I71: =IF(OR('Tabel 1 H'!G69<5,'Tabel 2 H'!I71<0.5),"-",IFERROR('Tabel 2 H'!I71/'Tabel 1 H'!G69*100,"-")) -> 11.95219124 | J71: =IF(OR('Tabel 1 H'!G69<5,'Tabel 2 H'!J71<0.5),"-",IFERROR('Tabel 2 H'!J71/'Tabel 1 H'!G69*100,"-")) -> 10.70600651
A72: Hortonom | C72: =IF(OR('Tabel 1 H'!C70<5,'Tabel 2 H'!C72<0.5),"-",IFERROR('Tabel 2 H'!C72/'Tabel 1 H'!C70*100,"-")) -> 4.761904762 | D72: =IF(OR('Tabel 1 H'!C70<5,'Tabel 2 H'!D72<0.5),"-",IFERROR('Tabel 2 H'!D72/'Tabel 1 H'!C70*100,"-")) -> 4.761013742 | F72: =IF(OR('Tabel 1 H'!E70<5,'Tabel 2 H'!F72<0.5),"-",IFERROR('Tabel 2 H'!F72/'Tabel 1 H'!E70*100,"-")) -> - | G72: =IF(OR('Tabel 1 H'!E70<5,'Tabel 2 H'!G72<0.5),"-",IFERROR('Tabel 2 H'!G72/'Tabel 1 H'!E70*100,"-")) -> - | I72: =IF(OR('Tabel 1 H'!G70<5,'Tabel 2 H'!I72<0.5),"-",IFERROR('Tabel 2 H'!I72/'Tabel 1 H'!G70*100,"-")) -> 1.886792453 | J72: =IF(OR('Tabel 1 H'!G70<5,'Tabel 2 H'!J72<0.5),"-",IFERROR('Tabel 2 H'!J72/'Tabel 1 H'!G70*100,"-")) -> 1.886439407
A73: Forstkand. | C73: =IF(OR('Tabel 1 H'!C71<5,'Tabel 2 H'!C73<0.5),"-",IFERROR('Tabel 2 H'!C73/'Tabel 1 H'!C71*100,"-")) -> 11.66666667 | D73: =IF(OR('Tabel 1 H'!C71<5,'Tabel 2 H'!D73<0.5),"-",IFERROR('Tabel 2 H'!D73/'Tabel 1 H'!C71*100,"-")) -> 10.50541591 | F73: =IF(OR('Tabel 1 H'!E71<5,'Tabel 2 H'!F73<0.5),"-",IFERROR('Tabel 2 H'!F73/'Tabel 1 H'!E71*100,"-")) -> 16 | G73: =IF(OR('Tabel 1 H'!E71<5,'Tabel 2 H'!G73<0.5),"-",IFERROR('Tabel 2 H'!G73/'Tabel 1 H'!E71*100,"-")) -> 14.79448637 | I73: =IF(OR('Tabel 1 H'!G71<5,'Tabel 2 H'!I73<0.5),"-",IFERROR('Tabel 2 H'!I73/'Tabel 1 H'!G71*100,"-")) -> 12.94117647 | J73: =IF(OR('Tabel 1 H'!G71<5,'Tabel 2 H'!J73<0.5),"-",IFERROR('Tabel 2 H'!J73/'Tabel 1 H'!G71*100,"-")) -> 11.76690722
A74: Jordbrugsakad. | C74: =IF(OR('Tabel 1 H'!C72<5,'Tabel 2 H'!C74<0.5),"-",IFERROR('Tabel 2 H'!C74/'Tabel 1 H'!C72*100,"-")) -> 8.771929825 | D74: =IF(OR('Tabel 1 H'!C72<5,'Tabel 2 H'!D74<0.5),"-",IFERROR('Tabel 2 H'!D74/'Tabel 1 H'!C72*100,"-")) -> 8.244837129 | F74: =IF(OR('Tabel 1 H'!E72<5,'Tabel 2 H'!F74<0.5),"-",IFERROR('Tabel 2 H'!F74/'Tabel 1 H'!E72*100,"-")) -> 10.23622047 | G74: =IF(OR('Tabel 1 H'!E72<5,'Tabel 2 H'!G74<0.5),"-",IFERROR('Tabel 2 H'!G74/'Tabel 1 H'!E72*100,"-")) -> 9.320671129 | I74: =IF(OR('Tabel 1 H'!G72<5,'Tabel 2 H'!I74<0.5),"-",IFERROR('Tabel 2 H'!I74/'Tabel 1 H'!G72*100,"-")) -> 9.60960961 | J74: =IF(OR('Tabel 1 H'!G72<5,'Tabel 2 H'!J74<0.5),"-",IFERROR('Tabel 2 H'!J74/'Tabel 1 H'!G72*100,"-")) -> 8.860291714
A75: Mejeriing. | C75: =IF(OR('Tabel 1 H'!C73<5,'Tabel 2 H'!C75<0.5),"-",IFERROR('Tabel 2 H'!C75/'Tabel 1 H'!C73*100,"-")) -> 5 | D75: =IF(OR('Tabel 1 H'!C73<5,'Tabel 2 H'!D75<0.5),"-",IFERROR('Tabel 2 H'!D75/'Tabel 1 H'!C73*100,"-")) -> 4.768290401 | F75: =IF(OR('Tabel 1 H'!E73<5,'Tabel 2 H'!F75<0.5),"-",IFERROR('Tabel 2 H'!F75/'Tabel 1 H'!E73*100,"-")) -> 10.71428571 | G75: =IF(OR('Tabel 1 H'!E73<5,'Tabel 2 H'!G75<0.5),"-",IFERROR('Tabel 2 H'!G75/'Tabel 1 H'!E73*100,"-")) -> 10.54744233 | I75: =IF(OR('Tabel 1 H'!G73<5,'Tabel 2 H'!I75<0.5),"-",IFERROR('Tabel 2 H'!I75/'Tabel 1 H'!G73*100,"-")) -> 8.333333333 | J75: =IF(OR('Tabel 1 H'!G73<5,'Tabel 2 H'!J75<0.5),"-",IFERROR('Tabel 2 H'!J75/'Tabel 1 H'!G73*100,"-")) -> 8.139462359
A76: Levn.m.kand. | C76: =IF(OR('Tabel 1 H'!C74<5,'Tabel 2 H'!C76<0.5),"-",IFERROR('Tabel 2 H'!C76/'Tabel 1 H'!C74*100,"-")) -> 21.73913043 | D76: =IF(OR('Tabel 1 H'!C74<5,'Tabel 2 H'!D76<0.5),"-",IFERROR('Tabel 2 H'!D76/'Tabel 1 H'!C74*100,"-")) -> 19.16970162 | F76: =IF(OR('Tabel 1 H'!E74<5,'Tabel 2 H'!F76<0.5),"-",IFERROR('Tabel 2 H'!F76/'Tabel 1 H'!E74*100,"-")) -> 18.93939394 | G76: =IF(OR('Tabel 1 H'!E74<5,'Tabel 2 H'!G76<0.5),"-",IFERROR('Tabel 2 H'!G76/'Tabel 1 H'!E74*100,"-")) -> 16.61015444 | I76: =IF(OR('Tabel 1 H'!G74<5,'Tabel 2 H'!I76<0.5),"-",IFERROR('Tabel 2 H'!I76/'Tabel 1 H'!G74*100,"-")) -> 19.35483871 | J76: =IF(OR('Tabel 1 H'!G74<5,'Tabel 2 H'!J76<0.5),"-",IFERROR('Tabel 2 H'!J76/'Tabel 1 H'!G74*100,"-")) -> 16.98995821
A77: Dyrlæge | C77: =IF(OR('Tabel 1 H'!C75<5,'Tabel 2 H'!C77<0.5),"-",IFERROR('Tabel 2 H'!C77/'Tabel 1 H'!C75*100,"-")) -> 11.11111111 | D77: =IF(OR('Tabel 1 H'!C75<5,'Tabel 2 H'!D77<0.5),"-",IFERROR('Tabel 2 H'!D77/'Tabel 1 H'!C75*100,"-")) -> 9.029986763 | F77: =IF(OR('Tabel 1 H'!E75<5,'Tabel 2 H'!F77<0.5),"-",IFERROR('Tabel 2 H'!F77/'Tabel 1 H'!E75*100,"-")) -> 8.61423221 | G77: =IF(OR('Tabel 1 H'!E75<5,'Tabel 2 H'!G77<0.5),"-",IFERROR('Tabel 2 H'!G77/'Tabel 1 H'!E75*100,"-")) -> 6.86949272 | I77: =IF(OR('Tabel 1 H'!G75<5,'Tabel 2 H'!I77<0.5),"-",IFERROR('Tabel 2 H'!I77/'Tabel 1 H'!G75*100,"-")) -> 9.034267913 | J77: =IF(OR('Tabel 1 H'!G75<5,'Tabel 2 H'!J77<0.5),"-",IFERROR('Tabel 2 H'!J77/'Tabel 1 H'!G75*100,"-")) -> 7.232940316
A78: Farmaceut | C78: =IF(OR('Tabel 1 H'!C76<5,'Tabel 2 H'!C78<0.5),"-",IFERROR('Tabel 2 H'!C78/'Tabel 1 H'!C76*100,"-")) -> 8.192771084 | D78: =IF(OR('Tabel 1 H'!C76<5,'Tabel 2 H'!D78<0.5),"-",IFERROR('Tabel 2 H'!D78/'Tabel 1 H'!C76*100,"-")) -> 7.4426315 | F78: =IF(OR('Tabel 1 H'!E76<5,'Tabel 2 H'!F78<0.5),"-",IFERROR('Tabel 2 H'!F78/'Tabel 1 H'!E76*100,"-")) -> 6.557377049 | G78: =IF(OR('Tabel 1 H'!E76<5,'Tabel 2 H'!G78<0.5),"-",IFERROR('Tabel 2 H'!G78/'Tabel 1 H'!E76*100,"-")) -> 6.007588856 | I78: =IF(OR('Tabel 1 H'!G76<5,'Tabel 2 H'!I78<0.5),"-",IFERROR('Tabel 2 H'!I78/'Tabel 1 H'!G76*100,"-")) -> 7.092198582 | J78: =IF(OR('Tabel 1 H'!G76<5,'Tabel 2 H'!J78<0.5),"-",IFERROR('Tabel 2 H'!J78/'Tabel 1 H'!G76*100,"-")) -> 6.476889642
A79: Læge | C79: =IF(OR('Tabel 1 H'!C77<5,'Tabel 2 H'!C79<0.5),"-",IFERROR('Tabel 2 H'!C79/'Tabel 1 H'!C77*100,"-")) -> 1.78041543 | D79: =IF(OR('Tabel 1 H'!C77<5,'Tabel 2 H'!D79<0.5),"-",IFERROR('Tabel 2 H'!D79/'Tabel 1 H'!C77*100,"-")) -> 1.384940297 | F79: =IF(OR('Tabel 1 H'!E77<5,'Tabel 2 H'!F79<0.5),"-",IFERROR('Tabel 2 H'!F79/'Tabel 1 H'!E77*100,"-")) -> 1.860744298 | G79: =IF(OR('Tabel 1 H'!E77<5,'Tabel 2 H'!G79<0.5),"-",IFERROR('Tabel 2 H'!G79/'Tabel 1 H'!E77*100,"-")) -> 1.526301283 | I79: =IF(OR('Tabel 1 H'!G77<5,'Tabel 2 H'!I79<0.5),"-",IFERROR('Tabel 2 H'!I79/'Tabel 1 H'!G77*100,"-")) -> 1.837606838 | J79: =IF(OR('Tabel 1 H'!G77<5,'Tabel 2 H'!J79<0.5),"-",IFERROR('Tabel 2 H'!J79/'Tabel 1 H'!G77*100,"-")) -> 1.485584486
A80: Tandlæge | C80: =IF(OR('Tabel 1 H'!C78<5,'Tabel 2 H'!C80<0.5),"-",IFERROR('Tabel 2 H'!C80/'Tabel 1 H'!C78*100,"-")) -> 4 | D80: =IF(OR('Tabel 1 H'!C78<5,'Tabel 2 H'!D80<0.5),"-",IFERROR('Tabel 2 H'!D80/'Tabel 1 H'!C78*100,"-")) -> 3.250795235 | F80: =IF(OR('Tabel 1 H'!E78<5,'Tabel 2 H'!F80<0.5),"-",IFERROR('Tabel 2 H'!F80/'Tabel 1 H'!E78*100,"-")) -> 1.968503937 | G80: =IF(OR('Tabel 1 H'!E78<5,'Tabel 2 H'!G80<0.5),"-",IFERROR('Tabel 2 H'!G80/'Tabel 1 H'!E78*100,"-")) -> 1.610605292 | I80: =IF(OR('Tabel 1 H'!G78<5,'Tabel 2 H'!I80<0.5),"-",IFERROR('Tabel 2 H'!I80/'Tabel 1 H'!G78*100,"-")) -> 2.302631579 | J80: =IF(OR('Tabel 1 H'!G78<5,'Tabel 2 H'!J80<0.5),"-",IFERROR('Tabel 2 H'!J80/'Tabel 1 H'!G78*100,"-")) -> 1.880373375
A81: Arkitekt | C81: =IF(OR('Tabel 1 H'!C79<5,'Tabel 2 H'!C81<0.5),"-",IFERROR('Tabel 2 H'!C81/'Tabel 1 H'!C79*100,"-")) -> 7.729468599 | D81: =IF(OR('Tabel 1 H'!C79<5,'Tabel 2 H'!D81<0.5),"-",IFERROR('Tabel 2 H'!D81/'Tabel 1 H'!C79*100,"-")) -> 7.150349023 | F81: =IF(OR('Tabel 1 H'!E79<5,'Tabel 2 H'!F81<0.5),"-",IFERROR('Tabel 2 H'!F81/'Tabel 1 H'!E79*100,"-")) -> 9.643435981 | G81: =IF(OR('Tabel 1 H'!E79<5,'Tabel 2 H'!G81<0.5),"-",IFERROR('Tabel 2 H'!G81/'Tabel 1 H'!E79*100,"-")) -> 8.236557481 | I81: =IF(OR('Tabel 1 H'!G79<5,'Tabel 2 H'!I81<0.5),"-",IFERROR('Tabel 2 H'!I81/'Tabel 1 H'!G79*100,"-")) -> 8.770383429 | J81: =IF(OR('Tabel 1 H'!G79<5,'Tabel 2 H'!J81<0.5),"-",IFERROR('Tabel 2 H'!J81/'Tabel 1 H'!G79*100,"-")) -> 7.741085576
A82: Landinspek. | C82: =IF(OR('Tabel 1 H'!C80<5,'Tabel 2 H'!C82<0.5),"-",IFERROR('Tabel 2 H'!C82/'Tabel 1 H'!C80*100,"-")) -> - | D82: =IF(OR('Tabel 1 H'!C80<5,'Tabel 2 H'!D82<0.5),"-",IFERROR('Tabel 2 H'!D82/'Tabel 1 H'!C80*100,"-")) -> - | F82: =IF(OR('Tabel 1 H'!E80<5,'Tabel 2 H'!F82<0.5),"-",IFERROR('Tabel 2 H'!F82/'Tabel 1 H'!E80*100,"-")) -> 7.142857143 | G82: =IF(OR('Tabel 1 H'!E80<5,'Tabel 2 H'!G82<0.5),"-",IFERROR('Tabel 2 H'!G82/'Tabel 1 H'!E80*100,"-")) -> 7.141520614 | I82: =IF(OR('Tabel 1 H'!G80<5,'Tabel 2 H'!I82<0.5),"-",IFERROR('Tabel 2 H'!I82/'Tabel 1 H'!G80*100,"-")) -> 1.639344262 | J82: =IF(OR('Tabel 1 H'!G80<5,'Tabel 2 H'!J82<0.5),"-",IFERROR('Tabel 2 H'!J82/'Tabel 1 H'!G80*100,"-")) -> 1.639037518
A83: Bibliotekar | C83: =IF(OR('Tabel 1 H'!C81<5,'Tabel 2 H'!C83<0.5),"-",IFERROR('Tabel 2 H'!C83/'Tabel 1 H'!C81*100,"-")) -> 5.323193916 | D83: =IF(OR('Tabel 1 H'!C81<5,'Tabel 2 H'!D83<0.5),"-",IFERROR('Tabel 2 H'!D83/'Tabel 1 H'!C81*100,"-")) -> 5.114688597 | F83: =IF(OR('Tabel 1 H'!E81<5,'Tabel 2 H'!F83<0.5),"-",IFERROR('Tabel 2 H'!F83/'Tabel 1 H'!E81*100,"-")) -> 6.326889279 | G83: =IF(OR('Tabel 1 H'!E81<5,'Tabel 2 H'!G83<0.5),"-",IFERROR('Tabel 2 H'!G83/'Tabel 1 H'!E81*100,"-")) -> 5.842957687 | I83: =IF(OR('Tabel 1 H'!G81<5,'Tabel 2 H'!I83<0.5),"-",IFERROR('Tabel 2 H'!I83/'Tabel 1 H'!G81*100,"-")) -> 6.009615385 | J83: =IF(OR('Tabel 1 H'!G81<5,'Tabel 2 H'!J83<0.5),"-",IFERROR('Tabel 2 H'!J83/'Tabel 1 H'!G81*100,"-")) -> 5.612747626
A84: Musikudd. | C84: =IF(OR('Tabel 1 H'!C82<5,'Tabel 2 H'!C84<0.5),"-",IFERROR('Tabel 2 H'!C84/'Tabel 1 H'!C82*100,"-")) -> 2.985074627 | D84: =IF(OR('Tabel 1 H'!C82<5,'Tabel 2 H'!D84<0.5),"-",IFERROR('Tabel 2 H'!D84/'Tabel 1 H'!C82*100,"-")) -> 1.672855705 | F84: =IF(OR('Tabel 1 H'!E82<5,'Tabel 2 H'!F84<0.5),"-",IFERROR('Tabel 2 H'!F84/'Tabel 1 H'!E82*100,"-")) -> 3.571428571 | G84: =IF(OR('Tabel 1 H'!E82<5,'Tabel 2 H'!G84<0.5),"-",IFERROR('Tabel 2 H'!G84/'Tabel 1 H'!E82*100,"-")) -> 3.570760307 | I84: =IF(OR('Tabel 1 H'!G82<5,'Tabel 2 H'!I84<0.5),"-",IFERROR('Tabel 2 H'!I84/'Tabel 1 H'!G82*100,"-")) -> 3.311258278 | J84: =IF(OR('Tabel 1 H'!G82<5,'Tabel 2 H'!J84<0.5),"-",IFERROR('Tabel 2 H'!J84/'Tabel 1 H'!G82*100,"-")) -> 2.728643696
A85: Teolog | C85: =IF(OR('Tabel 1 H'!C83<5,'Tabel 2 H'!C85<0.5),"-",IFERROR('Tabel 2 H'!C85/'Tabel 1 H'!C83*100,"-")) -> 8.602150538 | D85: =IF(OR('Tabel 1 H'!C83<5,'Tabel 2 H'!D85<0.5),"-",IFERROR('Tabel 2 H'!D85/'Tabel 1 H'!C83*100,"-")) -> 5.760296807 | F85: =IF(OR('Tabel 1 H'!E83<5,'Tabel 2 H'!F85<0.5),"-",IFERROR('Tabel 2 H'!F85/'Tabel 1 H'!E83*100,"-")) -> 8.552631579 | G85: =IF(OR('Tabel 1 H'!E83<5,'Tabel 2 H'!G85<0.5),"-",IFERROR('Tabel 2 H'!G85/'Tabel 1 H'!E83*100,"-")) -> 7.56006526 | I85: =IF(OR('Tabel 1 H'!G83<5,'Tabel 2 H'!I85<0.5),"-",IFERROR('Tabel 2 H'!I85/'Tabel 1 H'!G83*100,"-")) -> 8.571428571 | J85: =IF(OR('Tabel 1 H'!G83<5,'Tabel 2 H'!J85<0.5),"-",IFERROR('Tabel 2 H'!J85/'Tabel 1 H'!G83*100,"-")) -> 6.876887847
A86: Psykolog | C86: =IF(OR('Tabel 1 H'!C84<5,'Tabel 2 H'!C86<0.5),"-",IFERROR('Tabel 2 H'!C86/'Tabel 1 H'!C84*100,"-")) -> 7.875894988 | D86: =IF(OR('Tabel 1 H'!C84<5,'Tabel 2 H'!D86<0.5),"-",IFERROR('Tabel 2 H'!D86/'Tabel 1 H'!C84*100,"-")) -> 7.154396801 | F86: =IF(OR('Tabel 1 H'!E84<5,'Tabel 2 H'!F86<0.5),"-",IFERROR('Tabel 2 H'!F86/'Tabel 1 H'!E84*100,"-")) -> 5.766793409 | G86: =IF(OR('Tabel 1 H'!E84<5,'Tabel 2 H'!G86<0.5),"-",IFERROR('Tabel 2 H'!G86/'Tabel 1 H'!E84*100,"-")) -> 4.945005299 | I86: =IF(OR('Tabel 1 H'!G84<5,'Tabel 2 H'!I86<0.5),"-",IFERROR('Tabel 2 H'!I86/'Tabel 1 H'!G84*100,"-")) -> 6.209313971 | J86: =IF(OR('Tabel 1 H'!G84<5,'Tabel 2 H'!J86<0.5),"-",IFERROR('Tabel 2 H'!J86/'Tabel 1 H'!G84*100,"-")) -> 5.408568163
A87: Jurist | C87: =IF(OR('Tabel 1 H'!C85<5,'Tabel 2 H'!C87<0.5),"-",IFERROR('Tabel 2 H'!C87/'Tabel 1 H'!C85*100,"-")) -> 2.567478604 | D87: =IF(OR('Tabel 1 H'!C85<5,'Tabel 2 H'!D87<0.5),"-",IFERROR('Tabel 2 H'!D87/'Tabel 1 H'!C85*100,"-")) -> 2.197533092 | F87: =IF(OR('Tabel 1 H'!E85<5,'Tabel 2 H'!F87<0.5),"-",IFERROR('Tabel 2 H'!F87/'Tabel 1 H'!E85*100,"-")) -> 2.862318841 | G87: =IF(OR('Tabel 1 H'!E85<5,'Tabel 2 H'!G87<0.5),"-",IFERROR('Tabel 2 H'!G87/'Tabel 1 H'!E85*100,"-")) -> 2.457182966 | I87: =IF(OR('Tabel 1 H'!G85<5,'Tabel 2 H'!I87<0.5),"-",IFERROR('Tabel 2 H'!I87/'Tabel 1 H'!G85*100,"-")) -> 2.757653657 | J87: =IF(OR('Tabel 1 H'!G85<5,'Tabel 2 H'!J87<0.5),"-",IFERROR('Tabel 2 H'!J87/'Tabel 1 H'!G85*100,"-")) -> 2.365009991
A88: Økonom | C88: =IF(OR('Tabel 1 H'!C86<5,'Tabel 2 H'!C88<0.5),"-",IFERROR('Tabel 2 H'!C88/'Tabel 1 H'!C86*100,"-")) -> 3.327055869 | D88: =IF(OR('Tabel 1 H'!C86<5,'Tabel 2 H'!D88<0.5),"-",IFERROR('Tabel 2 H'!D88/'Tabel 1 H'!C86*100,"-")) -> 2.841244453 | F88: =IF(OR('Tabel 1 H'!E86<5,'Tabel 2 H'!F88<0.5),"-",IFERROR('Tabel 2 H'!F88/'Tabel 1 H'!E86*100,"-")) -> 3.141361257 | G88: =IF(OR('Tabel 1 H'!E86<5,'Tabel 2 H'!G88<0.5),"-",IFERROR('Tabel 2 H'!G88/'Tabel 1 H'!E86*100,"-")) -> 2.521370354 | I88: =IF(OR('Tabel 1 H'!G86<5,'Tabel 2 H'!I88<0.5),"-",IFERROR('Tabel 2 H'!I88/'Tabel 1 H'!G86*100,"-")) -> 3.257456829 | J88: =IF(OR('Tabel 1 H'!G86<5,'Tabel 2 H'!J88<0.5),"-",IFERROR('Tabel 2 H'!J88/'Tabel 1 H'!G86*100,"-")) -> 2.721354436
A89: Samf. Adm. | C89: =IF(OR('Tabel 1 H'!C87<5,'Tabel 2 H'!C89<0.5),"-",IFERROR('Tabel 2 H'!C89/'Tabel 1 H'!C87*100,"-")) -> 6.505295008 | D89: =IF(OR('Tabel 1 H'!C87<5,'Tabel 2 H'!D89<0.5),"-",IFERROR('Tabel 2 H'!D89/'Tabel 1 H'!C87*100,"-")) -> 5.834222589 | F89: =IF(OR('Tabel 1 H'!E87<5,'Tabel 2 H'!F89<0.5),"-",IFERROR('Tabel 2 H'!F89/'Tabel 1 H'!E87*100,"-")) -> 7.554264228 | G89: =IF(OR('Tabel 1 H'!E87<5,'Tabel 2 H'!G89<0.5),"-",IFERROR('Tabel 2 H'!G89/'Tabel 1 H'!E87*100,"-")) -> 6.618975265 | I89: =IF(OR('Tabel 1 H'!G87<5,'Tabel 2 H'!I89<0.5),"-",IFERROR('Tabel 2 H'!I89/'Tabel 1 H'!G87*100,"-")) -> 7.130487929 | J89: =IF(OR('Tabel 1 H'!G87<5,'Tabel 2 H'!J89<0.5),"-",IFERROR('Tabel 2 H'!J89/'Tabel 1 H'!G87*100,"-")) -> 6.30194062
A90: Cand. Merc. | C90: =IF(OR('Tabel 1 H'!C88<5,'Tabel 2 H'!C90<0.5),"-",IFERROR('Tabel 2 H'!C90/'Tabel 1 H'!C88*100,"-")) -> 6.396191265 | D90: =IF(OR('Tabel 1 H'!C88<5,'Tabel 2 H'!D90<0.5),"-",IFERROR('Tabel 2 H'!D90/'Tabel 1 H'!C88*100,"-")) -> 5.67687817 | F90: =IF(OR('Tabel 1 H'!E88<5,'Tabel 2 H'!F90<0.5),"-",IFERROR('Tabel 2 H'!F90/'Tabel 1 H'!E88*100,"-")) -> 6.755330378 | G90: =IF(OR('Tabel 1 H'!E88<5,'Tabel 2 H'!G90<0.5),"-",IFERROR('Tabel 2 H'!G90/'Tabel 1 H'!E88*100,"-")) -> 5.673765981 | I90: =IF(OR('Tabel 1 H'!G88<5,'Tabel 2 H'!I90<0.5),"-",IFERROR('Tabel 2 H'!I90/'Tabel 1 H'!G88*100,"-")) -> 6.573996656 | J90: =IF(OR('Tabel 1 H'!G88<5,'Tabel 2 H'!J90<0.5),"-",IFERROR('Tabel 2 H'!J90/'Tabel 1 H'!G88*100,"-")) -> 5.675337363
A91: HA | C91: =IF(OR('Tabel 1 H'!C89<5,'Tabel 2 H'!C91<0.5),"-",IFERROR('Tabel 2 H'!C91/'Tabel 1 H'!C89*100,"-")) -> 8.941605839 | D91: =IF(OR('Tabel 1 H'!C89<5,'Tabel 2 H'!D91<0.5),"-",IFERROR('Tabel 2 H'!D91/'Tabel 1 H'!C89*100,"-")) -> 7.808029152 | F91: =IF(OR('Tabel 1 H'!E89<5,'Tabel 2 H'!F91<0.5),"-",IFERROR('Tabel 2 H'!F91/'Tabel 1 H'!E89*100,"-")) -> 11.00917431 | G91: =IF(OR('Tabel 1 H'!E89<5,'Tabel 2 H'!G91<0.5),"-",IFERROR('Tabel 2 H'!G91/'Tabel 1 H'!E89*100,"-")) -> 9.167588409 | I91: =IF(OR('Tabel 1 H'!G89<5,'Tabel 2 H'!I91<0.5),"-",IFERROR('Tabel 2 H'!I91/'Tabel 1 H'!G89*100,"-")) -> 9.857723577 | J91: =IF(OR('Tabel 1 H'!G89<5,'Tabel 2 H'!J91<0.5),"-",IFERROR('Tabel 2 H'!J91/'Tabel 1 H'!G89*100,"-")) -> 8.410435489
A92: HD | C92: =IF(OR('Tabel 1 H'!C90<5,'Tabel 2 H'!C92<0.5),"-",IFERROR('Tabel 2 H'!C92/'Tabel 1 H'!C90*100,"-")) -> 13.03418803 | D92: =IF(OR('Tabel 1 H'!C90<5,'Tabel 2 H'!D92<0.5),"-",IFERROR('Tabel 2 H'!D92/'Tabel 1 H'!C90*100,"-")) -> 11.25589796 | F92: =IF(OR('Tabel 1 H'!E90<5,'Tabel 2 H'!F92<0.5),"-",IFERROR('Tabel 2 H'!F92/'Tabel 1 H'!E90*100,"-")) -> 16.93404635 | G92: =IF(OR('Tabel 1 H'!E90<5,'Tabel 2 H'!G92<0.5),"-",IFERROR('Tabel 2 H'!G92/'Tabel 1 H'!E90*100,"-")) -> 13.85533603 | I92: =IF(OR('Tabel 1 H'!G90<5,'Tabel 2 H'!I92<0.5),"-",IFERROR('Tabel 2 H'!I92/'Tabel 1 H'!G90*100,"-")) -> 15.16034985 | J92: =IF(OR('Tabel 1 H'!G90<5,'Tabel 2 H'!J92<0.5),"-",IFERROR('Tabel 2 H'!J92/'Tabel 1 H'!G90*100,"-")) -> 12.67308431
A93: Komm. og Sprog | C93: =IF(OR('Tabel 1 H'!C91<5,'Tabel 2 H'!C93<0.5),"-",IFERROR('Tabel 2 H'!C93/'Tabel 1 H'!C91*100,"-")) -> 10.88607595 | D93: =IF(OR('Tabel 1 H'!C91<5,'Tabel 2 H'!D93<0.5),"-",IFERROR('Tabel 2 H'!D93/'Tabel 1 H'!C91*100,"-")) -> 9.757722798 | F93: =IF(OR('Tabel 1 H'!E91<5,'Tabel 2 H'!F93<0.5),"-",IFERROR('Tabel 2 H'!F93/'Tabel 1 H'!E91*100,"-")) -> 9.355932203 | G93: =IF(OR('Tabel 1 H'!E91<5,'Tabel 2 H'!G93<0.5),"-",IFERROR('Tabel 2 H'!G93/'Tabel 1 H'!E91*100,"-")) -> 7.984887103 | I93: =IF(OR('Tabel 1 H'!G91<5,'Tabel 2 H'!I93<0.5),"-",IFERROR('Tabel 2 H'!I93/'Tabel 1 H'!G91*100,"-")) -> 9.679144385 | J93: =IF(OR('Tabel 1 H'!G91<5,'Tabel 2 H'!J93<0.5),"-",IFERROR('Tabel 2 H'!J93/'Tabel 1 H'!G91*100,"-")) -> 8.359363092
A94: Cand. IT. | C94: =IF(OR('Tabel 1 H'!C92<5,'Tabel 2 H'!C94<0.5),"-",IFERROR('Tabel 2 H'!C94/'Tabel 1 H'!C92*100,"-")) -> 6.674757282 | D94: =IF(OR('Tabel 1 H'!C92<5,'Tabel 2 H'!D94<0.5),"-",IFERROR('Tabel 2 H'!D94/'Tabel 1 H'!C92*100,"-")) -> 5.889551828 | F94: =IF(OR('Tabel 1 H'!E92<5,'Tabel 2 H'!F94<0.5),"-",IFERROR('Tabel 2 H'!F94/'Tabel 1 H'!E92*100,"-")) -> 9.322033898 | G94: =IF(OR('Tabel 1 H'!E92<5,'Tabel 2 H'!G94<0.5),"-",IFERROR('Tabel 2 H'!G94/'Tabel 1 H'!E92*100,"-")) -> 7.932879256 | I94: =IF(OR('Tabel 1 H'!G92<5,'Tabel 2 H'!I94<0.5),"-",IFERROR('Tabel 2 H'!I94/'Tabel 1 H'!G92*100,"-")) -> 7.898172324 | J94: =IF(OR('Tabel 1 H'!G92<5,'Tabel 2 H'!J94<0.5),"-",IFERROR('Tabel 2 H'!J94/'Tabel 1 H'!G92*100,"-")) -> 6.833857193
A95: Bac. Samf. | C95: =IF(OR('Tabel 1 H'!C93<5,'Tabel 2 H'!C95<0.5),"-",IFERROR('Tabel 2 H'!C95/'Tabel 1 H'!C93*100,"-")) -> 5.208333333 | D95: =IF(OR('Tabel 1 H'!C93<5,'Tabel 2 H'!D95<0.5),"-",IFERROR('Tabel 2 H'!D95/'Tabel 1 H'!C93*100,"-")) -> 3.906980914 | F95: =IF(OR('Tabel 1 H'!E93<5,'Tabel 2 H'!F95<0.5),"-",IFERROR('Tabel 2 H'!F95/'Tabel 1 H'!E93*100,"-")) -> 6.756756757 | G95: =IF(OR('Tabel 1 H'!E93<5,'Tabel 2 H'!G95<0.5),"-",IFERROR('Tabel 2 H'!G95/'Tabel 1 H'!E93*100,"-")) -> 6.091321784 | I95: =IF(OR('Tabel 1 H'!G93<5,'Tabel 2 H'!I95<0.5),"-",IFERROR('Tabel 2 H'!I95/'Tabel 1 H'!G93*100,"-")) -> 6.038647343 | J95: =IF(OR('Tabel 1 H'!G93<5,'Tabel 2 H'!J95<0.5),"-",IFERROR('Tabel 2 H'!J95/'Tabel 1 H'!G93*100,"-")) -> 5.078294134
A96: Bac. Hum. | C96: =IF(OR('Tabel 1 H'!C94<5,'Tabel 2 H'!C96<0.5),"-",IFERROR('Tabel 2 H'!C96/'Tabel 1 H'!C94*100,"-")) -> 12.56281407 | D96: =IF(OR('Tabel 1 H'!C94<5,'Tabel 2 H'!D96<0.5),"-",IFERROR('Tabel 2 H'!D96/'Tabel 1 H'!C94*100,"-")) -> 10.278894 | F96: =IF(OR('Tabel 1 H'!E94<5,'Tabel 2 H'!F96<0.5),"-",IFERROR('Tabel 2 H'!F96/'Tabel 1 H'!E94*100,"-")) -> 13.2192846 | G96: =IF(OR('Tabel 1 H'!E94<5,'Tabel 2 H'!G96<0.5),"-",IFERROR('Tabel 2 H'!G96/'Tabel 1 H'!E94*100,"-")) -> 11.16709229 | I96: =IF(OR('Tabel 1 H'!G94<5,'Tabel 2 H'!I96<0.5),"-",IFERROR('Tabel 2 H'!I96/'Tabel 1 H'!G94*100,"-")) -> 12.96829971 | J96: =IF(OR('Tabel 1 H'!G94<5,'Tabel 2 H'!J96<0.5),"-",IFERROR('Tabel 2 H'!J96/'Tabel 1 H'!G94*100,"-")) -> 10.82751216
A97: Bac. Nat. | C97: =IF(OR('Tabel 1 H'!C95<5,'Tabel 2 H'!C97<0.5),"-",IFERROR('Tabel 2 H'!C97/'Tabel 1 H'!C95*100,"-")) -> 11.42857143 | D97: =IF(OR('Tabel 1 H'!C95<5,'Tabel 2 H'!D97<0.5),"-",IFERROR('Tabel 2 H'!D97/'Tabel 1 H'!C95*100,"-")) -> 9.765572792 | F97: =IF(OR('Tabel 1 H'!E95<5,'Tabel 2 H'!F97<0.5),"-",IFERROR('Tabel 2 H'!F97/'Tabel 1 H'!E95*100,"-")) -> 13.14878893 | G97: =IF(OR('Tabel 1 H'!E95<5,'Tabel 2 H'!G97<0.5),"-",IFERROR('Tabel 2 H'!G97/'Tabel 1 H'!E95*100,"-")) -> 11.39043456 | I97: =IF(OR('Tabel 1 H'!G95<5,'Tabel 2 H'!I97<0.5),"-",IFERROR('Tabel 2 H'!I97/'Tabel 1 H'!G95*100,"-")) -> 12.20657277 | J97: =IF(OR('Tabel 1 H'!G95<5,'Tabel 2 H'!J97<0.5),"-",IFERROR('Tabel 2 H'!J97/'Tabel 1 H'!G95*100,"-")) -> 10.50044768
A98: Andre | C98: =IF(OR('Tabel 1 H'!C96<5,'Tabel 2 H'!C98<0.5),"-",IFERROR('Tabel 2 H'!C98/'Tabel 1 H'!C96*100,"-")) -> 7.216494845 | D98: =IF(OR('Tabel 1 H'!C96<5,'Tabel 2 H'!D98<0.5),"-",IFERROR('Tabel 2 H'!D98/'Tabel 1 H'!C96*100,"-")) -> 6.306393628 | F98: =IF(OR('Tabel 1 H'!E96<5,'Tabel 2 H'!F98<0.5),"-",IFERROR('Tabel 2 H'!F98/'Tabel 1 H'!E96*100,"-")) -> 10.07751938 | G98: =IF(OR('Tabel 1 H'!E96<5,'Tabel 2 H'!G98<0.5),"-",IFERROR('Tabel 2 H'!G98/'Tabel 1 H'!E96*100,"-")) -> 8.679029872 | I98: =IF(OR('Tabel 1 H'!G96<5,'Tabel 2 H'!I98<0.5),"-",IFERROR('Tabel 2 H'!I98/'Tabel 1 H'!G96*100,"-")) -> 8.777760991 | J98: =IF(OR('Tabel 1 H'!G96<5,'Tabel 2 H'!J98<0.5),"-",IFERROR('Tabel 2 H'!J98/'Tabel 1 H'!G96*100,"-")) -> 7.60114542
A100: Total | C100: =IF(OR('Tabel 1 H'!C98<5,'Tabel 2 H'!C100<0.5),"-",IFERROR('Tabel 2 H'!C100/'Tabel 1 H'!C98*100,"-")) -> 6.840753198 | D100: =IF(OR('Tabel 1 H'!C98<5,'Tabel 2 H'!D100<0.5),"-",IFERROR('Tabel 2 H'!D100/'Tabel 1 H'!C98*100,"-")) -> 6.019578647 | F100: =IF(OR('Tabel 1 H'!E98<5,'Tabel 2 H'!F100<0.5),"-",IFERROR('Tabel 2 H'!F100/'Tabel 1 H'!E98*100,"-")) -> 8.413939028 | G100: =IF(OR('Tabel 1 H'!E98<5,'Tabel 2 H'!G100<0.5),"-",IFERROR('Tabel 2 H'!G100/'Tabel 1 H'!E98*100,"-")) -> 7.238710909 | I100: =IF(OR('Tabel 1 H'!G98<5,'Tabel 2 H'!I100<0.5),"-",IFERROR('Tabel 2 H'!I100/'Tabel 1 H'!G98*100,"-")) -> 7.707404103 | J100: =IF(OR('Tabel 1 H'!G98<5,'Tabel 2 H'!J100<0.5),"-",IFERROR('Tabel 2 H'!J100/'Tabel 1 H'!G98*100,"-")) -> 6.691185306
A102: Ingeniører i alt | C102: =IF(OR('Tabel 1 H'!C100<5,'Tabel 2 H'!C102<0.5),"-",IFERROR('Tabel 2 H'!C102/'Tabel 1 H'!C100*100,"-")) -> 3.990929705 | D102: =IF(OR('Tabel 1 H'!C100<5,'Tabel 2 H'!D102<0.5),"-",IFERROR('Tabel 2 H'!D102/'Tabel 1 H'!C100*100,"-")) -> 3.545691546 | F102: =IF(OR('Tabel 1 H'!E100<5,'Tabel 2 H'!F102<0.5),"-",IFERROR('Tabel 2 H'!F102/'Tabel 1 H'!E100*100,"-")) -> 4.676753783 | G102: =IF(OR('Tabel 1 H'!E100<5,'Tabel 2 H'!G102<0.5),"-",IFERROR('Tabel 2 H'!G102/'Tabel 1 H'!E100*100,"-")) -> 4.220948123 | I102: =IF(OR('Tabel 1 H'!G100<5,'Tabel 2 H'!I102<0.5),"-",IFERROR('Tabel 2 H'!I102/'Tabel 1 H'!G100*100,"-")) -> 4.160982265 | J102: =IF(OR('Tabel 1 H'!G100<5,'Tabel 2 H'!J102<0.5),"-",IFERROR('Tabel 2 H'!J102/'Tabel 1 H'!G100*100,"-")) -> 3.713123856
A103: Magistre i alt | C103: =IF(OR('Tabel 1 H'!C101<5,'Tabel 2 H'!C103<0.5),"-",IFERROR('Tabel 2 H'!C103/'Tabel 1 H'!C101*100,"-")) -> 9.134545455 | D103: =IF(OR('Tabel 1 H'!C101<5,'Tabel 2 H'!D103<0.5),"-",IFERROR('Tabel 2 H'!D103/'Tabel 1 H'!C101*100,"-")) -> 7.972728974 | F103: =IF(OR('Tabel 1 H'!E101<5,'Tabel 2 H'!F103<0.5),"-",IFERROR('Tabel 2 H'!F103/'Tabel 1 H'!E101*100,"-")) -> 10.47862262 | G103: =IF(OR('Tabel 1 H'!E101<5,'Tabel 2 H'!G103<0.5),"-",IFERROR('Tabel 2 H'!G103/'Tabel 1 H'!E101*100,"-")) -> 9.012571469 | I103: =IF(OR('Tabel 1 H'!G101<5,'Tabel 2 H'!I103<0.5),"-",IFERROR('Tabel 2 H'!I103/'Tabel 1 H'!G101*100,"-")) -> 9.992637004 | J103: =IF(OR('Tabel 1 H'!G101<5,'Tabel 2 H'!J103<0.5),"-",IFERROR('Tabel 2 H'!J103/'Tabel 1 H'!G101*100,"-")) -> 8.636589711
A104: DJØF'ere i alt | C104: =IF(OR('Tabel 1 H'!C102<5,'Tabel 2 H'!C104<0.5),"-",IFERROR('Tabel 2 H'!C104/'Tabel 1 H'!C102*100,"-")) -> 5.683551417 | D104: =IF(OR('Tabel 1 H'!C102<5,'Tabel 2 H'!D104<0.5),"-",IFERROR('Tabel 2 H'!D104/'Tabel 1 H'!C102*100,"-")) -> 5.033834823 | F104: =IF(OR('Tabel 1 H'!E102<5,'Tabel 2 H'!F104<0.5),"-",IFERROR('Tabel 2 H'!F104/'Tabel 1 H'!E102*100,"-")) -> 6.235158423 | G104: =IF(OR('Tabel 1 H'!E102<5,'Tabel 2 H'!G104<0.5),"-",IFERROR('Tabel 2 H'!G104/'Tabel 1 H'!E102*100,"-")) -> 5.345753168 | I104: =IF(OR('Tabel 1 H'!G102<5,'Tabel 2 H'!I104<0.5),"-",IFERROR('Tabel 2 H'!I104/'Tabel 1 H'!G102*100,"-")) -> 5.982497426 | J104: =IF(OR('Tabel 1 H'!G102<5,'Tabel 2 H'!J104<0.5),"-",IFERROR('Tabel 2 H'!J104/'Tabel 1 H'!G102*100,"-")) -> 5.202880436
A109: Frederiksberg
C111: Mænd | F111: Kvinder | I111: I alt
C112: Ledigheds- berørte | D112: Gns. brutto- ledighed | F112: Ledigheds- berørte | G112: Gns. brutto- ledighed | I112: Ledigheds- berørte | J112: Gns. brutto- ledighed
A115: Civ. ing. | C115: =IF(OR('Tabel 1 H'!C113<5,'Tabel 2 H'!C115<0.5),"-",IFERROR('Tabel 2 H'!C115/'Tabel 1 H'!C113*100,"-")) -> 3.367875648 | D115: =IF(OR('Tabel 1 H'!C113<5,'Tabel 2 H'!D115<0.5),"-",IFERROR('Tabel 2 H'!D115/'Tabel 1 H'!C113*100,"-")) -> 2.820526576 | F115: =IF(OR('Tabel 1 H'!E113<5,'Tabel 2 H'!F115<0.5),"-",IFERROR('Tabel 2 H'!F115/'Tabel 1 H'!E113*100,"-")) -> 2.657807309 | G115: =IF(OR('Tabel 1 H'!E113<5,'Tabel 2 H'!G115<0.5),"-",IFERROR('Tabel 2 H'!G115/'Tabel 1 H'!E113*100,"-")) -> 2.657309996 | I115: =IF(OR('Tabel 1 H'!G113<5,'Tabel 2 H'!I115<0.5),"-",IFERROR('Tabel 2 H'!I115/'Tabel 1 H'!G113*100,"-")) -> 3.168685927 | J115: =IF(OR('Tabel 1 H'!G113<5,'Tabel 2 H'!J115<0.5),"-",IFERROR('Tabel 2 H'!J115/'Tabel 1 H'!G113*100,"-")) -> 2.774740751
A116: Diplom ing. | C116: =IF(OR('Tabel 1 H'!C114<5,'Tabel 2 H'!C116<0.5),"-",IFERROR('Tabel 2 H'!C116/'Tabel 1 H'!C114*100,"-")) -> 4.366812227 | D116: =IF(OR('Tabel 1 H'!C114<5,'Tabel 2 H'!D116<0.5),"-",IFERROR('Tabel 2 H'!D116/'Tabel 1 H'!C114*100,"-")) -> 4.004704271 | F116: =IF(OR('Tabel 1 H'!E114<5,'Tabel 2 H'!F116<0.5),"-",IFERROR('Tabel 2 H'!F116/'Tabel 1 H'!E114*100,"-")) -> 3.669724771 | G116: =IF(OR('Tabel 1 H'!E114<5,'Tabel 2 H'!G116<0.5),"-",IFERROR('Tabel 2 H'!G116/'Tabel 1 H'!E114*100,"-")) -> 3.584350397 | I116: =IF(OR('Tabel 1 H'!G114<5,'Tabel 2 H'!I116<0.5),"-",IFERROR('Tabel 2 H'!I116/'Tabel 1 H'!G114*100,"-")) -> 4.232804233 | J116: =IF(OR('Tabel 1 H'!G114<5,'Tabel 2 H'!J116<0.5),"-",IFERROR('Tabel 2 H'!J116/'Tabel 1 H'!G114*100,"-")) -> 3.923895502
A117: Cand. Scient. Tek. | C117: =IF(OR('Tabel 1 H'!C115<5,'Tabel 2 H'!C117<0.5),"-",IFERROR('Tabel 2 H'!C117/'Tabel 1 H'!C115*100,"-")) -> 8.163265306 | D117: =IF(OR('Tabel 1 H'!C115<5,'Tabel 2 H'!D117<0.5),"-",IFERROR('Tabel 2 H'!D117/'Tabel 1 H'!C115*100,"-")) -> 7.407076222 | F117: =IF(OR('Tabel 1 H'!E115<5,'Tabel 2 H'!F117<0.5),"-",IFERROR('Tabel 2 H'!F117/'Tabel 1 H'!E115*100,"-")) -> 9.020618557 | G117: =IF(OR('Tabel 1 H'!E115<5,'Tabel 2 H'!G117<0.5),"-",IFERROR('Tabel 2 H'!G117/'Tabel 1 H'!E115*100,"-")) -> 7.410456912 | I117: =IF(OR('Tabel 1 H'!G115<5,'Tabel 2 H'!I117<0.5),"-",IFERROR('Tabel 2 H'!I117/'Tabel 1 H'!G115*100,"-")) -> 8.58974359 | J117: =IF(OR('Tabel 1 H'!G115<5,'Tabel 2 H'!J117<0.5),"-",IFERROR('Tabel 2 H'!J117/'Tabel 1 H'!G115*100,"-")) -> 7.408757898
A118: MA. Hum. | C118: =IF(OR('Tabel 1 H'!C116<5,'Tabel 2 H'!C118<0.5),"-",IFERROR('Tabel 2 H'!C118/'Tabel 1 H'!C116*100,"-")) -> 9.506398537 | D118: =IF(OR('Tabel 1 H'!C116<5,'Tabel 2 H'!D118<0.5),"-",IFERROR('Tabel 2 H'!D118/'Tabel 1 H'!C116*100,"-")) -> 8.006908968 | F118: =IF(OR('Tabel 1 H'!E116<5,'Tabel 2 H'!F118<0.5),"-",IFERROR('Tabel 2 H'!F118/'Tabel 1 H'!E116*100,"-")) -> 7.833733014 | G118: =IF(OR('Tabel 1 H'!E116<5,'Tabel 2 H'!G118<0.5),"-",IFERROR('Tabel 2 H'!G118/'Tabel 1 H'!E116*100,"-")) -> 6.608522201 | I118: =IF(OR('Tabel 1 H'!G116<5,'Tabel 2 H'!I118<0.5),"-",IFERROR('Tabel 2 H'!I118/'Tabel 1 H'!G116*100,"-")) -> 8.342602892 | J118: =IF(OR('Tabel 1 H'!G116<5,'Tabel 2 H'!J118<0.5),"-",IFERROR('Tabel 2 H'!J118/'Tabel 1 H'!G116*100,"-")) -> 7.033949098
A119: MA. Nat. | C119: =IF(OR('Tabel 1 H'!C117<5,'Tabel 2 H'!C119<0.5),"-",IFERROR('Tabel 2 H'!C119/'Tabel 1 H'!C117*100,"-")) -> 4.528301887 | D119: =IF(OR('Tabel 1 H'!C117<5,'Tabel 2 H'!D119<0.5),"-",IFERROR('Tabel 2 H'!D119/'Tabel 1 H'!C117*100,"-")) -> 3.93057244 | F119: =IF(OR('Tabel 1 H'!E117<5,'Tabel 2 H'!F119<0.5),"-",IFERROR('Tabel 2 H'!F119/'Tabel 1 H'!E117*100,"-")) -> 5.462184874 | G119: =IF(OR('Tabel 1 H'!E117<5,'Tabel 2 H'!G119<0.5),"-",IFERROR('Tabel 2 H'!G119/'Tabel 1 H'!E117*100,"-")) -> 4.879117492 | I119: =IF(OR('Tabel 1 H'!G117<5,'Tabel 2 H'!I119<0.5),"-",IFERROR('Tabel 2 H'!I119/'Tabel 1 H'!G117*100,"-")) -> 4.970178926 | J119: =IF(OR('Tabel 1 H'!G117<5,'Tabel 2 H'!J119<0.5),"-",IFERROR('Tabel 2 H'!J119/'Tabel 1 H'!G117*100,"-")) -> 4.379386997
A120: MA. Ph.d. | C120: =IF(OR('Tabel 1 H'!C118<5,'Tabel 2 H'!C120<0.5),"-",IFERROR('Tabel 2 H'!C120/'Tabel 1 H'!C118*100,"-")) -> 8.955223881 | D120: =IF(OR('Tabel 1 H'!C118<5,'Tabel 2 H'!D120<0.5),"-",IFERROR('Tabel 2 H'!D120/'Tabel 1 H'!C118*100,"-")) -> 8.261877788 | F120: =IF(OR('Tabel 1 H'!E118<5,'Tabel 2 H'!F120<0.5),"-",IFERROR('Tabel 2 H'!F120/'Tabel 1 H'!E118*100,"-")) -> 6.060606061 | G120: =IF(OR('Tabel 1 H'!E118<5,'Tabel 2 H'!G120<0.5),"-",IFERROR('Tabel 2 H'!G120/'Tabel 1 H'!E118*100,"-")) -> 5.919608988 | I120: =IF(OR('Tabel 1 H'!G118<5,'Tabel 2 H'!I120<0.5),"-",IFERROR('Tabel 2 H'!I120/'Tabel 1 H'!G118*100,"-")) -> 7.518796992 | J120: =IF(OR('Tabel 1 H'!G118<5,'Tabel 2 H'!J120<0.5),"-",IFERROR('Tabel 2 H'!J120/'Tabel 1 H'!G118*100,"-")) -> 7.09954891
A121: MA. Samf. | C121: =IF(OR('Tabel 1 H'!C119<5,'Tabel 2 H'!C121<0.5),"-",IFERROR('Tabel 2 H'!C121/'Tabel 1 H'!C119*100,"-")) -> 13.18681319 | D121: =IF(OR('Tabel 1 H'!C119<5,'Tabel 2 H'!D121<0.5),"-",IFERROR('Tabel 2 H'!D121/'Tabel 1 H'!C119*100,"-")) -> 12.35158529 | F121: =IF(OR('Tabel 1 H'!E119<5,'Tabel 2 H'!F121<0.5),"-",IFERROR('Tabel 2 H'!F121/'Tabel 1 H'!E119*100,"-")) -> 10.47619048 | G121: =IF(OR('Tabel 1 H'!E119<5,'Tabel 2 H'!G121<0.5),"-",IFERROR('Tabel 2 H'!G121/'Tabel 1 H'!E119*100,"-")) -> 9.284422308 | I121: =IF(OR('Tabel 1 H'!G119<5,'Tabel 2 H'!I121<0.5),"-",IFERROR('Tabel 2 H'!I121/'Tabel 1 H'!G119*100,"-")) -> 11.29568106 | J121: =IF(OR('Tabel 1 H'!G119<5,'Tabel 2 H'!J121<0.5),"-",IFERROR('Tabel 2 H'!J121/'Tabel 1 H'!G119*100,"-")) -> 10.21170414
A122: Øvrige Mag. | C122: =IF(OR('Tabel 1 H'!C120<5,'Tabel 2 H'!C122<0.5),"-",IFERROR('Tabel 2 H'!C122/'Tabel 1 H'!C120*100,"-")) -> 8.108108108 | D122: =IF(OR('Tabel 1 H'!C120<5,'Tabel 2 H'!D122<0.5),"-",IFERROR('Tabel 2 H'!D122/'Tabel 1 H'!C120*100,"-")) -> 7.857105531 | F122: =IF(OR('Tabel 1 H'!E120<5,'Tabel 2 H'!F122<0.5),"-",IFERROR('Tabel 2 H'!F122/'Tabel 1 H'!E120*100,"-")) -> 13.0952381 | G122: =IF(OR('Tabel 1 H'!E120<5,'Tabel 2 H'!G122<0.5),"-",IFERROR('Tabel 2 H'!G122/'Tabel 1 H'!E120*100,"-")) -> 12.25819961 | I122: =IF(OR('Tabel 1 H'!G120<5,'Tabel 2 H'!I122<0.5),"-",IFERROR('Tabel 2 H'!I122/'Tabel 1 H'!G120*100,"-")) -> 11.57024793 | J122: =IF(OR('Tabel 1 H'!G120<5,'Tabel 2 H'!J122<0.5),"-",IFERROR('Tabel 2 H'!J122/'Tabel 1 H'!G120*100,"-")) -> 10.91241051
A123: Agronom | C123: =IF(OR('Tabel 1 H'!C121<5,'Tabel 2 H'!C123<0.5),"-",IFERROR('Tabel 2 H'!C123/'Tabel 1 H'!C121*100,"-")) -> 4.255319149 | D123: =IF(OR('Tabel 1 H'!C121<5,'Tabel 2 H'!D123<0.5),"-",IFERROR('Tabel 2 H'!D123/'Tabel 1 H'!C121*100,"-")) -> 3.37070749 | F123: =IF(OR('Tabel 1 H'!E121<5,'Tabel 2 H'!F123<0.5),"-",IFERROR('Tabel 2 H'!F123/'Tabel 1 H'!E121*100,"-")) -> 8.823529412 | G123: =IF(OR('Tabel 1 H'!E121<5,'Tabel 2 H'!G123<0.5),"-",IFERROR('Tabel 2 H'!G123/'Tabel 1 H'!E121*100,"-")) -> 8.821878405 | I123: =IF(OR('Tabel 1 H'!G121<5,'Tabel 2 H'!I123<0.5),"-",IFERROR('Tabel 2 H'!I123/'Tabel 1 H'!G121*100,"-")) -> 6.172839506 | J123: =IF(OR('Tabel 1 H'!G121<5,'Tabel 2 H'!J123<0.5),"-",IFERROR('Tabel 2 H'!J123/'Tabel 1 H'!G121*100,"-")) -> 5.658853306
A124: Landsk. Arkt. | C124: =IF(OR('Tabel 1 H'!C122<5,'Tabel 2 H'!C124<0.5),"-",IFERROR('Tabel 2 H'!C124/'Tabel 1 H'!C122*100,"-")) -> 15.38461538 | D124: =IF(OR('Tabel 1 H'!C122<5,'Tabel 2 H'!D124<0.5),"-",IFERROR('Tabel 2 H'!D124/'Tabel 1 H'!C122*100,"-")) -> 14.67166277 | F124: =IF(OR('Tabel 1 H'!E122<5,'Tabel 2 H'!F124<0.5),"-",IFERROR('Tabel 2 H'!F124/'Tabel 1 H'!E122*100,"-")) -> 4 | G124: =IF(OR('Tabel 1 H'!E122<5,'Tabel 2 H'!G124<0.5),"-",IFERROR('Tabel 2 H'!G124/'Tabel 1 H'!E122*100,"-")) -> 3.999251544 | I124: =IF(OR('Tabel 1 H'!G122<5,'Tabel 2 H'!I124<0.5),"-",IFERROR('Tabel 2 H'!I124/'Tabel 1 H'!G122*100,"-")) -> 7.894736842 | J124: =IF(OR('Tabel 1 H'!G122<5,'Tabel 2 H'!J124<0.5),"-",IFERROR('Tabel 2 H'!J124/'Tabel 1 H'!G122*100,"-")) -> 7.650339596
A125: Hortonom | C125: =IF(OR('Tabel 1 H'!C123<5,'Tabel 2 H'!C125<0.5),"-",IFERROR('Tabel 2 H'!C125/'Tabel 1 H'!C123*100,"-")) -> - | D125: =IF(OR('Tabel 1 H'!C123<5,'Tabel 2 H'!D125<0.5),"-",IFERROR('Tabel 2 H'!D125/'Tabel 1 H'!C123*100,"-")) -> - | F125: =IF(OR('Tabel 1 H'!E123<5,'Tabel 2 H'!F125<0.5),"-",IFERROR('Tabel 2 H'!F125/'Tabel 1 H'!E123*100,"-")) -> - | G125: =IF(OR('Tabel 1 H'!E123<5,'Tabel 2 H'!G125<0.5),"-",IFERROR('Tabel 2 H'!G125/'Tabel 1 H'!E123*100,"-")) -> - | I125: =IF(OR('Tabel 1 H'!G123<5,'Tabel 2 H'!I125<0.5),"-",IFERROR('Tabel 2 H'!I125/'Tabel 1 H'!G123*100,"-")) -> - | J125: =IF(OR('Tabel 1 H'!G123<5,'Tabel 2 H'!J125<0.5),"-",IFERROR('Tabel 2 H'!J125/'Tabel 1 H'!G123*100,"-")) -> -
A126: Forstkand. | C126: =IF(OR('Tabel 1 H'!C124<5,'Tabel 2 H'!C126<0.5),"-",IFERROR('Tabel 2 H'!C126/'Tabel 1 H'!C124*100,"-")) -> - | D126: =IF(OR('Tabel 1 H'!C124<5,'Tabel 2 H'!D126<0.5),"-",IFERROR('Tabel 2 H'!D126/'Tabel 1 H'!C124*100,"-")) -> - | F126: =IF(OR('Tabel 1 H'!E124<5,'Tabel 2 H'!F126<0.5),"-",IFERROR('Tabel 2 H'!F126/'Tabel 1 H'!E124*100,"-")) -> - | G126: =IF(OR('Tabel 1 H'!E124<5,'Tabel 2 H'!G126<0.5),"-",IFERROR('Tabel 2 H'!G126/'Tabel 1 H'!E124*100,"-")) -> - | I126: =IF(OR('Tabel 1 H'!G124<5,'Tabel 2 H'!I126<0.5),"-",IFERROR('Tabel 2 H'!I126/'Tabel 1 H'!G124*100,"-")) -> - | J126: =IF(OR('Tabel 1 H'!G124<5,'Tabel 2 H'!J126<0.5),"-",IFERROR('Tabel 2 H'!J126/'Tabel 1 H'!G124*100,"-")) -> -
A127: Jordbrugsakad. | C127: =IF(OR('Tabel 1 H'!C125<5,'Tabel 2 H'!C127<0.5),"-",IFERROR('Tabel 2 H'!C127/'Tabel 1 H'!C125*100,"-")) -> 5.797101449 | D127: =IF(OR('Tabel 1 H'!C125<5,'Tabel 2 H'!D127<0.5),"-",IFERROR('Tabel 2 H'!D127/'Tabel 1 H'!C125*100,"-")) -> 5.060215479 | F127: =IF(OR('Tabel 1 H'!E125<5,'Tabel 2 H'!F127<0.5),"-",IFERROR('Tabel 2 H'!F127/'Tabel 1 H'!E125*100,"-")) -> 5.633802817 | G127: =IF(OR('Tabel 1 H'!E125<5,'Tabel 2 H'!G127<0.5),"-",IFERROR('Tabel 2 H'!G127/'Tabel 1 H'!E125*100,"-")) -> 5.632748653 | I127: =IF(OR('Tabel 1 H'!G125<5,'Tabel 2 H'!I127<0.5),"-",IFERROR('Tabel 2 H'!I127/'Tabel 1 H'!G125*100,"-")) -> 5.714285714 | J127: =IF(OR('Tabel 1 H'!G125<5,'Tabel 2 H'!J127<0.5),"-",IFERROR('Tabel 2 H'!J127/'Tabel 1 H'!G125*100,"-")) -> 5.350571589
A128: Mejeriing. | C128: =IF(OR('Tabel 1 H'!C126<5,'Tabel 2 H'!C128<0.5),"-",IFERROR('Tabel 2 H'!C128/'Tabel 1 H'!C126*100,"-")) -> - | D128: =IF(OR('Tabel 1 H'!C126<5,'Tabel 2 H'!D128<0.5),"-",IFERROR('Tabel 2 H'!D128/'Tabel 1 H'!C126*100,"-")) -> - | F128: =IF(OR('Tabel 1 H'!E126<5,'Tabel 2 H'!F128<0.5),"-",IFERROR('Tabel 2 H'!F128/'Tabel 1 H'!E126*100,"-")) -> 33.33333333 | G128: =IF(OR('Tabel 1 H'!E126<5,'Tabel 2 H'!G128<0.5),"-",IFERROR('Tabel 2 H'!G128/'Tabel 1 H'!E126*100,"-")) -> 24.86538182 | I128: =IF(OR('Tabel 1 H'!G126<5,'Tabel 2 H'!I128<0.5),"-",IFERROR('Tabel 2 H'!I128/'Tabel 1 H'!G126*100,"-")) -> 13.33333333 | J128: =IF(OR('Tabel 1 H'!G126<5,'Tabel 2 H'!J128<0.5),"-",IFERROR('Tabel 2 H'!J128/'Tabel 1 H'!G126*100,"-")) -> 9.946152727
A129: Levn.m.kand. | C129: =IF(OR('Tabel 1 H'!C127<5,'Tabel 2 H'!C129<0.5),"-",IFERROR('Tabel 2 H'!C129/'Tabel 1 H'!C127*100,"-")) -> 42.85714286 | D129: =IF(OR('Tabel 1 H'!C127<5,'Tabel 2 H'!D129<0.5),"-",IFERROR('Tabel 2 H'!D129/'Tabel 1 H'!C127*100,"-")) -> 33.61816254 | F129: =IF(OR('Tabel 1 H'!E127<5,'Tabel 2 H'!F129<0.5),"-",IFERROR('Tabel 2 H'!F129/'Tabel 1 H'!E127*100,"-")) -> 12.90322581 | G129: =IF(OR('Tabel 1 H'!E127<5,'Tabel 2 H'!G129<0.5),"-",IFERROR('Tabel 2 H'!G129/'Tabel 1 H'!E127*100,"-")) -> 10.66751438 | I129: =IF(OR('Tabel 1 H'!G127<5,'Tabel 2 H'!I129<0.5),"-",IFERROR('Tabel 2 H'!I129/'Tabel 1 H'!G127*100,"-")) -> 18.42105263 | J129: =IF(OR('Tabel 1 H'!G127<5,'Tabel 2 H'!J129<0.5),"-",IFERROR('Tabel 2 H'!J129/'Tabel 1 H'!G127*100,"-")) -> 14.89526536
A130: Dyrlæge | C130: =IF(OR('Tabel 1 H'!C128<5,'Tabel 2 H'!C130<0.5),"-",IFERROR('Tabel 2 H'!C130/'Tabel 1 H'!C128*100,"-")) -> 11.76470588 | D130: =IF(OR('Tabel 1 H'!C128<5,'Tabel 2 H'!D130<0.5),"-",IFERROR('Tabel 2 H'!D130/'Tabel 1 H'!C128*100,"-")) -> 11.43230323 | F130: =IF(OR('Tabel 1 H'!E128<5,'Tabel 2 H'!F130<0.5),"-",IFERROR('Tabel 2 H'!F130/'Tabel 1 H'!E128*100,"-")) -> - | G130: =IF(OR('Tabel 1 H'!E128<5,'Tabel 2 H'!G130<0.5),"-",IFERROR('Tabel 2 H'!G130/'Tabel 1 H'!E128*100,"-")) -> - | I130: =IF(OR('Tabel 1 H'!G128<5,'Tabel 2 H'!I130<0.5),"-",IFERROR('Tabel 2 H'!I130/'Tabel 1 H'!G128*100,"-")) -> 2.631578947 | J130: =IF(OR('Tabel 1 H'!G128<5,'Tabel 2 H'!J130<0.5),"-",IFERROR('Tabel 2 H'!J130/'Tabel 1 H'!G128*100,"-")) -> 2.557225722
A131: Farmaceut | C131: =IF(OR('Tabel 1 H'!C129<5,'Tabel 2 H'!C131<0.5),"-",IFERROR('Tabel 2 H'!C131/'Tabel 1 H'!C129*100,"-")) -> 8.196721311 | D131: =IF(OR('Tabel 1 H'!C129<5,'Tabel 2 H'!D131<0.5),"-",IFERROR('Tabel 2 H'!D131/'Tabel 1 H'!C129*100,"-")) -> 8.043860358 | F131: =IF(OR('Tabel 1 H'!E129<5,'Tabel 2 H'!F131<0.5),"-",IFERROR('Tabel 2 H'!F131/'Tabel 1 H'!E129*100,"-")) -> 4.191616766 | G131: =IF(OR('Tabel 1 H'!E129<5,'Tabel 2 H'!G131<0.5),"-",IFERROR('Tabel 2 H'!G131/'Tabel 1 H'!E129*100,"-")) -> 3.633971999 | I131: =IF(OR('Tabel 1 H'!G129<5,'Tabel 2 H'!I131<0.5),"-",IFERROR('Tabel 2 H'!I131/'Tabel 1 H'!G129*100,"-")) -> 5.263157895 | J131: =IF(OR('Tabel 1 H'!G129<5,'Tabel 2 H'!J131<0.5),"-",IFERROR('Tabel 2 H'!J131/'Tabel 1 H'!G129*100,"-")) -> 4.813810551
A132: Læge | C132: =IF(OR('Tabel 1 H'!C130<5,'Tabel 2 H'!C132<0.5),"-",IFERROR('Tabel 2 H'!C132/'Tabel 1 H'!C130*100,"-")) -> 1.360544218 | D132: =IF(OR('Tabel 1 H'!C130<5,'Tabel 2 H'!D132<0.5),"-",IFERROR('Tabel 2 H'!D132/'Tabel 1 H'!C130*100,"-")) -> 1.360289641 | F132: =IF(OR('Tabel 1 H'!E130<5,'Tabel 2 H'!F132<0.5),"-",IFERROR('Tabel 2 H'!F132/'Tabel 1 H'!E130*100,"-")) -> 0.6211180124 | G132: =IF(OR('Tabel 1 H'!E130<5,'Tabel 2 H'!G132<0.5),"-",IFERROR('Tabel 2 H'!G132/'Tabel 1 H'!E130*100,"-")) -> 0.5636666301 | I132: =IF(OR('Tabel 1 H'!G130<5,'Tabel 2 H'!I132<0.5),"-",IFERROR('Tabel 2 H'!I132/'Tabel 1 H'!G130*100,"-")) -> 0.8528784648 | J132: =IF(OR('Tabel 1 H'!G130<5,'Tabel 2 H'!J132<0.5),"-",IFERROR('Tabel 2 H'!J132/'Tabel 1 H'!G130*100,"-")) -> 0.8133544394
A133: Tandlæge | C133: =IF(OR('Tabel 1 H'!C131<5,'Tabel 2 H'!C133<0.5),"-",IFERROR('Tabel 2 H'!C133/'Tabel 1 H'!C131*100,"-")) -> - | D133: =IF(OR('Tabel 1 H'!C131<5,'Tabel 2 H'!D133<0.5),"-",IFERROR('Tabel 2 H'!D133/'Tabel 1 H'!C131*100,"-")) -> - | F133: =IF(OR('Tabel 1 H'!E131<5,'Tabel 2 H'!F133<0.5),"-",IFERROR('Tabel 2 H'!F133/'Tabel 1 H'!E131*100,"-")) -> 3.448275862 | G133: =IF(OR('Tabel 1 H'!E131<5,'Tabel 2 H'!G133<0.5),"-",IFERROR('Tabel 2 H'!G133/'Tabel 1 H'!E131*100,"-")) -> 3.103512798 | I133: =IF(OR('Tabel 1 H'!G131<5,'Tabel 2 H'!I133<0.5),"-",IFERROR('Tabel 2 H'!I133/'Tabel 1 H'!G131*100,"-")) -> 3.076923077 | J133: =IF(OR('Tabel 1 H'!G131<5,'Tabel 2 H'!J133<0.5),"-",IFERROR('Tabel 2 H'!J133/'Tabel 1 H'!G131*100,"-")) -> 2.769288343
A134: Arkitekt | C134: =IF(OR('Tabel 1 H'!C132<5,'Tabel 2 H'!C134<0.5),"-",IFERROR('Tabel 2 H'!C134/'Tabel 1 H'!C132*100,"-")) -> 6.930693069 | D134: =IF(OR('Tabel 1 H'!C132<5,'Tabel 2 H'!D134<0.5),"-",IFERROR('Tabel 2 H'!D134/'Tabel 1 H'!C132*100,"-")) -> 6.655209274 | F134: =IF(OR('Tabel 1 H'!E132<5,'Tabel 2 H'!F134<0.5),"-",IFERROR('Tabel 2 H'!F134/'Tabel 1 H'!E132*100,"-")) -> 5.381165919 | G134: =IF(OR('Tabel 1 H'!E132<5,'Tabel 2 H'!G134<0.5),"-",IFERROR('Tabel 2 H'!G134/'Tabel 1 H'!E132*100,"-")) -> 4.730154371 | I134: =IF(OR('Tabel 1 H'!G132<5,'Tabel 2 H'!I134<0.5),"-",IFERROR('Tabel 2 H'!I134/'Tabel 1 H'!G132*100,"-")) -> 6.117647059 | J134: =IF(OR('Tabel 1 H'!G132<5,'Tabel 2 H'!J134<0.5),"-",IFERROR('Tabel 2 H'!J134/'Tabel 1 H'!G132*100,"-")) -> 5.645121642
A135: Landinspek. | C135: =IF(OR('Tabel 1 H'!C133<5,'Tabel 2 H'!C135<0.5),"-",IFERROR('Tabel 2 H'!C135/'Tabel 1 H'!C133*100,"-")) -> - | D135: =IF(OR('Tabel 1 H'!C133<5,'Tabel 2 H'!D135<0.5),"-",IFERROR('Tabel 2 H'!D135/'Tabel 1 H'!C133*100,"-")) -> - | F135: =IF(OR('Tabel 1 H'!E133<5,'Tabel 2 H'!F135<0.5),"-",IFERROR('Tabel 2 H'!F135/'Tabel 1 H'!E133*100,"-")) -> - | G135: =IF(OR('Tabel 1 H'!E133<5,'Tabel 2 H'!G135<0.5),"-",IFERROR('Tabel 2 H'!G135/'Tabel 1 H'!E133*100,"-")) -> - | I135: =IF(OR('Tabel 1 H'!G133<5,'Tabel 2 H'!I135<0.5),"-",IFERROR('Tabel 2 H'!I135/'Tabel 1 H'!G133*100,"-")) -> - | J135: =IF(OR('Tabel 1 H'!G133<5,'Tabel 2 H'!J135<0.5),"-",IFERROR('Tabel 2 H'!J135/'Tabel 1 H'!G133*100,"-")) -> -
A136: Bibliotekar | C136: =IF(OR('Tabel 1 H'!C134<5,'Tabel 2 H'!C136<0.5),"-",IFERROR('Tabel 2 H'!C136/'Tabel 1 H'!C134*100,"-")) -> 2.702702703 | D136: =IF(OR('Tabel 1 H'!C134<5,'Tabel 2 H'!D136<0.5),"-",IFERROR('Tabel 2 H'!D136/'Tabel 1 H'!C134*100,"-")) -> - | F136: =IF(OR('Tabel 1 H'!E134<5,'Tabel 2 H'!F136<0.5),"-",IFERROR('Tabel 2 H'!F136/'Tabel 1 H'!E134*100,"-")) -> 5.769230769 | G136: =IF(OR('Tabel 1 H'!E134<5,'Tabel 2 H'!G136<0.5),"-",IFERROR('Tabel 2 H'!G136/'Tabel 1 H'!E134*100,"-")) -> 5.194814541 | I136: =IF(OR('Tabel 1 H'!G134<5,'Tabel 2 H'!I136<0.5),"-",IFERROR('Tabel 2 H'!I136/'Tabel 1 H'!G134*100,"-")) -> 4.964539007 | J136: =IF(OR('Tabel 1 H'!G134<5,'Tabel 2 H'!J136<0.5),"-",IFERROR('Tabel 2 H'!J136/'Tabel 1 H'!G134*100,"-")) -> 3.98424703
A137: Musikudd. | C137: =IF(OR('Tabel 1 H'!C135<5,'Tabel 2 H'!C137<0.5),"-",IFERROR('Tabel 2 H'!C137/'Tabel 1 H'!C135*100,"-")) -> 6.666666667 | D137: =IF(OR('Tabel 1 H'!C135<5,'Tabel 2 H'!D137<0.5),"-",IFERROR('Tabel 2 H'!D137/'Tabel 1 H'!C135*100,"-")) -> 6.665419239 | F137: =IF(OR('Tabel 1 H'!E135<5,'Tabel 2 H'!F137<0.5),"-",IFERROR('Tabel 2 H'!F137/'Tabel 1 H'!E135*100,"-")) -> - | G137: =IF(OR('Tabel 1 H'!E135<5,'Tabel 2 H'!G137<0.5),"-",IFERROR('Tabel 2 H'!G137/'Tabel 1 H'!E135*100,"-")) -> - | I137: =IF(OR('Tabel 1 H'!G135<5,'Tabel 2 H'!I137<0.5),"-",IFERROR('Tabel 2 H'!I137/'Tabel 1 H'!G135*100,"-")) -> 4 | J137: =IF(OR('Tabel 1 H'!G135<5,'Tabel 2 H'!J137<0.5),"-",IFERROR('Tabel 2 H'!J137/'Tabel 1 H'!G135*100,"-")) -> 3.999251544
A138: Teolog | C138: =IF(OR('Tabel 1 H'!C136<5,'Tabel 2 H'!C138<0.5),"-",IFERROR('Tabel 2 H'!C138/'Tabel 1 H'!C136*100,"-")) -> - | D138: =IF(OR('Tabel 1 H'!C136<5,'Tabel 2 H'!D138<0.5),"-",IFERROR('Tabel 2 H'!D138/'Tabel 1 H'!C136*100,"-")) -> - | F138: =IF(OR('Tabel 1 H'!E136<5,'Tabel 2 H'!F138<0.5),"-",IFERROR('Tabel 2 H'!F138/'Tabel 1 H'!E136*100,"-")) -> 6.451612903 | G138: =IF(OR('Tabel 1 H'!E136<5,'Tabel 2 H'!G138<0.5),"-",IFERROR('Tabel 2 H'!G138/'Tabel 1 H'!E136*100,"-")) -> 5.557086895 | I138: =IF(OR('Tabel 1 H'!G136<5,'Tabel 2 H'!I138<0.5),"-",IFERROR('Tabel 2 H'!I138/'Tabel 1 H'!G136*100,"-")) -> 5.263157895 | J138: =IF(OR('Tabel 1 H'!G136<5,'Tabel 2 H'!J138<0.5),"-",IFERROR('Tabel 2 H'!J138/'Tabel 1 H'!G136*100,"-")) -> 4.533412994
A139: Psykolog | C139: =IF(OR('Tabel 1 H'!C137<5,'Tabel 2 H'!C139<0.5),"-",IFERROR('Tabel 2 H'!C139/'Tabel 1 H'!C137*100,"-")) -> 5.172413793 | D139: =IF(OR('Tabel 1 H'!C137<5,'Tabel 2 H'!D139<0.5),"-",IFERROR('Tabel 2 H'!D139/'Tabel 1 H'!C137*100,"-")) -> 2.766922533 | F139: =IF(OR('Tabel 1 H'!E137<5,'Tabel 2 H'!F139<0.5),"-",IFERROR('Tabel 2 H'!F139/'Tabel 1 H'!E137*100,"-")) -> 6.181818182 | G139: =IF(OR('Tabel 1 H'!E137<5,'Tabel 2 H'!G139<0.5),"-",IFERROR('Tabel 2 H'!G139/'Tabel 1 H'!E137*100,"-")) -> 5.664907038 | I139: =IF(OR('Tabel 1 H'!G137<5,'Tabel 2 H'!I139<0.5),"-",IFERROR('Tabel 2 H'!I139/'Tabel 1 H'!G137*100,"-")) -> 6.006006006 | J139: =IF(OR('Tabel 1 H'!G137<5,'Tabel 2 H'!J139<0.5),"-",IFERROR('Tabel 2 H'!J139/'Tabel 1 H'!G137*100,"-")) -> 5.16015298
A140: Jurist | C140: =IF(OR('Tabel 1 H'!C138<5,'Tabel 2 H'!C140<0.5),"-",IFERROR('Tabel 2 H'!C140/'Tabel 1 H'!C138*100,"-")) -> 2.624671916 | D140: =IF(OR('Tabel 1 H'!C138<5,'Tabel 2 H'!D140<0.5),"-",IFERROR('Tabel 2 H'!D140/'Tabel 1 H'!C138*100,"-")) -> 2.288259467 | F140: =IF(OR('Tabel 1 H'!E138<5,'Tabel 2 H'!F140<0.5),"-",IFERROR('Tabel 2 H'!F140/'Tabel 1 H'!E138*100,"-")) -> 2.297090352 | G140: =IF(OR('Tabel 1 H'!E138<5,'Tabel 2 H'!G140<0.5),"-",IFERROR('Tabel 2 H'!G140/'Tabel 1 H'!E138*100,"-")) -> 2.224546635 | I140: =IF(OR('Tabel 1 H'!G138<5,'Tabel 2 H'!I140<0.5),"-",IFERROR('Tabel 2 H'!I140/'Tabel 1 H'!G138*100,"-")) -> 2.417794971 | J140: =IF(OR('Tabel 1 H'!G138<5,'Tabel 2 H'!J140<0.5),"-",IFERROR('Tabel 2 H'!J140/'Tabel 1 H'!G138*100,"-")) -> 2.248023027
A141: Økonom | C141: =IF(OR('Tabel 1 H'!C139<5,'Tabel 2 H'!C141<0.5),"-",IFERROR('Tabel 2 H'!C141/'Tabel 1 H'!C139*100,"-")) -> 0.8982035928 | D141: =IF(OR('Tabel 1 H'!C139<5,'Tabel 2 H'!D141<0.5),"-",IFERROR('Tabel 2 H'!D141/'Tabel 1 H'!C139*100,"-")) -> 0.7172706293 | F141: =IF(OR('Tabel 1 H'!E139<5,'Tabel 2 H'!F141<0.5),"-",IFERROR('Tabel 2 H'!F141/'Tabel 1 H'!E139*100,"-")) -> 2.192982456 | G141: =IF(OR('Tabel 1 H'!E139<5,'Tabel 2 H'!G141<0.5),"-",IFERROR('Tabel 2 H'!G141/'Tabel 1 H'!E139*100,"-")) -> 2.138954634 | I141: =IF(OR('Tabel 1 H'!G139<5,'Tabel 2 H'!I141<0.5),"-",IFERROR('Tabel 2 H'!I141/'Tabel 1 H'!G139*100,"-")) -> 1.423487544 | J141: =IF(OR('Tabel 1 H'!G139<5,'Tabel 2 H'!J141<0.5),"-",IFERROR('Tabel 2 H'!J141/'Tabel 1 H'!G139*100,"-")) -> 1.294039229
A142: Samf. Adm. | C142: =IF(OR('Tabel 1 H'!C140<5,'Tabel 2 H'!C142<0.5),"-",IFERROR('Tabel 2 H'!C142/'Tabel 1 H'!C140*100,"-")) -> 4.431314623 | D142: =IF(OR('Tabel 1 H'!C140<5,'Tabel 2 H'!D142<0.5),"-",IFERROR('Tabel 2 H'!D142/'Tabel 1 H'!C140*100,"-")) -> 4.007060401 | F142: =IF(OR('Tabel 1 H'!E140<5,'Tabel 2 H'!F142<0.5),"-",IFERROR('Tabel 2 H'!F142/'Tabel 1 H'!E140*100,"-")) -> 4.935834156 | G142: =IF(OR('Tabel 1 H'!E140<5,'Tabel 2 H'!G142<0.5),"-",IFERROR('Tabel 2 H'!G142/'Tabel 1 H'!E140*100,"-")) -> 4.606737498 | I142: =IF(OR('Tabel 1 H'!G140<5,'Tabel 2 H'!I142<0.5),"-",IFERROR('Tabel 2 H'!I142/'Tabel 1 H'!G140*100,"-")) -> 4.733727811 | J142: =IF(OR('Tabel 1 H'!G140<5,'Tabel 2 H'!J142<0.5),"-",IFERROR('Tabel 2 H'!J142/'Tabel 1 H'!G140*100,"-")) -> 4.366511821
A143: Cand. Merc. | C143: =IF(OR('Tabel 1 H'!C141<5,'Tabel 2 H'!C143<0.5),"-",IFERROR('Tabel 2 H'!C143/'Tabel 1 H'!C141*100,"-")) -> 4.717775906 | D143: =IF(OR('Tabel 1 H'!C141<5,'Tabel 2 H'!D143<0.5),"-",IFERROR('Tabel 2 H'!D143/'Tabel 1 H'!C141*100,"-")) -> 4.144201111 | F143: =IF(OR('Tabel 1 H'!E141<5,'Tabel 2 H'!F143<0.5),"-",IFERROR('Tabel 2 H'!F143/'Tabel 1 H'!E141*100,"-")) -> 6.550218341 | G143: =IF(OR('Tabel 1 H'!E141<5,'Tabel 2 H'!G143<0.5),"-",IFERROR('Tabel 2 H'!G143/'Tabel 1 H'!E141*100,"-")) -> 5.436385708 | I143: =IF(OR('Tabel 1 H'!G141<5,'Tabel 2 H'!I143<0.5),"-",IFERROR('Tabel 2 H'!I143/'Tabel 1 H'!G141*100,"-")) -> 5.617495712 | J143: =IF(OR('Tabel 1 H'!G141<5,'Tabel 2 H'!J143<0.5),"-",IFERROR('Tabel 2 H'!J143/'Tabel 1 H'!G141*100,"-")) -> 4.778657099
A144: HA | C144: =IF(OR('Tabel 1 H'!C142<5,'Tabel 2 H'!C144<0.5),"-",IFERROR('Tabel 2 H'!C144/'Tabel 1 H'!C142*100,"-")) -> 9.009009009 | D144: =IF(OR('Tabel 1 H'!C142<5,'Tabel 2 H'!D144<0.5),"-",IFERROR('Tabel 2 H'!D144/'Tabel 1 H'!C142*100,"-")) -> 6.215221646 | F144: =IF(OR('Tabel 1 H'!E142<5,'Tabel 2 H'!F144<0.5),"-",IFERROR('Tabel 2 H'!F144/'Tabel 1 H'!E142*100,"-")) -> 3.125 | G144: =IF(OR('Tabel 1 H'!E142<5,'Tabel 2 H'!G144<0.5),"-",IFERROR('Tabel 2 H'!G144/'Tabel 1 H'!E142*100,"-")) -> 2.21548265 | I144: =IF(OR('Tabel 1 H'!G142<5,'Tabel 2 H'!I144<0.5),"-",IFERROR('Tabel 2 H'!I144/'Tabel 1 H'!G142*100,"-")) -> 6.280193237 | J144: =IF(OR('Tabel 1 H'!G142<5,'Tabel 2 H'!J144<0.5),"-",IFERROR('Tabel 2 H'!J144/'Tabel 1 H'!G142*100,"-")) -> 4.360270228
A145: HD | C145: =IF(OR('Tabel 1 H'!C143<5,'Tabel 2 H'!C145<0.5),"-",IFERROR('Tabel 2 H'!C145/'Tabel 1 H'!C143*100,"-")) -> 11.62790698 | D145: =IF(OR('Tabel 1 H'!C143<5,'Tabel 2 H'!D145<0.5),"-",IFERROR('Tabel 2 H'!D145/'Tabel 1 H'!C143*100,"-")) -> 9.872564193 | F145: =IF(OR('Tabel 1 H'!E143<5,'Tabel 2 H'!F145<0.5),"-",IFERROR('Tabel 2 H'!F145/'Tabel 1 H'!E143*100,"-")) -> 12.37113402 | G145: =IF(OR('Tabel 1 H'!E143<5,'Tabel 2 H'!G145<0.5),"-",IFERROR('Tabel 2 H'!G145/'Tabel 1 H'!E143*100,"-")) -> 9.992277526 | I145: =IF(OR('Tabel 1 H'!G143<5,'Tabel 2 H'!I145<0.5),"-",IFERROR('Tabel 2 H'!I145/'Tabel 1 H'!G143*100,"-")) -> 11.94690265 | J145: =IF(OR('Tabel 1 H'!G143<5,'Tabel 2 H'!J145<0.5),"-",IFERROR('Tabel 2 H'!J145/'Tabel 1 H'!G143*100,"-")) -> 9.923945579
A146: Komm. og Sprog | C146: =IF(OR('Tabel 1 H'!C144<5,'Tabel 2 H'!C146<0.5),"-",IFERROR('Tabel 2 H'!C146/'Tabel 1 H'!C144*100,"-")) -> 5.660377358 | D146: =IF(OR('Tabel 1 H'!C144<5,'Tabel 2 H'!D146<0.5),"-",IFERROR('Tabel 2 H'!D146/'Tabel 1 H'!C144*100,"-")) -> 4.659022841 | F146: =IF(OR('Tabel 1 H'!E144<5,'Tabel 2 H'!F146<0.5),"-",IFERROR('Tabel 2 H'!F146/'Tabel 1 H'!E144*100,"-")) -> 6.567164179 | G146: =IF(OR('Tabel 1 H'!E144<5,'Tabel 2 H'!G146<0.5),"-",IFERROR('Tabel 2 H'!G146/'Tabel 1 H'!E144*100,"-")) -> 5.758458999 | I146: =IF(OR('Tabel 1 H'!G144<5,'Tabel 2 H'!I146<0.5),"-",IFERROR('Tabel 2 H'!I146/'Tabel 1 H'!G144*100,"-")) -> 6.443298969 | J146: =IF(OR('Tabel 1 H'!G144<5,'Tabel 2 H'!J146<0.5),"-",IFERROR('Tabel 2 H'!J146/'Tabel 1 H'!G144*100,"-")) -> 5.608278287
A147: Cand. IT. | C147: =IF(OR('Tabel 1 H'!C145<5,'Tabel 2 H'!C147<0.5),"-",IFERROR('Tabel 2 H'!C147/'Tabel 1 H'!C145*100,"-")) -> 4.237288136 | D147: =IF(OR('Tabel 1 H'!C145<5,'Tabel 2 H'!D147<0.5),"-",IFERROR('Tabel 2 H'!D147/'Tabel 1 H'!C145*100,"-")) -> 3.767124374 | F147: =IF(OR('Tabel 1 H'!E145<5,'Tabel 2 H'!F147<0.5),"-",IFERROR('Tabel 2 H'!F147/'Tabel 1 H'!E145*100,"-")) -> 6.666666667 | G147: =IF(OR('Tabel 1 H'!E145<5,'Tabel 2 H'!G147<0.5),"-",IFERROR('Tabel 2 H'!G147/'Tabel 1 H'!E145*100,"-")) -> 6.455435664 | I147: =IF(OR('Tabel 1 H'!G145<5,'Tabel 2 H'!I147<0.5),"-",IFERROR('Tabel 2 H'!I147/'Tabel 1 H'!G145*100,"-")) -> 5.288461538 | J147: =IF(OR('Tabel 1 H'!G145<5,'Tabel 2 H'!J147<0.5),"-",IFERROR('Tabel 2 H'!J147/'Tabel 1 H'!G145*100,"-")) -> 4.93033599
A148: Bac. Samf. | C148: =IF(OR('Tabel 1 H'!C146<5,'Tabel 2 H'!C148<0.5),"-",IFERROR('Tabel 2 H'!C148/'Tabel 1 H'!C146*100,"-")) -> 7.142857143 | D148: =IF(OR('Tabel 1 H'!C146<5,'Tabel 2 H'!D148<0.5),"-",IFERROR('Tabel 2 H'!D148/'Tabel 1 H'!C146*100,"-")) -> 5.691386515 | F148: =IF(OR('Tabel 1 H'!E146<5,'Tabel 2 H'!F148<0.5),"-",IFERROR('Tabel 2 H'!F148/'Tabel 1 H'!E146*100,"-")) -> 3.03030303 | G148: =IF(OR('Tabel 1 H'!E146<5,'Tabel 2 H'!G148<0.5),"-",IFERROR('Tabel 2 H'!G148/'Tabel 1 H'!E146*100,"-")) -> 1.517703071 | I148: =IF(OR('Tabel 1 H'!G146<5,'Tabel 2 H'!I148<0.5),"-",IFERROR('Tabel 2 H'!I148/'Tabel 1 H'!G146*100,"-")) -> 4.918032787 | J148: =IF(OR('Tabel 1 H'!G146<5,'Tabel 2 H'!J148<0.5),"-",IFERROR('Tabel 2 H'!J148/'Tabel 1 H'!G146*100,"-")) -> 3.433492193
A149: Bac. Hum. | C149: =IF(OR('Tabel 1 H'!C147<5,'Tabel 2 H'!C149<0.5),"-",IFERROR('Tabel 2 H'!C149/'Tabel 1 H'!C147*100,"-")) -> 8.064516129 | D149: =IF(OR('Tabel 1 H'!C147<5,'Tabel 2 H'!D149<0.5),"-",IFERROR('Tabel 2 H'!D149/'Tabel 1 H'!C147*100,"-")) -> 6.688825266 | F149: =IF(OR('Tabel 1 H'!E147<5,'Tabel 2 H'!F149<0.5),"-",IFERROR('Tabel 2 H'!F149/'Tabel 1 H'!E147*100,"-")) -> 10.08403361 | G149: =IF(OR('Tabel 1 H'!E147<5,'Tabel 2 H'!G149<0.5),"-",IFERROR('Tabel 2 H'!G149/'Tabel 1 H'!E147*100,"-")) -> 8.937972994 | I149: =IF(OR('Tabel 1 H'!G147<5,'Tabel 2 H'!I149<0.5),"-",IFERROR('Tabel 2 H'!I149/'Tabel 1 H'!G147*100,"-")) -> 9.392265193 | J149: =IF(OR('Tabel 1 H'!G147<5,'Tabel 2 H'!J149<0.5),"-",IFERROR('Tabel 2 H'!J149/'Tabel 1 H'!G147*100,"-")) -> 8.1675467
A150: Bac. Nat. | C150: =IF(OR('Tabel 1 H'!C148<5,'Tabel 2 H'!C150<0.5),"-",IFERROR('Tabel 2 H'!C150/'Tabel 1 H'!C148*100,"-")) -> 12.5 | D150: =IF(OR('Tabel 1 H'!C148<5,'Tabel 2 H'!D150<0.5),"-",IFERROR('Tabel 2 H'!D150/'Tabel 1 H'!C148*100,"-")) -> 11.56832782 | F150: =IF(OR('Tabel 1 H'!E148<5,'Tabel 2 H'!F150<0.5),"-",IFERROR('Tabel 2 H'!F150/'Tabel 1 H'!E148*100,"-")) -> 11.9047619 | G150: =IF(OR('Tabel 1 H'!E148<5,'Tabel 2 H'!G150<0.5),"-",IFERROR('Tabel 2 H'!G150/'Tabel 1 H'!E148*100,"-")) -> 11.16150321 | I150: =IF(OR('Tabel 1 H'!G148<5,'Tabel 2 H'!I150<0.5),"-",IFERROR('Tabel 2 H'!I150/'Tabel 1 H'!G148*100,"-")) -> 12.19512195 | J150: =IF(OR('Tabel 1 H'!G148<5,'Tabel 2 H'!J150<0.5),"-",IFERROR('Tabel 2 H'!J150/'Tabel 1 H'!G148*100,"-")) -> 11.35995424
A151: Andre | C151: =IF(OR('Tabel 1 H'!C149<5,'Tabel 2 H'!C151<0.5),"-",IFERROR('Tabel 2 H'!C151/'Tabel 1 H'!C149*100,"-")) -> 5.303030303 | D151: =IF(OR('Tabel 1 H'!C149<5,'Tabel 2 H'!D151<0.5),"-",IFERROR('Tabel 2 H'!D151/'Tabel 1 H'!C149*100,"-")) -> 4.855043291 | F151: =IF(OR('Tabel 1 H'!E149<5,'Tabel 2 H'!F151<0.5),"-",IFERROR('Tabel 2 H'!F151/'Tabel 1 H'!E149*100,"-")) -> 8.201892744 | G151: =IF(OR('Tabel 1 H'!E149<5,'Tabel 2 H'!G151<0.5),"-",IFERROR('Tabel 2 H'!G151/'Tabel 1 H'!E149*100,"-")) -> 7.061933186 | I151: =IF(OR('Tabel 1 H'!G149<5,'Tabel 2 H'!I151<0.5),"-",IFERROR('Tabel 2 H'!I151/'Tabel 1 H'!G149*100,"-")) -> 6.884681583 | J151: =IF(OR('Tabel 1 H'!G149<5,'Tabel 2 H'!J151<0.5),"-",IFERROR('Tabel 2 H'!J151/'Tabel 1 H'!G149*100,"-")) -> 6.059146728
A153: Total | C153: =IF(OR('Tabel 1 H'!C151<5,'Tabel 2 H'!C153<0.5),"-",IFERROR('Tabel 2 H'!C153/'Tabel 1 H'!C151*100,"-")) -> 5.342960289 | D153: =IF(OR('Tabel 1 H'!C151<5,'Tabel 2 H'!D153<0.5),"-",IFERROR('Tabel 2 H'!D153/'Tabel 1 H'!C151*100,"-")) -> 4.678572466 | F153: =IF(OR('Tabel 1 H'!E151<5,'Tabel 2 H'!F153<0.5),"-",IFERROR('Tabel 2 H'!F153/'Tabel 1 H'!E151*100,"-")) -> 6.016719651 | G153: =IF(OR('Tabel 1 H'!E151<5,'Tabel 2 H'!G153<0.5),"-",IFERROR('Tabel 2 H'!G153/'Tabel 1 H'!E151*100,"-")) -> 5.253874528 | I153: =IF(OR('Tabel 1 H'!G151<5,'Tabel 2 H'!I153<0.5),"-",IFERROR('Tabel 2 H'!I153/'Tabel 1 H'!G151*100,"-")) -> 5.714100402 | J153: =IF(OR('Tabel 1 H'!G151<5,'Tabel 2 H'!J153<0.5),"-",IFERROR('Tabel 2 H'!J153/'Tabel 1 H'!G151*100,"-")) -> 4.995477409
A155: Ingeniører i alt | C155: =IF(OR('Tabel 1 H'!C153<5,'Tabel 2 H'!C155<0.5),"-",IFERROR('Tabel 2 H'!C155/'Tabel 1 H'!C153*100,"-")) -> 3.739837398 | D155: =IF(OR('Tabel 1 H'!C153<5,'Tabel 2 H'!D155<0.5),"-",IFERROR('Tabel 2 H'!D155/'Tabel 1 H'!C153*100,"-")) -> 3.261464287 | F155: =IF(OR('Tabel 1 H'!E153<5,'Tabel 2 H'!F155<0.5),"-",IFERROR('Tabel 2 H'!F155/'Tabel 1 H'!E153*100,"-")) -> 2.926829268 | G155: =IF(OR('Tabel 1 H'!E153<5,'Tabel 2 H'!G155<0.5),"-",IFERROR('Tabel 2 H'!G155/'Tabel 1 H'!E153*100,"-")) -> 2.903767078 | I155: =IF(OR('Tabel 1 H'!G153<5,'Tabel 2 H'!I155<0.5),"-",IFERROR('Tabel 2 H'!I155/'Tabel 1 H'!G153*100,"-")) -> 3.536585366 | J155: =IF(OR('Tabel 1 H'!G153<5,'Tabel 2 H'!J155<0.5),"-",IFERROR('Tabel 2 H'!J155/'Tabel 1 H'!G153*100,"-")) -> 3.172039985
A156: Magistre i alt | C156: =IF(OR('Tabel 1 H'!C154<5,'Tabel 2 H'!C156<0.5),"-",IFERROR('Tabel 2 H'!C156/'Tabel 1 H'!C154*100,"-")) -> 8.440913605 | D156: =IF(OR('Tabel 1 H'!C154<5,'Tabel 2 H'!D156<0.5),"-",IFERROR('Tabel 2 H'!D156/'Tabel 1 H'!C154*100,"-")) -> 7.338266018 | F156: =IF(OR('Tabel 1 H'!E154<5,'Tabel 2 H'!F156<0.5),"-",IFERROR('Tabel 2 H'!F156/'Tabel 1 H'!E154*100,"-")) -> 8.004326663 | G156: =IF(OR('Tabel 1 H'!E154<5,'Tabel 2 H'!G156<0.5),"-",IFERROR('Tabel 2 H'!G156/'Tabel 1 H'!E154*100,"-")) -> 6.92190529 | I156: =IF(OR('Tabel 1 H'!G154<5,'Tabel 2 H'!I156<0.5),"-",IFERROR('Tabel 2 H'!I156/'Tabel 1 H'!G154*100,"-")) -> 8.158263305 | J156: =IF(OR('Tabel 1 H'!G154<5,'Tabel 2 H'!J156<0.5),"-",IFERROR('Tabel 2 H'!J156/'Tabel 1 H'!G154*100,"-")) -> 7.068710351
A157: DJØF'ere i alt | C157: =IF(OR('Tabel 1 H'!C155<5,'Tabel 2 H'!C157<0.5),"-",IFERROR('Tabel 2 H'!C157/'Tabel 1 H'!C155*100,"-")) -> 4.05204461 | D157: =IF(OR('Tabel 1 H'!C155<5,'Tabel 2 H'!D157<0.5),"-",IFERROR('Tabel 2 H'!D157/'Tabel 1 H'!C155*100,"-")) -> 3.506777494 | F157: =IF(OR('Tabel 1 H'!E155<5,'Tabel 2 H'!F157<0.5),"-",IFERROR('Tabel 2 H'!F157/'Tabel 1 H'!E155*100,"-")) -> 4.720893142 | G157: =IF(OR('Tabel 1 H'!E155<5,'Tabel 2 H'!G157<0.5),"-",IFERROR('Tabel 2 H'!G157/'Tabel 1 H'!E155*100,"-")) -> 4.160856033 | I157: =IF(OR('Tabel 1 H'!G155<5,'Tabel 2 H'!I157<0.5),"-",IFERROR('Tabel 2 H'!I157/'Tabel 1 H'!G155*100,"-")) -> 4.412017167 | J157: =IF(OR('Tabel 1 H'!G155<5,'Tabel 2 H'!J157<0.5),"-",IFERROR('Tabel 2 H'!J157/'Tabel 1 H'!G155*100,"-")) -> 3.85880088
A162: Ballerup
C164: Mænd | F164: Kvinder | I164: I alt
C165: Ledigheds- berørte | D165: Gns. brutto- ledighed | F165: Ledigheds- berørte | G165: Gns. brutto- ledighed | I165: Ledigheds- berørte | J165: Gns. brutto- ledighed
A168: Civ. ing. | C168: =IF(OR('Tabel 1 H'!C166<5,'Tabel 2 H'!C168<0.5),"-",IFERROR('Tabel 2 H'!C168/'Tabel 1 H'!C166*100,"-")) -> 1.420454545 | D168: =IF(OR('Tabel 1 H'!C166<5,'Tabel 2 H'!D168<0.5),"-",IFERROR('Tabel 2 H'!D168/'Tabel 1 H'!C166*100,"-")) -> 1.420188758 | F168: =IF(OR('Tabel 1 H'!E166<5,'Tabel 2 H'!F168<0.5),"-",IFERROR('Tabel 2 H'!F168/'Tabel 1 H'!E166*100,"-")) -> - | G168: =IF(OR('Tabel 1 H'!E166<5,'Tabel 2 H'!G168<0.5),"-",IFERROR('Tabel 2 H'!G168/'Tabel 1 H'!E166*100,"-")) -> - | I168: =IF(OR('Tabel 1 H'!G166<5,'Tabel 2 H'!I168<0.5),"-",IFERROR('Tabel 2 H'!I168/'Tabel 1 H'!G166*100,"-")) -> 1.008064516 | J168: =IF(OR('Tabel 1 H'!G166<5,'Tabel 2 H'!J168<0.5),"-",IFERROR('Tabel 2 H'!J168/'Tabel 1 H'!G166*100,"-")) -> 1.007875893
A169: Diplom ing. | C169: =IF(OR('Tabel 1 H'!C167<5,'Tabel 2 H'!C169<0.5),"-",IFERROR('Tabel 2 H'!C169/'Tabel 1 H'!C167*100,"-")) -> 2.849740933 | D169: =IF(OR('Tabel 1 H'!C167<5,'Tabel 2 H'!D169<0.5),"-",IFERROR('Tabel 2 H'!D169/'Tabel 1 H'!C167*100,"-")) -> 2.490006848 | F169: =IF(OR('Tabel 1 H'!E167<5,'Tabel 2 H'!F169<0.5),"-",IFERROR('Tabel 2 H'!F169/'Tabel 1 H'!E167*100,"-")) -> 2.752293578 | G169: =IF(OR('Tabel 1 H'!E167<5,'Tabel 2 H'!G169<0.5),"-",IFERROR('Tabel 2 H'!G169/'Tabel 1 H'!E167*100,"-")) -> 1.383614186 | I169: =IF(OR('Tabel 1 H'!G167<5,'Tabel 2 H'!I169<0.5),"-",IFERROR('Tabel 2 H'!I169/'Tabel 1 H'!G167*100,"-")) -> 2.828282828 | J169: =IF(OR('Tabel 1 H'!G167<5,'Tabel 2 H'!J169<0.5),"-",IFERROR('Tabel 2 H'!J169/'Tabel 1 H'!G167*100,"-")) -> 2.246376949
A170: Cand. Scient. Tek. | C170: =IF(OR('Tabel 1 H'!C168<5,'Tabel 2 H'!C170<0.5),"-",IFERROR('Tabel 2 H'!C170/'Tabel 1 H'!C168*100,"-")) -> 7.608695652 | D170: =IF(OR('Tabel 1 H'!C168<5,'Tabel 2 H'!D170<0.5),"-",IFERROR('Tabel 2 H'!D170/'Tabel 1 H'!C168*100,"-")) -> 6.754411418 | F170: =IF(OR('Tabel 1 H'!E168<5,'Tabel 2 H'!F170<0.5),"-",IFERROR('Tabel 2 H'!F170/'Tabel 1 H'!E168*100,"-")) -> 11.23595506 | G170: =IF(OR('Tabel 1 H'!E168<5,'Tabel 2 H'!G170<0.5),"-",IFERROR('Tabel 2 H'!G170/'Tabel 1 H'!E168*100,"-")) -> 11.18199332 | I170: =IF(OR('Tabel 1 H'!G168<5,'Tabel 2 H'!I170<0.5),"-",IFERROR('Tabel 2 H'!I170/'Tabel 1 H'!G168*100,"-")) -> 9.392265193 | J170: =IF(OR('Tabel 1 H'!G168<5,'Tabel 2 H'!J170<0.5),"-",IFERROR('Tabel 2 H'!J170/'Tabel 1 H'!G168*100,"-")) -> 8.9315097
A171: MA. Hum. | C171: =IF(OR('Tabel 1 H'!C169<5,'Tabel 2 H'!C171<0.5),"-",IFERROR('Tabel 2 H'!C171/'Tabel 1 H'!C169*100,"-")) -> 3.389830508 | D171: =IF(OR('Tabel 1 H'!C169<5,'Tabel 2 H'!D171<0.5),"-",IFERROR('Tabel 2 H'!D171/'Tabel 1 H'!C169*100,"-")) -> 2.956825277 | F171: =IF(OR('Tabel 1 H'!E169<5,'Tabel 2 H'!F171<0.5),"-",IFERROR('Tabel 2 H'!F171/'Tabel 1 H'!E169*100,"-")) -> 4.964539007 | G171: =IF(OR('Tabel 1 H'!E169<5,'Tabel 2 H'!G171<0.5),"-",IFERROR('Tabel 2 H'!G171/'Tabel 1 H'!E169*100,"-")) -> 4.661927328 | I171: =IF(OR('Tabel 1 H'!G169<5,'Tabel 2 H'!I171<0.5),"-",IFERROR('Tabel 2 H'!I171/'Tabel 1 H'!G169*100,"-")) -> 4.5 | J171: =IF(OR('Tabel 1 H'!G169<5,'Tabel 2 H'!J171<0.5),"-",IFERROR('Tabel 2 H'!J171/'Tabel 1 H'!G169*100,"-")) -> 4.158922223
A172: MA. Nat. | C172: =IF(OR('Tabel 1 H'!C170<5,'Tabel 2 H'!C172<0.5),"-",IFERROR('Tabel 2 H'!C172/'Tabel 1 H'!C170*100,"-")) -> 1.176470588 | D172: =IF(OR('Tabel 1 H'!C170<5,'Tabel 2 H'!D172<0.5),"-",IFERROR('Tabel 2 H'!D172/'Tabel 1 H'!C170*100,"-")) -> 0.9928052803 | F172: =IF(OR('Tabel 1 H'!E170<5,'Tabel 2 H'!F172<0.5),"-",IFERROR('Tabel 2 H'!F172/'Tabel 1 H'!E170*100,"-")) -> 2.352941176 | G172: =IF(OR('Tabel 1 H'!E170<5,'Tabel 2 H'!G172<0.5),"-",IFERROR('Tabel 2 H'!G172/'Tabel 1 H'!E170*100,"-")) -> 1.538004337 | I172: =IF(OR('Tabel 1 H'!G170<5,'Tabel 2 H'!I172<0.5),"-",IFERROR('Tabel 2 H'!I172/'Tabel 1 H'!G170*100,"-")) -> 1.764705882 | J172: =IF(OR('Tabel 1 H'!G170<5,'Tabel 2 H'!J172<0.5),"-",IFERROR('Tabel 2 H'!J172/'Tabel 1 H'!G170*100,"-")) -> 1.265404808
A173: MA. Ph.d. | C173: =IF(OR('Tabel 1 H'!C171<5,'Tabel 2 H'!C173<0.5),"-",IFERROR('Tabel 2 H'!C173/'Tabel 1 H'!C171*100,"-")) -> - | D173: =IF(OR('Tabel 1 H'!C171<5,'Tabel 2 H'!D173<0.5),"-",IFERROR('Tabel 2 H'!D173/'Tabel 1 H'!C171*100,"-")) -> - | F173: =IF(OR('Tabel 1 H'!E171<5,'Tabel 2 H'!F173<0.5),"-",IFERROR('Tabel 2 H'!F173/'Tabel 1 H'!E171*100,"-")) -> 11.11111111 | G173: =IF(OR('Tabel 1 H'!E171<5,'Tabel 2 H'!G173<0.5),"-",IFERROR('Tabel 2 H'!G173/'Tabel 1 H'!E171*100,"-")) -> 5.557981108 | I173: =IF(OR('Tabel 1 H'!G171<5,'Tabel 2 H'!I173<0.5),"-",IFERROR('Tabel 2 H'!I173/'Tabel 1 H'!G171*100,"-")) -> 4.545454545 | J173: =IF(OR('Tabel 1 H'!G171<5,'Tabel 2 H'!J173<0.5),"-",IFERROR('Tabel 2 H'!J173/'Tabel 1 H'!G171*100,"-")) -> 2.273719544
A174: MA. Samf. | C174: =IF(OR('Tabel 1 H'!C172<5,'Tabel 2 H'!C174<0.5),"-",IFERROR('Tabel 2 H'!C174/'Tabel 1 H'!C172*100,"-")) -> - | D174: =IF(OR('Tabel 1 H'!C172<5,'Tabel 2 H'!D174<0.5),"-",IFERROR('Tabel 2 H'!D174/'Tabel 1 H'!C172*100,"-")) -> - | F174: =IF(OR('Tabel 1 H'!E172<5,'Tabel 2 H'!F174<0.5),"-",IFERROR('Tabel 2 H'!F174/'Tabel 1 H'!E172*100,"-")) -> - | G174: =IF(OR('Tabel 1 H'!E172<5,'Tabel 2 H'!G174<0.5),"-",IFERROR('Tabel 2 H'!G174/'Tabel 1 H'!E172*100,"-")) -> - | I174: =IF(OR('Tabel 1 H'!G172<5,'Tabel 2 H'!I174<0.5),"-",IFERROR('Tabel 2 H'!I174/'Tabel 1 H'!G172*100,"-")) -> - | J174: =IF(OR('Tabel 1 H'!G172<5,'Tabel 2 H'!J174<0.5),"-",IFERROR('Tabel 2 H'!J174/'Tabel 1 H'!G172*100,"-")) -> -
A175: Øvrige Mag. | C175: =IF(OR('Tabel 1 H'!C173<5,'Tabel 2 H'!C175<0.5),"-",IFERROR('Tabel 2 H'!C175/'Tabel 1 H'!C173*100,"-")) -> 14.28571429 | D175: =IF(OR('Tabel 1 H'!C173<5,'Tabel 2 H'!D175<0.5),"-",IFERROR('Tabel 2 H'!D175/'Tabel 1 H'!C173*100,"-")) -> 14.28304123 | F175: =IF(OR('Tabel 1 H'!E173<5,'Tabel 2 H'!F175<0.5),"-",IFERROR('Tabel 2 H'!F175/'Tabel 1 H'!E173*100,"-")) -> 5.263157895 | G175: =IF(OR('Tabel 1 H'!E173<5,'Tabel 2 H'!G175<0.5),"-",IFERROR('Tabel 2 H'!G175/'Tabel 1 H'!E173*100,"-")) -> 5.262173084 | I175: =IF(OR('Tabel 1 H'!G173<5,'Tabel 2 H'!I175<0.5),"-",IFERROR('Tabel 2 H'!I175/'Tabel 1 H'!G173*100,"-")) -> 7.692307692 | J175: =IF(OR('Tabel 1 H'!G173<5,'Tabel 2 H'!J175<0.5),"-",IFERROR('Tabel 2 H'!J175/'Tabel 1 H'!G173*100,"-")) -> 7.690868353
A176: Agronom | C176: =IF(OR('Tabel 1 H'!C174<5,'Tabel 2 H'!C176<0.5),"-",IFERROR('Tabel 2 H'!C176/'Tabel 1 H'!C174*100,"-")) -> - | D176: =IF(OR('Tabel 1 H'!C174<5,'Tabel 2 H'!D176<0.5),"-",IFERROR('Tabel 2 H'!D176/'Tabel 1 H'!C174*100,"-")) -> - | F176: =IF(OR('Tabel 1 H'!E174<5,'Tabel 2 H'!F176<0.5),"-",IFERROR('Tabel 2 H'!F176/'Tabel 1 H'!E174*100,"-")) -> 7.692307692 | G176: =IF(OR('Tabel 1 H'!E174<5,'Tabel 2 H'!G176<0.5),"-",IFERROR('Tabel 2 H'!G176/'Tabel 1 H'!E174*100,"-")) -> 7.690868353 | I176: =IF(OR('Tabel 1 H'!G174<5,'Tabel 2 H'!I176<0.5),"-",IFERROR('Tabel 2 H'!I176/'Tabel 1 H'!G174*100,"-")) -> 4.347826087 | J176: =IF(OR('Tabel 1 H'!G174<5,'Tabel 2 H'!J176<0.5),"-",IFERROR('Tabel 2 H'!J176/'Tabel 1 H'!G174*100,"-")) -> 4.347012547
A177: Landsk. Arkt. | C177: =IF(OR('Tabel 1 H'!C175<5,'Tabel 2 H'!C177<0.5),"-",IFERROR('Tabel 2 H'!C177/'Tabel 1 H'!C175*100,"-")) -> - | D177: =IF(OR('Tabel 1 H'!C175<5,'Tabel 2 H'!D177<0.5),"-",IFERROR('Tabel 2 H'!D177/'Tabel 1 H'!C175*100,"-")) -> - | F177: =IF(OR('Tabel 1 H'!E175<5,'Tabel 2 H'!F177<0.5),"-",IFERROR('Tabel 2 H'!F177/'Tabel 1 H'!E175*100,"-")) -> - | G177: =IF(OR('Tabel 1 H'!E175<5,'Tabel 2 H'!G177<0.5),"-",IFERROR('Tabel 2 H'!G177/'Tabel 1 H'!E175*100,"-")) -> - | I177: =IF(OR('Tabel 1 H'!G175<5,'Tabel 2 H'!I177<0.5),"-",IFERROR('Tabel 2 H'!I177/'Tabel 1 H'!G175*100,"-")) -> - | J177: =IF(OR('Tabel 1 H'!G175<5,'Tabel 2 H'!J177<0.5),"-",IFERROR('Tabel 2 H'!J177/'Tabel 1 H'!G175*100,"-")) -> -
A178: Hortonom | C178: =IF(OR('Tabel 1 H'!C176<5,'Tabel 2 H'!C178<0.5),"-",IFERROR('Tabel 2 H'!C178/'Tabel 1 H'!C176*100,"-")) -> - | D178: =IF(OR('Tabel 1 H'!C176<5,'Tabel 2 H'!D178<0.5),"-",IFERROR('Tabel 2 H'!D178/'Tabel 1 H'!C176*100,"-")) -> - | F178: =IF(OR('Tabel 1 H'!E176<5,'Tabel 2 H'!F178<0.5),"-",IFERROR('Tabel 2 H'!F178/'Tabel 1 H'!E176*100,"-")) -> - | G178: =IF(OR('Tabel 1 H'!E176<5,'Tabel 2 H'!G178<0.5),"-",IFERROR('Tabel 2 H'!G178/'Tabel 1 H'!E176*100,"-")) -> - | I178: =IF(OR('Tabel 1 H'!G176<5,'Tabel 2 H'!I178<0.5),"-",IFERROR('Tabel 2 H'!I178/'Tabel 1 H'!G176*100,"-")) -> - | J178: =IF(OR('Tabel 1 H'!G176<5,'Tabel 2 H'!J178<0.5),"-",IFERROR('Tabel 2 H'!J178/'Tabel 1 H'!G176*100,"-")) -> -
A179: Forstkand. | C179: =IF(OR('Tabel 1 H'!C177<5,'Tabel 2 H'!C179<0.5),"-",IFERROR('Tabel 2 H'!C179/'Tabel 1 H'!C177*100,"-")) -> - | D179: =IF(OR('Tabel 1 H'!C177<5,'Tabel 2 H'!D179<0.5),"-",IFERROR('Tabel 2 H'!D179/'Tabel 1 H'!C177*100,"-")) -> - | F179: =IF(OR('Tabel 1 H'!E177<5,'Tabel 2 H'!F179<0.5),"-",IFERROR('Tabel 2 H'!F179/'Tabel 1 H'!E177*100,"-")) -> - | G179: =IF(OR('Tabel 1 H'!E177<5,'Tabel 2 H'!G179<0.5),"-",IFERROR('Tabel 2 H'!G179/'Tabel 1 H'!E177*100,"-")) -> - | I179: =IF(OR('Tabel 1 H'!G177<5,'Tabel 2 H'!I179<0.5),"-",IFERROR('Tabel 2 H'!I179/'Tabel 1 H'!G177*100,"-")) -> - | J179: =IF(OR('Tabel 1 H'!G177<5,'Tabel 2 H'!J179<0.5),"-",IFERROR('Tabel 2 H'!J179/'Tabel 1 H'!G177*100,"-")) -> -
A180: Jordbrugsakad. | C180: =IF(OR('Tabel 1 H'!C178<5,'Tabel 2 H'!C180<0.5),"-",IFERROR('Tabel 2 H'!C180/'Tabel 1 H'!C178*100,"-")) -> - | D180: =IF(OR('Tabel 1 H'!C178<5,'Tabel 2 H'!D180<0.5),"-",IFERROR('Tabel 2 H'!D180/'Tabel 1 H'!C178*100,"-")) -> - | F180: =IF(OR('Tabel 1 H'!E178<5,'Tabel 2 H'!F180<0.5),"-",IFERROR('Tabel 2 H'!F180/'Tabel 1 H'!E178*100,"-")) -> 4.545454545 | G180: =IF(OR('Tabel 1 H'!E178<5,'Tabel 2 H'!G180<0.5),"-",IFERROR('Tabel 2 H'!G180/'Tabel 1 H'!E178*100,"-")) -> 4.544604027 | I180: =IF(OR('Tabel 1 H'!G178<5,'Tabel 2 H'!I180<0.5),"-",IFERROR('Tabel 2 H'!I180/'Tabel 1 H'!G178*100,"-")) -> 2.631578947 | J180: =IF(OR('Tabel 1 H'!G178<5,'Tabel 2 H'!J180<0.5),"-",IFERROR('Tabel 2 H'!J180/'Tabel 1 H'!G178*100,"-")) -> 2.631086542
A181: Mejeriing. | C181: =IF(OR('Tabel 1 H'!C179<5,'Tabel 2 H'!C181<0.5),"-",IFERROR('Tabel 2 H'!C181/'Tabel 1 H'!C179*100,"-")) -> - | D181: =IF(OR('Tabel 1 H'!C179<5,'Tabel 2 H'!D181<0.5),"-",IFERROR('Tabel 2 H'!D181/'Tabel 1 H'!C179*100,"-")) -> - | F181: =IF(OR('Tabel 1 H'!E179<5,'Tabel 2 H'!F181<0.5),"-",IFERROR('Tabel 2 H'!F181/'Tabel 1 H'!E179*100,"-")) -> - | G181: =IF(OR('Tabel 1 H'!E179<5,'Tabel 2 H'!G181<0.5),"-",IFERROR('Tabel 2 H'!G181/'Tabel 1 H'!E179*100,"-")) -> - | I181: =IF(OR('Tabel 1 H'!G179<5,'Tabel 2 H'!I181<0.5),"-",IFERROR('Tabel 2 H'!I181/'Tabel 1 H'!G179*100,"-")) -> - | J181: =IF(OR('Tabel 1 H'!G179<5,'Tabel 2 H'!J181<0.5),"-",IFERROR('Tabel 2 H'!J181/'Tabel 1 H'!G179*100,"-")) -> -
A182: Levn.m.kand. | C182: =IF(OR('Tabel 1 H'!C180<5,'Tabel 2 H'!C182<0.5),"-",IFERROR('Tabel 2 H'!C182/'Tabel 1 H'!C180*100,"-")) -> - | D182: =IF(OR('Tabel 1 H'!C180<5,'Tabel 2 H'!D182<0.5),"-",IFERROR('Tabel 2 H'!D182/'Tabel 1 H'!C180*100,"-")) -> - | F182: =IF(OR('Tabel 1 H'!E180<5,'Tabel 2 H'!F182<0.5),"-",IFERROR('Tabel 2 H'!F182/'Tabel 1 H'!E180*100,"-")) -> - | G182: =IF(OR('Tabel 1 H'!E180<5,'Tabel 2 H'!G182<0.5),"-",IFERROR('Tabel 2 H'!G182/'Tabel 1 H'!E180*100,"-")) -> - | I182: =IF(OR('Tabel 1 H'!G180<5,'Tabel 2 H'!I182<0.5),"-",IFERROR('Tabel 2 H'!I182/'Tabel 1 H'!G180*100,"-")) -> - | J182: =IF(OR('Tabel 1 H'!G180<5,'Tabel 2 H'!J182<0.5),"-",IFERROR('Tabel 2 H'!J182/'Tabel 1 H'!G180*100,"-")) -> -
A183: Dyrlæge | C183: =IF(OR('Tabel 1 H'!C181<5,'Tabel 2 H'!C183<0.5),"-",IFERROR('Tabel 2 H'!C183/'Tabel 1 H'!C181*100,"-")) -> - | D183: =IF(OR('Tabel 1 H'!C181<5,'Tabel 2 H'!D183<0.5),"-",IFERROR('Tabel 2 H'!D183/'Tabel 1 H'!C181*100,"-")) -> - | F183: =IF(OR('Tabel 1 H'!E181<5,'Tabel 2 H'!F183<0.5),"-",IFERROR('Tabel 2 H'!F183/'Tabel 1 H'!E181*100,"-")) -> - | G183: =IF(OR('Tabel 1 H'!E181<5,'Tabel 2 H'!G183<0.5),"-",IFERROR('Tabel 2 H'!G183/'Tabel 1 H'!E181*100,"-")) -> - | I183: =IF(OR('Tabel 1 H'!G181<5,'Tabel 2 H'!I183<0.5),"-",IFERROR('Tabel 2 H'!I183/'Tabel 1 H'!G181*100,"-")) -> - | J183: =IF(OR('Tabel 1 H'!G181<5,'Tabel 2 H'!J183<0.5),"-",IFERROR('Tabel 2 H'!J183/'Tabel 1 H'!G181*100,"-")) -> -
A184: Farmaceut | C184: =IF(OR('Tabel 1 H'!C182<5,'Tabel 2 H'!C184<0.5),"-",IFERROR('Tabel 2 H'!C184/'Tabel 1 H'!C182*100,"-")) -> - | D184: =IF(OR('Tabel 1 H'!C182<5,'Tabel 2 H'!D184<0.5),"-",IFERROR('Tabel 2 H'!D184/'Tabel 1 H'!C182*100,"-")) -> - | F184: =IF(OR('Tabel 1 H'!E182<5,'Tabel 2 H'!F184<0.5),"-",IFERROR('Tabel 2 H'!F184/'Tabel 1 H'!E182*100,"-")) -> 2.197802198 | G184: =IF(OR('Tabel 1 H'!E182<5,'Tabel 2 H'!G184<0.5),"-",IFERROR('Tabel 2 H'!G184/'Tabel 1 H'!E182*100,"-")) -> 2.197390958 | I184: =IF(OR('Tabel 1 H'!G182<5,'Tabel 2 H'!I184<0.5),"-",IFERROR('Tabel 2 H'!I184/'Tabel 1 H'!G182*100,"-")) -> 1.62601626 | J184: =IF(OR('Tabel 1 H'!G182<5,'Tabel 2 H'!J184<0.5),"-",IFERROR('Tabel 2 H'!J184/'Tabel 1 H'!G182*100,"-")) -> 1.62571201
A185: Læge | C185: =IF(OR('Tabel 1 H'!C183<5,'Tabel 2 H'!C185<0.5),"-",IFERROR('Tabel 2 H'!C185/'Tabel 1 H'!C183*100,"-")) -> - | D185: =IF(OR('Tabel 1 H'!C183<5,'Tabel 2 H'!D185<0.5),"-",IFERROR('Tabel 2 H'!D185/'Tabel 1 H'!C183*100,"-")) -> - | F185: =IF(OR('Tabel 1 H'!E183<5,'Tabel 2 H'!F185<0.5),"-",IFERROR('Tabel 2 H'!F185/'Tabel 1 H'!E183*100,"-")) -> - | G185: =IF(OR('Tabel 1 H'!E183<5,'Tabel 2 H'!G185<0.5),"-",IFERROR('Tabel 2 H'!G185/'Tabel 1 H'!E183*100,"-")) -> - | I185: =IF(OR('Tabel 1 H'!G183<5,'Tabel 2 H'!I185<0.5),"-",IFERROR('Tabel 2 H'!I185/'Tabel 1 H'!G183*100,"-")) -> - | J185: =IF(OR('Tabel 1 H'!G183<5,'Tabel 2 H'!J185<0.5),"-",IFERROR('Tabel 2 H'!J185/'Tabel 1 H'!G183*100,"-")) -> -
A186: Tandlæge | C186: =IF(OR('Tabel 1 H'!C184<5,'Tabel 2 H'!C186<0.5),"-",IFERROR('Tabel 2 H'!C186/'Tabel 1 H'!C184*100,"-")) -> - | D186: =IF(OR('Tabel 1 H'!C184<5,'Tabel 2 H'!D186<0.5),"-",IFERROR('Tabel 2 H'!D186/'Tabel 1 H'!C184*100,"-")) -> - | F186: =IF(OR('Tabel 1 H'!E184<5,'Tabel 2 H'!F186<0.5),"-",IFERROR('Tabel 2 H'!F186/'Tabel 1 H'!E184*100,"-")) -> - | G186: =IF(OR('Tabel 1 H'!E184<5,'Tabel 2 H'!G186<0.5),"-",IFERROR('Tabel 2 H'!G186/'Tabel 1 H'!E184*100,"-")) -> - | I186: =IF(OR('Tabel 1 H'!G184<5,'Tabel 2 H'!I186<0.5),"-",IFERROR('Tabel 2 H'!I186/'Tabel 1 H'!G184*100,"-")) -> - | J186: =IF(OR('Tabel 1 H'!G184<5,'Tabel 2 H'!J186<0.5),"-",IFERROR('Tabel 2 H'!J186/'Tabel 1 H'!G184*100,"-")) -> -
A187: Arkitekt | C187: =IF(OR('Tabel 1 H'!C185<5,'Tabel 2 H'!C187<0.5),"-",IFERROR('Tabel 2 H'!C187/'Tabel 1 H'!C185*100,"-")) -> 12.5 | D187: =IF(OR('Tabel 1 H'!C185<5,'Tabel 2 H'!D187<0.5),"-",IFERROR('Tabel 2 H'!D187/'Tabel 1 H'!C185*100,"-")) -> 12.49766107 | F187: =IF(OR('Tabel 1 H'!E185<5,'Tabel 2 H'!F187<0.5),"-",IFERROR('Tabel 2 H'!F187/'Tabel 1 H'!E185*100,"-")) -> - | G187: =IF(OR('Tabel 1 H'!E185<5,'Tabel 2 H'!G187<0.5),"-",IFERROR('Tabel 2 H'!G187/'Tabel 1 H'!E185*100,"-")) -> - | I187: =IF(OR('Tabel 1 H'!G185<5,'Tabel 2 H'!I187<0.5),"-",IFERROR('Tabel 2 H'!I187/'Tabel 1 H'!G185*100,"-")) -> 6.25 | J187: =IF(OR('Tabel 1 H'!G185<5,'Tabel 2 H'!J187<0.5),"-",IFERROR('Tabel 2 H'!J187/'Tabel 1 H'!G185*100,"-")) -> 6.248830537
A188: Landinspek. | C188: =IF(OR('Tabel 1 H'!C186<5,'Tabel 2 H'!C188<0.5),"-",IFERROR('Tabel 2 H'!C188/'Tabel 1 H'!C186*100,"-")) -> - | D188: =IF(OR('Tabel 1 H'!C186<5,'Tabel 2 H'!D188<0.5),"-",IFERROR('Tabel 2 H'!D188/'Tabel 1 H'!C186*100,"-")) -> - | F188: =IF(OR('Tabel 1 H'!E186<5,'Tabel 2 H'!F188<0.5),"-",IFERROR('Tabel 2 H'!F188/'Tabel 1 H'!E186*100,"-")) -> - | G188: =IF(OR('Tabel 1 H'!E186<5,'Tabel 2 H'!G188<0.5),"-",IFERROR('Tabel 2 H'!G188/'Tabel 1 H'!E186*100,"-")) -> - | I188: =IF(OR('Tabel 1 H'!G186<5,'Tabel 2 H'!I188<0.5),"-",IFERROR('Tabel 2 H'!I188/'Tabel 1 H'!G186*100,"-")) -> - | J188: =IF(OR('Tabel 1 H'!G186<5,'Tabel 2 H'!J188<0.5),"-",IFERROR('Tabel 2 H'!J188/'Tabel 1 H'!G186*100,"-")) -> -
A189: Bibliotekar | C189: =IF(OR('Tabel 1 H'!C187<5,'Tabel 2 H'!C189<0.5),"-",IFERROR('Tabel 2 H'!C189/'Tabel 1 H'!C187*100,"-")) -> 8.333333333 | D189: =IF(OR('Tabel 1 H'!C187<5,'Tabel 2 H'!D189<0.5),"-",IFERROR('Tabel 2 H'!D189/'Tabel 1 H'!C187*100,"-")) -> 8.331774049 | F189: =IF(OR('Tabel 1 H'!E187<5,'Tabel 2 H'!F189<0.5),"-",IFERROR('Tabel 2 H'!F189/'Tabel 1 H'!E187*100,"-")) -> 6.060606061 | G189: =IF(OR('Tabel 1 H'!E187<5,'Tabel 2 H'!G189<0.5),"-",IFERROR('Tabel 2 H'!G189/'Tabel 1 H'!E187*100,"-")) -> 5.779745941 | I189: =IF(OR('Tabel 1 H'!G187<5,'Tabel 2 H'!I189<0.5),"-",IFERROR('Tabel 2 H'!I189/'Tabel 1 H'!G187*100,"-")) -> 6.666666667 | J189: =IF(OR('Tabel 1 H'!G187<5,'Tabel 2 H'!J189<0.5),"-",IFERROR('Tabel 2 H'!J189/'Tabel 1 H'!G187*100,"-")) -> 6.46028677
A190: Musikudd. | C190: =IF(OR('Tabel 1 H'!C188<5,'Tabel 2 H'!C190<0.5),"-",IFERROR('Tabel 2 H'!C190/'Tabel 1 H'!C188*100,"-")) -> - | D190: =IF(OR('Tabel 1 H'!C188<5,'Tabel 2 H'!D190<0.5),"-",IFERROR('Tabel 2 H'!D190/'Tabel 1 H'!C188*100,"-")) -> - | F190: =IF(OR('Tabel 1 H'!E188<5,'Tabel 2 H'!F190<0.5),"-",IFERROR('Tabel 2 H'!F190/'Tabel 1 H'!E188*100,"-")) -> - | G190: =IF(OR('Tabel 1 H'!E188<5,'Tabel 2 H'!G190<0.5),"-",IFERROR('Tabel 2 H'!G190/'Tabel 1 H'!E188*100,"-")) -> - | I190: =IF(OR('Tabel 1 H'!G188<5,'Tabel 2 H'!I190<0.5),"-",IFERROR('Tabel 2 H'!I190/'Tabel 1 H'!G188*100,"-")) -> - | J190: =IF(OR('Tabel 1 H'!G188<5,'Tabel 2 H'!J190<0.5),"-",IFERROR('Tabel 2 H'!J190/'Tabel 1 H'!G188*100,"-")) -> -
A191: Teolog | C191: =IF(OR('Tabel 1 H'!C189<5,'Tabel 2 H'!C191<0.5),"-",IFERROR('Tabel 2 H'!C191/'Tabel 1 H'!C189*100,"-")) -> - | D191: =IF(OR('Tabel 1 H'!C189<5,'Tabel 2 H'!D191<0.5),"-",IFERROR('Tabel 2 H'!D191/'Tabel 1 H'!C189*100,"-")) -> - | F191: =IF(OR('Tabel 1 H'!E189<5,'Tabel 2 H'!F191<0.5),"-",IFERROR('Tabel 2 H'!F191/'Tabel 1 H'!E189*100,"-")) -> - | G191: =IF(OR('Tabel 1 H'!E189<5,'Tabel 2 H'!G191<0.5),"-",IFERROR('Tabel 2 H'!G191/'Tabel 1 H'!E189*100,"-")) -> - | I191: =IF(OR('Tabel 1 H'!G189<5,'Tabel 2 H'!I191<0.5),"-",IFERROR('Tabel 2 H'!I191/'Tabel 1 H'!G189*100,"-")) -> - | J191: =IF(OR('Tabel 1 H'!G189<5,'Tabel 2 H'!J191<0.5),"-",IFERROR('Tabel 2 H'!J191/'Tabel 1 H'!G189*100,"-")) -> -
A192: Psykolog | C192: =IF(OR('Tabel 1 H'!C190<5,'Tabel 2 H'!C192<0.5),"-",IFERROR('Tabel 2 H'!C192/'Tabel 1 H'!C190*100,"-")) -> 12.5 | D192: =IF(OR('Tabel 1 H'!C190<5,'Tabel 2 H'!D192<0.5),"-",IFERROR('Tabel 2 H'!D192/'Tabel 1 H'!C190*100,"-")) -> 9.028254226 | F192: =IF(OR('Tabel 1 H'!E190<5,'Tabel 2 H'!F192<0.5),"-",IFERROR('Tabel 2 H'!F192/'Tabel 1 H'!E190*100,"-")) -> - | G192: =IF(OR('Tabel 1 H'!E190<5,'Tabel 2 H'!G192<0.5),"-",IFERROR('Tabel 2 H'!G192/'Tabel 1 H'!E190*100,"-")) -> - | I192: =IF(OR('Tabel 1 H'!G190<5,'Tabel 2 H'!I192<0.5),"-",IFERROR('Tabel 2 H'!I192/'Tabel 1 H'!G190*100,"-")) -> 2.127659574 | J192: =IF(OR('Tabel 1 H'!G190<5,'Tabel 2 H'!J192<0.5),"-",IFERROR('Tabel 2 H'!J192/'Tabel 1 H'!G190*100,"-")) -> 1.536724124
A193: Jurist | C193: =IF(OR('Tabel 1 H'!C191<5,'Tabel 2 H'!C193<0.5),"-",IFERROR('Tabel 2 H'!C193/'Tabel 1 H'!C191*100,"-")) -> 8 | D193: =IF(OR('Tabel 1 H'!C191<5,'Tabel 2 H'!D193<0.5),"-",IFERROR('Tabel 2 H'!D193/'Tabel 1 H'!C191*100,"-")) -> 3.198403293 | F193: =IF(OR('Tabel 1 H'!E191<5,'Tabel 2 H'!F193<0.5),"-",IFERROR('Tabel 2 H'!F193/'Tabel 1 H'!E191*100,"-")) -> 4.166666667 | G193: =IF(OR('Tabel 1 H'!E191<5,'Tabel 2 H'!G193<0.5),"-",IFERROR('Tabel 2 H'!G193/'Tabel 1 H'!E191*100,"-")) -> 4.165887025 | I193: =IF(OR('Tabel 1 H'!G191<5,'Tabel 2 H'!I193<0.5),"-",IFERROR('Tabel 2 H'!I193/'Tabel 1 H'!G191*100,"-")) -> 5.154639175 | J193: =IF(OR('Tabel 1 H'!G191<5,'Tabel 2 H'!J193<0.5),"-",IFERROR('Tabel 2 H'!J193/'Tabel 1 H'!G191*100,"-")) -> 3.916535547
A194: Økonom | C194: =IF(OR('Tabel 1 H'!C192<5,'Tabel 2 H'!C194<0.5),"-",IFERROR('Tabel 2 H'!C194/'Tabel 1 H'!C192*100,"-")) -> 1.818181818 | D194: =IF(OR('Tabel 1 H'!C192<5,'Tabel 2 H'!D194<0.5),"-",IFERROR('Tabel 2 H'!D194/'Tabel 1 H'!C192*100,"-")) -> 1.817841611 | F194: =IF(OR('Tabel 1 H'!E192<5,'Tabel 2 H'!F194<0.5),"-",IFERROR('Tabel 2 H'!F194/'Tabel 1 H'!E192*100,"-")) -> - | G194: =IF(OR('Tabel 1 H'!E192<5,'Tabel 2 H'!G194<0.5),"-",IFERROR('Tabel 2 H'!G194/'Tabel 1 H'!E192*100,"-")) -> - | I194: =IF(OR('Tabel 1 H'!G192<5,'Tabel 2 H'!I194<0.5),"-",IFERROR('Tabel 2 H'!I194/'Tabel 1 H'!G192*100,"-")) -> 1.333333333 | J194: =IF(OR('Tabel 1 H'!G192<5,'Tabel 2 H'!J194<0.5),"-",IFERROR('Tabel 2 H'!J194/'Tabel 1 H'!G192*100,"-")) -> 1.333083848
A195: Samf. Adm. | C195: =IF(OR('Tabel 1 H'!C193<5,'Tabel 2 H'!C195<0.5),"-",IFERROR('Tabel 2 H'!C195/'Tabel 1 H'!C193*100,"-")) -> 6.849315068 | D195: =IF(OR('Tabel 1 H'!C193<5,'Tabel 2 H'!D195<0.5),"-",IFERROR('Tabel 2 H'!D195/'Tabel 1 H'!C193*100,"-")) -> 6.616490475 | F195: =IF(OR('Tabel 1 H'!E193<5,'Tabel 2 H'!F195<0.5),"-",IFERROR('Tabel 2 H'!F195/'Tabel 1 H'!E193*100,"-")) -> 1.960784314 | G195: =IF(OR('Tabel 1 H'!E193<5,'Tabel 2 H'!G195<0.5),"-",IFERROR('Tabel 2 H'!G195/'Tabel 1 H'!E193*100,"-")) -> 1.648560628 | I195: =IF(OR('Tabel 1 H'!G193<5,'Tabel 2 H'!I195<0.5),"-",IFERROR('Tabel 2 H'!I195/'Tabel 1 H'!G193*100,"-")) -> 4 | J195: =IF(OR('Tabel 1 H'!G193<5,'Tabel 2 H'!J195<0.5),"-",IFERROR('Tabel 2 H'!J195/'Tabel 1 H'!G193*100,"-")) -> 3.720897078
A196: Cand. Merc. | C196: =IF(OR('Tabel 1 H'!C194<5,'Tabel 2 H'!C196<0.5),"-",IFERROR('Tabel 2 H'!C196/'Tabel 1 H'!C194*100,"-")) -> 2.5 | D196: =IF(OR('Tabel 1 H'!C194<5,'Tabel 2 H'!D196<0.5),"-",IFERROR('Tabel 2 H'!D196/'Tabel 1 H'!C194*100,"-")) -> 1.835277241 | F196: =IF(OR('Tabel 1 H'!E194<5,'Tabel 2 H'!F196<0.5),"-",IFERROR('Tabel 2 H'!F196/'Tabel 1 H'!E194*100,"-")) -> 2.23880597 | G196: =IF(OR('Tabel 1 H'!E194<5,'Tabel 2 H'!G196<0.5),"-",IFERROR('Tabel 2 H'!G196/'Tabel 1 H'!E194*100,"-")) -> 1.997279864 | I196: =IF(OR('Tabel 1 H'!G194<5,'Tabel 2 H'!I196<0.5),"-",IFERROR('Tabel 2 H'!I196/'Tabel 1 H'!G194*100,"-")) -> 2.362204724 | J196: =IF(OR('Tabel 1 H'!G194<5,'Tabel 2 H'!J196<0.5),"-",IFERROR('Tabel 2 H'!J196/'Tabel 1 H'!G194*100,"-")) -> 1.920743192
A197: HA | C197: =IF(OR('Tabel 1 H'!C195<5,'Tabel 2 H'!C197<0.5),"-",IFERROR('Tabel 2 H'!C197/'Tabel 1 H'!C195*100,"-")) -> 19.04761905 | D197: =IF(OR('Tabel 1 H'!C195<5,'Tabel 2 H'!D197<0.5),"-",IFERROR('Tabel 2 H'!D197/'Tabel 1 H'!C195*100,"-")) -> 10.59125078 | F197: =IF(OR('Tabel 1 H'!E195<5,'Tabel 2 H'!F197<0.5),"-",IFERROR('Tabel 2 H'!F197/'Tabel 1 H'!E195*100,"-")) -> 5.882352941 | G197: =IF(OR('Tabel 1 H'!E195<5,'Tabel 2 H'!G197<0.5),"-",IFERROR('Tabel 2 H'!G197/'Tabel 1 H'!E195*100,"-")) -> 5.88125227 | I197: =IF(OR('Tabel 1 H'!G195<5,'Tabel 2 H'!I197<0.5),"-",IFERROR('Tabel 2 H'!I197/'Tabel 1 H'!G195*100,"-")) -> 13.15789474 | J197: =IF(OR('Tabel 1 H'!G195<5,'Tabel 2 H'!J197<0.5),"-",IFERROR('Tabel 2 H'!J197/'Tabel 1 H'!G195*100,"-")) -> 8.484146185
A198: HD | C198: =IF(OR('Tabel 1 H'!C196<5,'Tabel 2 H'!C198<0.5),"-",IFERROR('Tabel 2 H'!C198/'Tabel 1 H'!C196*100,"-")) -> 18.18181818 | D198: =IF(OR('Tabel 1 H'!C196<5,'Tabel 2 H'!D198<0.5),"-",IFERROR('Tabel 2 H'!D198/'Tabel 1 H'!C196*100,"-")) -> 18.17841611 | F198: =IF(OR('Tabel 1 H'!E196<5,'Tabel 2 H'!F198<0.5),"-",IFERROR('Tabel 2 H'!F198/'Tabel 1 H'!E196*100,"-")) -> - | G198: =IF(OR('Tabel 1 H'!E196<5,'Tabel 2 H'!G198<0.5),"-",IFERROR('Tabel 2 H'!G198/'Tabel 1 H'!E196*100,"-")) -> - | I198: =IF(OR('Tabel 1 H'!G196<5,'Tabel 2 H'!I198<0.5),"-",IFERROR('Tabel 2 H'!I198/'Tabel 1 H'!G196*100,"-")) -> 11.11111111 | J198: =IF(OR('Tabel 1 H'!G196<5,'Tabel 2 H'!J198<0.5),"-",IFERROR('Tabel 2 H'!J198/'Tabel 1 H'!G196*100,"-")) -> 11.10903207
A199: Komm. og Sprog | C199: =IF(OR('Tabel 1 H'!C197<5,'Tabel 2 H'!C199<0.5),"-",IFERROR('Tabel 2 H'!C199/'Tabel 1 H'!C197*100,"-")) -> - | D199: =IF(OR('Tabel 1 H'!C197<5,'Tabel 2 H'!D199<0.5),"-",IFERROR('Tabel 2 H'!D199/'Tabel 1 H'!C197*100,"-")) -> - | F199: =IF(OR('Tabel 1 H'!E197<5,'Tabel 2 H'!F199<0.5),"-",IFERROR('Tabel 2 H'!F199/'Tabel 1 H'!E197*100,"-")) -> 6.25 | G199: =IF(OR('Tabel 1 H'!E197<5,'Tabel 2 H'!G199<0.5),"-",IFERROR('Tabel 2 H'!G199/'Tabel 1 H'!E197*100,"-")) -> 3.941090251 | I199: =IF(OR('Tabel 1 H'!G197<5,'Tabel 2 H'!I199<0.5),"-",IFERROR('Tabel 2 H'!I199/'Tabel 1 H'!G197*100,"-")) -> 5.333333333 | J199: =IF(OR('Tabel 1 H'!G197<5,'Tabel 2 H'!J199<0.5),"-",IFERROR('Tabel 2 H'!J199/'Tabel 1 H'!G197*100,"-")) -> 3.363063681
A200: Cand. IT. | C200: =IF(OR('Tabel 1 H'!C198<5,'Tabel 2 H'!C200<0.5),"-",IFERROR('Tabel 2 H'!C200/'Tabel 1 H'!C198*100,"-")) -> - | D200: =IF(OR('Tabel 1 H'!C198<5,'Tabel 2 H'!D200<0.5),"-",IFERROR('Tabel 2 H'!D200/'Tabel 1 H'!C198*100,"-")) -> - | F200: =IF(OR('Tabel 1 H'!E198<5,'Tabel 2 H'!F200<0.5),"-",IFERROR('Tabel 2 H'!F200/'Tabel 1 H'!E198*100,"-")) -> 14.28571429 | G200: =IF(OR('Tabel 1 H'!E198<5,'Tabel 2 H'!G200<0.5),"-",IFERROR('Tabel 2 H'!G200/'Tabel 1 H'!E198*100,"-")) -> 14.28304123 | I200: =IF(OR('Tabel 1 H'!G198<5,'Tabel 2 H'!I200<0.5),"-",IFERROR('Tabel 2 H'!I200/'Tabel 1 H'!G198*100,"-")) -> 6.451612903 | J200: =IF(OR('Tabel 1 H'!G198<5,'Tabel 2 H'!J200<0.5),"-",IFERROR('Tabel 2 H'!J200/'Tabel 1 H'!G198*100,"-")) -> 6.450405716
A201: Bac. Samf. | C201: =IF(OR('Tabel 1 H'!C199<5,'Tabel 2 H'!C201<0.5),"-",IFERROR('Tabel 2 H'!C201/'Tabel 1 H'!C199*100,"-")) -> - | D201: =IF(OR('Tabel 1 H'!C199<5,'Tabel 2 H'!D201<0.5),"-",IFERROR('Tabel 2 H'!D201/'Tabel 1 H'!C199*100,"-")) -> - | F201: =IF(OR('Tabel 1 H'!E199<5,'Tabel 2 H'!F201<0.5),"-",IFERROR('Tabel 2 H'!F201/'Tabel 1 H'!E199*100,"-")) -> - | G201: =IF(OR('Tabel 1 H'!E199<5,'Tabel 2 H'!G201<0.5),"-",IFERROR('Tabel 2 H'!G201/'Tabel 1 H'!E199*100,"-")) -> - | I201: =IF(OR('Tabel 1 H'!G199<5,'Tabel 2 H'!I201<0.5),"-",IFERROR('Tabel 2 H'!I201/'Tabel 1 H'!G199*100,"-")) -> - | J201: =IF(OR('Tabel 1 H'!G199<5,'Tabel 2 H'!J201<0.5),"-",IFERROR('Tabel 2 H'!J201/'Tabel 1 H'!G199*100,"-")) -> -
A202: Bac. Hum. | C202: =IF(OR('Tabel 1 H'!C200<5,'Tabel 2 H'!C202<0.5),"-",IFERROR('Tabel 2 H'!C202/'Tabel 1 H'!C200*100,"-")) -> - | D202: =IF(OR('Tabel 1 H'!C200<5,'Tabel 2 H'!D202<0.5),"-",IFERROR('Tabel 2 H'!D202/'Tabel 1 H'!C200*100,"-")) -> - | F202: =IF(OR('Tabel 1 H'!E200<5,'Tabel 2 H'!F202<0.5),"-",IFERROR('Tabel 2 H'!F202/'Tabel 1 H'!E200*100,"-")) -> - | G202: =IF(OR('Tabel 1 H'!E200<5,'Tabel 2 H'!G202<0.5),"-",IFERROR('Tabel 2 H'!G202/'Tabel 1 H'!E200*100,"-")) -> - | I202: =IF(OR('Tabel 1 H'!G200<5,'Tabel 2 H'!I202<0.5),"-",IFERROR('Tabel 2 H'!I202/'Tabel 1 H'!G200*100,"-")) -> - | J202: =IF(OR('Tabel 1 H'!G200<5,'Tabel 2 H'!J202<0.5),"-",IFERROR('Tabel 2 H'!J202/'Tabel 1 H'!G200*100,"-")) -> -
A203: Bac. Nat. | C203: =IF(OR('Tabel 1 H'!C201<5,'Tabel 2 H'!C203<0.5),"-",IFERROR('Tabel 2 H'!C203/'Tabel 1 H'!C201*100,"-")) -> 12.5 | D203: =IF(OR('Tabel 1 H'!C201<5,'Tabel 2 H'!D203<0.5),"-",IFERROR('Tabel 2 H'!D203/'Tabel 1 H'!C201*100,"-")) -> 12.49766107 | F203: =IF(OR('Tabel 1 H'!E201<5,'Tabel 2 H'!F203<0.5),"-",IFERROR('Tabel 2 H'!F203/'Tabel 1 H'!E201*100,"-")) -> 16.66666667 | G203: =IF(OR('Tabel 1 H'!E201<5,'Tabel 2 H'!G203<0.5),"-",IFERROR('Tabel 2 H'!G203/'Tabel 1 H'!E201*100,"-")) -> - | I203: =IF(OR('Tabel 1 H'!G201<5,'Tabel 2 H'!I203<0.5),"-",IFERROR('Tabel 2 H'!I203/'Tabel 1 H'!G201*100,"-")) -> 13.63636364 | J203: =IF(OR('Tabel 1 H'!G201<5,'Tabel 2 H'!J203<0.5),"-",IFERROR('Tabel 2 H'!J203/'Tabel 1 H'!G201*100,"-")) -> 10.48689351
A204: Andre | C204: =IF(OR('Tabel 1 H'!C202<5,'Tabel 2 H'!C204<0.5),"-",IFERROR('Tabel 2 H'!C204/'Tabel 1 H'!C202*100,"-")) -> 4.444444444 | D204: =IF(OR('Tabel 1 H'!C202<5,'Tabel 2 H'!D204<0.5),"-",IFERROR('Tabel 2 H'!D204/'Tabel 1 H'!C202*100,"-")) -> 4.084631004 | F204: =IF(OR('Tabel 1 H'!E202<5,'Tabel 2 H'!F204<0.5),"-",IFERROR('Tabel 2 H'!F204/'Tabel 1 H'!E202*100,"-")) -> 5.333333333 | G204: =IF(OR('Tabel 1 H'!E202<5,'Tabel 2 H'!G204<0.5),"-",IFERROR('Tabel 2 H'!G204/'Tabel 1 H'!E202*100,"-")) -> 5.332335392 | I204: =IF(OR('Tabel 1 H'!G202<5,'Tabel 2 H'!I204<0.5),"-",IFERROR('Tabel 2 H'!I204/'Tabel 1 H'!G202*100,"-")) -> 4.848484848 | J204: =IF(OR('Tabel 1 H'!G202<5,'Tabel 2 H'!J204<0.5),"-",IFERROR('Tabel 2 H'!J204/'Tabel 1 H'!G202*100,"-")) -> 4.651769362
A206: Total | C206: =IF(OR('Tabel 1 H'!C204<5,'Tabel 2 H'!C206<0.5),"-",IFERROR('Tabel 2 H'!C206/'Tabel 1 H'!C204*100,"-")) -> 3.467843632 | D206: =IF(OR('Tabel 1 H'!C204<5,'Tabel 2 H'!D206<0.5),"-",IFERROR('Tabel 2 H'!D206/'Tabel 1 H'!C204*100,"-")) -> 3.018010851 | F206: =IF(OR('Tabel 1 H'!E204<5,'Tabel 2 H'!F206<0.5),"-",IFERROR('Tabel 2 H'!F206/'Tabel 1 H'!E204*100,"-")) -> 3.407510431 | G206: =IF(OR('Tabel 1 H'!E204<5,'Tabel 2 H'!G206<0.5),"-",IFERROR('Tabel 2 H'!G206/'Tabel 1 H'!E204*100,"-")) -> 2.985627609 | I206: =IF(OR('Tabel 1 H'!G204<5,'Tabel 2 H'!I206<0.5),"-",IFERROR('Tabel 2 H'!I206/'Tabel 1 H'!G204*100,"-")) -> 3.439153439 | J206: =IF(OR('Tabel 1 H'!G204<5,'Tabel 2 H'!J206<0.5),"-",IFERROR('Tabel 2 H'!J206/'Tabel 1 H'!G204*100,"-")) -> 3.002611677
A208: Ingeniører i alt | C208: =IF(OR('Tabel 1 H'!C206<5,'Tabel 2 H'!C208<0.5),"-",IFERROR('Tabel 2 H'!C208/'Tabel 1 H'!C206*100,"-")) -> 2.16802168 | D208: =IF(OR('Tabel 1 H'!C206<5,'Tabel 2 H'!D208<0.5),"-",IFERROR('Tabel 2 H'!D208/'Tabel 1 H'!C206*100,"-")) -> 1.979741309 | F208: =IF(OR('Tabel 1 H'!E206<5,'Tabel 2 H'!F208<0.5),"-",IFERROR('Tabel 2 H'!F208/'Tabel 1 H'!E206*100,"-")) -> 1.185770751 | G208: =IF(OR('Tabel 1 H'!E206<5,'Tabel 2 H'!G208<0.5),"-",IFERROR('Tabel 2 H'!G208/'Tabel 1 H'!E206*100,"-")) -> 0.5961025543 | I208: =IF(OR('Tabel 1 H'!G206<5,'Tabel 2 H'!I208<0.5),"-",IFERROR('Tabel 2 H'!I208/'Tabel 1 H'!G206*100,"-")) -> 1.917255298 | J208: =IF(OR('Tabel 1 H'!G206<5,'Tabel 2 H'!J208<0.5),"-",IFERROR('Tabel 2 H'!J208/'Tabel 1 H'!G206*100,"-")) -> 1.626501546
A209: Magistre i alt | C209: =IF(OR('Tabel 1 H'!C207<5,'Tabel 2 H'!C209<0.5),"-",IFERROR('Tabel 2 H'!C209/'Tabel 1 H'!C207*100,"-")) -> 2.247191011 | D209: =IF(OR('Tabel 1 H'!C207<5,'Tabel 2 H'!D209<0.5),"-",IFERROR('Tabel 2 H'!D209/'Tabel 1 H'!C207*100,"-")) -> 2.015856341 | F209: =IF(OR('Tabel 1 H'!E207<5,'Tabel 2 H'!F209<0.5),"-",IFERROR('Tabel 2 H'!F209/'Tabel 1 H'!E207*100,"-")) -> 4.150943396 | G209: =IF(OR('Tabel 1 H'!E207<5,'Tabel 2 H'!G209<0.5),"-",IFERROR('Tabel 2 H'!G209/'Tabel 1 H'!E207*100,"-")) -> 3.539868832 | I209: =IF(OR('Tabel 1 H'!G207<5,'Tabel 2 H'!I209<0.5),"-",IFERROR('Tabel 2 H'!I209/'Tabel 1 H'!G207*100,"-")) -> 3.386004515 | J209: =IF(OR('Tabel 1 H'!G207<5,'Tabel 2 H'!J209<0.5),"-",IFERROR('Tabel 2 H'!J209/'Tabel 1 H'!G207*100,"-")) -> 2.927511669
A210: DJØF'ere i alt | C210: =IF(OR('Tabel 1 H'!C208<5,'Tabel 2 H'!C210<0.5),"-",IFERROR('Tabel 2 H'!C210/'Tabel 1 H'!C208*100,"-")) -> 5.102040816 | D210: =IF(OR('Tabel 1 H'!C208<5,'Tabel 2 H'!D210<0.5),"-",IFERROR('Tabel 2 H'!D210/'Tabel 1 H'!C208*100,"-")) -> 3.760526228 | F210: =IF(OR('Tabel 1 H'!E208<5,'Tabel 2 H'!F210<0.5),"-",IFERROR('Tabel 2 H'!F210/'Tabel 1 H'!E208*100,"-")) -> 2.608695652 | G210: =IF(OR('Tabel 1 H'!E208<5,'Tabel 2 H'!G210<0.5),"-",IFERROR('Tabel 2 H'!G210/'Tabel 1 H'!E208*100,"-")) -> 2.422358957 | I210: =IF(OR('Tabel 1 H'!G208<5,'Tabel 2 H'!I210<0.5),"-",IFERROR('Tabel 2 H'!I210/'Tabel 1 H'!G208*100,"-")) -> 3.755868545 | J210: =IF(OR('Tabel 1 H'!G208<5,'Tabel 2 H'!J210<0.5),"-",IFERROR('Tabel 2 H'!J210/'Tabel 1 H'!G208*100,"-")) -> 3.038041551
A215: Brøndby
C217: Mænd | F217: Kvinder | I217: I alt
C218: Ledigheds- berørte | D218: Gns. brutto- ledighed | F218: Ledigheds- berørte | G218: Gns. brutto- ledighed | I218: Ledigheds- berørte | J218: Gns. brutto- ledighed
A221: Civ. ing. | C221: =IF(OR('Tabel 1 H'!C219<5,'Tabel 2 H'!C221<0.5),"-",IFERROR('Tabel 2 H'!C221/'Tabel 1 H'!C219*100,"-")) -> 6.52173913 | D221: =IF(OR('Tabel 1 H'!C219<5,'Tabel 2 H'!D221<0.5),"-",IFERROR('Tabel 2 H'!D221/'Tabel 1 H'!C219*100,"-")) -> 6.01883615 | F221: =IF(OR('Tabel 1 H'!E219<5,'Tabel 2 H'!F221<0.5),"-",IFERROR('Tabel 2 H'!F221/'Tabel 1 H'!E219*100,"-")) -> 3.225806452 | G221: =IF(OR('Tabel 1 H'!E219<5,'Tabel 2 H'!G221<0.5),"-",IFERROR('Tabel 2 H'!G221/'Tabel 1 H'!E219*100,"-")) -> 2.927429918 | I221: =IF(OR('Tabel 1 H'!G219<5,'Tabel 2 H'!I221<0.5),"-",IFERROR('Tabel 2 H'!I221/'Tabel 1 H'!G219*100,"-")) -> 5.691056911 | J221: =IF(OR('Tabel 1 H'!G219<5,'Tabel 2 H'!J221<0.5),"-",IFERROR('Tabel 2 H'!J221/'Tabel 1 H'!G219*100,"-")) -> 5.239701246
A222: Diplom ing. | C222: =IF(OR('Tabel 1 H'!C220<5,'Tabel 2 H'!C222<0.5),"-",IFERROR('Tabel 2 H'!C222/'Tabel 1 H'!C220*100,"-")) -> 1.449275362 | D222: =IF(OR('Tabel 1 H'!C220<5,'Tabel 2 H'!D222<0.5),"-",IFERROR('Tabel 2 H'!D222/'Tabel 1 H'!C220*100,"-")) -> 1.449004182 | F222: =IF(OR('Tabel 1 H'!E220<5,'Tabel 2 H'!F222<0.5),"-",IFERROR('Tabel 2 H'!F222/'Tabel 1 H'!E220*100,"-")) -> - | G222: =IF(OR('Tabel 1 H'!E220<5,'Tabel 2 H'!G222<0.5),"-",IFERROR('Tabel 2 H'!G222/'Tabel 1 H'!E220*100,"-")) -> - | I222: =IF(OR('Tabel 1 H'!G220<5,'Tabel 2 H'!I222<0.5),"-",IFERROR('Tabel 2 H'!I222/'Tabel 1 H'!G220*100,"-")) -> 1.242236025 | J222: =IF(OR('Tabel 1 H'!G220<5,'Tabel 2 H'!J222<0.5),"-",IFERROR('Tabel 2 H'!J222/'Tabel 1 H'!G220*100,"-")) -> 1.242003585
A223: Cand. Scient. Tek. | C223: =IF(OR('Tabel 1 H'!C221<5,'Tabel 2 H'!C223<0.5),"-",IFERROR('Tabel 2 H'!C223/'Tabel 1 H'!C221*100,"-")) -> 17.64705882 | D223: =IF(OR('Tabel 1 H'!C221<5,'Tabel 2 H'!D223<0.5),"-",IFERROR('Tabel 2 H'!D223/'Tabel 1 H'!C221*100,"-")) -> 16.79990901 | F223: =IF(OR('Tabel 1 H'!E221<5,'Tabel 2 H'!F223<0.5),"-",IFERROR('Tabel 2 H'!F223/'Tabel 1 H'!E221*100,"-")) -> 23.80952381 | G223: =IF(OR('Tabel 1 H'!E221<5,'Tabel 2 H'!G223<0.5),"-",IFERROR('Tabel 2 H'!G223/'Tabel 1 H'!E221*100,"-")) -> 22.97048053 | I223: =IF(OR('Tabel 1 H'!G221<5,'Tabel 2 H'!I223<0.5),"-",IFERROR('Tabel 2 H'!I223/'Tabel 1 H'!G221*100,"-")) -> 20 | J223: =IF(OR('Tabel 1 H'!G221<5,'Tabel 2 H'!J223<0.5),"-",IFERROR('Tabel 2 H'!J223/'Tabel 1 H'!G221*100,"-")) -> 19.15594541
A224: MA. Hum. | C224: =IF(OR('Tabel 1 H'!C222<5,'Tabel 2 H'!C224<0.5),"-",IFERROR('Tabel 2 H'!C224/'Tabel 1 H'!C222*100,"-")) -> 11.11111111 | D224: =IF(OR('Tabel 1 H'!C222<5,'Tabel 2 H'!D224<0.5),"-",IFERROR('Tabel 2 H'!D224/'Tabel 1 H'!C222*100,"-")) -> 10.97042905 | F224: =IF(OR('Tabel 1 H'!E222<5,'Tabel 2 H'!F224<0.5),"-",IFERROR('Tabel 2 H'!F224/'Tabel 1 H'!E222*100,"-")) -> 14.03508772 | G224: =IF(OR('Tabel 1 H'!E222<5,'Tabel 2 H'!G224<0.5),"-",IFERROR('Tabel 2 H'!G224/'Tabel 1 H'!E222*100,"-")) -> 9.804339952 | I224: =IF(OR('Tabel 1 H'!G222<5,'Tabel 2 H'!I224<0.5),"-",IFERROR('Tabel 2 H'!I224/'Tabel 1 H'!G222*100,"-")) -> 13.33333333 | J224: =IF(OR('Tabel 1 H'!G222<5,'Tabel 2 H'!J224<0.5),"-",IFERROR('Tabel 2 H'!J224/'Tabel 1 H'!G222*100,"-")) -> 10.08420133
A225: MA. Nat. | C225: =IF(OR('Tabel 1 H'!C223<5,'Tabel 2 H'!C225<0.5),"-",IFERROR('Tabel 2 H'!C225/'Tabel 1 H'!C223*100,"-")) -> 6.25 | D225: =IF(OR('Tabel 1 H'!C223<5,'Tabel 2 H'!D225<0.5),"-",IFERROR('Tabel 2 H'!D225/'Tabel 1 H'!C223*100,"-")) -> 3.652622716 | F225: =IF(OR('Tabel 1 H'!E223<5,'Tabel 2 H'!F225<0.5),"-",IFERROR('Tabel 2 H'!F225/'Tabel 1 H'!E223*100,"-")) -> 12 | G225: =IF(OR('Tabel 1 H'!E223<5,'Tabel 2 H'!G225<0.5),"-",IFERROR('Tabel 2 H'!G225/'Tabel 1 H'!E223*100,"-")) -> 11.99775463 | I225: =IF(OR('Tabel 1 H'!G223<5,'Tabel 2 H'!I225<0.5),"-",IFERROR('Tabel 2 H'!I225/'Tabel 1 H'!G223*100,"-")) -> 8.771929825 | J225: =IF(OR('Tabel 1 H'!G223<5,'Tabel 2 H'!J225<0.5),"-",IFERROR('Tabel 2 H'!J225/'Tabel 1 H'!G223*100,"-")) -> 7.312768293
A226: MA. Ph.d. | C226: =IF(OR('Tabel 1 H'!C224<5,'Tabel 2 H'!C226<0.5),"-",IFERROR('Tabel 2 H'!C226/'Tabel 1 H'!C224*100,"-")) -> - | D226: =IF(OR('Tabel 1 H'!C224<5,'Tabel 2 H'!D226<0.5),"-",IFERROR('Tabel 2 H'!D226/'Tabel 1 H'!C224*100,"-")) -> - | F226: =IF(OR('Tabel 1 H'!E224<5,'Tabel 2 H'!F226<0.5),"-",IFERROR('Tabel 2 H'!F226/'Tabel 1 H'!E224*100,"-")) -> - | G226: =IF(OR('Tabel 1 H'!E224<5,'Tabel 2 H'!G226<0.5),"-",IFERROR('Tabel 2 H'!G226/'Tabel 1 H'!E224*100,"-")) -> - | I226: =IF(OR('Tabel 1 H'!G224<5,'Tabel 2 H'!I226<0.5),"-",IFERROR('Tabel 2 H'!I226/'Tabel 1 H'!G224*100,"-")) -> 14.28571429 | J226: =IF(OR('Tabel 1 H'!G224<5,'Tabel 2 H'!J226<0.5),"-",IFERROR('Tabel 2 H'!J226/'Tabel 1 H'!G224*100,"-")) -> 14.28304123
A227: MA. Samf. | C227: =IF(OR('Tabel 1 H'!C225<5,'Tabel 2 H'!C227<0.5),"-",IFERROR('Tabel 2 H'!C227/'Tabel 1 H'!C225*100,"-")) -> 37.5 | D227: =IF(OR('Tabel 1 H'!C225<5,'Tabel 2 H'!D227<0.5),"-",IFERROR('Tabel 2 H'!D227/'Tabel 1 H'!C225*100,"-")) -> 33.39986278 | F227: =IF(OR('Tabel 1 H'!E225<5,'Tabel 2 H'!F227<0.5),"-",IFERROR('Tabel 2 H'!F227/'Tabel 1 H'!E225*100,"-")) -> 14.28571429 | G227: =IF(OR('Tabel 1 H'!E225<5,'Tabel 2 H'!G227<0.5),"-",IFERROR('Tabel 2 H'!G227/'Tabel 1 H'!E225*100,"-")) -> 14.28304123 | I227: =IF(OR('Tabel 1 H'!G225<5,'Tabel 2 H'!I227<0.5),"-",IFERROR('Tabel 2 H'!I227/'Tabel 1 H'!G225*100,"-")) -> 26.66666667 | J227: =IF(OR('Tabel 1 H'!G225<5,'Tabel 2 H'!J227<0.5),"-",IFERROR('Tabel 2 H'!J227/'Tabel 1 H'!G225*100,"-")) -> 24.47867939
A228: Øvrige Mag. | C228: =IF(OR('Tabel 1 H'!C226<5,'Tabel 2 H'!C228<0.5),"-",IFERROR('Tabel 2 H'!C228/'Tabel 1 H'!C226*100,"-")) -> 33.33333333 | D228: =IF(OR('Tabel 1 H'!C226<5,'Tabel 2 H'!D228<0.5),"-",IFERROR('Tabel 2 H'!D228/'Tabel 1 H'!C226*100,"-")) -> 22.82791742 | F228: =IF(OR('Tabel 1 H'!E226<5,'Tabel 2 H'!F228<0.5),"-",IFERROR('Tabel 2 H'!F228/'Tabel 1 H'!E226*100,"-")) -> 14.28571429 | G228: =IF(OR('Tabel 1 H'!E226<5,'Tabel 2 H'!G228<0.5),"-",IFERROR('Tabel 2 H'!G228/'Tabel 1 H'!E226*100,"-")) -> 14.28304123 | I228: =IF(OR('Tabel 1 H'!G226<5,'Tabel 2 H'!I228<0.5),"-",IFERROR('Tabel 2 H'!I228/'Tabel 1 H'!G226*100,"-")) -> 23.07692308 | J228: =IF(OR('Tabel 1 H'!G226<5,'Tabel 2 H'!J228<0.5),"-",IFERROR('Tabel 2 H'!J228/'Tabel 1 H'!G226*100,"-")) -> 18.22683024
A229: Agronom | C229: =IF(OR('Tabel 1 H'!C227<5,'Tabel 2 H'!C229<0.5),"-",IFERROR('Tabel 2 H'!C229/'Tabel 1 H'!C227*100,"-")) -> - | D229: =IF(OR('Tabel 1 H'!C227<5,'Tabel 2 H'!D229<0.5),"-",IFERROR('Tabel 2 H'!D229/'Tabel 1 H'!C227*100,"-")) -> - | F229: =IF(OR('Tabel 1 H'!E227<5,'Tabel 2 H'!F229<0.5),"-",IFERROR('Tabel 2 H'!F229/'Tabel 1 H'!E227*100,"-")) -> - | G229: =IF(OR('Tabel 1 H'!E227<5,'Tabel 2 H'!G229<0.5),"-",IFERROR('Tabel 2 H'!G229/'Tabel 1 H'!E227*100,"-")) -> - | I229: =IF(OR('Tabel 1 H'!G227<5,'Tabel 2 H'!I229<0.5),"-",IFERROR('Tabel 2 H'!I229/'Tabel 1 H'!G227*100,"-")) -> - | J229: =IF(OR('Tabel 1 H'!G227<5,'Tabel 2 H'!J229<0.5),"-",IFERROR('Tabel 2 H'!J229/'Tabel 1 H'!G227*100,"-")) -> -
A230: Landsk. Arkt. | C230: =IF(OR('Tabel 1 H'!C228<5,'Tabel 2 H'!C230<0.5),"-",IFERROR('Tabel 2 H'!C230/'Tabel 1 H'!C228*100,"-")) -> - | D230: =IF(OR('Tabel 1 H'!C228<5,'Tabel 2 H'!D230<0.5),"-",IFERROR('Tabel 2 H'!D230/'Tabel 1 H'!C228*100,"-")) -> - | F230: =IF(OR('Tabel 1 H'!E228<5,'Tabel 2 H'!F230<0.5),"-",IFERROR('Tabel 2 H'!F230/'Tabel 1 H'!E228*100,"-")) -> - | G230: =IF(OR('Tabel 1 H'!E228<5,'Tabel 2 H'!G230<0.5),"-",IFERROR('Tabel 2 H'!G230/'Tabel 1 H'!E228*100,"-")) -> - | I230: =IF(OR('Tabel 1 H'!G228<5,'Tabel 2 H'!I230<0.5),"-",IFERROR('Tabel 2 H'!I230/'Tabel 1 H'!G228*100,"-")) -> - | J230: =IF(OR('Tabel 1 H'!G228<5,'Tabel 2 H'!J230<0.5),"-",IFERROR('Tabel 2 H'!J230/'Tabel 1 H'!G228*100,"-")) -> -
A231: Hortonom | C231: =IF(OR('Tabel 1 H'!C229<5,'Tabel 2 H'!C231<0.5),"-",IFERROR('Tabel 2 H'!C231/'Tabel 1 H'!C229*100,"-")) -> - | D231: =IF(OR('Tabel 1 H'!C229<5,'Tabel 2 H'!D231<0.5),"-",IFERROR('Tabel 2 H'!D231/'Tabel 1 H'!C229*100,"-")) -> - | F231: =IF(OR('Tabel 1 H'!E229<5,'Tabel 2 H'!F231<0.5),"-",IFERROR('Tabel 2 H'!F231/'Tabel 1 H'!E229*100,"-")) -> - | G231: =IF(OR('Tabel 1 H'!E229<5,'Tabel 2 H'!G231<0.5),"-",IFERROR('Tabel 2 H'!G231/'Tabel 1 H'!E229*100,"-")) -> - | I231: =IF(OR('Tabel 1 H'!G229<5,'Tabel 2 H'!I231<0.5),"-",IFERROR('Tabel 2 H'!I231/'Tabel 1 H'!G229*100,"-")) -> - | J231: =IF(OR('Tabel 1 H'!G229<5,'Tabel 2 H'!J231<0.5),"-",IFERROR('Tabel 2 H'!J231/'Tabel 1 H'!G229*100,"-")) -> -
A232: Forstkand. | C232: =IF(OR('Tabel 1 H'!C230<5,'Tabel 2 H'!C232<0.5),"-",IFERROR('Tabel 2 H'!C232/'Tabel 1 H'!C230*100,"-")) -> - | D232: =IF(OR('Tabel 1 H'!C230<5,'Tabel 2 H'!D232<0.5),"-",IFERROR('Tabel 2 H'!D232/'Tabel 1 H'!C230*100,"-")) -> - | F232: =IF(OR('Tabel 1 H'!E230<5,'Tabel 2 H'!F232<0.5),"-",IFERROR('Tabel 2 H'!F232/'Tabel 1 H'!E230*100,"-")) -> - | G232: =IF(OR('Tabel 1 H'!E230<5,'Tabel 2 H'!G232<0.5),"-",IFERROR('Tabel 2 H'!G232/'Tabel 1 H'!E230*100,"-")) -> - | I232: =IF(OR('Tabel 1 H'!G230<5,'Tabel 2 H'!I232<0.5),"-",IFERROR('Tabel 2 H'!I232/'Tabel 1 H'!G230*100,"-")) -> - | J232: =IF(OR('Tabel 1 H'!G230<5,'Tabel 2 H'!J232<0.5),"-",IFERROR('Tabel 2 H'!J232/'Tabel 1 H'!G230*100,"-")) -> -
A233: Jordbrugsakad. | C233: =IF(OR('Tabel 1 H'!C231<5,'Tabel 2 H'!C233<0.5),"-",IFERROR('Tabel 2 H'!C233/'Tabel 1 H'!C231*100,"-")) -> - | D233: =IF(OR('Tabel 1 H'!C231<5,'Tabel 2 H'!D233<0.5),"-",IFERROR('Tabel 2 H'!D233/'Tabel 1 H'!C231*100,"-")) -> - | F233: =IF(OR('Tabel 1 H'!E231<5,'Tabel 2 H'!F233<0.5),"-",IFERROR('Tabel 2 H'!F233/'Tabel 1 H'!E231*100,"-")) -> - | G233: =IF(OR('Tabel 1 H'!E231<5,'Tabel 2 H'!G233<0.5),"-",IFERROR('Tabel 2 H'!G233/'Tabel 1 H'!E231*100,"-")) -> - | I233: =IF(OR('Tabel 1 H'!G231<5,'Tabel 2 H'!I233<0.5),"-",IFERROR('Tabel 2 H'!I233/'Tabel 1 H'!G231*100,"-")) -> - | J233: =IF(OR('Tabel 1 H'!G231<5,'Tabel 2 H'!J233<0.5),"-",IFERROR('Tabel 2 H'!J233/'Tabel 1 H'!G231*100,"-")) -> -
A234: Mejeriing. | C234: =IF(OR('Tabel 1 H'!C232<5,'Tabel 2 H'!C234<0.5),"-",IFERROR('Tabel 2 H'!C234/'Tabel 1 H'!C232*100,"-")) -> - | D234: =IF(OR('Tabel 1 H'!C232<5,'Tabel 2 H'!D234<0.5),"-",IFERROR('Tabel 2 H'!D234/'Tabel 1 H'!C232*100,"-")) -> - | F234: =IF(OR('Tabel 1 H'!E232<5,'Tabel 2 H'!F234<0.5),"-",IFERROR('Tabel 2 H'!F234/'Tabel 1 H'!E232*100,"-")) -> - | G234: =IF(OR('Tabel 1 H'!E232<5,'Tabel 2 H'!G234<0.5),"-",IFERROR('Tabel 2 H'!G234/'Tabel 1 H'!E232*100,"-")) -> - | I234: =IF(OR('Tabel 1 H'!G232<5,'Tabel 2 H'!I234<0.5),"-",IFERROR('Tabel 2 H'!I234/'Tabel 1 H'!G232*100,"-")) -> - | J234: =IF(OR('Tabel 1 H'!G232<5,'Tabel 2 H'!J234<0.5),"-",IFERROR('Tabel 2 H'!J234/'Tabel 1 H'!G232*100,"-")) -> -
A235: Levn.m.kand. | C235: =IF(OR('Tabel 1 H'!C233<5,'Tabel 2 H'!C235<0.5),"-",IFERROR('Tabel 2 H'!C235/'Tabel 1 H'!C233*100,"-")) -> - | D235: =IF(OR('Tabel 1 H'!C233<5,'Tabel 2 H'!D235<0.5),"-",IFERROR('Tabel 2 H'!D235/'Tabel 1 H'!C233*100,"-")) -> - | F235: =IF(OR('Tabel 1 H'!E233<5,'Tabel 2 H'!F235<0.5),"-",IFERROR('Tabel 2 H'!F235/'Tabel 1 H'!E233*100,"-")) -> - | G235: =IF(OR('Tabel 1 H'!E233<5,'Tabel 2 H'!G235<0.5),"-",IFERROR('Tabel 2 H'!G235/'Tabel 1 H'!E233*100,"-")) -> - | I235: =IF(OR('Tabel 1 H'!G233<5,'Tabel 2 H'!I235<0.5),"-",IFERROR('Tabel 2 H'!I235/'Tabel 1 H'!G233*100,"-")) -> - | J235: =IF(OR('Tabel 1 H'!G233<5,'Tabel 2 H'!J235<0.5),"-",IFERROR('Tabel 2 H'!J235/'Tabel 1 H'!G233*100,"-")) -> -
A236: Dyrlæge | C236: =IF(OR('Tabel 1 H'!C234<5,'Tabel 2 H'!C236<0.5),"-",IFERROR('Tabel 2 H'!C236/'Tabel 1 H'!C234*100,"-")) -> - | D236: =IF(OR('Tabel 1 H'!C234<5,'Tabel 2 H'!D236<0.5),"-",IFERROR('Tabel 2 H'!D236/'Tabel 1 H'!C234*100,"-")) -> - | F236: =IF(OR('Tabel 1 H'!E234<5,'Tabel 2 H'!F236<0.5),"-",IFERROR('Tabel 2 H'!F236/'Tabel 1 H'!E234*100,"-")) -> 20 | G236: =IF(OR('Tabel 1 H'!E234<5,'Tabel 2 H'!G236<0.5),"-",IFERROR('Tabel 2 H'!G236/'Tabel 1 H'!E234*100,"-")) -> 17.87563151 | I236: =IF(OR('Tabel 1 H'!G234<5,'Tabel 2 H'!I236<0.5),"-",IFERROR('Tabel 2 H'!I236/'Tabel 1 H'!G234*100,"-")) -> 14.28571429 | J236: =IF(OR('Tabel 1 H'!G234<5,'Tabel 2 H'!J236<0.5),"-",IFERROR('Tabel 2 H'!J236/'Tabel 1 H'!G234*100,"-")) -> 12.76830822
A237: Farmaceut | C237: =IF(OR('Tabel 1 H'!C235<5,'Tabel 2 H'!C237<0.5),"-",IFERROR('Tabel 2 H'!C237/'Tabel 1 H'!C235*100,"-")) -> - | D237: =IF(OR('Tabel 1 H'!C235<5,'Tabel 2 H'!D237<0.5),"-",IFERROR('Tabel 2 H'!D237/'Tabel 1 H'!C235*100,"-")) -> - | F237: =IF(OR('Tabel 1 H'!E235<5,'Tabel 2 H'!F237<0.5),"-",IFERROR('Tabel 2 H'!F237/'Tabel 1 H'!E235*100,"-")) -> 4.761904762 | G237: =IF(OR('Tabel 1 H'!E235<5,'Tabel 2 H'!G237<0.5),"-",IFERROR('Tabel 2 H'!G237/'Tabel 1 H'!E235*100,"-")) -> 4.761013742 | I237: =IF(OR('Tabel 1 H'!G235<5,'Tabel 2 H'!I237<0.5),"-",IFERROR('Tabel 2 H'!I237/'Tabel 1 H'!G235*100,"-")) -> 3.125 | J237: =IF(OR('Tabel 1 H'!G235<5,'Tabel 2 H'!J237<0.5),"-",IFERROR('Tabel 2 H'!J237/'Tabel 1 H'!G235*100,"-")) -> 3.124415269
A238: Læge | C238: =IF(OR('Tabel 1 H'!C236<5,'Tabel 2 H'!C238<0.5),"-",IFERROR('Tabel 2 H'!C238/'Tabel 1 H'!C236*100,"-")) -> - | D238: =IF(OR('Tabel 1 H'!C236<5,'Tabel 2 H'!D238<0.5),"-",IFERROR('Tabel 2 H'!D238/'Tabel 1 H'!C236*100,"-")) -> - | F238: =IF(OR('Tabel 1 H'!E236<5,'Tabel 2 H'!F238<0.5),"-",IFERROR('Tabel 2 H'!F238/'Tabel 1 H'!E236*100,"-")) -> - | G238: =IF(OR('Tabel 1 H'!E236<5,'Tabel 2 H'!G238<0.5),"-",IFERROR('Tabel 2 H'!G238/'Tabel 1 H'!E236*100,"-")) -> - | I238: =IF(OR('Tabel 1 H'!G236<5,'Tabel 2 H'!I238<0.5),"-",IFERROR('Tabel 2 H'!I238/'Tabel 1 H'!G236*100,"-")) -> - | J238: =IF(OR('Tabel 1 H'!G236<5,'Tabel 2 H'!J238<0.5),"-",IFERROR('Tabel 2 H'!J238/'Tabel 1 H'!G236*100,"-")) -> -
A239: Tandlæge | C239: =IF(OR('Tabel 1 H'!C237<5,'Tabel 2 H'!C239<0.5),"-",IFERROR('Tabel 2 H'!C239/'Tabel 1 H'!C237*100,"-")) -> - | D239: =IF(OR('Tabel 1 H'!C237<5,'Tabel 2 H'!D239<0.5),"-",IFERROR('Tabel 2 H'!D239/'Tabel 1 H'!C237*100,"-")) -> - | F239: =IF(OR('Tabel 1 H'!E237<5,'Tabel 2 H'!F239<0.5),"-",IFERROR('Tabel 2 H'!F239/'Tabel 1 H'!E237*100,"-")) -> - | G239: =IF(OR('Tabel 1 H'!E237<5,'Tabel 2 H'!G239<0.5),"-",IFERROR('Tabel 2 H'!G239/'Tabel 1 H'!E237*100,"-")) -> - | I239: =IF(OR('Tabel 1 H'!G237<5,'Tabel 2 H'!I239<0.5),"-",IFERROR('Tabel 2 H'!I239/'Tabel 1 H'!G237*100,"-")) -> - | J239: =IF(OR('Tabel 1 H'!G237<5,'Tabel 2 H'!J239<0.5),"-",IFERROR('Tabel 2 H'!J239/'Tabel 1 H'!G237*100,"-")) -> -
A240: Arkitekt | C240: =IF(OR('Tabel 1 H'!C238<5,'Tabel 2 H'!C240<0.5),"-",IFERROR('Tabel 2 H'!C240/'Tabel 1 H'!C238*100,"-")) -> - | D240: =IF(OR('Tabel 1 H'!C238<5,'Tabel 2 H'!D240<0.5),"-",IFERROR('Tabel 2 H'!D240/'Tabel 1 H'!C238*100,"-")) -> - | F240: =IF(OR('Tabel 1 H'!E238<5,'Tabel 2 H'!F240<0.5),"-",IFERROR('Tabel 2 H'!F240/'Tabel 1 H'!E238*100,"-")) -> - | G240: =IF(OR('Tabel 1 H'!E238<5,'Tabel 2 H'!G240<0.5),"-",IFERROR('Tabel 2 H'!G240/'Tabel 1 H'!E238*100,"-")) -> - | I240: =IF(OR('Tabel 1 H'!G238<5,'Tabel 2 H'!I240<0.5),"-",IFERROR('Tabel 2 H'!I240/'Tabel 1 H'!G238*100,"-")) -> - | J240: =IF(OR('Tabel 1 H'!G238<5,'Tabel 2 H'!J240<0.5),"-",IFERROR('Tabel 2 H'!J240/'Tabel 1 H'!G238*100,"-")) -> -
... 1077 more rows

Sheet Tabel 4F H
A1: Tabel 4. Antal forsikrede - aldersfordelt
A3: Hovedstaden
C5: Under 30 år | D5: 30 - 39 år | E5: 40 - 49 år | F5: 50 - 59 år | G5: Over 60 år | I5: I alt
A7: Civ. ing. | C7: 2485 | D7: 5682 | E7: 4067 | F7: 3642 | G7: 1101 | I7: 16977
A8: Diplom ing. | C8: 1041 | D8: 2177 | E8: 3271 | F8: 4534 | G8: 1342 | I8: 12365
A9: Cand. Scient. Tek. | C9: 2994 | D9: 4558 | E9: 1433 | F9: 522 | G9: 101 | I9: 9608
A10: MA. Hum. | C10: 2564 | D10: 7113 | E10: 6389 | F10: 2529 | G10: 942 | I10: 19537
A11: MA. Nat. | C11: 502 | D11: 1631 | E11: 2623 | F11: 1770 | G11: 678 | I11: 7204
A12: MA. Ph.d. | C12: 18 | D12: 361 | E12: 446 | F12: 333 | G12: 78 | I12: 1236
A13: MA. Samf. | C13: 856 | D13: 1409 | E13: 562 | F13: 219 | G13: 43 | I13: 3089
A14: Øvrige Mag. | C14: 169 | D14: 357 | E14: 528 | F14: 388 | G14: 112 | I14: 1554
A15: Agronom | C15: 84 | D15: 151 | E15: 233 | F15: 251 | G15: 87 | I15: 806
A16: Landsk. Arkt. | C16: 68 | D16: 167 | E16: 139 | F16: 74 | G16: 20 | I16: 468
A17: Hortonom | C17: 1 | D17: 17 | E17: 49 | F17: 74 | G17: 18 | I17: 159
A18: Forstkand. | C18: 22 | D18: 36 | E18: 103 | F18: 72 | G18: 27 | I18: 260
A19: Jordbrugsakad. | C19: 175 | D19: 371 | E19: 524 | F19: 471 | G19: 152 | I19: 1693
A20: Mejeriing. | C20: 26 | D20: 34 | E20: 25 | F20: 32 | G20: 14 | I20: 131
A21: Levn.m.kand. | C21: 87 | D21: 138 | E21: 70 | F21: 6 | G21: 3 | I21: 304
A22: Dyrlæge | C22: 140 | D22: 344 | E22: 220 | F22: 163 | G22: 51 | I22: 918
A23: Farmaceut | C23: 614 | D23: 1275 | E23: 988 | F23: 640 | G23: 184 | I23: 3701
A24: Læge | C24: 687 | D24: 2093 | E24: 1098 | F24: 760 | G24: 424 | I24: 5062
A25: Tandlæge | C25: 137 | D25: 298 | E25: 176 | F25: 149 | G25: 74 | I25: 834
A26: Arkitekt | C26: 259 | D26: 1153 | E26: 1125 | F26: 751 | G26: 332 | I26: 3620
A27: Landinspek. | C27: 16 | D27: 59 | E27: 52 | F27: 47 | G27: 23 | I27: 197
A28: Bibliotekar | C28: 52 | D28: 397 | E28: 580 | F28: 422 | G28: 286 | I28: 1737
A29: Musikudd. | C29: 8 | D29: 42 | E29: 68 | F29: 128 | G29: 83 | I29: 329
A30: Teolog | C30: 18 | D30: 98 | E30: 202 | F30: 168 | G30: 66 | I30: 552
A31: Psykolog | C31: 577 | D31: 1286 | E31: 910 | F31: 503 | G31: 239 | I31: 3515
A32: Jurist | C32: 1596 | D32: 2925 | E32: 2633 | F32: 1803 | G32: 494 | I32: 9451
A33: Økonom | C33: 890 | D33: 1600 | E33: 1472 | F33: 1202 | G33: 283 | I33: 5447
A34: Samf. Adm. | C34: 2485 | D34: 7084 | E34: 4536 | F34: 2038 | G34: 432 | I34: 16575
A35: Cand. Merc. | C35: 4598 | D35: 7741 | E35: 4410 | F35: 2619 | G35: 325 | I35: 19693
A36: HA | C36: 507 | D36: 489 | E36: 510 | F36: 665 | G36: 172 | I36: 2343
A37: HD | C37: 614 | D37: 504 | E37: 357 | F37: 787 | G37: 281 | I37: 2543
A38: Komm. og Sprog | C38: 632 | D38: 1115 | E38: 1078 | F38: 847 | G38: 269 | I38: 3941
A39: Cand. IT. | C39: 564 | D39: 1178 | E39: 627 | F39: 64 | G39: 7 | I39: 2440
A40: Bac. Samf. | C40: 115 | D40: 216 | E40: 218 | F40: 136 | G40: 15 | I40: 700
A41: Bac. Hum. | C41: 471 | D41: 371 | E41: 413 | F41: 335 | G41: 86 | I41: 1676
A42: Bac. Nat. | C42: 396 | D42: 474 | E42: 179 | F42: 90 | G42: 16 | I42: 1155
A43: Andre | C43: 1383 | D43: 4847 | E43: 3404 | F43: 2030 | G43: 794 | I43: 12458
A45: Total | C45: 27676 | D45: 59420 | E45: 45194 | F45: 30793 | G45: 9502 | I45: 172585
A47: Ingeniører i alt | C47: 3526 | D47: 7859 | E47: 7338 | F47: 8176 | G47: 2443 | I47: 29342
A48: Magistre i alt | C48: 4109 | D48: 10871 | E48: 10548 | F48: 5239 | G48: 1853 | I48: 32620
A49: DJØF'ere i alt | C49: 10076 | D49: 19839 | E49: 13561 | F49: 8327 | G49: 1706 | I49: 53509
A56: København
C58: Under 30 år | D58: 30 - 39 år | E58: 40 - 49 år | F58: 50 - 59 år | G58: Over 60 år | I58: I alt
A60: Civ. ing. | C60: 1408 | D60: 2462 | E60: 960 | F60: 660 | G60: 168 | I60: 5658
A61: Diplom ing. | C61: 515 | D61: 838 | E61: 739 | F61: 818 | G61: 228 | I61: 3138
A62: Cand. Scient. Tek. | C62: 1988 | D62: 2567 | E62: 538 | F62: 145 | G62: 29 | I62: 5267
A63: MA. Hum. | C63: 1984 | D63: 5026 | E63: 3543 | F63: 1266 | G63: 399 | I63: 12218
A64: MA. Nat. | C64: 359 | D64: 1001 | E64: 969 | F64: 572 | G64: 203 | I64: 3104
A65: MA. Ph.d. | C65: 13 | D65: 217 | E65: 231 | F65: 130 | G65: 46 | I65: 637
A66: MA. Samf. | C66: 686 | D66: 1024 | E66: 316 | F66: 103 | G66: 23 | I66: 2152
A67: Øvrige Mag. | C67: 137 | D67: 240 | E67: 272 | F67: 198 | G67: 56 | I67: 903
A68: Agronom | C68: 53 | D68: 74 | E68: 68 | F68: 55 | G68: 27 | I68: 277
A69: Landsk. Arkt. | C69: 56 | D69: 106 | E69: 53 | F69: 30 | G69: 6 | I69: 251
A70: Hortonom | C70: 1 | D70: 13 | E70: 13 | F70: 21 | G70: 5 | I70: 53
A71: Forstkand. | C71: 16 | D71: 22 | E71: 25 | F71: 19 | G71: 3 | I71: 85
A72: Jordbrugsakad. | C72: 126 | D72: 215 | E72: 159 | F72: 125 | G72: 41 | I72: 666
A73: Mejeriing. | C73: 15 | D73: 15 | E73: 9 | F73: 8 | G73: 1 | I73: 48
A74: Levn.m.kand. | C74: 57 | D74: 75 | E74: 21 | F74: 1 | G74: 1 | I74: 155
A75: Dyrlæge | C75: 83 | D75: 134 | E75: 53 | F75: 40 | G75: 11 | I75: 321
A76: Farmaceut | C76: 364 | D76: 543 | E76: 219 | F76: 105 | G76: 38 | I76: 1269
A77: Læge | C77: 488 | D77: 1182 | E77: 369 | F77: 200 | G77: 101 | I77: 2340
A78: Tandlæge | C78: 75 | D78: 126 | E78: 47 | F78: 42 | G78: 14 | I78: 304
A79: Arkitekt | C79: 210 | D79: 875 | E79: 671 | F79: 373 | G79: 140 | I79: 2269
A80: Landinspek. | C80: 12 | D80: 25 | E80: 12 | F80: 5 | G80: 7 | I80: 61
A81: Bibliotekar | C81: 34 | D81: 259 | E81: 255 | F81: 169 | G81: 115 | I81: 832
A82: Musikudd. | C82: 4 | D82: 25 | E82: 39 | F82: 62 | G82: 21 | I82: 151
A83: Teolog | C83: 12 | D83: 56 | E83: 91 | F83: 59 | G83: 27 | I83: 245
A84: Psykolog | C84: 446 | D84: 813 | E84: 417 | F84: 219 | G84: 102 | I84: 1997
A85: Jurist | C85: 1133 | D85: 1574 | E85: 885 | F85: 536 | G85: 151 | I85: 4279
A86: Økonom | C86: 695 | D86: 938 | E86: 493 | F86: 347 | G86: 75 | I86: 2548
A87: Samf. Adm. | C87: 1920 | D87: 4687 | E87: 2160 | F87: 891 | G87: 159 | I87: 9817
A88: Cand. Merc. | C88: 3257 | D88: 4286 | E88: 1337 | F88: 616 | G88: 72 | I88: 9568
A89: HA | C89: 358 | D89: 277 | E89: 141 | F89: 178 | G89: 30 | I89: 984
A90: HD | C90: 443 | D90: 312 | E90: 85 | F90: 147 | G90: 42 | I90: 1029
A91: Komm. og Sprog | C91: 474 | D91: 671 | E91: 426 | F91: 228 | G91: 71 | I91: 1870
A92: Cand. IT. | C92: 435 | D92: 775 | E92: 287 | F92: 32 | G92: 3 | I92: 1532
A93: Bac. Samf. | C93: 89 | D93: 134 | E93: 109 | F93: 73 | G93: 9 | I93: 414
A94: Bac. Hum. | C94: 350 | D94: 249 | E94: 231 | F94: 167 | G94: 44 | I94: 1041
A95: Bac. Nat. | C95: 277 | D95: 258 | E95: 68 | F95: 33 | G95: 3 | I95: 639
A96: Andre | C96: 981 | D96: 2896 | E96: 1626 | F96: 841 | G96: 275 | I96: 6619
A98: Total | C98: 19428 | D98: 34775 | E98: 17778 | F98: 9389 | G98: 2705 | I98: 84075
A100: Ingeniører i alt | C100: 1923 | D100: 3300 | E100: 1699 | F100: 1478 | G100: 396 | I100: 8796
A101: Magistre i alt | C101: 3179 | D101: 7508 | E101: 5331 | F101: 2269 | G101: 727 | I101: 19014
A102: DJØF'ere i alt | C102: 7363 | D102: 11762 | E102: 5016 | F102: 2568 | G102: 487 | I102: 27196
A109: Frederiksberg
C111: Under 30 år | D111: 30 - 39 år | E111: 40 - 49 år | F111: 50 - 59 år | G111: Over 60 år | I111: I alt
A113: Civ. ing. | C113: 178 | D113: 445 | E113: 212 | F113: 183 | G113: 55 | I113: 1073
A114: Diplom ing. | C114: 65 | D114: 124 | E114: 137 | F114: 189 | G114: 52 | I114: 567
A115: Cand. Scient. Tek. | C115: 246 | D115: 400 | E115: 105 | F115: 26 | G115: 3 | I115: 780
A116: MA. Hum. | C116: 221 | D116: 579 | E116: 669 | F116: 249 | G116: 80 | I116: 1798
A117: MA. Nat. | C117: 41 | D117: 109 | E117: 184 | F117: 130 | G117: 39 | I117: 503
A118: MA. Ph.d. | C118: 5 | D118: 41 | E118: 54 | F118: 27 | G118: 6 | I118: 133
A119: MA. Samf. | C119: 78 | D119: 133 | E119: 58 | F119: 29 | G119: 3 | I119: 301
A120: Øvrige Mag. | C120: 12 | D120: 29 | E120: 42 | F120: 28 | G120: 10 | I120: 121
A121: Agronom | C121: 9 | D121: 19 | E121: 19 | F121: 27 | G121: 7 | I121: 81
A122: Landsk. Arkt. | C122: 4 | D122: 17 | E122: 9 | F122: 7 | G122: 1 | I122: 38
A123: Hortonom | C123: 0 | D123: 1 | E123: 3 | F123: 3 | G123: 0 | I123: 7
A124: Forstkand. | C124: 2 | D124: 2 | E124: 6 | F124: 3 | G124: 1 | I124: 14
A125: Jordbrugsakad. | C125: 15 | D125: 39 | E125: 37 | F125: 40 | G125: 9 | I125: 140
A126: Mejeriing. | C126: 5 | D126: 5 | E126: 2 | F126: 1 | G126: 2 | I126: 15
A127: Levn.m.kand. | C127: 16 | D127: 17 | E127: 5 | F127: 0 | G127: 0 | I127: 38
A128: Dyrlæge | C128: 14 | D128: 38 | E128: 6 | F128: 13 | G128: 5 | I128: 76
A129: Farmaceut | C129: 49 | D129: 81 | E129: 46 | F129: 44 | G129: 8 | I129: 228
A130: Læge | C130: 73 | D130: 182 | E130: 102 | F130: 69 | G130: 43 | I130: 469
A131: Tandlæge | C131: 18 | D131: 28 | E131: 6 | F131: 6 | G131: 7 | I131: 65
A132: Arkitekt | C132: 33 | D132: 125 | E132: 143 | F132: 87 | G132: 37 | I132: 425
A133: Landinspek. | C133: 2 | D133: 8 | E133: 4 | F133: 1 | G133: 1 | I133: 16
A134: Bibliotekar | C134: 7 | D134: 24 | E134: 61 | F134: 26 | G134: 23 | I134: 141
A135: Musikudd. | C135: 1 | D135: 3 | E135: 4 | F135: 8 | G135: 9 | I135: 25
A136: Teolog | C136: 2 | D136: 7 | E136: 14 | F136: 13 | G136: 2 | I136: 38
A137: Psykolog | C137: 54 | D137: 134 | E137: 71 | F137: 48 | G137: 26 | I137: 333
A138: Jurist | C138: 193 | D138: 337 | E138: 253 | F138: 189 | G138: 62 | I138: 1034
A139: Økonom | C139: 93 | D139: 202 | E139: 118 | F139: 115 | G139: 34 | I139: 562
A140: Samf. Adm. | C140: 271 | D140: 718 | E140: 456 | F140: 200 | G140: 45 | I140: 1690
A141: Cand. Merc. | C141: 698 | D141: 1019 | E141: 380 | F141: 213 | G141: 22 | I141: 2332
A142: HA | C142: 70 | D142: 55 | E142: 33 | F142: 37 | G142: 12 | I142: 207
A143: HD | C143: 79 | D143: 49 | E143: 22 | F143: 51 | G143: 25 | I143: 226
A144: Komm. og Sprog | C144: 85 | D144: 127 | E144: 97 | F144: 60 | G144: 19 | I144: 388
A145: Cand. IT. | C145: 42 | D145: 98 | E145: 56 | F145: 11 | G145: 1 | I145: 208
A146: Bac. Samf. | C146: 8 | D146: 16 | E146: 24 | F146: 13 | G146: 0 | I146: 61
A147: Bac. Hum. | C147: 51 | D147: 39 | E147: 47 | F147: 38 | G147: 6 | I147: 181
A148: Bac. Nat. | C148: 32 | D148: 34 | E148: 13 | F148: 3 | G148: 0 | I148: 82
A149: Andre | C149: 144 | D149: 427 | E149: 321 | F149: 180 | G149: 90 | I149: 1162
A151: Total | C151: 2901 | D151: 5672 | E151: 3782 | F151: 2327 | G151: 736 | I151: 15418
A153: Ingeniører i alt | C153: 243 | D153: 569 | E153: 349 | F153: 372 | G153: 107 | I153: 1640
A154: Magistre i alt | C154: 357 | D154: 891 | E154: 1007 | F154: 463 | G154: 138 | I154: 2856
A155: DJØF'ere i alt | C155: 1325 | D155: 2331 | E155: 1240 | F155: 754 | G155: 175 | I155: 5825
A162: Ballerup
C164: Under 30 år | D164: 30 - 39 år | E164: 40 - 49 år | F164: 50 - 59 år | G164: Over 60 år | I164: I alt
A166: Civ. ing. | C166: 32 | D166: 136 | E166: 172 | F166: 127 | G166: 29 | I166: 496
A167: Diplom ing. | C167: 29 | D167: 80 | E167: 144 | F167: 196 | G167: 46 | I167: 495
A168: Cand. Scient. Tek. | C168: 43 | D168: 87 | E168: 33 | F168: 18 | G168: 0 | I168: 181
A169: MA. Hum. | C169: 9 | D169: 62 | E169: 80 | F169: 34 | G169: 15 | I169: 200
A170: MA. Nat. | C170: 6 | D170: 32 | E170: 70 | F170: 47 | G170: 15 | I170: 170
A171: MA. Ph.d. | C171: 0 | D171: 6 | E171: 6 | F171: 8 | G171: 2 | I171: 22
A172: MA. Samf. | C172: 3 | D172: 12 | E172: 6 | F172: 3 | G172: 1 | I172: 25
A173: Øvrige Mag. | C173: 1 | D173: 6 | E173: 10 | F173: 9 | G173: 0 | I173: 26
A174: Agronom | C174: 0 | D174: 5 | E174: 4 | F174: 9 | G174: 5 | I174: 23
A175: Landsk. Arkt. | C175: 0 | D175: 2 | E175: 5 | F175: 1 | G175: 0 | I175: 8
A176: Hortonom | C176: 0 | D176: 0 | E176: 1 | F176: 2 | G176: 0 | I176: 3
A177: Forstkand. | C177: 0 | D177: 1 | E177: 2 | F177: 1 | G177: 0 | I177: 4
A178: Jordbrugsakad. | C178: 0 | D178: 8 | E178: 12 | F178: 13 | G178: 5 | I178: 38
A179: Mejeriing. | C179: 0 | D179: 2 | E179: 0 | F179: 1 | G179: 0 | I179: 3
A180: Levn.m.kand. | C180: 0 | D180: 2 | E180: 1 | F180: 0 | G180: 0 | I180: 3
A181: Dyrlæge | C181: 2 | D181: 12 | E181: 8 | F181: 3 | G181: 2 | I181: 27
A182: Farmaceut | C182: 6 | D182: 44 | E182: 45 | F182: 26 | G182: 2 | I182: 123
A183: Læge | C183: 7 | D183: 32 | E183: 21 | F183: 14 | G183: 9 | I183: 83
A184: Tandlæge | C184: 2 | D184: 2 | E184: 3 | F184: 6 | G184: 2 | I184: 15
A185: Arkitekt | C185: 1 | D185: 2 | E185: 6 | F185: 7 | G185: 0 | I185: 16
A186: Landinspek. | C186: 0 | D186: 1 | E186: 3 | F186: 0 | G186: 1 | I186: 5
A187: Bibliotekar | C187: 3 | D187: 6 | E187: 16 | F187: 14 | G187: 6 | I187: 45
A188: Musikudd. | C188: 0 | D188: 1 | E188: 4 | F188: 2 | G188: 2 | I188: 9
A189: Teolog | C189: 0 | D189: 1 | E189: 2 | F189: 6 | G189: 1 | I189: 10
A190: Psykolog | C190: 4 | D190: 18 | E190: 16 | F190: 8 | G190: 1 | I190: 47
A191: Jurist | C191: 11 | D191: 23 | E191: 40 | F191: 22 | G191: 1 | I191: 97
A192: Økonom | C192: 6 | D192: 16 | E192: 30 | F192: 19 | G192: 4 | I192: 75
A193: Samf. Adm. | C193: 13 | D193: 66 | E193: 56 | F193: 37 | G193: 3 | I193: 175
A194: Cand. Merc. | C194: 25 | D194: 94 | E194: 87 | F194: 39 | G194: 9 | I194: 254
A195: HA | C195: 6 | D195: 2 | E195: 11 | F195: 16 | G195: 3 | I195: 38
A196: HD | C196: 1 | D196: 3 | E196: 10 | F196: 14 | G196: 8 | I196: 36
A197: Komm. og Sprog | C197: 2 | D197: 18 | E197: 24 | F197: 22 | G197: 9 | I197: 75
A198: Cand. IT. | C198: 3 | D198: 17 | E198: 11 | F198: 0 | G198: 0 | I198: 31
A199: Bac. Samf. | C199: 0 | D199: 1 | E199: 3 | F199: 2 | G199: 0 | I199: 6
A200: Bac. Hum. | C200: 1 | D200: 2 | E200: 4 | F200: 4 | G200: 0 | I200: 11
A201: Bac. Nat. | C201: 5 | D201: 10 | E201: 4 | F201: 2 | G201: 1 | I201: 22
A202: Andre | C202: 14 | D202: 51 | E202: 44 | F202: 45 | G202: 11 | I202: 165
A204: Total | C204: 235 | D204: 855 | E204: 982 | F204: 764 | G204: 188 | I204: 3024
A206: Ingeniører i alt | C206: 61 | D206: 216 | E206: 316 | F206: 323 | G206: 75 | I206: 991
A207: Magistre i alt | C207: 19 | D207: 118 | E207: 172 | F207: 101 | G207: 33 | I207: 443
A208: DJØF'ere i alt | C208: 61 | D208: 201 | E208: 224 | F208: 133 | G208: 20 | I208: 639
A215: Brøndby
C217: Under 30 år | D217: 30 - 39 år | E217: 40 - 49 år | F217: 50 - 59 år | G217: Over 60 år | I217: I alt
A219: Civ. ing. | C219: 18 | D219: 27 | E219: 29 | F219: 40 | G219: 9 | I219: 123
A220: Diplom ing. | C220: 15 | D220: 26 | E220: 53 | F220: 50 | G220: 17 | I220: 161
A221: Cand. Scient. Tek. | C221: 16 | D221: 26 | E221: 8 | F221: 4 | G221: 1 | I221: 55
A222: MA. Hum. | C222: 15 | D222: 28 | E222: 21 | F222: 10 | G222: 1 | I222: 75
A223: MA. Nat. | C223: 3 | D223: 15 | E223: 20 | F223: 10 | G223: 9 | I223: 57
A224: MA. Ph.d. | C224: 0 | D224: 3 | E224: 3 | F224: 0 | G224: 1 | I224: 7
A225: MA. Samf. | C225: 2 | D225: 9 | E225: 3 | F225: 1 | G225: 0 | I225: 15
A226: Øvrige Mag. | C226: 2 | D226: 6 | E226: 3 | F226: 0 | G226: 2 | I226: 13
A227: Agronom | C227: 1 | D227: 1 | E227: 1 | F227: 1 | G227: 1 | I227: 5
A228: Landsk. Arkt. | C228: 0 | D228: 0 | E228: 4 | F228: 1 | G228: 0 | I228: 5
A229: Hortonom | C229: 0 | D229: 0 | E229: 1 | F229: 0 | G229: 1 | I229: 2
A230: Forstkand. | C230: 0 | D230: 0 | E230: 1 | F230: 0 | G230: 0 | I230: 1
A231: Jordbrugsakad. | C231: 1 | D231: 1 | E231: 7 | F231: 2 | G231: 2 | I231: 13
A232: Mejeriing. | C232: 0 | D232: 0 | E232: 0 | F232: 0 | G232: 0 | I232: 0
A233: Levn.m.kand. | C233: 0 | D233: 1 | E233: 0 | F233: 0 | G233: 0 | I233: 1
A234: Dyrlæge | C234: 1 | D234: 2 | E234: 3 | F234: 1 | G234: 0 | I234: 7
A235: Farmaceut | C235: 8 | D235: 13 | E235: 6 | F235: 4 | G235: 1 | I235: 32
A236: Læge | C236: 3 | D236: 13 | E236: 4 | F236: 9 | G236: 4 | I236: 33
A237: Tandlæge | C237: 6 | D237: 5 | E237: 0 | F237: 1 | G237: 2 | I237: 14
A238: Arkitekt | C238: 0 | D238: 2 | E238: 1 | F238: 1 | G238: 0 | I238: 4
A239: Landinspek. | C239: 0 | D239: 1 | E239: 0 | F239: 0 | G239: 0 | I239: 1
A240: Bibliotekar | C240: 0 | D240: 4 | E240: 5 | F240: 4 | G240: 2 | I240: 15
A241: Musikudd. | C241: 0 | D241: 0 | E241: 0 | F241: 0 | G241: 0 | I241: 0
A242: Teolog | C242: 0 | D242: 1 | E242: 1 | F242: 3 | G242: 1 | I242: 6
A243: Psykolog | C243: 1 | D243: 4 | E243: 5 | F243: 0 | G243: 1 | I243: 11
... 1048 more rows

Sheet Tabel 4 H
A1: Tabel 4. Ledighedsberørte - aldersfordelt
A3: Hovedstaden
C5: Under 30 år | D5: 30 - 39 år | E5: 40 - 49 år | F5: 50 - 59 år | G5: Over 60 år | I5: I alt
A7: Civ. ing. | C7: 237 | D7: 131 | E7: 54 | F7: 56 | G7: 32 | I7: 510
A8: Diplom ing. | C8: 98 | D8: 64 | E8: 63 | F8: 93 | G8: 45 | I8: 363
A9: Cand. Scient. Tek | C9: 601 | D9: 325 | E9: 50 | F9: 18 | G9: 6 | I9: 1000
A10: MA. Hum. | C10: 626 | D10: 687 | E10: 308 | F10: 138 | G10: 62 | I10: 1821
A11: MA. Nat. | C11: 91 | D11: 91 | E11: 45 | F11: 32 | G11: 13 | I11: 272
A12: MA. Ph.d. | C12: 1 | D12: 17 | E12: 30 | F12: 12 | G12: 6 | I12: 66
A13: MA. Samf. | C13: 186 | D13: 168 | E13: 36 | F13: 14 | G13: 1 | I13: 405
A14: Øvrige Mag. | C14: 48 | D14: 37 | E14: 21 | F14: 19 | G14: 12 | I14: 137
A15: Agronom | C15: 23 | D15: 4 | E15: 7 | F15: 9 | G15: 2 | I15: 45
A16: Landsk. Arkt. | C16: 20 | D16: 17 | E16: 3 | F16: 2 | G16: 0 | I16: 42
A17: Hortonom | C17: 0 | D17: 0 | E17: 2 | F17: 1 | G17: 1 | I17: 4
A18: Forstkand. | C18: 7 | D18: 5 | E18: 0 | F18: 2 | G18: 1 | I18: 15
A19: Jordbrugsakad. | C19: 50 | D19: 26 | E19: 12 | F19: 14 | G19: 4 | I19: 106
A20: Mejeriing. | C20: 6 | D20: 1 | E20: 0 | F20: 0 | G20: 0 | I20: 7
A21: Levn.m.kand. | C21: 23 | D21: 19 | E21: 4 | F21: 1 | G21: 0 | I21: 47
A22: Dyrlæge | C22: 18 | D22: 17 | E22: 6 | F22: 7 | G22: 3 | I22: 51
A23: Farmaceut | C23: 97 | D23: 40 | E23: 10 | F23: 15 | G23: 4 | I23: 166
A24: Læge | C24: 17 | D24: 35 | E24: 7 | F24: 5 | G24: 1 | I24: 65
A25: Tandlæge | C25: 6 | D25: 7 | E25: 1 | F25: 1 | G25: 2 | I25: 17
A26: Arkitekt | C26: 79 | D26: 88 | E26: 46 | F26: 36 | G26: 19 | I26: 268
A27: Landinspek. | C27: 0 | D27: 1 | E27: 1 | F27: 0 | G27: 0 | I27: 2
A28: Bibliotekar | C28: 10 | D28: 28 | E28: 21 | F28: 16 | G28: 9 | I28: 84
A29: Musikudd. | C29: 2 | D29: 2 | E29: 1 | F29: 3 | G29: 2 | I29: 10
A30: Teolog | C30: 5 | D30: 10 | E30: 5 | F30: 6 | G30: 2 | I30: 28
A31: Psykolog | C31: 72 | D31: 81 | E31: 20 | F31: 6 | G31: 7 | I31: 186
A32: Jurist | C32: 86 | D32: 42 | E32: 44 | F32: 31 | G32: 11 | I32: 214
A33: Økonom | C33: 50 | D33: 28 | E33: 18 | F33: 22 | G33: 16 | I33: 134
A34: Samf. Adm. | C34: 409 | D34: 358 | E34: 129 | F34: 61 | G34: 15 | I34: 972
A35: Cand. Merc. | C35: 476 | D35: 320 | E35: 144 | F35: 115 | G35: 18 | I35: 1073
A36: HA | C36: 84 | D36: 29 | E36: 16 | F36: 33 | G36: 13 | I36: 175
A37: HD | C37: 150 | D37: 50 | E37: 10 | F37: 41 | G37: 21 | I37: 272
A38: Komm. og Sprog | C38: 95 | D38: 87 | E38: 50 | F38: 39 | G38: 13 | I38: 284
A39: Cand. IT. | C39: 74 | D39: 61 | E39: 18 | F39: 7 | G39: 2 | I39: 162
A40: Bac. Samf. | C40: 13 | D40: 14 | E40: 6 | F40: 4 | G40: 2 | I40: 39
A41: Bac. Hum. | C41: 91 | D41: 47 | E41: 28 | F41: 15 | G41: 10 | I41: 191
A42: Bac. Nat. | C42: 68 | D42: 32 | E42: 4 | F42: 5 | G42: 1 | I42: 110
A43: Andre | C43: 228 | D43: 345 | E43: 174 | F43: 144 | G43: 64 | I43: 955
A45: Total | C45: 4097 | D45: 3288 | E45: 1382 | F45: 1009 | G45: 416 | I45: 10192
A47: Ingeniører i alt | C47: 335 | D47: 195 | E47: 117 | F47: 149 | G47: 77 | I47: 873
A48: Magistre i alt | C48: 952 | D48: 1000 | E48: 440 | F48: 215 | G48: 94 | I48: 2701
A49: DJØF'ere i alt | C49: 1105 | D49: 777 | E49: 351 | F49: 262 | G49: 73 | I49: 2568
A56: København
C58: Under 30 år | D58: 30 - 39 år | E58: 40 - 49 år | F58: 50 - 59 år | G58: Over 60 år | I58: I alt
A60: Civ. ing. | C60: 128 | D60: 65 | E60: 19 | F60: 16 | G60: 4 | I60: 232
A61: Diplom ing. | C61: 51 | D61: 25 | E61: 21 | F61: 26 | G61: 11 | I61: 134
A62: Cand. Scient. Tek | C62: 401 | D62: 213 | E62: 19 | F62: 8 | G62: 2 | I62: 643
A63: MA. Hum. | C63: 484 | D63: 524 | E63: 198 | F63: 76 | G63: 33 | I63: 1315
A64: MA. Nat. | C64: 61 | D64: 61 | E64: 15 | F64: 15 | G64: 3 | I64: 155
A65: MA. Ph.d. | C65: 1 | D65: 12 | E65: 16 | F65: 4 | G65: 3 | I65: 36
A66: MA. Samf. | C66: 147 | D66: 127 | E66: 20 | F66: 8 | G66: 1 | I66: 303
A67: Øvrige Mag. | C67: 41 | D67: 24 | E67: 10 | F67: 11 | G67: 5 | I67: 91
A68: Agronom | C68: 15 | D68: 2 | E68: 5 | F68: 0 | G68: 0 | I68: 22
A69: Landsk. Arkt. | C69: 14 | D69: 15 | E69: 0 | F69: 1 | G69: 0 | I69: 30
A70: Hortonom | C70: 0 | D70: 0 | E70: 1 | F70: 0 | G70: 0 | I70: 1
A71: Forstkand. | C71: 6 | D71: 4 | E71: 0 | F71: 1 | G71: 0 | I71: 11
A72: Jordbrugsakad. | C72: 35 | D72: 21 | E72: 6 | F72: 2 | G72: 0 | I72: 64
A73: Mejeriing. | C73: 4 | D73: 0 | E73: 0 | F73: 0 | G73: 0 | I73: 4
A74: Levn.m.kand. | C74: 16 | D74: 13 | E74: 1 | F74: 0 | G74: 0 | I74: 30
A75: Dyrlæge | C75: 15 | D75: 7 | E75: 3 | F75: 2 | G75: 2 | I75: 29
A76: Farmaceut | C76: 59 | D76: 23 | E76: 3 | F76: 5 | G76: 0 | I76: 90
A77: Læge | C77: 10 | D77: 25 | E77: 5 | F77: 3 | G77: 0 | I77: 43
A78: Tandlæge | C78: 2 | D78: 4 | E78: 0 | F78: 1 | G78: 0 | I78: 7
A79: Arkitekt | C79: 64 | D79: 74 | E79: 30 | F79: 18 | G79: 13 | I79: 199
A80: Landinspek. | C80: 0 | D80: 0 | E80: 1 | F80: 0 | G80: 0 | I80: 1
A81: Bibliotekar | C81: 8 | D81: 18 | E81: 13 | F81: 9 | G81: 2 | I81: 50
A82: Musikudd. | C82: 1 | D82: 2 | E82: 0 | F82: 2 | G82: 0 | I82: 5
A83: Teolog | C83: 4 | D83: 9 | E83: 2 | F83: 6 | G83: 0 | I83: 21
A84: Psykolog | C84: 56 | D84: 56 | E84: 10 | F84: 0 | G84: 2 | I84: 124
A85: Jurist | C85: 61 | D85: 22 | E85: 15 | F85: 13 | G85: 7 | I85: 118
A86: Økonom | C86: 40 | D86: 18 | E86: 11 | F86: 9 | G86: 5 | I86: 83
A87: Samf. Adm. | C87: 325 | D87: 262 | E87: 73 | F87: 34 | G87: 6 | I87: 700
A88: Cand. Merc. | C88: 338 | D88: 199 | E88: 58 | F88: 30 | G88: 4 | I88: 629
A89: HA | C89: 63 | D89: 20 | E89: 5 | F89: 7 | G89: 2 | I89: 97
A90: HD | C90: 109 | D90: 31 | E90: 3 | F90: 8 | G90: 5 | I90: 156
A91: Komm. og Sprog | C91: 69 | D91: 60 | E91: 33 | F91: 14 | G91: 5 | I91: 181
A92: Cand. IT. | C92: 60 | D92: 42 | E92: 13 | F92: 5 | G92: 1 | I92: 121
A93: Bac. Samf. | C93: 10 | D93: 7 | E93: 4 | F93: 2 | G93: 2 | I93: 25
A94: Bac. Hum. | C94: 71 | D94: 33 | E94: 20 | F94: 6 | G94: 5 | I94: 135
A95: Bac. Nat. | C95: 52 | D95: 20 | E95: 2 | F95: 3 | G95: 1 | I95: 78
A96: Andre | C96: 170 | D96: 228 | E96: 90 | F96: 70 | G96: 23 | I96: 581
A98: Total | C98: 2956 | D98: 2245 | E98: 719 | F98: 413 | G98: 147 | I98: 6480
A100: Ingeniører i alt | C100: 179 | D100: 90 | E100: 40 | F100: 42 | G100: 15 | I100: 366
A101: Magistre i alt | C101: 734 | D101: 748 | E101: 259 | F101: 114 | G101: 45 | I101: 1900
A102: DJØF'ere i alt | C102: 827 | D102: 521 | E102: 162 | F102: 93 | G102: 24 | I102: 1627
A109: Frederiksberg
C111: Under 30 år | D111: 30 - 39 år | E111: 40 - 49 år | F111: 50 - 59 år | G111: Over 60 år | I111: I alt
A113: Civ. ing. | C113: 13 | D113: 10 | E113: 5 | F113: 5 | G113: 1 | I113: 34
A114: Diplom ing. | C114: 7 | D114: 4 | E114: 6 | F114: 5 | G114: 2 | I114: 24
A115: Cand. Scient. Tek | C115: 42 | D115: 21 | E115: 3 | F115: 1 | G115: 0 | I115: 67
A116: MA. Hum. | C116: 50 | D116: 50 | E116: 30 | F116: 13 | G116: 7 | I116: 150
A117: MA. Nat. | C117: 10 | D117: 7 | E117: 4 | F117: 3 | G117: 1 | I117: 25
A118: MA. Ph.d. | C118: 0 | D118: 2 | E118: 6 | F118: 1 | G118: 1 | I118: 10
A119: MA. Samf. | C119: 14 | D119: 13 | E119: 5 | F119: 2 | G119: 0 | I119: 34
A120: Øvrige Mag. | C120: 3 | D120: 3 | E120: 4 | F120: 3 | G120: 1 | I120: 14
A121: Agronom | C121: 4 | D121: 0 | E121: 0 | F121: 1 | G121: 0 | I121: 5
A122: Landsk. Arkt. | C122: 3 | D122: 0 | E122: 0 | F122: 0 | G122: 0 | I122: 3
A123: Hortonom | C123: 0 | D123: 0 | E123: 0 | F123: 0 | G123: 0 | I123: 0
A124: Forstkand. | C124: 0 | D124: 0 | E124: 0 | F124: 0 | G124: 0 | I124: 0
A125: Jordbrugsakad. | C125: 7 | D125: 0 | E125: 0 | F125: 1 | G125: 0 | I125: 8
A126: Mejeriing. | C126: 2 | D126: 0 | E126: 0 | F126: 0 | G126: 0 | I126: 2
A127: Levn.m.kand. | C127: 5 | D127: 1 | E127: 1 | F127: 0 | G127: 0 | I127: 7
A128: Dyrlæge | C128: 0 | D128: 0 | E128: 0 | F128: 2 | G128: 0 | I128: 2
A129: Farmaceut | C129: 8 | D129: 3 | E129: 0 | F129: 1 | G129: 0 | I129: 12
A130: Læge | C130: 3 | D130: 1 | E130: 0 | F130: 0 | G130: 0 | I130: 4
A131: Tandlæge | C131: 1 | D131: 1 | E131: 0 | F131: 0 | G131: 0 | I131: 2
A132: Arkitekt | C132: 11 | D132: 5 | E132: 4 | F132: 4 | G132: 2 | I132: 26
A133: Landinspek. | C133: 0 | D133: 0 | E133: 0 | F133: 0 | G133: 0 | I133: 0
A134: Bibliotekar | C134: 1 | D134: 2 | E134: 3 | F134: 0 | G134: 1 | I134: 7
A135: Musikudd. | C135: 0 | D135: 0 | E135: 0 | F135: 1 | G135: 0 | I135: 1
A136: Teolog | C136: 1 | D136: 0 | E136: 1 | F136: 0 | G136: 0 | I136: 2
A137: Psykolog | C137: 8 | D137: 11 | E137: 0 | F137: 0 | G137: 1 | I137: 20
A138: Jurist | C138: 5 | D138: 7 | E138: 9 | F138: 3 | G138: 1 | I138: 25
A139: Økonom | C139: 4 | D139: 2 | E139: 0 | F139: 0 | G139: 2 | I139: 8
A140: Samf. Adm. | C140: 29 | D140: 32 | E140: 11 | F140: 6 | G140: 2 | I140: 80
A141: Cand. Merc. | C141: 63 | D141: 37 | E141: 22 | F141: 8 | G141: 1 | I141: 131
A142: HA | C142: 8 | D142: 2 | E142: 0 | F142: 2 | G142: 1 | I142: 13
A143: HD | C143: 18 | D143: 4 | E143: 1 | F143: 3 | G143: 1 | I143: 27
A144: Komm. og Sprog | C144: 11 | D144: 8 | E144: 6 | F144: 0 | G144: 0 | I144: 25
A145: Cand. IT. | C145: 3 | D145: 5 | E145: 2 | F145: 1 | G145: 0 | I145: 11
A146: Bac. Samf. | C146: 1 | D146: 2 | E146: 0 | F146: 0 | G146: 0 | I146: 3
A147: Bac. Hum. | C147: 7 | D147: 6 | E147: 2 | F147: 2 | G147: 0 | I147: 17
A148: Bac. Nat. | C148: 7 | D148: 3 | E148: 0 | F148: 0 | G148: 0 | I148: 10
A149: Andre | C149: 22 | D149: 24 | E149: 16 | F149: 15 | G149: 3 | I149: 80
A151: Total | C151: 364 | D151: 266 | E151: 141 | F151: 82 | G151: 28 | I151: 881
A153: Ingeniører i alt | C153: 20 | D153: 14 | E153: 11 | F153: 10 | G153: 3 | I153: 58
A154: Magistre i alt | C154: 77 | D154: 75 | E154: 49 | F154: 22 | G154: 10 | I154: 233
A155: DJØF'ere i alt | C155: 109 | D155: 80 | E155: 42 | F155: 19 | G155: 7 | I155: 257
A162: Ballerup
C164: Under 30 år | D164: 30 - 39 år | E164: 40 - 49 år | F164: 50 - 59 år | G164: Over 60 år | I164: I alt
A166: Civ. ing. | C166: 1 | D166: 1 | E166: 1 | F166: 1 | G166: 1 | I166: 5
A167: Diplom ing. | C167: 3 | D167: 1 | E167: 3 | F167: 4 | G167: 3 | I167: 14
A168: Cand. Scient. Tek | C168: 11 | D168: 3 | E168: 3 | F168: 0 | G168: 0 | I168: 17
A169: MA. Hum. | C169: 1 | D169: 3 | E169: 4 | F169: 0 | G169: 1 | I169: 9
A170: MA. Nat. | C170: 1 | D170: 1 | E170: 1 | F170: 0 | G170: 0 | I170: 3
A171: MA. Ph.d. | C171: 0 | D171: 0 | E171: 1 | F171: 0 | G171: 0 | I171: 1
A172: MA. Samf. | C172: 0 | D172: 0 | E172: 0 | F172: 0 | G172: 0 | I172: 0
A173: Øvrige Mag. | C173: 0 | D173: 1 | E173: 0 | F173: 1 | G173: 0 | I173: 2
A174: Agronom | C174: 0 | D174: 0 | E174: 0 | F174: 1 | G174: 0 | I174: 1
A175: Landsk. Arkt. | C175: 0 | D175: 0 | E175: 0 | F175: 0 | G175: 0 | I175: 0
A176: Hortonom | C176: 0 | D176: 0 | E176: 0 | F176: 0 | G176: 0 | I176: 0
A177: Forstkand. | C177: 0 | D177: 0 | E177: 0 | F177: 0 | G177: 0 | I177: 0
A178: Jordbrugsakad. | C178: 0 | D178: 0 | E178: 0 | F178: 1 | G178: 0 | I178: 1
A179: Mejeriing. | C179: 0 | D179: 0 | E179: 0 | F179: 0 | G179: 0 | I179: 0
A180: Levn.m.kand. | C180: 0 | D180: 0 | E180: 0 | F180: 0 | G180: 0 | I180: 0
A181: Dyrlæge | C181: 0 | D181: 0 | E181: 0 | F181: 0 | G181: 0 | I181: 0
A182: Farmaceut | C182: 2 | D182: 0 | E182: 0 | F182: 0 | G182: 0 | I182: 2
A183: Læge | C183: 0 | D183: 0 | E183: 0 | F183: 0 | G183: 0 | I183: 0
A184: Tandlæge | C184: 0 | D184: 0 | E184: 0 | F184: 0 | G184: 0 | I184: 0
A185: Arkitekt | C185: 1 | D185: 0 | E185: 0 | F185: 0 | G185: 0 | I185: 1
A186: Landinspek. | C186: 0 | D186: 0 | E186: 0 | F186: 0 | G186: 0 | I186: 0
A187: Bibliotekar | C187: 1 | D187: 1 | E187: 0 | F187: 1 | G187: 0 | I187: 3
A188: Musikudd. | C188: 0 | D188: 0 | E188: 0 | F188: 0 | G188: 0 | I188: 0
A189: Teolog | C189: 0 | D189: 0 | E189: 0 | F189: 0 | G189: 0 | I189: 0
A190: Psykolog | C190: 0 | D190: 0 | E190: 1 | F190: 0 | G190: 0 | I190: 1
A191: Jurist | C191: 2 | D191: 0 | E191: 2 | F191: 1 | G191: 0 | I191: 5
A192: Økonom | C192: 0 | D192: 0 | E192: 1 | F192: 0 | G192: 0 | I192: 1
A193: Samf. Adm. | C193: 1 | D193: 3 | E193: 1 | F193: 2 | G193: 0 | I193: 7
A194: Cand. Merc. | C194: 1 | D194: 2 | E194: 1 | F194: 2 | G194: 0 | I194: 6
A195: HA | C195: 2 | D195: 0 | E195: 0 | F195: 2 | G195: 1 | I195: 5
A196: HD | C196: 0 | D196: 1 | E196: 2 | F196: 1 | G196: 0 | I196: 4
A197: Komm. og Sprog | C197: 2 | D197: 1 | E197: 0 | F197: 1 | G197: 0 | I197: 4
A198: Cand. IT. | C198: 0 | D198: 2 | E198: 0 | F198: 0 | G198: 0 | I198: 2
A199: Bac. Samf. | C199: 0 | D199: 0 | E199: 0 | F199: 0 | G199: 0 | I199: 0
A200: Bac. Hum. | C200: 0 | D200: 0 | E200: 0 | F200: 0 | G200: 0 | I200: 0
A201: Bac. Nat. | C201: 2 | D201: 0 | E201: 1 | F201: 0 | G201: 0 | I201: 3
A202: Andre | C202: 3 | D202: 2 | E202: 3 | F202: 0 | G202: 0 | I202: 8
A204: Total | C204: 34 | D204: 22 | E204: 25 | F204: 17 | G204: 6 | I204: 104
A206: Ingeniører i alt | C206: 4 | D206: 2 | E206: 4 | F206: 5 | G206: 4 | I206: 19
A207: Magistre i alt | C207: 2 | D207: 5 | E207: 6 | F207: 1 | G207: 1 | I207: 15
A208: DJØF'ere i alt | C208: 6 | D208: 5 | E208: 5 | F208: 7 | G208: 1 | I208: 24
A215: Brøndby
C217: Under 30 år | D217: 30 - 39 år | E217: 40 - 49 år | F217: 50 - 59 år | G217: Over 60 år | I217: I alt
A219: Civ. ing. | C219: 5 | D219: 0 | E219: 0 | F219: 2 | G219: 0 | I219: 7
A220: Diplom ing. | C220: 1 | D220: 0 | E220: 0 | F220: 1 | G220: 0 | I220: 2
A221: Cand. Scient. Tek | C221: 7 | D221: 2 | E221: 1 | F221: 1 | G221: 0 | I221: 11
A222: MA. Hum. | C222: 3 | D222: 6 | E222: 1 | F222: 0 | G222: 0 | I222: 10
A223: MA. Nat. | C223: 0 | D223: 1 | E223: 3 | F223: 1 | G223: 0 | I223: 5
A224: MA. Ph.d. | C224: 0 | D224: 0 | E224: 1 | F224: 0 | G224: 0 | I224: 1
A225: MA. Samf. | C225: 1 | D225: 2 | E225: 1 | F225: 0 | G225: 0 | I225: 4
A226: Øvrige Mag. | C226: 1 | D226: 1 | E226: 0 | F226: 0 | G226: 1 | I226: 3
A227: Agronom | C227: 0 | D227: 0 | E227: 0 | F227: 0 | G227: 0 | I227: 0
A228: Landsk. Arkt. | C228: 0 | D228: 0 | E228: 0 | F228: 0 | G228: 0 | I228: 0
A229: Hortonom | C229: 0 | D229: 0 | E229: 0 | F229: 0 | G229: 0 | I229: 0
A230: Forstkand. | C230: 0 | D230: 0 | E230: 0 | F230: 0 | G230: 0 | I230: 0
A231: Jordbrugsakad. | C231: 0 | D231: 0 | E231: 0 | F231: 0 | G231: 0 | I231: 0
A232: Mejeriing. | C232: 0 | D232: 0 | E232: 0 | F232: 0 | G232: 0 | I232: 0
A233: Levn.m.kand. | C233: 0 | D233: 0 | E233: 0 | F233: 0 | G233: 0 | I233: 0
A234: Dyrlæge | C234: 0 | D234: 1 | E234: 0 | F234: 0 | G234: 0 | I234: 1
A235: Farmaceut | C235: 1 | D235: 0 | E235: 0 | F235: 0 | G235: 0 | I235: 1
A236: Læge | C236: 0 | D236: 0 | E236: 0 | F236: 0 | G236: 0 | I236: 0
A237: Tandlæge | C237: 0 | D237: 0 | E237: 0 | F237: 0 | G237: 0 | I237: 0
A238: Arkitekt | C238: 0 | D238: 1 | E238: 0 | F238: 0 | G238: 0 | I238: 1
A239: Landinspek. | C239: 0 | D239: 0 | E239: 0 | F239: 0 | G239: 0 | I239: 0
A240: Bibliotekar | C240: 0 | D240: 1 | E240: 0 | F240: 0 | G240: 0 | I240: 1
A241: Musikudd. | C241: 0 | D241: 0 | E241: 0 | F241: 0 | G241: 0 | I241: 0
A242: Teolog | C242: 0 | D242: 0 | E242: 0 | F242: 0 | G242: 0 | I242: 0
A243: Psykolog | C243: 0 | D243: 0 | E243: 0 | F243: 0 | G243: 0 | I243: 0
... 1048 more rows

Sheet Tabel 4(Br) H
A1: Tabel 4. Ledighedsberørte - aldersfordelt
A3: Hovedstaden
C5: Under 30 år | D5: 30 - 39 år | E5: 40 - 49 år | F5: 50 - 59 år | G5: Over 60 år | I5: I alt
A7: Civ. ing. | C7: 217.1982786 | D7: 117.0772781 | E7: 48.17750889 | F7: 50.08233019 | G7: 28.18624088 | I7: 460.7216366
A8: Diplom ing. | C8: 90.03243311 | D8: 57.18829913 | E8: 55.71633506 | F8: 81.17445269 | G8: 39.71932888 | I8: 323.8308489
A9: Cand. Scient. Tek | C9: 513.0861348 | D9: 289.468596 | E9: 45.10384831 | F9: 14.9516622 | G9: 5.497411589 | I9: 868.107653
A10: MA. Hum. | C10: 549.9357575 | D10: 580.0729745 | E10: 264.9011414 | F10: 114.0672363 | G10: 50.84138963 | I10: 1559.818499
A11: MA. Nat. | C11: 82.4873698 | D11: 78.34154556 | E11: 38.84550614 | F11: 25.96020707 | G11: 11.42892784 | I11: 237.0635564
A12: MA. Ph.d. | C12: 0.9998128859 | D12: 15.07328635 | E12: 25.51986528 | F12: 11.21312293 | G12: 4.66911994 | I12: 57.47520738
A13: MA. Samf. | C13: 161.6459802 | D13: 148.675856 | E13: 31.87675419 | F13: 12.2029564 | G13: 0.9998128859 | I13: 355.4013597
A14: Øvrige Mag. | C14: 44.2175513 | D14: 31.40959272 | E14: 19.6051893 | F14: 16.68808083 | G14: 8.754443959 | I14: 120.6748581
A15: Agronom | C15: 21.40772157 | D15: 3.953096738 | E15: 5.877876879 | F15: 7.628017214 | G15: 1.768851743 | I15: 40.63556415
A16: Landsk. Arkt. | C16: 17.34796981 | D16: 15.65209256 | E16: 2.87469594 | F16: 1.993388636 | G16: 0 | I16: 37.86814695
A17: Hortonom | C17: 0 | D17: 0 | E17: 1.307303686 | F17: 0.9998128859 | G17: 0.9998128859 | I17: 3.306929458
A18: Forstkand. | C18: 6.513441028 | D18: 4.303623776 | E18: 0 | F18: 1.999625772 | G18: 0.9998128859 | I18: 13.81650346
A19: Jordbrugsakad. | C19: 45.26913241 | D19: 23.90881307 | E19: 10.0598765 | F19: 12.62084451 | G19: 3.768477515 | I19: 95.62714402
A20: Mejeriing. | C20: 5.398864841 | D20: 0.9998128859 | E20: 0 | F20: 0 | G20: 0 | I20: 6.398677727
A21: Levn.m.kand. | C21: 19.38688954 | D21: 16.53651843 | E21: 3.491548681 | F21: 0.9623900705 | G21: 0 | I21: 40.37734672
A22: Dyrlæge | C22: 12.49547808 | D22: 14.4651656 | E22: 5.153121687 | F22: 6.250233893 | G22: 2.474271814 | I22: 40.83827107
A23: Farmaceut | C23: 88.86920726 | D23: 36.08494979 | E23: 8.729495416 | F23: 14.35102601 | G23: 3.630013098 | I23: 151.6646916
A24: Læge | C24: 13.46535271 | D24: 28.46192229 | E24: 5.09636375 | F24: 4.322958897 | G24: 0.9998128859 | I24: 52.34641053
A25: Tandlæge | C25: 5.109461735 | D25: 5.350838895 | E25: 0.9998128859 | F25: 0.9998128859 | G25: 1.538077715 | I25: 13.99800412
A26: Arkitekt | C26: 69.32202333 | D26: 76.1173829 | E26: 41.65783072 | F26: 31.45699495 | G26: 18.39643236 | I26: 236.9506643
A27: Landinspek. | C27: 0 | D27: 0.9998128859 | E27: 0.9998128859 | F27: 0 | G27: 0 | I27: 1.999625772
A28: Bibliotekar | C28: 9.33823988 | D28: 25.259153 | E28: 17.24817564 | F28: 15.02276555 | G28: 6.563338115 | I28: 73.43167218
A29: Musikudd. | C29: 0.7921162602 | D29: 1.999625772 | E29: 0.9655086384 | F29: 2.81045344 | G29: 1.730181501 | I29: 8.297885611
A30: Teolog | C30: 3.696126739 | D30: 7.514501341 | E30: 4.260587538 | F30: 4.82192977 | G30: 1.999625772 | I30: 22.29277116
A31: Psykolog | C31: 61.97405351 | D31: 71.10397306 | E31: 17.88685835 | F31: 5.224848749 | G31: 5.308426371 | I31: 161.49816
A32: Jurist | C32: 73.19341358 | D32: 36.88517433 | E32: 37.60182124 | F32: 28.39643236 | G32: 9.567142768 | I32: 185.6439843
A33: Økonom | C33: 41.53371172 | D33: 23.46348157 | E33: 16.53277615 | F33: 19.78045282 | G33: 14.01796295 | I33: 115.3283852
A34: Samf. Adm. | C34: 366.5171833 | D34: 315.5279736 | E34: 111.3765359 | F34: 54.12274683 | G34: 12.57219485 | I34: 860.1166344
A35: Cand. Merc. | C35: 404.8637186 | D35: 276.8371484 | E35: 122.8628454 | F35: 101.5923408 | G35: 16.52653901 | I35: 922.6825922
A36: HA | C36: 71.61417077 | D36: 22.63643735 | E36: 13.04060375 | F36: 26.39680659 | G36: 10.61560531 | I36: 144.3036238
A37: HD | C37: 127.3754132 | D37: 42.47926152 | E37: 9.896463544 | F37: 33.94935446 | G37: 14.99407472 | I37: 228.6945675
A38: Komm. og Sprog | C38: 82.22478638 | D38: 74.81070293 | E38: 43.99550926 | F38: 34.20445332 | G38: 12.81294829 | I38: 248.0484002
A39: Cand. IT. | C39: 65.40884426 | D39: 53.17906817 | E39: 16.25584731 | F39: 4.796357513 | G39: 1.611675918 | I39: 141.2517932
A40: Bac. Samf. | C40: 10.76592029 | D40: 10.9268384 | E40: 5.532963263 | F40: 3.348718269 | G40: 1.999625772 | I40: 32.57406599
A41: Bac. Hum. | C41: 73.07366058 | D41: 42.80546373 | E41: 24.84126489 | F41: 12.55348344 | G41: 8.147570636 | I41: 161.4214433
A42: Bac. Nat. | C42: 58.82741845 | D42: 26.17351712 | E42: 3.906941932 | F42: 4.712156178 | G42: 0.9075032745 | I42: 94.52753696
A43: Andre | C43: 201.0116634 | D43: 295.7450259 | E43: 148.8143205 | F43: 116.6325703 | G43: 54.4333562 | I43: 816.6369363
A45: Total | C45: 3571.130169 | D45: 2847.579991 | E45: 1200.953034 | F45: 865.6701803 | G45: 354.7115325 | I45: 8840.044907
A47: Ingeniører i alt | C47: 307.2307117 | D47: 174.2655772 | E47: 103.8938439 | F47: 131.2567829 | G47: 67.90556976 | I47: 784.5524855
A48: Magistre i alt | C48: 839.2864717 | D48: 853.5732552 | E48: 380.7484563 | F48: 180.1316036 | G48: 76.69369426 | I48: 2330.433481
A49: DJØF'ere i alt | C49: 957.722198 | D49: 675.3502152 | E49: 301.4145824 | F49: 230.2887794 | G49: 63.29944489 | I49: 2228.07522
A56: København
C58: Under 30 år | D58: 30 - 39 år | E58: 40 - 49 år | F58: 50 - 59 år | G58: Over 60 år | I58: I alt
A60: Civ. ing. | C60: 117.1365309 | D60: 58.28291648 | E60: 16.18848625 | F60: 14.29613921 | G60: 3.565146885 | I60: 209.4692197
A61: Diplom ing. | C61: 45.8604129 | D61: 21.0877565 | E61: 18.60724755 | F61: 22.10690451 | G61: 9.474833157 | I61: 117.1371546
A62: Cand. Scient. Tek | C62: 341.5917171 | D62: 191.0790245 | E62: 17.68602258 | F62: 6.752323333 | G62: 1.924780141 | I62: 559.0338676
A63: MA. Hum. | C63: 428.7145263 | D63: 445.0040541 | E63: 168.347159 | F63: 62.19983783 | G63: 26.09804778 | I63: 1130.363625
A64: MA. Nat. | C64: 54.69094992 | D64: 54.45019647 | E64: 12.90900019 | F64: 11.8355891 | G64: 2.466787251 | I64: 136.3525229
A65: MA. Ph.d. | C65: 0.9998128859 | D65: 10.55822366 | E65: 13.4740847 | F65: 3.722322709 | G65: 2.179255286 | I65: 30.93369925
A66: MA. Samf. | C66: 126.9356951 | D66: 110.6355641 | E66: 18.31472588 | F66: 6.949416828 | G66: 0.9998128859 | I66: 263.8352149
A67: Øvrige Mag. | C67: 38.49996881 | D67: 20.28877939 | E67: 9.014532527 | F67: 8.927836338 | G67: 3.944988461 | I67: 80.67610553
A68: Agronom | C68: 14.67410965 | D68: 1.999625772 | E68: 4.462047028 | F68: 0 | G68: 0 | I68: 21.13578245
A69: Landsk. Arkt. | C69: 12.22603381 | D69: 13.65246679 | E69: 0 | F69: 0.99357575 | G69: 0 | I69: 26.87207634
A70: Hortonom | C70: 0 | D70: 0 | E70: 0.9998128859 | F70: 0 | G70: 0 | I70: 0.9998128859
A71: Forstkand. | C71: 5.698247365 | D71: 3.30381089 | E71: 0 | F71: 0.9998128859 | G71: 0 | I71: 10.00187114
A72: Jordbrugsakad. | C72: 32.59839082 | D72: 18.95590345 | E72: 5.461859914 | F72: 1.993388636 | G72: 0 | I72: 59.00954282
A73: Mejeriing. | C73: 3.906941932 | D73: 0 | E73: 0 | F73: 0 | G73: 0 | I73: 3.906941932
A74: Levn.m.kand. | C74: 13.81899832 | D74: 11.51562403 | E74: 0.9998128859 | F74: 0 | G74: 0 | I74: 26.33443523
A75: Dyrlæge | C75: 11.28609742 | D75: 5.980789621 | E75: 2.476766669 | F75: 1.999625772 | G75: 1.474458928 | I75: 23.21773841
A76: Farmaceut | C76: 54.29676293 | D76: 21.02663257 | E76: 1.915424437 | F76: 4.952909624 | G76: 0 | I76: 82.19172956
A77: Læge | C77: 7.921162602 | D77: 21.09835963 | E77: 3.373666812 | F77: 2.369487931 | G77: 0 | I77: 34.76267698
A78: Tandlæge | C78: 1.625397617 | D78: 3.091124556 | E78: 0 | F78: 0.9998128859 | G78: 0 | I78: 5.716335059
A79: Arkitekt | C79: 55.60593775 | D79: 63.92877191 | E79: 26.90450945 | F79: 16.80845756 | G79: 12.39755504 | I79: 175.6452317
A80: Landinspek. | C80: 0 | D80: 0 | E80: 0.9998128859 | F80: 0 | G80: 0 | I80: 0.9998128859
A81: Bibliotekar | C81: 7.65670804 | D81: 16.25896588 | E81: 12.11251793 | F81: 8.670242625 | G81: 1.999625772 | I81: 46.69806025
A82: Musikudd. | C82: 0.3099856546 | D82: 1.999625772 | E82: 0 | F82: 1.810640554 | G82: 0 | I82: 4.12025198
A83: Teolog | C83: 2.973242687 | D83: 7.053576997 | E83: 1.999625772 | F83: 4.82192977 | G83: 0 | I83: 16.84837523
A84: Psykolog | C84: 48.82305245 | D84: 48.29476704 | E84: 9.153620657 | F84: 0 | G84: 1.737666064 | I84: 108.0091062
A85: Jurist | C85: 52.49485436 | D85: 18.32844758 | E85: 12.73560781 | F85: 11.6565833 | G85: 5.983284476 | I85: 101.1987775
A86: Økonom | C86: 32.37011164 | D86: 15.07765234 | E86: 9.602694443 | F86: 7.567516996 | G86: 4.722135595 | I86: 69.34011102
A87: Samf. Adm. | C87: 289.8465665 | D87: 231.1526227 | E87: 62.57032371 | F87: 29.41745151 | G87: 5.674546248 | I87: 618.6615106
A88: Cand. Merc. | C88: 287.5300942 | D88: 175.9464854 | E88: 48.90538265 | F88: 27.56252729 | G88: 3.071789434 | I88: 543.0162789
A89: HA | C89: 53.28010977 | D89: 16.83028753 | E89: 4.306742344 | F89: 6.711158236 | G89: 1.630387326 | I89: 82.75868521
A90: HD | C90: 92.44932327 | D90: 24.98347159 | E90: 2.999438658 | F90: 6.681843697 | G90: 3.291960332 | I90: 130.4060375
A91: Komm. og Sprog | C91: 59.22098173 | D91: 51.31104597 | E91: 28.32283415 | F91: 12.55847315 | G91: 4.906754818 | I91: 156.3200898
A92: Cand. IT. | C92: 52.43809643 | D92: 37.17145887 | E92: 11.67654213 | F92: 2.796731741 | G92: 0.6118630325 | I92: 104.6946922
A93: Bac. Samf. | C93: 8.013472214 | D93: 5.667061685 | E93: 3.76411152 | F93: 1.579866525 | G93: 1.999625772 | I93: 21.02413772
A94: Bac. Hum. | C94: 57.30992328 | D94: 29.64323583 | E94: 17.0997318 | F94: 4.95914676 | G94: 3.702363875 | I94: 112.7144015
A95: Bac. Nat. | C95: 44.57743404 | D95: 16.70616853 | E95: 1.90731616 | F95: 2.999438658 | G95: 0.9075032745 | I95: 67.09786066
A96: Andre | C96: 150.8382711 | D96: 197.9691885 | E96: 77.67479573 | F96: 56.84463294 | G96: 19.79292709 | I96: 503.1198154
A98: Total | C98: 2575.621531 | D98: 1951.377783 | E98: 621.5043972 | F98: 352.552236 | G98: 124.5580989 | I98: 5625.614046
A100: Ingeniører i alt | C100: 162.9969438 | D100: 79.37067299 | E100: 34.7957338 | F100: 36.40304372 | G100: 13.03998004 | I100: 326.6063744
A101: Magistre i alt | C101: 649.840953 | D101: 640.9368178 | E101: 222.0595023 | F101: 93.63500281 | G101: 35.68889166 | I101: 1642.161168
A102: DJØF'ere i alt | C102: 715.5217364 | D102: 457.3354955 | E102: 138.120751 | F102: 82.91523732 | G102: 21.08214308 | I102: 1414.975363
A109: Frederiksberg
C111: Under 30 år | D111: 30 - 39 år | E111: 40 - 49 år | F111: 50 - 59 år | G111: Over 60 år | I111: I alt
A113: Civ. ing. | C113: 11.61292335 | D113: 9.842824175 | E113: 4.051019772 | F113: 3.266388075 | G113: 0.9998128859 | I113: 29.77296825
A114: Diplom ing. | C114: 6.618224911 | D114: 3.398615356 | E114: 5.906567704 | F114: 4.99906443 | G114: 1.326015094 | I114: 22.24848749
A115: Cand. Scient. Tek | C115: 35.08700805 | D115: 18.74820682 | E115: 2.953283852 | F115: 0.9998128859 | G115: 0 | I115: 57.78831161
A116: MA. Hum. | C116: 43.09611426 | D116: 41.64598017 | E116: 25.69263394 | F116: 10.72101291 | G116: 5.314663507 | I116: 126.4704048
A117: MA. Nat. | C117: 9.076903886 | D117: 5.676417389 | E117: 3.891349092 | F117: 2.383833344 | G117: 0.9998128859 | I117: 22.0283166
A118: MA. Ph.d. | C118: 0 | D118: 1.999625772 | E118: 5.62963887 | F118: 0.9998128859 | G118: 0.8133225223 | I118: 9.44240005
A119: MA. Samf. | C119: 12.68882929 | D119: 11.7027381 | E119: 4.952909624 | F119: 1.392752448 | G119: 0 | I119: 30.73722946
A120: Øvrige Mag. | C120: 2.872201085 | D120: 2.683839581 | E120: 3.787188923 | F120: 2.860974241 | G120: 0.9998128859 | I120: 13.20401672
A121: Agronom | C121: 3.583858292 | D121: 0 | E121: 0 | F121: 0.9998128859 | G121: 0 | I121: 4.583671178
A122: Landsk. Arkt. | C122: 2.907129046 | D122: 0 | E122: 0 | F122: 0 | G122: 0 | I122: 2.907129046
A123: Hortonom | C123: 0 | D123: 0 | E123: 0 | F123: 0 | G123: 0 | I123: 0
A124: Forstkand. | C124: 0 | D124: 0 | E124: 0 | F124: 0 | G124: 0 | I124: 0
A125: Jordbrugsakad. | C125: 6.490987339 | D125: 0 | E125: 0 | F125: 0.9998128859 | G125: 0 | I125: 7.490800225
A126: Mejeriing. | C126: 1.491922909 | D126: 0 | E126: 0 | F126: 0 | G126: 0 | I126: 1.491922909
A127: Levn.m.kand. | C127: 3.752884675 | D127: 0.9075032745 | E127: 0.9998128859 | F127: 0 | G127: 0 | I127: 5.660200836
A128: Dyrlæge | C128: 0 | D128: 0 | E128: 0 | F128: 1.943491549 | G128: 0 | I128: 1.943491549
A129: Farmaceut | C129: 7.391629764 | D129: 2.584045406 | E129: 0 | F129: 0.9998128859 | G129: 0 | I129: 10.97548806
A130: Læge | C130: 2.814819435 | D130: 0.9998128859 | E130: 0 | F130: 0 | G130: 0 | I130: 3.814632321
A131: Tandlæge | C131: 0.8002245369 | D131: 0.9998128859 | E131: 0 | F131: 0 | G131: 0 | I131: 1.800037423
A132: Arkitekt | C132: 9.779205389 | D132: 4.537516372 | E132: 3.999251544 | F132: 3.676167904 | G132: 1.999625772 | I132: 23.99176698
A133: Landinspek. | C133: 0 | D133: 0 | E133: 0 | F133: 0 | G133: 0 | I133: 0
A134: Bibliotekar | C134: 0.6817189547 | D134: 1.953470966 | E134: 2.075095116 | F134: 0 | G134: 0.9075032745 | I134: 5.617788312
A135: Musikudd. | C135: 0 | D135: 0 | E135: 0 | F135: 0.9998128859 | G135: 0 | I135: 0.9998128859
A136: Teolog | C136: 0.7228840516 | D136: 0 | E136: 0.9998128859 | F136: 0 | G136: 0 | I136: 1.722696938
A137: Psykolog | C137: 6.748581052 | D137: 9.509761118 | E137: 0 | F137: 0 | G137: 0.924967255 | I137: 17.18330942
A138: Jurist | C138: 4.814445207 | D138: 6.532776149 | E138: 8.027817626 | F138: 2.869706231 | G138: 0.9998128859 | I138: 23.2445581
A139: Økonom | C139: 3.487806399 | D139: 1.90731616 | E139: 0 | F139: 0 | G139: 1.877377908 | I139: 7.272500468
A140: Samf. Adm. | C140: 27.92490488 | D140: 28.34216928 | E140: 10.35177447 | F140: 5.998877316 | G140: 1.176323832 | I140: 73.79404977
A141: Cand. Merc. | C141: 54.82005863 | D141: 29.68377721 | E141: 18.81993389 | F141: 7.114700929 | G141: 0.9998128859 | I141: 111.4382835
A142: HA | C142: 6.5259153 | D142: 0.5052080085 | E142: 0 | F142: 0.9948231772 | G142: 0.9998128859 | I142: 9.025759371
A143: HD | C143: 14.67598079 | D143: 3.999251544 | E143: 0.9998128859 | F143: 2.214806961 | G143: 0.5382648288 | I143: 22.42811701
A144: Komm. og Sprog | C144: 9.718705171 | D144: 6.247739038 | E144: 5.793675544 | F144: 0 | G144: 0 | I144: 21.76011975
A145: Cand. IT. | C145: 2.860974241 | D145: 4.583671178 | E145: 1.810640554 | F145: 0.9998128859 | G145: 0 | I145: 10.25509886
A146: Bac. Samf. | C146: 0.9998128859 | D146: 1.094617352 | E146: 0 | F146: 0 | G146: 0 | I146: 2.094430238
A147: Bac. Hum. | C147: 5.361442026 | D147: 5.721948481 | E147: 1.999625772 | F147: 1.700243248 | G147: 0 | I147: 14.78325953
A148: Bac. Nat. | C148: 6.68745712 | D148: 2.627705358 | E148: 0 | F148: 0 | G148: 0 | I148: 9.315162477
A149: Andre | C149: 20.12536643 | D149: 22.13434791 | E149: 13.5476829 | F149: 12.33892597 | G149: 2.260961766 | I149: 70.40728497
A151: Total | C151: 319.729932 | D151: 230.5706979 | E151: 126.2895278 | F151: 70.47464604 | G151: 23.13790307 | I151: 770.2027069
A153: Ingeniører i alt | C153: 18.23114826 | D153: 13.24143953 | E153: 9.957587476 | F153: 8.265452504 | G153: 2.32582798 | I153: 52.02145575
A154: Magistre i alt | C154: 67.73404852 | D154: 63.70860101 | E154: 43.95372045 | F154: 18.35838583 | G154: 8.127611801 | I154: 201.8823676
A155: DJØF'ere i alt | C155: 97.57313042 | D155: 66.9712468 | E155: 37.19952598 | F155: 16.97810765 | G155: 6.053140398 | I155: 224.7751513
A162: Ballerup
C164: Under 30 år | D164: 30 - 39 år | E164: 40 - 49 år | F164: 50 - 59 år | G164: Over 60 år | I164: I alt
A166: Civ. ing. | C166: 0.9998128859 | D166: 0.9998128859 | E166: 0.9998128859 | F166: 0.9998128859 | G166: 0.9998128859 | I166: 4.99906443
A167: Diplom ing. | C167: 2.120626208 | D167: 0.9998128859 | E167: 2.537890601 | F167: 2.692571571 | G167: 2.768664629 | I167: 11.1195659
A168: Cand. Scient. Tek | C168: 10.16715524 | D168: 2.999438658 | E168: 2.999438658 | F168: 0 | G168: 0 | I168: 16.16603256
A169: MA. Hum. | C169: 0.9998128859 | D169: 2.574065989 | E169: 3.744152685 | F169: 0 | G169: 0.9998128859 | I169: 8.317844446
A170: MA. Nat. | C170: 0.8438844882 | D170: 0.3074908002 | E170: 0.9998128859 | F170: 0 | G170: 0 | I170: 2.151188174
A171: MA. Ph.d. | C171: 0 | D171: 0 | E171: 0.5002182998 | F171: 0 | G171: 0 | I171: 0.5002182998
A172: MA. Samf. | C172: 0 | D172: 0 | E172: 0 | F172: 0 | G172: 0 | I172: 0
A173: Øvrige Mag. | C173: 0 | D173: 0.9998128859 | E173: 0 | F173: 0.9998128859 | G173: 0 | I173: 1.999625772
A174: Agronom | C174: 0 | D174: 0 | E174: 0 | F174: 0.9998128859 | G174: 0 | I174: 0.9998128859
A175: Landsk. Arkt. | C175: 0 | D175: 0 | E175: 0 | F175: 0 | G175: 0 | I175: 0
A176: Hortonom | C176: 0 | D176: 0 | E176: 0 | F176: 0 | G176: 0 | I176: 0
A177: Forstkand. | C177: 0 | D177: 0 | E177: 0 | F177: 0 | G177: 0 | I177: 0
A178: Jordbrugsakad. | C178: 0 | D178: 0 | E178: 0 | F178: 0.9998128859 | G178: 0 | I178: 0.9998128859
A179: Mejeriing. | C179: 0 | D179: 0 | E179: 0 | F179: 0 | G179: 0 | I179: 0
A180: Levn.m.kand. | C180: 0 | D180: 0 | E180: 0 | F180: 0 | G180: 0 | I180: 0
A181: Dyrlæge | C181: 0 | D181: 0 | E181: 0 | F181: 0 | G181: 0 | I181: 0
A182: Farmaceut | C182: 1.999625772 | D182: 0 | E182: 0 | F182: 0 | G182: 0 | I182: 1.999625772
A183: Læge | C183: 0 | D183: 0 | E183: 0 | F183: 0 | G183: 0 | I183: 0
A184: Tandlæge | C184: 0 | D184: 0 | E184: 0 | F184: 0 | G184: 0 | I184: 0
A185: Arkitekt | C185: 0.9998128859 | D185: 0 | E185: 0 | F185: 0 | G185: 0 | I185: 0.9998128859
A186: Landinspek. | C186: 0 | D186: 0 | E186: 0 | F186: 0 | G186: 0 | I186: 0
A187: Bibliotekar | C187: 0.9998128859 | D187: 0.9998128859 | E187: 0 | F187: 0.9075032745 | G187: 0 | I187: 2.907129046
A188: Musikudd. | C188: 0 | D188: 0 | E188: 0 | F188: 0 | G188: 0 | I188: 0
A189: Teolog | C189: 0 | D189: 0 | E189: 0 | F189: 0 | G189: 0 | I189: 0
A190: Psykolog | C190: 0 | D190: 0 | E190: 0.7222603381 | F190: 0 | G190: 0 | I190: 0.7222603381
A191: Jurist | C191: 1.491922909 | D191: 0 | E191: 1.307303686 | F191: 0.9998128859 | G191: 0 | I191: 3.799039481
A192: Økonom | C192: 0 | D192: 0 | E192: 0.9998128859 | F192: 0 | G192: 0 | I192: 0.9998128859
A193: Samf. Adm. | C193: 0.6817189547 | D193: 2.922721886 | E193: 0.9075032745 | F193: 1.999625772 | G193: 0 | I193: 6.511569887
A194: Cand. Merc. | C194: 0.9536580802 | D194: 1.722696938 | E194: 0.8613484688 | F194: 1.34098422 | G194: 0 | I194: 4.878687707
A195: HA | C195: 1.999625772 | D195: 0 | E195: 0 | F195: 1.101478201 | G195: 0.1228715774 | I195: 3.22397555
A196: HD | C196: 0 | D196: 0.9998128859 | E196: 1.999625772 | F196: 0.9998128859 | G196: 0 | I196: 3.999251544
A197: Komm. og Sprog | C197: 1.26114888 | D197: 0.9998128859 | E197: 0 | F197: 0.2613359945 | G197: 0 | I197: 2.522297761
A198: Cand. IT. | C198: 0 | D198: 1.999625772 | E198: 0 | F198: 0 | G198: 0 | I198: 1.999625772
A199: Bac. Samf. | C199: 0 | D199: 0 | E199: 0 | F199: 0 | G199: 0 | I199: 0
A200: Bac. Hum. | C200: 0 | D200: 0 | E200: 0 | F200: 0 | G200: 0 | I200: 0
A201: Bac. Nat. | C201: 1.307303686 | D201: 0 | E201: 0.9998128859 | F201: 0 | G201: 0 | I201: 2.307116572
A202: Andre | C202: 2.999438658 | D202: 1.999625772 | E202: 2.676355018 | F202: 0 | G202: 0 | I202: 7.675419447
A204: Total | C204: 29.82536019 | D204: 20.52454313 | E204: 22.25534834 | F204: 13.30256346 | G204: 4.891161978 | I204: 90.79897711
A206: Ingeniører i alt | C206: 3.120439094 | D206: 1.999625772 | E206: 3.537703487 | F206: 3.692384457 | G206: 3.768477515 | I206: 16.11863032
A207: Magistre i alt | C207: 1.843697374 | D207: 3.881369675 | E207: 5.244183871 | F207: 0.9998128859 | G207: 0.9998128859 | I207: 12.96887669
A208: DJØF'ere i alt | C208: 5.126925716 | D208: 4.645418824 | E208: 4.075968315 | F208: 5.441901079 | G208: 0.1228715774 | I208: 19.41308551
A215: Brøndby
C217: Under 30 år | D217: 30 - 39 år | E217: 40 - 49 år | F217: 50 - 59 år | G217: Over 60 år | I217: I alt
A219: Civ. ing. | C219: 4.445206761 | D219: 0 | E219: 0 | F219: 1.999625772 | G219: 0 | I219: 6.444832533
A220: Diplom ing. | C220: 0.9998128859 | D220: 0 | E220: 0 | F220: 0.9998128859 | G220: 0 | I220: 1.999625772
A221: Cand. Scient. Tek | C221: 6.71178195 | D221: 1.953470966 | E221: 0.8707041726 | F221: 0.9998128859 | G221: 0 | I221: 10.53576997
A222: MA. Hum. | C222: 2.214806961 | D222: 4.810079212 | E222: 0.5382648288 | F222: 0 | G222: 0 | I222: 7.563151001
A223: MA. Nat. | C223: 0 | D223: 0.9998128859 | E223: 2.168652155 | F223: 0.9998128859 | G223: 0 | I223: 4.168277927
A224: MA. Ph.d. | C224: 0 | D224: 0 | E224: 0.9998128859 | F224: 0 | G224: 0 | I224: 0.9998128859
A225: MA. Samf. | C225: 0.9998128859 | D225: 1.999625772 | E225: 0.6723632508 | F225: 0 | G225: 0 | I225: 3.671801909
A226: Øvrige Mag. | C226: 0.9998128859 | D226: 0.9998128859 | E226: 0 | F226: 0 | G226: 0.3698621593 | I226: 2.369487931
A227: Agronom | C227: 0 | D227: 0 | E227: 0 | F227: 0 | G227: 0 | I227: 0
A228: Landsk. Arkt. | C228: 0 | D228: 0 | E228: 0 | F228: 0 | G228: 0 | I228: 0
A229: Hortonom | C229: 0 | D229: 0 | E229: 0 | F229: 0 | G229: 0 | I229: 0
A230: Forstkand. | C230: 0 | D230: 0 | E230: 0 | F230: 0 | G230: 0 | I230: 0
A231: Jordbrugsakad. | C231: 0 | D231: 0 | E231: 0 | F231: 0 | G231: 0 | I231: 0
A232: Mejeriing. | C232: 0 | D232: 0 | E232: 0 | F232: 0 | G232: 0 | I232: 0
A233: Levn.m.kand. | C233: 0 | D233: 0 | E233: 0 | F233: 0 | G233: 0 | I233: 0
A234: Dyrlæge | C234: 0 | D234: 0.8937815755 | E234: 0 | F234: 0 | G234: 0 | I234: 0.8937815755
A235: Farmaceut | C235: 0.9998128859 | D235: 0 | E235: 0 | F235: 0 | G235: 0 | I235: 0.9998128859
A236: Læge | C236: 0 | D236: 0 | E236: 0 | F236: 0 | G236: 0 | I236: 0
A237: Tandlæge | C237: 0 | D237: 0 | E237: 0 | F237: 0 | G237: 0 | I237: 0
A238: Arkitekt | C238: 0 | D238: 0.391692135 | E238: 0 | F238: 0 | G238: 0 | I238: 0.391692135
A239: Landinspek. | C239: 0 | D239: 0 | E239: 0 | F239: 0 | G239: 0 | I239: 0
A240: Bibliotekar | C240: 0 | D240: 0.9998128859 | E240: 0 | F240: 0 | G240: 0 | I240: 0.9998128859
A241: Musikudd. | C241: 0 | D241: 0 | E241: 0 | F241: 0 | G241: 0 | I241: 0
A242: Teolog | C242: 0 | D242: 0 | E242: 0 | F242: 0 | G242: 0 | I242: 0
A243: Psykolog | C243: 0 | D243: 0 | E243: 0 | F243: 0 | G243: 0 | I243: 0
... 1048 more rows

Sheet Tabel 4P H
A1: Tabel 4. Ledighedsberørte - aldersfordelt
A3: Hovedstaden
C5: Under 30 år | D5: 30 - 39 år | E5: 40 - 49 år | F5: 50 - 59 år | G5: Over 60 år | I5: I alt
A7: Civ. ing. | C7: =IF(OR('Tabel 4F H'!C7<5,'Tabel 4 H'!C7<0.5),"-",IFERROR('Tabel 4 H'!C7/'Tabel 4F H'!C7*100,"-")) -> 9.53722334 | D7: =IF(OR('Tabel 4F H'!D7<5,'Tabel 4 H'!D7<0.5),"-",IFERROR('Tabel 4 H'!D7/'Tabel 4F H'!D7*100,"-")) -> 2.305526223 | E7: =IF(OR('Tabel 4F H'!E7<5,'Tabel 4 H'!E7<0.5),"-",IFERROR('Tabel 4 H'!E7/'Tabel 4F H'!E7*100,"-")) -> 1.32776002 | F7: =IF(OR('Tabel 4F H'!F7<5,'Tabel 4 H'!F7<0.5),"-",IFERROR('Tabel 4 H'!F7/'Tabel 4F H'!F7*100,"-")) -> 1.537616694 | G7: =IF(OR('Tabel 4F H'!G7<5,'Tabel 4 H'!G7<0.5),"-",IFERROR('Tabel 4 H'!G7/'Tabel 4F H'!G7*100,"-")) -> 2.906448683 | I7: =IF(OR('Tabel 4F H'!I7<5,'Tabel 4 H'!I7<0.5),"-",IFERROR('Tabel 4 H'!I7/'Tabel 4F H'!I7*100,"-")) -> 3.004064322
A8: Diplom ing. | C8: =IF(OR('Tabel 4F H'!C8<5,'Tabel 4 H'!C8<0.5),"-",IFERROR('Tabel 4 H'!C8/'Tabel 4F H'!C8*100,"-")) -> 9.414024976 | D8: =IF(OR('Tabel 4F H'!D8<5,'Tabel 4 H'!D8<0.5),"-",IFERROR('Tabel 4 H'!D8/'Tabel 4F H'!D8*100,"-")) -> 2.939825448 | E8: =IF(OR('Tabel 4F H'!E8<5,'Tabel 4 H'!E8<0.5),"-",IFERROR('Tabel 4 H'!E8/'Tabel 4F H'!E8*100,"-")) -> 1.926016509 | F8: =IF(OR('Tabel 4F H'!F8<5,'Tabel 4 H'!F8<0.5),"-",IFERROR('Tabel 4 H'!F8/'Tabel 4F H'!F8*100,"-")) -> 2.051168946 | G8: =IF(OR('Tabel 4F H'!G8<5,'Tabel 4 H'!G8<0.5),"-",IFERROR('Tabel 4 H'!G8/'Tabel 4F H'!G8*100,"-")) -> 3.353204173 | I8: =IF(OR('Tabel 4F H'!I8<5,'Tabel 4 H'!I8<0.5),"-",IFERROR('Tabel 4 H'!I8/'Tabel 4F H'!I8*100,"-")) -> 2.935705621
A9: Cand. Scient. Tek | C9: =IF(OR('Tabel 4F H'!C9<5,'Tabel 4 H'!C9<0.5),"-",IFERROR('Tabel 4 H'!C9/'Tabel 4F H'!C9*100,"-")) -> 20.07348029 | D9: =IF(OR('Tabel 4F H'!D9<5,'Tabel 4 H'!D9<0.5),"-",IFERROR('Tabel 4 H'!D9/'Tabel 4F H'!D9*100,"-")) -> 7.130320316 | E9: =IF(OR('Tabel 4F H'!E9<5,'Tabel 4 H'!E9<0.5),"-",IFERROR('Tabel 4 H'!E9/'Tabel 4F H'!E9*100,"-")) -> 3.489183531 | F9: =IF(OR('Tabel 4F H'!F9<5,'Tabel 4 H'!F9<0.5),"-",IFERROR('Tabel 4 H'!F9/'Tabel 4F H'!F9*100,"-")) -> 3.448275862 | G9: =IF(OR('Tabel 4F H'!G9<5,'Tabel 4 H'!G9<0.5),"-",IFERROR('Tabel 4 H'!G9/'Tabel 4F H'!G9*100,"-")) -> 5.940594059 | I9: =IF(OR('Tabel 4F H'!I9<5,'Tabel 4 H'!I9<0.5),"-",IFERROR('Tabel 4 H'!I9/'Tabel 4F H'!I9*100,"-")) -> 10.40799334
A10: MA. Hum. | C10: =IF(OR('Tabel 4F H'!C10<5,'Tabel 4 H'!C10<0.5),"-",IFERROR('Tabel 4 H'!C10/'Tabel 4F H'!C10*100,"-")) -> 24.4149766 | D10: =IF(OR('Tabel 4F H'!D10<5,'Tabel 4 H'!D10<0.5),"-",IFERROR('Tabel 4 H'!D10/'Tabel 4F H'!D10*100,"-")) -> 9.658371995 | E10: =IF(OR('Tabel 4F H'!E10<5,'Tabel 4 H'!E10<0.5),"-",IFERROR('Tabel 4 H'!E10/'Tabel 4F H'!E10*100,"-")) -> 4.820785725 | F10: =IF(OR('Tabel 4F H'!F10<5,'Tabel 4 H'!F10<0.5),"-",IFERROR('Tabel 4 H'!F10/'Tabel 4F H'!F10*100,"-")) -> 5.456702254 | G10: =IF(OR('Tabel 4F H'!G10<5,'Tabel 4 H'!G10<0.5),"-",IFERROR('Tabel 4 H'!G10/'Tabel 4F H'!G10*100,"-")) -> 6.581740977 | I10: =IF(OR('Tabel 4F H'!I10<5,'Tabel 4 H'!I10<0.5),"-",IFERROR('Tabel 4 H'!I10/'Tabel 4F H'!I10*100,"-")) -> 9.320775964
A11: MA. Nat. | C11: =IF(OR('Tabel 4F H'!C11<5,'Tabel 4 H'!C11<0.5),"-",IFERROR('Tabel 4 H'!C11/'Tabel 4F H'!C11*100,"-")) -> 18.12749004 | D11: =IF(OR('Tabel 4F H'!D11<5,'Tabel 4 H'!D11<0.5),"-",IFERROR('Tabel 4 H'!D11/'Tabel 4F H'!D11*100,"-")) -> 5.579399142 | E11: =IF(OR('Tabel 4F H'!E11<5,'Tabel 4 H'!E11<0.5),"-",IFERROR('Tabel 4 H'!E11/'Tabel 4F H'!E11*100,"-")) -> 1.715592833 | F11: =IF(OR('Tabel 4F H'!F11<5,'Tabel 4 H'!F11<0.5),"-",IFERROR('Tabel 4 H'!F11/'Tabel 4F H'!F11*100,"-")) -> 1.807909605 | G11: =IF(OR('Tabel 4F H'!G11<5,'Tabel 4 H'!G11<0.5),"-",IFERROR('Tabel 4 H'!G11/'Tabel 4F H'!G11*100,"-")) -> 1.91740413 | I11: =IF(OR('Tabel 4F H'!I11<5,'Tabel 4 H'!I11<0.5),"-",IFERROR('Tabel 4 H'!I11/'Tabel 4F H'!I11*100,"-")) -> 3.775680178
A12: MA. Ph.d. | C12: =IF(OR('Tabel 4F H'!C12<5,'Tabel 4 H'!C12<0.5),"-",IFERROR('Tabel 4 H'!C12/'Tabel 4F H'!C12*100,"-")) -> 5.555555556 | D12: =IF(OR('Tabel 4F H'!D12<5,'Tabel 4 H'!D12<0.5),"-",IFERROR('Tabel 4 H'!D12/'Tabel 4F H'!D12*100,"-")) -> 4.709141274 | E12: =IF(OR('Tabel 4F H'!E12<5,'Tabel 4 H'!E12<0.5),"-",IFERROR('Tabel 4 H'!E12/'Tabel 4F H'!E12*100,"-")) -> 6.726457399 | F12: =IF(OR('Tabel 4F H'!F12<5,'Tabel 4 H'!F12<0.5),"-",IFERROR('Tabel 4 H'!F12/'Tabel 4F H'!F12*100,"-")) -> 3.603603604 | G12: =IF(OR('Tabel 4F H'!G12<5,'Tabel 4 H'!G12<0.5),"-",IFERROR('Tabel 4 H'!G12/'Tabel 4F H'!G12*100,"-")) -> 7.692307692 | I12: =IF(OR('Tabel 4F H'!I12<5,'Tabel 4 H'!I12<0.5),"-",IFERROR('Tabel 4 H'!I12/'Tabel 4F H'!I12*100,"-")) -> 5.339805825
A13: MA. Samf. | C13: =IF(OR('Tabel 4F H'!C13<5,'Tabel 4 H'!C13<0.5),"-",IFERROR('Tabel 4 H'!C13/'Tabel 4F H'!C13*100,"-")) -> 21.72897196 | D13: =IF(OR('Tabel 4F H'!D13<5,'Tabel 4 H'!D13<0.5),"-",IFERROR('Tabel 4 H'!D13/'Tabel 4F H'!D13*100,"-")) -> 11.92334989 | E13: =IF(OR('Tabel 4F H'!E13<5,'Tabel 4 H'!E13<0.5),"-",IFERROR('Tabel 4 H'!E13/'Tabel 4F H'!E13*100,"-")) -> 6.40569395 | F13: =IF(OR('Tabel 4F H'!F13<5,'Tabel 4 H'!F13<0.5),"-",IFERROR('Tabel 4 H'!F13/'Tabel 4F H'!F13*100,"-")) -> 6.392694064 | G13: =IF(OR('Tabel 4F H'!G13<5,'Tabel 4 H'!G13<0.5),"-",IFERROR('Tabel 4 H'!G13/'Tabel 4F H'!G13*100,"-")) -> 2.325581395 | I13: =IF(OR('Tabel 4F H'!I13<5,'Tabel 4 H'!I13<0.5),"-",IFERROR('Tabel 4 H'!I13/'Tabel 4F H'!I13*100,"-")) -> 13.11103917
A14: Øvrige Mag. | C14: =IF(OR('Tabel 4F H'!C14<5,'Tabel 4 H'!C14<0.5),"-",IFERROR('Tabel 4 H'!C14/'Tabel 4F H'!C14*100,"-")) -> 28.40236686 | D14: =IF(OR('Tabel 4F H'!D14<5,'Tabel 4 H'!D14<0.5),"-",IFERROR('Tabel 4 H'!D14/'Tabel 4F H'!D14*100,"-")) -> 10.36414566 | E14: =IF(OR('Tabel 4F H'!E14<5,'Tabel 4 H'!E14<0.5),"-",IFERROR('Tabel 4 H'!E14/'Tabel 4F H'!E14*100,"-")) -> 3.977272727 | F14: =IF(OR('Tabel 4F H'!F14<5,'Tabel 4 H'!F14<0.5),"-",IFERROR('Tabel 4 H'!F14/'Tabel 4F H'!F14*100,"-")) -> 4.896907216 | G14: =IF(OR('Tabel 4F H'!G14<5,'Tabel 4 H'!G14<0.5),"-",IFERROR('Tabel 4 H'!G14/'Tabel 4F H'!G14*100,"-")) -> 10.71428571 | I14: =IF(OR('Tabel 4F H'!I14<5,'Tabel 4 H'!I14<0.5),"-",IFERROR('Tabel 4 H'!I14/'Tabel 4F H'!I14*100,"-")) -> 8.815958816
A15: Agronom | C15: =IF(OR('Tabel 4F H'!C15<5,'Tabel 4 H'!C15<0.5),"-",IFERROR('Tabel 4 H'!C15/'Tabel 4F H'!C15*100,"-")) -> 27.38095238 | D15: =IF(OR('Tabel 4F H'!D15<5,'Tabel 4 H'!D15<0.5),"-",IFERROR('Tabel 4 H'!D15/'Tabel 4F H'!D15*100,"-")) -> 2.649006623 | E15: =IF(OR('Tabel 4F H'!E15<5,'Tabel 4 H'!E15<0.5),"-",IFERROR('Tabel 4 H'!E15/'Tabel 4F H'!E15*100,"-")) -> 3.004291845 | F15: =IF(OR('Tabel 4F H'!F15<5,'Tabel 4 H'!F15<0.5),"-",IFERROR('Tabel 4 H'!F15/'Tabel 4F H'!F15*100,"-")) -> 3.585657371 | G15: =IF(OR('Tabel 4F H'!G15<5,'Tabel 4 H'!G15<0.5),"-",IFERROR('Tabel 4 H'!G15/'Tabel 4F H'!G15*100,"-")) -> 2.298850575 | I15: =IF(OR('Tabel 4F H'!I15<5,'Tabel 4 H'!I15<0.5),"-",IFERROR('Tabel 4 H'!I15/'Tabel 4F H'!I15*100,"-")) -> 5.583126551
A16: Landsk. Arkt. | C16: =IF(OR('Tabel 4F H'!C16<5,'Tabel 4 H'!C16<0.5),"-",IFERROR('Tabel 4 H'!C16/'Tabel 4F H'!C16*100,"-")) -> 29.41176471 | D16: =IF(OR('Tabel 4F H'!D16<5,'Tabel 4 H'!D16<0.5),"-",IFERROR('Tabel 4 H'!D16/'Tabel 4F H'!D16*100,"-")) -> 10.17964072 | E16: =IF(OR('Tabel 4F H'!E16<5,'Tabel 4 H'!E16<0.5),"-",IFERROR('Tabel 4 H'!E16/'Tabel 4F H'!E16*100,"-")) -> 2.158273381 | F16: =IF(OR('Tabel 4F H'!F16<5,'Tabel 4 H'!F16<0.5),"-",IFERROR('Tabel 4 H'!F16/'Tabel 4F H'!F16*100,"-")) -> 2.702702703 | G16: =IF(OR('Tabel 4F H'!G16<5,'Tabel 4 H'!G16<0.5),"-",IFERROR('Tabel 4 H'!G16/'Tabel 4F H'!G16*100,"-")) -> - | I16: =IF(OR('Tabel 4F H'!I16<5,'Tabel 4 H'!I16<0.5),"-",IFERROR('Tabel 4 H'!I16/'Tabel 4F H'!I16*100,"-")) -> 8.974358974
A17: Hortonom | C17: =IF(OR('Tabel 4F H'!C17<5,'Tabel 4 H'!C17<0.5),"-",IFERROR('Tabel 4 H'!C17/'Tabel 4F H'!C17*100,"-")) -> - | D17: =IF(OR('Tabel 4F H'!D17<5,'Tabel 4 H'!D17<0.5),"-",IFERROR('Tabel 4 H'!D17/'Tabel 4F H'!D17*100,"-")) -> - | E17: =IF(OR('Tabel 4F H'!E17<5,'Tabel 4 H'!E17<0.5),"-",IFERROR('Tabel 4 H'!E17/'Tabel 4F H'!E17*100,"-")) -> 4.081632653 | F17: =IF(OR('Tabel 4F H'!F17<5,'Tabel 4 H'!F17<0.5),"-",IFERROR('Tabel 4 H'!F17/'Tabel 4F H'!F17*100,"-")) -> 1.351351351 | G17: =IF(OR('Tabel 4F H'!G17<5,'Tabel 4 H'!G17<0.5),"-",IFERROR('Tabel 4 H'!G17/'Tabel 4F H'!G17*100,"-")) -> 5.555555556 | I17: =IF(OR('Tabel 4F H'!I17<5,'Tabel 4 H'!I17<0.5),"-",IFERROR('Tabel 4 H'!I17/'Tabel 4F H'!I17*100,"-")) -> 2.51572327
A18: Forstkand. | C18: =IF(OR('Tabel 4F H'!C18<5,'Tabel 4 H'!C18<0.5),"-",IFERROR('Tabel 4 H'!C18/'Tabel 4F H'!C18*100,"-")) -> 31.81818182 | D18: =IF(OR('Tabel 4F H'!D18<5,'Tabel 4 H'!D18<0.5),"-",IFERROR('Tabel 4 H'!D18/'Tabel 4F H'!D18*100,"-")) -> 13.88888889 | E18: =IF(OR('Tabel 4F H'!E18<5,'Tabel 4 H'!E18<0.5),"-",IFERROR('Tabel 4 H'!E18/'Tabel 4F H'!E18*100,"-")) -> - | F18: =IF(OR('Tabel 4F H'!F18<5,'Tabel 4 H'!F18<0.5),"-",IFERROR('Tabel 4 H'!F18/'Tabel 4F H'!F18*100,"-")) -> 2.777777778 | G18: =IF(OR('Tabel 4F H'!G18<5,'Tabel 4 H'!G18<0.5),"-",IFERROR('Tabel 4 H'!G18/'Tabel 4F H'!G18*100,"-")) -> 3.703703704 | I18: =IF(OR('Tabel 4F H'!I18<5,'Tabel 4 H'!I18<0.5),"-",IFERROR('Tabel 4 H'!I18/'Tabel 4F H'!I18*100,"-")) -> 5.769230769
A19: Jordbrugsakad. | C19: =IF(OR('Tabel 4F H'!C19<5,'Tabel 4 H'!C19<0.5),"-",IFERROR('Tabel 4 H'!C19/'Tabel 4F H'!C19*100,"-")) -> 28.57142857 | D19: =IF(OR('Tabel 4F H'!D19<5,'Tabel 4 H'!D19<0.5),"-",IFERROR('Tabel 4 H'!D19/'Tabel 4F H'!D19*100,"-")) -> 7.008086253 | E19: =IF(OR('Tabel 4F H'!E19<5,'Tabel 4 H'!E19<0.5),"-",IFERROR('Tabel 4 H'!E19/'Tabel 4F H'!E19*100,"-")) -> 2.290076336 | F19: =IF(OR('Tabel 4F H'!F19<5,'Tabel 4 H'!F19<0.5),"-",IFERROR('Tabel 4 H'!F19/'Tabel 4F H'!F19*100,"-")) -> 2.972399151 | G19: =IF(OR('Tabel 4F H'!G19<5,'Tabel 4 H'!G19<0.5),"-",IFERROR('Tabel 4 H'!G19/'Tabel 4F H'!G19*100,"-")) -> 2.631578947 | I19: =IF(OR('Tabel 4F H'!I19<5,'Tabel 4 H'!I19<0.5),"-",IFERROR('Tabel 4 H'!I19/'Tabel 4F H'!I19*100,"-")) -> 6.261075015
A20: Mejeriing. | C20: =IF(OR('Tabel 4F H'!C20<5,'Tabel 4 H'!C20<0.5),"-",IFERROR('Tabel 4 H'!C20/'Tabel 4F H'!C20*100,"-")) -> 23.07692308 | D20: =IF(OR('Tabel 4F H'!D20<5,'Tabel 4 H'!D20<0.5),"-",IFERROR('Tabel 4 H'!D20/'Tabel 4F H'!D20*100,"-")) -> 2.941176471 | E20: =IF(OR('Tabel 4F H'!E20<5,'Tabel 4 H'!E20<0.5),"-",IFERROR('Tabel 4 H'!E20/'Tabel 4F H'!E20*100,"-")) -> - | F20: =IF(OR('Tabel 4F H'!F20<5,'Tabel 4 H'!F20<0.5),"-",IFERROR('Tabel 4 H'!F20/'Tabel 4F H'!F20*100,"-")) -> - | G20: =IF(OR('Tabel 4F H'!G20<5,'Tabel 4 H'!G20<0.5),"-",IFERROR('Tabel 4 H'!G20/'Tabel 4F H'!G20*100,"-")) -> - | I20: =IF(OR('Tabel 4F H'!I20<5,'Tabel 4 H'!I20<0.5),"-",IFERROR('Tabel 4 H'!I20/'Tabel 4F H'!I20*100,"-")) -> 5.34351145
A21: Levn.m.kand. | C21: =IF(OR('Tabel 4F H'!C21<5,'Tabel 4 H'!C21<0.5),"-",IFERROR('Tabel 4 H'!C21/'Tabel 4F H'!C21*100,"-")) -> 26.43678161 | D21: =IF(OR('Tabel 4F H'!D21<5,'Tabel 4 H'!D21<0.5),"-",IFERROR('Tabel 4 H'!D21/'Tabel 4F H'!D21*100,"-")) -> 13.76811594 | E21: =IF(OR('Tabel 4F H'!E21<5,'Tabel 4 H'!E21<0.5),"-",IFERROR('Tabel 4 H'!E21/'Tabel 4F H'!E21*100,"-")) -> 5.714285714 | F21: =IF(OR('Tabel 4F H'!F21<5,'Tabel 4 H'!F21<0.5),"-",IFERROR('Tabel 4 H'!F21/'Tabel 4F H'!F21*100,"-")) -> 16.66666667 | G21: =IF(OR('Tabel 4F H'!G21<5,'Tabel 4 H'!G21<0.5),"-",IFERROR('Tabel 4 H'!G21/'Tabel 4F H'!G21*100,"-")) -> - | I21: =IF(OR('Tabel 4F H'!I21<5,'Tabel 4 H'!I21<0.5),"-",IFERROR('Tabel 4 H'!I21/'Tabel 4F H'!I21*100,"-")) -> 15.46052632
A22: Dyrlæge | C22: =IF(OR('Tabel 4F H'!C22<5,'Tabel 4 H'!C22<0.5),"-",IFERROR('Tabel 4 H'!C22/'Tabel 4F H'!C22*100,"-")) -> 12.85714286 | D22: =IF(OR('Tabel 4F H'!D22<5,'Tabel 4 H'!D22<0.5),"-",IFERROR('Tabel 4 H'!D22/'Tabel 4F H'!D22*100,"-")) -> 4.941860465 | E22: =IF(OR('Tabel 4F H'!E22<5,'Tabel 4 H'!E22<0.5),"-",IFERROR('Tabel 4 H'!E22/'Tabel 4F H'!E22*100,"-")) -> 2.727272727 | F22: =IF(OR('Tabel 4F H'!F22<5,'Tabel 4 H'!F22<0.5),"-",IFERROR('Tabel 4 H'!F22/'Tabel 4F H'!F22*100,"-")) -> 4.294478528 | G22: =IF(OR('Tabel 4F H'!G22<5,'Tabel 4 H'!G22<0.5),"-",IFERROR('Tabel 4 H'!G22/'Tabel 4F H'!G22*100,"-")) -> 5.882352941 | I22: =IF(OR('Tabel 4F H'!I22<5,'Tabel 4 H'!I22<0.5),"-",IFERROR('Tabel 4 H'!I22/'Tabel 4F H'!I22*100,"-")) -> 5.555555556
A23: Farmaceut | C23: =IF(OR('Tabel 4F H'!C23<5,'Tabel 4 H'!C23<0.5),"-",IFERROR('Tabel 4 H'!C23/'Tabel 4F H'!C23*100,"-")) -> 15.7980456 | D23: =IF(OR('Tabel 4F H'!D23<5,'Tabel 4 H'!D23<0.5),"-",IFERROR('Tabel 4 H'!D23/'Tabel 4F H'!D23*100,"-")) -> 3.137254902 | E23: =IF(OR('Tabel 4F H'!E23<5,'Tabel 4 H'!E23<0.5),"-",IFERROR('Tabel 4 H'!E23/'Tabel 4F H'!E23*100,"-")) -> 1.012145749 | F23: =IF(OR('Tabel 4F H'!F23<5,'Tabel 4 H'!F23<0.5),"-",IFERROR('Tabel 4 H'!F23/'Tabel 4F H'!F23*100,"-")) -> 2.34375 | G23: =IF(OR('Tabel 4F H'!G23<5,'Tabel 4 H'!G23<0.5),"-",IFERROR('Tabel 4 H'!G23/'Tabel 4F H'!G23*100,"-")) -> 2.173913043 | I23: =IF(OR('Tabel 4F H'!I23<5,'Tabel 4 H'!I23<0.5),"-",IFERROR('Tabel 4 H'!I23/'Tabel 4F H'!I23*100,"-")) -> 4.48527425
A24: Læge | C24: =IF(OR('Tabel 4F H'!C24<5,'Tabel 4 H'!C24<0.5),"-",IFERROR('Tabel 4 H'!C24/'Tabel 4F H'!C24*100,"-")) -> 2.474526929 | D24: =IF(OR('Tabel 4F H'!D24<5,'Tabel 4 H'!D24<0.5),"-",IFERROR('Tabel 4 H'!D24/'Tabel 4F H'!D24*100,"-")) -> 1.672240803 | E24: =IF(OR('Tabel 4F H'!E24<5,'Tabel 4 H'!E24<0.5),"-",IFERROR('Tabel 4 H'!E24/'Tabel 4F H'!E24*100,"-")) -> 0.6375227687 | F24: =IF(OR('Tabel 4F H'!F24<5,'Tabel 4 H'!F24<0.5),"-",IFERROR('Tabel 4 H'!F24/'Tabel 4F H'!F24*100,"-")) -> 0.6578947368 | G24: =IF(OR('Tabel 4F H'!G24<5,'Tabel 4 H'!G24<0.5),"-",IFERROR('Tabel 4 H'!G24/'Tabel 4F H'!G24*100,"-")) -> 0.2358490566 | I24: =IF(OR('Tabel 4F H'!I24<5,'Tabel 4 H'!I24<0.5),"-",IFERROR('Tabel 4 H'!I24/'Tabel 4F H'!I24*100,"-")) -> 1.28407744
A25: Tandlæge | C25: =IF(OR('Tabel 4F H'!C25<5,'Tabel 4 H'!C25<0.5),"-",IFERROR('Tabel 4 H'!C25/'Tabel 4F H'!C25*100,"-")) -> 4.379562044 | D25: =IF(OR('Tabel 4F H'!D25<5,'Tabel 4 H'!D25<0.5),"-",IFERROR('Tabel 4 H'!D25/'Tabel 4F H'!D25*100,"-")) -> 2.348993289 | E25: =IF(OR('Tabel 4F H'!E25<5,'Tabel 4 H'!E25<0.5),"-",IFERROR('Tabel 4 H'!E25/'Tabel 4F H'!E25*100,"-")) -> 0.5681818182 | F25: =IF(OR('Tabel 4F H'!F25<5,'Tabel 4 H'!F25<0.5),"-",IFERROR('Tabel 4 H'!F25/'Tabel 4F H'!F25*100,"-")) -> 0.6711409396 | G25: =IF(OR('Tabel 4F H'!G25<5,'Tabel 4 H'!G25<0.5),"-",IFERROR('Tabel 4 H'!G25/'Tabel 4F H'!G25*100,"-")) -> 2.702702703 | I25: =IF(OR('Tabel 4F H'!I25<5,'Tabel 4 H'!I25<0.5),"-",IFERROR('Tabel 4 H'!I25/'Tabel 4F H'!I25*100,"-")) -> 2.038369305
A26: Arkitekt | C26: =IF(OR('Tabel 4F H'!C26<5,'Tabel 4 H'!C26<0.5),"-",IFERROR('Tabel 4 H'!C26/'Tabel 4F H'!C26*100,"-")) -> 30.5019305 | D26: =IF(OR('Tabel 4F H'!D26<5,'Tabel 4 H'!D26<0.5),"-",IFERROR('Tabel 4 H'!D26/'Tabel 4F H'!D26*100,"-")) -> 7.63226366 | E26: =IF(OR('Tabel 4F H'!E26<5,'Tabel 4 H'!E26<0.5),"-",IFERROR('Tabel 4 H'!E26/'Tabel 4F H'!E26*100,"-")) -> 4.088888889 | F26: =IF(OR('Tabel 4F H'!F26<5,'Tabel 4 H'!F26<0.5),"-",IFERROR('Tabel 4 H'!F26/'Tabel 4F H'!F26*100,"-")) -> 4.793608522 | G26: =IF(OR('Tabel 4F H'!G26<5,'Tabel 4 H'!G26<0.5),"-",IFERROR('Tabel 4 H'!G26/'Tabel 4F H'!G26*100,"-")) -> 5.722891566 | I26: =IF(OR('Tabel 4F H'!I26<5,'Tabel 4 H'!I26<0.5),"-",IFERROR('Tabel 4 H'!I26/'Tabel 4F H'!I26*100,"-")) -> 7.403314917
A27: Landinspek. | C27: =IF(OR('Tabel 4F H'!C27<5,'Tabel 4 H'!C27<0.5),"-",IFERROR('Tabel 4 H'!C27/'Tabel 4F H'!C27*100,"-")) -> - | D27: =IF(OR('Tabel 4F H'!D27<5,'Tabel 4 H'!D27<0.5),"-",IFERROR('Tabel 4 H'!D27/'Tabel 4F H'!D27*100,"-")) -> 1.694915254 | E27: =IF(OR('Tabel 4F H'!E27<5,'Tabel 4 H'!E27<0.5),"-",IFERROR('Tabel 4 H'!E27/'Tabel 4F H'!E27*100,"-")) -> 1.923076923 | F27: =IF(OR('Tabel 4F H'!F27<5,'Tabel 4 H'!F27<0.5),"-",IFERROR('Tabel 4 H'!F27/'Tabel 4F H'!F27*100,"-")) -> - | G27: =IF(OR('Tabel 4F H'!G27<5,'Tabel 4 H'!G27<0.5),"-",IFERROR('Tabel 4 H'!G27/'Tabel 4F H'!G27*100,"-")) -> - | I27: =IF(OR('Tabel 4F H'!I27<5,'Tabel 4 H'!I27<0.5),"-",IFERROR('Tabel 4 H'!I27/'Tabel 4F H'!I27*100,"-")) -> 1.015228426
A28: Bibliotekar | C28: =IF(OR('Tabel 4F H'!C28<5,'Tabel 4 H'!C28<0.5),"-",IFERROR('Tabel 4 H'!C28/'Tabel 4F H'!C28*100,"-")) -> 19.23076923 | D28: =IF(OR('Tabel 4F H'!D28<5,'Tabel 4 H'!D28<0.5),"-",IFERROR('Tabel 4 H'!D28/'Tabel 4F H'!D28*100,"-")) -> 7.052896725 | E28: =IF(OR('Tabel 4F H'!E28<5,'Tabel 4 H'!E28<0.5),"-",IFERROR('Tabel 4 H'!E28/'Tabel 4F H'!E28*100,"-")) -> 3.620689655 | F28: =IF(OR('Tabel 4F H'!F28<5,'Tabel 4 H'!F28<0.5),"-",IFERROR('Tabel 4 H'!F28/'Tabel 4F H'!F28*100,"-")) -> 3.791469194 | G28: =IF(OR('Tabel 4F H'!G28<5,'Tabel 4 H'!G28<0.5),"-",IFERROR('Tabel 4 H'!G28/'Tabel 4F H'!G28*100,"-")) -> 3.146853147 | I28: =IF(OR('Tabel 4F H'!I28<5,'Tabel 4 H'!I28<0.5),"-",IFERROR('Tabel 4 H'!I28/'Tabel 4F H'!I28*100,"-")) -> 4.835924007
A29: Musikudd. | C29: =IF(OR('Tabel 4F H'!C29<5,'Tabel 4 H'!C29<0.5),"-",IFERROR('Tabel 4 H'!C29/'Tabel 4F H'!C29*100,"-")) -> 25 | D29: =IF(OR('Tabel 4F H'!D29<5,'Tabel 4 H'!D29<0.5),"-",IFERROR('Tabel 4 H'!D29/'Tabel 4F H'!D29*100,"-")) -> 4.761904762 | E29: =IF(OR('Tabel 4F H'!E29<5,'Tabel 4 H'!E29<0.5),"-",IFERROR('Tabel 4 H'!E29/'Tabel 4F H'!E29*100,"-")) -> 1.470588235 | F29: =IF(OR('Tabel 4F H'!F29<5,'Tabel 4 H'!F29<0.5),"-",IFERROR('Tabel 4 H'!F29/'Tabel 4F H'!F29*100,"-")) -> 2.34375 | G29: =IF(OR('Tabel 4F H'!G29<5,'Tabel 4 H'!G29<0.5),"-",IFERROR('Tabel 4 H'!G29/'Tabel 4F H'!G29*100,"-")) -> 2.409638554 | I29: =IF(OR('Tabel 4F H'!I29<5,'Tabel 4 H'!I29<0.5),"-",IFERROR('Tabel 4 H'!I29/'Tabel 4F H'!I29*100,"-")) -> 3.039513678
A30: Teolog | C30: =IF(OR('Tabel 4F H'!C30<5,'Tabel 4 H'!C30<0.5),"-",IFERROR('Tabel 4 H'!C30/'Tabel 4F H'!C30*100,"-")) -> 27.77777778 | D30: =IF(OR('Tabel 4F H'!D30<5,'Tabel 4 H'!D30<0.5),"-",IFERROR('Tabel 4 H'!D30/'Tabel 4F H'!D30*100,"-")) -> 10.20408163 | E30: =IF(OR('Tabel 4F H'!E30<5,'Tabel 4 H'!E30<0.5),"-",IFERROR('Tabel 4 H'!E30/'Tabel 4F H'!E30*100,"-")) -> 2.475247525 | F30: =IF(OR('Tabel 4F H'!F30<5,'Tabel 4 H'!F30<0.5),"-",IFERROR('Tabel 4 H'!F30/'Tabel 4F H'!F30*100,"-")) -> 3.571428571 | G30: =IF(OR('Tabel 4F H'!G30<5,'Tabel 4 H'!G30<0.5),"-",IFERROR('Tabel 4 H'!G30/'Tabel 4F H'!G30*100,"-")) -> 3.03030303 | I30: =IF(OR('Tabel 4F H'!I30<5,'Tabel 4 H'!I30<0.5),"-",IFERROR('Tabel 4 H'!I30/'Tabel 4F H'!I30*100,"-")) -> 5.072463768
A31: Psykolog | C31: =IF(OR('Tabel 4F H'!C31<5,'Tabel 4 H'!C31<0.5),"-",IFERROR('Tabel 4 H'!C31/'Tabel 4F H'!C31*100,"-")) -> 12.47833622 | D31: =IF(OR('Tabel 4F H'!D31<5,'Tabel 4 H'!D31<0.5),"-",IFERROR('Tabel 4 H'!D31/'Tabel 4F H'!D31*100,"-")) -> 6.298600311 | E31: =IF(OR('Tabel 4F H'!E31<5,'Tabel 4 H'!E31<0.5),"-",IFERROR('Tabel 4 H'!E31/'Tabel 4F H'!E31*100,"-")) -> 2.197802198 | F31: =IF(OR('Tabel 4F H'!F31<5,'Tabel 4 H'!F31<0.5),"-",IFERROR('Tabel 4 H'!F31/'Tabel 4F H'!F31*100,"-")) -> 1.192842942 | G31: =IF(OR('Tabel 4F H'!G31<5,'Tabel 4 H'!G31<0.5),"-",IFERROR('Tabel 4 H'!G31/'Tabel 4F H'!G31*100,"-")) -> 2.928870293 | I31: =IF(OR('Tabel 4F H'!I31<5,'Tabel 4 H'!I31<0.5),"-",IFERROR('Tabel 4 H'!I31/'Tabel 4F H'!I31*100,"-")) -> 5.291607397
A32: Jurist | C32: =IF(OR('Tabel 4F H'!C32<5,'Tabel 4 H'!C32<0.5),"-",IFERROR('Tabel 4 H'!C32/'Tabel 4F H'!C32*100,"-")) -> 5.388471178 | D32: =IF(OR('Tabel 4F H'!D32<5,'Tabel 4 H'!D32<0.5),"-",IFERROR('Tabel 4 H'!D32/'Tabel 4F H'!D32*100,"-")) -> 1.435897436 | E32: =IF(OR('Tabel 4F H'!E32<5,'Tabel 4 H'!E32<0.5),"-",IFERROR('Tabel 4 H'!E32/'Tabel 4F H'!E32*100,"-")) -> 1.671097607 | F32: =IF(OR('Tabel 4F H'!F32<5,'Tabel 4 H'!F32<0.5),"-",IFERROR('Tabel 4 H'!F32/'Tabel 4F H'!F32*100,"-")) -> 1.719356628 | G32: =IF(OR('Tabel 4F H'!G32<5,'Tabel 4 H'!G32<0.5),"-",IFERROR('Tabel 4 H'!G32/'Tabel 4F H'!G32*100,"-")) -> 2.226720648 | I32: =IF(OR('Tabel 4F H'!I32<5,'Tabel 4 H'!I32<0.5),"-",IFERROR('Tabel 4 H'!I32/'Tabel 4F H'!I32*100,"-")) -> 2.264310655
A33: Økonom | C33: =IF(OR('Tabel 4F H'!C33<5,'Tabel 4 H'!C33<0.5),"-",IFERROR('Tabel 4 H'!C33/'Tabel 4F H'!C33*100,"-")) -> 5.617977528 | D33: =IF(OR('Tabel 4F H'!D33<5,'Tabel 4 H'!D33<0.5),"-",IFERROR('Tabel 4 H'!D33/'Tabel 4F H'!D33*100,"-")) -> 1.75 | E33: =IF(OR('Tabel 4F H'!E33<5,'Tabel 4 H'!E33<0.5),"-",IFERROR('Tabel 4 H'!E33/'Tabel 4F H'!E33*100,"-")) -> 1.222826087 | F33: =IF(OR('Tabel 4F H'!F33<5,'Tabel 4 H'!F33<0.5),"-",IFERROR('Tabel 4 H'!F33/'Tabel 4F H'!F33*100,"-")) -> 1.830282862 | G33: =IF(OR('Tabel 4F H'!G33<5,'Tabel 4 H'!G33<0.5),"-",IFERROR('Tabel 4 H'!G33/'Tabel 4F H'!G33*100,"-")) -> 5.653710247 | I33: =IF(OR('Tabel 4F H'!I33<5,'Tabel 4 H'!I33<0.5),"-",IFERROR('Tabel 4 H'!I33/'Tabel 4F H'!I33*100,"-")) -> 2.460069763
A34: Samf. Adm. | C34: =IF(OR('Tabel 4F H'!C34<5,'Tabel 4 H'!C34<0.5),"-",IFERROR('Tabel 4 H'!C34/'Tabel 4F H'!C34*100,"-")) -> 16.45875252 | D34: =IF(OR('Tabel 4F H'!D34<5,'Tabel 4 H'!D34<0.5),"-",IFERROR('Tabel 4 H'!D34/'Tabel 4F H'!D34*100,"-")) -> 5.05364201 | E34: =IF(OR('Tabel 4F H'!E34<5,'Tabel 4 H'!E34<0.5),"-",IFERROR('Tabel 4 H'!E34/'Tabel 4F H'!E34*100,"-")) -> 2.843915344 | F34: =IF(OR('Tabel 4F H'!F34<5,'Tabel 4 H'!F34<0.5),"-",IFERROR('Tabel 4 H'!F34/'Tabel 4F H'!F34*100,"-")) -> 2.99313052 | G34: =IF(OR('Tabel 4F H'!G34<5,'Tabel 4 H'!G34<0.5),"-",IFERROR('Tabel 4 H'!G34/'Tabel 4F H'!G34*100,"-")) -> 3.472222222 | I34: =IF(OR('Tabel 4F H'!I34<5,'Tabel 4 H'!I34<0.5),"-",IFERROR('Tabel 4 H'!I34/'Tabel 4F H'!I34*100,"-")) -> 5.864253394
A35: Cand. Merc. | C35: =IF(OR('Tabel 4F H'!C35<5,'Tabel 4 H'!C35<0.5),"-",IFERROR('Tabel 4 H'!C35/'Tabel 4F H'!C35*100,"-")) -> 10.3523271 | D35: =IF(OR('Tabel 4F H'!D35<5,'Tabel 4 H'!D35<0.5),"-",IFERROR('Tabel 4 H'!D35/'Tabel 4F H'!D35*100,"-")) -> 4.133832838 | E35: =IF(OR('Tabel 4F H'!E35<5,'Tabel 4 H'!E35<0.5),"-",IFERROR('Tabel 4 H'!E35/'Tabel 4F H'!E35*100,"-")) -> 3.265306122 | F35: =IF(OR('Tabel 4F H'!F35<5,'Tabel 4 H'!F35<0.5),"-",IFERROR('Tabel 4 H'!F35/'Tabel 4F H'!F35*100,"-")) -> 4.390988927 | G35: =IF(OR('Tabel 4F H'!G35<5,'Tabel 4 H'!G35<0.5),"-",IFERROR('Tabel 4 H'!G35/'Tabel 4F H'!G35*100,"-")) -> 5.538461538 | I35: =IF(OR('Tabel 4F H'!I35<5,'Tabel 4 H'!I35<0.5),"-",IFERROR('Tabel 4 H'!I35/'Tabel 4F H'!I35*100,"-")) -> 5.448636571
A36: HA | C36: =IF(OR('Tabel 4F H'!C36<5,'Tabel 4 H'!C36<0.5),"-",IFERROR('Tabel 4 H'!C36/'Tabel 4F H'!C36*100,"-")) -> 16.56804734 | D36: =IF(OR('Tabel 4F H'!D36<5,'Tabel 4 H'!D36<0.5),"-",IFERROR('Tabel 4 H'!D36/'Tabel 4F H'!D36*100,"-")) -> 5.930470348 | E36: =IF(OR('Tabel 4F H'!E36<5,'Tabel 4 H'!E36<0.5),"-",IFERROR('Tabel 4 H'!E36/'Tabel 4F H'!E36*100,"-")) -> 3.137254902 | F36: =IF(OR('Tabel 4F H'!F36<5,'Tabel 4 H'!F36<0.5),"-",IFERROR('Tabel 4 H'!F36/'Tabel 4F H'!F36*100,"-")) -> 4.962406015 | G36: =IF(OR('Tabel 4F H'!G36<5,'Tabel 4 H'!G36<0.5),"-",IFERROR('Tabel 4 H'!G36/'Tabel 4F H'!G36*100,"-")) -> 7.558139535 | I36: =IF(OR('Tabel 4F H'!I36<5,'Tabel 4 H'!I36<0.5),"-",IFERROR('Tabel 4 H'!I36/'Tabel 4F H'!I36*100,"-")) -> 7.469056765
A37: HD | C37: =IF(OR('Tabel 4F H'!C37<5,'Tabel 4 H'!C37<0.5),"-",IFERROR('Tabel 4 H'!C37/'Tabel 4F H'!C37*100,"-")) -> 24.42996743 | D37: =IF(OR('Tabel 4F H'!D37<5,'Tabel 4 H'!D37<0.5),"-",IFERROR('Tabel 4 H'!D37/'Tabel 4F H'!D37*100,"-")) -> 9.920634921 | E37: =IF(OR('Tabel 4F H'!E37<5,'Tabel 4 H'!E37<0.5),"-",IFERROR('Tabel 4 H'!E37/'Tabel 4F H'!E37*100,"-")) -> 2.801120448 | F37: =IF(OR('Tabel 4F H'!F37<5,'Tabel 4 H'!F37<0.5),"-",IFERROR('Tabel 4 H'!F37/'Tabel 4F H'!F37*100,"-")) -> 5.209656925 | G37: =IF(OR('Tabel 4F H'!G37<5,'Tabel 4 H'!G37<0.5),"-",IFERROR('Tabel 4 H'!G37/'Tabel 4F H'!G37*100,"-")) -> 7.473309609 | I37: =IF(OR('Tabel 4F H'!I37<5,'Tabel 4 H'!I37<0.5),"-",IFERROR('Tabel 4 H'!I37/'Tabel 4F H'!I37*100,"-")) -> 10.69602831
A38: Komm. og Sprog | C38: =IF(OR('Tabel 4F H'!C38<5,'Tabel 4 H'!C38<0.5),"-",IFERROR('Tabel 4 H'!C38/'Tabel 4F H'!C38*100,"-")) -> 15.03164557 | D38: =IF(OR('Tabel 4F H'!D38<5,'Tabel 4 H'!D38<0.5),"-",IFERROR('Tabel 4 H'!D38/'Tabel 4F H'!D38*100,"-")) -> 7.802690583 | E38: =IF(OR('Tabel 4F H'!E38<5,'Tabel 4 H'!E38<0.5),"-",IFERROR('Tabel 4 H'!E38/'Tabel 4F H'!E38*100,"-")) -> 4.638218924 | F38: =IF(OR('Tabel 4F H'!F38<5,'Tabel 4 H'!F38<0.5),"-",IFERROR('Tabel 4 H'!F38/'Tabel 4F H'!F38*100,"-")) -> 4.604486423 | G38: =IF(OR('Tabel 4F H'!G38<5,'Tabel 4 H'!G38<0.5),"-",IFERROR('Tabel 4 H'!G38/'Tabel 4F H'!G38*100,"-")) -> 4.832713755 | I38: =IF(OR('Tabel 4F H'!I38<5,'Tabel 4 H'!I38<0.5),"-",IFERROR('Tabel 4 H'!I38/'Tabel 4F H'!I38*100,"-")) -> 7.206292819
A39: Cand. IT. | C39: =IF(OR('Tabel 4F H'!C39<5,'Tabel 4 H'!C39<0.5),"-",IFERROR('Tabel 4 H'!C39/'Tabel 4F H'!C39*100,"-")) -> 13.12056738 | D39: =IF(OR('Tabel 4F H'!D39<5,'Tabel 4 H'!D39<0.5),"-",IFERROR('Tabel 4 H'!D39/'Tabel 4F H'!D39*100,"-")) -> 5.178268251 | E39: =IF(OR('Tabel 4F H'!E39<5,'Tabel 4 H'!E39<0.5),"-",IFERROR('Tabel 4 H'!E39/'Tabel 4F H'!E39*100,"-")) -> 2.870813397 | F39: =IF(OR('Tabel 4F H'!F39<5,'Tabel 4 H'!F39<0.5),"-",IFERROR('Tabel 4 H'!F39/'Tabel 4F H'!F39*100,"-")) -> 10.9375 | G39: =IF(OR('Tabel 4F H'!G39<5,'Tabel 4 H'!G39<0.5),"-",IFERROR('Tabel 4 H'!G39/'Tabel 4F H'!G39*100,"-")) -> 28.57142857 | I39: =IF(OR('Tabel 4F H'!I39<5,'Tabel 4 H'!I39<0.5),"-",IFERROR('Tabel 4 H'!I39/'Tabel 4F H'!I39*100,"-")) -> 6.639344262
A40: Bac. Samf. | C40: =IF(OR('Tabel 4F H'!C40<5,'Tabel 4 H'!C40<0.5),"-",IFERROR('Tabel 4 H'!C40/'Tabel 4F H'!C40*100,"-")) -> 11.30434783 | D40: =IF(OR('Tabel 4F H'!D40<5,'Tabel 4 H'!D40<0.5),"-",IFERROR('Tabel 4 H'!D40/'Tabel 4F H'!D40*100,"-")) -> 6.481481481 | E40: =IF(OR('Tabel 4F H'!E40<5,'Tabel 4 H'!E40<0.5),"-",IFERROR('Tabel 4 H'!E40/'Tabel 4F H'!E40*100,"-")) -> 2.752293578 | F40: =IF(OR('Tabel 4F H'!F40<5,'Tabel 4 H'!F40<0.5),"-",IFERROR('Tabel 4 H'!F40/'Tabel 4F H'!F40*100,"-")) -> 2.941176471 | G40: =IF(OR('Tabel 4F H'!G40<5,'Tabel 4 H'!G40<0.5),"-",IFERROR('Tabel 4 H'!G40/'Tabel 4F H'!G40*100,"-")) -> 13.33333333 | I40: =IF(OR('Tabel 4F H'!I40<5,'Tabel 4 H'!I40<0.5),"-",IFERROR('Tabel 4 H'!I40/'Tabel 4F H'!I40*100,"-")) -> 5.571428571
A41: Bac. Hum. | C41: =IF(OR('Tabel 4F H'!C41<5,'Tabel 4 H'!C41<0.5),"-",IFERROR('Tabel 4 H'!C41/'Tabel 4F H'!C41*100,"-")) -> 19.32059448 | D41: =IF(OR('Tabel 4F H'!D41<5,'Tabel 4 H'!D41<0.5),"-",IFERROR('Tabel 4 H'!D41/'Tabel 4F H'!D41*100,"-")) -> 12.66846361 | E41: =IF(OR('Tabel 4F H'!E41<5,'Tabel 4 H'!E41<0.5),"-",IFERROR('Tabel 4 H'!E41/'Tabel 4F H'!E41*100,"-")) -> 6.779661017 | F41: =IF(OR('Tabel 4F H'!F41<5,'Tabel 4 H'!F41<0.5),"-",IFERROR('Tabel 4 H'!F41/'Tabel 4F H'!F41*100,"-")) -> 4.47761194 | G41: =IF(OR('Tabel 4F H'!G41<5,'Tabel 4 H'!G41<0.5),"-",IFERROR('Tabel 4 H'!G41/'Tabel 4F H'!G41*100,"-")) -> 11.62790698 | I41: =IF(OR('Tabel 4F H'!I41<5,'Tabel 4 H'!I41<0.5),"-",IFERROR('Tabel 4 H'!I41/'Tabel 4F H'!I41*100,"-")) -> 11.39618138
A42: Bac. Nat. | C42: =IF(OR('Tabel 4F H'!C42<5,'Tabel 4 H'!C42<0.5),"-",IFERROR('Tabel 4 H'!C42/'Tabel 4F H'!C42*100,"-")) -> 17.17171717 | D42: =IF(OR('Tabel 4F H'!D42<5,'Tabel 4 H'!D42<0.5),"-",IFERROR('Tabel 4 H'!D42/'Tabel 4F H'!D42*100,"-")) -> 6.751054852 | E42: =IF(OR('Tabel 4F H'!E42<5,'Tabel 4 H'!E42<0.5),"-",IFERROR('Tabel 4 H'!E42/'Tabel 4F H'!E42*100,"-")) -> 2.234636872 | F42: =IF(OR('Tabel 4F H'!F42<5,'Tabel 4 H'!F42<0.5),"-",IFERROR('Tabel 4 H'!F42/'Tabel 4F H'!F42*100,"-")) -> 5.555555556 | G42: =IF(OR('Tabel 4F H'!G42<5,'Tabel 4 H'!G42<0.5),"-",IFERROR('Tabel 4 H'!G42/'Tabel 4F H'!G42*100,"-")) -> 6.25 | I42: =IF(OR('Tabel 4F H'!I42<5,'Tabel 4 H'!I42<0.5),"-",IFERROR('Tabel 4 H'!I42/'Tabel 4F H'!I42*100,"-")) -> 9.523809524
A43: Andre | C43: =IF(OR('Tabel 4F H'!C43<5,'Tabel 4 H'!C43<0.5),"-",IFERROR('Tabel 4 H'!C43/'Tabel 4F H'!C43*100,"-")) -> 16.48590022 | D43: =IF(OR('Tabel 4F H'!D43<5,'Tabel 4 H'!D43<0.5),"-",IFERROR('Tabel 4 H'!D43/'Tabel 4F H'!D43*100,"-")) -> 7.117804828 | E43: =IF(OR('Tabel 4F H'!E43<5,'Tabel 4 H'!E43<0.5),"-",IFERROR('Tabel 4 H'!E43/'Tabel 4F H'!E43*100,"-")) -> 5.111633373 | F43: =IF(OR('Tabel 4F H'!F43<5,'Tabel 4 H'!F43<0.5),"-",IFERROR('Tabel 4 H'!F43/'Tabel 4F H'!F43*100,"-")) -> 7.093596059 | G43: =IF(OR('Tabel 4F H'!G43<5,'Tabel 4 H'!G43<0.5),"-",IFERROR('Tabel 4 H'!G43/'Tabel 4F H'!G43*100,"-")) -> 8.060453401 | I43: =IF(OR('Tabel 4F H'!I43<5,'Tabel 4 H'!I43<0.5),"-",IFERROR('Tabel 4 H'!I43/'Tabel 4F H'!I43*100,"-")) -> 7.665756943
A45: Total | C45: =IF(OR('Tabel 4F H'!C45<5,'Tabel 4 H'!C45<0.5),"-",IFERROR('Tabel 4 H'!C45/'Tabel 4F H'!C45*100,"-")) -> 14.8034398 | D45: =IF(OR('Tabel 4F H'!D45<5,'Tabel 4 H'!D45<0.5),"-",IFERROR('Tabel 4 H'!D45/'Tabel 4F H'!D45*100,"-")) -> 5.533490407 | E45: =IF(OR('Tabel 4F H'!E45<5,'Tabel 4 H'!E45<0.5),"-",IFERROR('Tabel 4 H'!E45/'Tabel 4F H'!E45*100,"-")) -> 3.057928044 | F45: =IF(OR('Tabel 4F H'!F45<5,'Tabel 4 H'!F45<0.5),"-",IFERROR('Tabel 4 H'!F45/'Tabel 4F H'!F45*100,"-")) -> 3.276718735 | G45: =IF(OR('Tabel 4F H'!G45<5,'Tabel 4 H'!G45<0.5),"-",IFERROR('Tabel 4 H'!G45/'Tabel 4F H'!G45*100,"-")) -> 4.378025679 | I45: =IF(OR('Tabel 4F H'!I45<5,'Tabel 4 H'!I45<0.5),"-",IFERROR('Tabel 4 H'!I45/'Tabel 4F H'!I45*100,"-")) -> 5.905495843
A47: Ingeniører i alt | C47: =IF(OR('Tabel 4F H'!C47<5,'Tabel 4 H'!C47<0.5),"-",IFERROR('Tabel 4 H'!C47/'Tabel 4F H'!C47*100,"-")) -> 9.500850822 | D47: =IF(OR('Tabel 4F H'!D47<5,'Tabel 4 H'!D47<0.5),"-",IFERROR('Tabel 4 H'!D47/'Tabel 4F H'!D47*100,"-")) -> 2.481231709 | E47: =IF(OR('Tabel 4F H'!E47<5,'Tabel 4 H'!E47<0.5),"-",IFERROR('Tabel 4 H'!E47/'Tabel 4F H'!E47*100,"-")) -> 1.594439902 | F47: =IF(OR('Tabel 4F H'!F47<5,'Tabel 4 H'!F47<0.5),"-",IFERROR('Tabel 4 H'!F47/'Tabel 4F H'!F47*100,"-")) -> 1.822407045 | G47: =IF(OR('Tabel 4F H'!G47<5,'Tabel 4 H'!G47<0.5),"-",IFERROR('Tabel 4 H'!G47/'Tabel 4F H'!G47*100,"-")) -> 3.151862464 | I47: =IF(OR('Tabel 4F H'!I47<5,'Tabel 4 H'!I47<0.5),"-",IFERROR('Tabel 4 H'!I47/'Tabel 4F H'!I47*100,"-")) -> 2.97525731
A48: Magistre i alt | C48: =IF(OR('Tabel 4F H'!C48<5,'Tabel 4 H'!C48<0.5),"-",IFERROR('Tabel 4 H'!C48/'Tabel 4F H'!C48*100,"-")) -> 23.16865417 | D48: =IF(OR('Tabel 4F H'!D48<5,'Tabel 4 H'!D48<0.5),"-",IFERROR('Tabel 4 H'!D48/'Tabel 4F H'!D48*100,"-")) -> 9.19878576 | E48: =IF(OR('Tabel 4F H'!E48<5,'Tabel 4 H'!E48<0.5),"-",IFERROR('Tabel 4 H'!E48/'Tabel 4F H'!E48*100,"-")) -> 4.171406902 | F48: =IF(OR('Tabel 4F H'!F48<5,'Tabel 4 H'!F48<0.5),"-",IFERROR('Tabel 4 H'!F48/'Tabel 4F H'!F48*100,"-")) -> 4.10383661 | G48: =IF(OR('Tabel 4F H'!G48<5,'Tabel 4 H'!G48<0.5),"-",IFERROR('Tabel 4 H'!G48/'Tabel 4F H'!G48*100,"-")) -> 5.07285483 | I48: =IF(OR('Tabel 4F H'!I48<5,'Tabel 4 H'!I48<0.5),"-",IFERROR('Tabel 4 H'!I48/'Tabel 4F H'!I48*100,"-")) -> 8.280196199
A49: DJØF'ere i alt | C49: =IF(OR('Tabel 4F H'!C49<5,'Tabel 4 H'!C49<0.5),"-",IFERROR('Tabel 4 H'!C49/'Tabel 4F H'!C49*100,"-")) -> 10.96665343 | D49: =IF(OR('Tabel 4F H'!D49<5,'Tabel 4 H'!D49<0.5),"-",IFERROR('Tabel 4 H'!D49/'Tabel 4F H'!D49*100,"-")) -> 3.916528051 | E49: =IF(OR('Tabel 4F H'!E49<5,'Tabel 4 H'!E49<0.5),"-",IFERROR('Tabel 4 H'!E49/'Tabel 4F H'!E49*100,"-")) -> 2.588304697 | F49: =IF(OR('Tabel 4F H'!F49<5,'Tabel 4 H'!F49<0.5),"-",IFERROR('Tabel 4 H'!F49/'Tabel 4F H'!F49*100,"-")) -> 3.146391257 | G49: =IF(OR('Tabel 4F H'!G49<5,'Tabel 4 H'!G49<0.5),"-",IFERROR('Tabel 4 H'!G49/'Tabel 4F H'!G49*100,"-")) -> 4.27901524 | I49: =IF(OR('Tabel 4F H'!I49<5,'Tabel 4 H'!I49<0.5),"-",IFERROR('Tabel 4 H'!I49/'Tabel 4F H'!I49*100,"-")) -> 4.799192659
A56: København
C58: Under 30 år | D58: 30 - 39 år | E58: 40 - 49 år | F58: 50 - 59 år | G58: Over 60 år | I58: I alt
A60: Civ. ing. | C60: =IF(OR('Tabel 4F H'!C60<5,'Tabel 4 H'!C60<0.5),"-",IFERROR('Tabel 4 H'!C60/'Tabel 4F H'!C60*100,"-")) -> 9.090909091 | D60: =IF(OR('Tabel 4F H'!D60<5,'Tabel 4 H'!D60<0.5),"-",IFERROR('Tabel 4 H'!D60/'Tabel 4F H'!D60*100,"-")) -> 2.640129976 | E60: =IF(OR('Tabel 4F H'!E60<5,'Tabel 4 H'!E60<0.5),"-",IFERROR('Tabel 4 H'!E60/'Tabel 4F H'!E60*100,"-")) -> 1.979166667 | F60: =IF(OR('Tabel 4F H'!F60<5,'Tabel 4 H'!F60<0.5),"-",IFERROR('Tabel 4 H'!F60/'Tabel 4F H'!F60*100,"-")) -> 2.424242424 | G60: =IF(OR('Tabel 4F H'!G60<5,'Tabel 4 H'!G60<0.5),"-",IFERROR('Tabel 4 H'!G60/'Tabel 4F H'!G60*100,"-")) -> 2.380952381 | I60: =IF(OR('Tabel 4F H'!I60<5,'Tabel 4 H'!I60<0.5),"-",IFERROR('Tabel 4 H'!I60/'Tabel 4F H'!I60*100,"-")) -> 4.10038883
A61: Diplom ing. | C61: =IF(OR('Tabel 4F H'!C61<5,'Tabel 4 H'!C61<0.5),"-",IFERROR('Tabel 4 H'!C61/'Tabel 4F H'!C61*100,"-")) -> 9.902912621 | D61: =IF(OR('Tabel 4F H'!D61<5,'Tabel 4 H'!D61<0.5),"-",IFERROR('Tabel 4 H'!D61/'Tabel 4F H'!D61*100,"-")) -> 2.983293556 | E61: =IF(OR('Tabel 4F H'!E61<5,'Tabel 4 H'!E61<0.5),"-",IFERROR('Tabel 4 H'!E61/'Tabel 4F H'!E61*100,"-")) -> 2.841677943 | F61: =IF(OR('Tabel 4F H'!F61<5,'Tabel 4 H'!F61<0.5),"-",IFERROR('Tabel 4 H'!F61/'Tabel 4F H'!F61*100,"-")) -> 3.178484108 | G61: =IF(OR('Tabel 4F H'!G61<5,'Tabel 4 H'!G61<0.5),"-",IFERROR('Tabel 4 H'!G61/'Tabel 4F H'!G61*100,"-")) -> 4.824561404 | I61: =IF(OR('Tabel 4F H'!I61<5,'Tabel 4 H'!I61<0.5),"-",IFERROR('Tabel 4 H'!I61/'Tabel 4F H'!I61*100,"-")) -> 4.270235819
A62: Cand. Scient. Tek | C62: =IF(OR('Tabel 4F H'!C62<5,'Tabel 4 H'!C62<0.5),"-",IFERROR('Tabel 4 H'!C62/'Tabel 4F H'!C62*100,"-")) -> 20.17102616 | D62: =IF(OR('Tabel 4F H'!D62<5,'Tabel 4 H'!D62<0.5),"-",IFERROR('Tabel 4 H'!D62/'Tabel 4F H'!D62*100,"-")) -> 8.297623685 | E62: =IF(OR('Tabel 4F H'!E62<5,'Tabel 4 H'!E62<0.5),"-",IFERROR('Tabel 4 H'!E62/'Tabel 4F H'!E62*100,"-")) -> 3.531598513 | F62: =IF(OR('Tabel 4F H'!F62<5,'Tabel 4 H'!F62<0.5),"-",IFERROR('Tabel 4 H'!F62/'Tabel 4F H'!F62*100,"-")) -> 5.517241379 | G62: =IF(OR('Tabel 4F H'!G62<5,'Tabel 4 H'!G62<0.5),"-",IFERROR('Tabel 4 H'!G62/'Tabel 4F H'!G62*100,"-")) -> 6.896551724 | I62: =IF(OR('Tabel 4F H'!I62<5,'Tabel 4 H'!I62<0.5),"-",IFERROR('Tabel 4 H'!I62/'Tabel 4F H'!I62*100,"-")) -> 12.2080881
A63: MA. Hum. | C63: =IF(OR('Tabel 4F H'!C63<5,'Tabel 4 H'!C63<0.5),"-",IFERROR('Tabel 4 H'!C63/'Tabel 4F H'!C63*100,"-")) -> 24.39516129 | D63: =IF(OR('Tabel 4F H'!D63<5,'Tabel 4 H'!D63<0.5),"-",IFERROR('Tabel 4 H'!D63/'Tabel 4F H'!D63*100,"-")) -> 10.42578591 | E63: =IF(OR('Tabel 4F H'!E63<5,'Tabel 4 H'!E63<0.5),"-",IFERROR('Tabel 4 H'!E63/'Tabel 4F H'!E63*100,"-")) -> 5.588484335 | F63: =IF(OR('Tabel 4F H'!F63<5,'Tabel 4 H'!F63<0.5),"-",IFERROR('Tabel 4 H'!F63/'Tabel 4F H'!F63*100,"-")) -> 6.003159558 | G63: =IF(OR('Tabel 4F H'!G63<5,'Tabel 4 H'!G63<0.5),"-",IFERROR('Tabel 4 H'!G63/'Tabel 4F H'!G63*100,"-")) -> 8.270676692 | I63: =IF(OR('Tabel 4F H'!I63<5,'Tabel 4 H'!I63<0.5),"-",IFERROR('Tabel 4 H'!I63/'Tabel 4F H'!I63*100,"-")) -> 10.76280897
A64: MA. Nat. | C64: =IF(OR('Tabel 4F H'!C64<5,'Tabel 4 H'!C64<0.5),"-",IFERROR('Tabel 4 H'!C64/'Tabel 4F H'!C64*100,"-")) -> 16.99164345 | D64: =IF(OR('Tabel 4F H'!D64<5,'Tabel 4 H'!D64<0.5),"-",IFERROR('Tabel 4 H'!D64/'Tabel 4F H'!D64*100,"-")) -> 6.093906094 | E64: =IF(OR('Tabel 4F H'!E64<5,'Tabel 4 H'!E64<0.5),"-",IFERROR('Tabel 4 H'!E64/'Tabel 4F H'!E64*100,"-")) -> 1.547987616 | F64: =IF(OR('Tabel 4F H'!F64<5,'Tabel 4 H'!F64<0.5),"-",IFERROR('Tabel 4 H'!F64/'Tabel 4F H'!F64*100,"-")) -> 2.622377622 | G64: =IF(OR('Tabel 4F H'!G64<5,'Tabel 4 H'!G64<0.5),"-",IFERROR('Tabel 4 H'!G64/'Tabel 4F H'!G64*100,"-")) -> 1.477832512 | I64: =IF(OR('Tabel 4F H'!I64<5,'Tabel 4 H'!I64<0.5),"-",IFERROR('Tabel 4 H'!I64/'Tabel 4F H'!I64*100,"-")) -> 4.993556701
A65: MA. Ph.d. | C65: =IF(OR('Tabel 4F H'!C65<5,'Tabel 4 H'!C65<0.5),"-",IFERROR('Tabel 4 H'!C65/'Tabel 4F H'!C65*100,"-")) -> 7.692307692 | D65: =IF(OR('Tabel 4F H'!D65<5,'Tabel 4 H'!D65<0.5),"-",IFERROR('Tabel 4 H'!D65/'Tabel 4F H'!D65*100,"-")) -> 5.529953917 | E65: =IF(OR('Tabel 4F H'!E65<5,'Tabel 4 H'!E65<0.5),"-",IFERROR('Tabel 4 H'!E65/'Tabel 4F H'!E65*100,"-")) -> 6.926406926 | F65: =IF(OR('Tabel 4F H'!F65<5,'Tabel 4 H'!F65<0.5),"-",IFERROR('Tabel 4 H'!F65/'Tabel 4F H'!F65*100,"-")) -> 3.076923077 | G65: =IF(OR('Tabel 4F H'!G65<5,'Tabel 4 H'!G65<0.5),"-",IFERROR('Tabel 4 H'!G65/'Tabel 4F H'!G65*100,"-")) -> 6.52173913 | I65: =IF(OR('Tabel 4F H'!I65<5,'Tabel 4 H'!I65<0.5),"-",IFERROR('Tabel 4 H'!I65/'Tabel 4F H'!I65*100,"-")) -> 5.651491366
A66: MA. Samf. | C66: =IF(OR('Tabel 4F H'!C66<5,'Tabel 4 H'!C66<0.5),"-",IFERROR('Tabel 4 H'!C66/'Tabel 4F H'!C66*100,"-")) -> 21.42857143 | D66: =IF(OR('Tabel 4F H'!D66<5,'Tabel 4 H'!D66<0.5),"-",IFERROR('Tabel 4 H'!D66/'Tabel 4F H'!D66*100,"-")) -> 12.40234375 | E66: =IF(OR('Tabel 4F H'!E66<5,'Tabel 4 H'!E66<0.5),"-",IFERROR('Tabel 4 H'!E66/'Tabel 4F H'!E66*100,"-")) -> 6.329113924 | F66: =IF(OR('Tabel 4F H'!F66<5,'Tabel 4 H'!F66<0.5),"-",IFERROR('Tabel 4 H'!F66/'Tabel 4F H'!F66*100,"-")) -> 7.766990291 | G66: =IF(OR('Tabel 4F H'!G66<5,'Tabel 4 H'!G66<0.5),"-",IFERROR('Tabel 4 H'!G66/'Tabel 4F H'!G66*100,"-")) -> 4.347826087 | I66: =IF(OR('Tabel 4F H'!I66<5,'Tabel 4 H'!I66<0.5),"-",IFERROR('Tabel 4 H'!I66/'Tabel 4F H'!I66*100,"-")) -> 14.07992565
A67: Øvrige Mag. | C67: =IF(OR('Tabel 4F H'!C67<5,'Tabel 4 H'!C67<0.5),"-",IFERROR('Tabel 4 H'!C67/'Tabel 4F H'!C67*100,"-")) -> 29.9270073 | D67: =IF(OR('Tabel 4F H'!D67<5,'Tabel 4 H'!D67<0.5),"-",IFERROR('Tabel 4 H'!D67/'Tabel 4F H'!D67*100,"-")) -> 10 | E67: =IF(OR('Tabel 4F H'!E67<5,'Tabel 4 H'!E67<0.5),"-",IFERROR('Tabel 4 H'!E67/'Tabel 4F H'!E67*100,"-")) -> 3.676470588 | F67: =IF(OR('Tabel 4F H'!F67<5,'Tabel 4 H'!F67<0.5),"-",IFERROR('Tabel 4 H'!F67/'Tabel 4F H'!F67*100,"-")) -> 5.555555556 | G67: =IF(OR('Tabel 4F H'!G67<5,'Tabel 4 H'!G67<0.5),"-",IFERROR('Tabel 4 H'!G67/'Tabel 4F H'!G67*100,"-")) -> 8.928571429 | I67: =IF(OR('Tabel 4F H'!I67<5,'Tabel 4 H'!I67<0.5),"-",IFERROR('Tabel 4 H'!I67/'Tabel 4F H'!I67*100,"-")) -> 10.07751938
A68: Agronom | C68: =IF(OR('Tabel 4F H'!C68<5,'Tabel 4 H'!C68<0.5),"-",IFERROR('Tabel 4 H'!C68/'Tabel 4F H'!C68*100,"-")) -> 28.30188679 | D68: =IF(OR('Tabel 4F H'!D68<5,'Tabel 4 H'!D68<0.5),"-",IFERROR('Tabel 4 H'!D68/'Tabel 4F H'!D68*100,"-")) -> 2.702702703 | E68: =IF(OR('Tabel 4F H'!E68<5,'Tabel 4 H'!E68<0.5),"-",IFERROR('Tabel 4 H'!E68/'Tabel 4F H'!E68*100,"-")) -> 7.352941176 | F68: =IF(OR('Tabel 4F H'!F68<5,'Tabel 4 H'!F68<0.5),"-",IFERROR('Tabel 4 H'!F68/'Tabel 4F H'!F68*100,"-")) -> - | G68: =IF(OR('Tabel 4F H'!G68<5,'Tabel 4 H'!G68<0.5),"-",IFERROR('Tabel 4 H'!G68/'Tabel 4F H'!G68*100,"-")) -> - | I68: =IF(OR('Tabel 4F H'!I68<5,'Tabel 4 H'!I68<0.5),"-",IFERROR('Tabel 4 H'!I68/'Tabel 4F H'!I68*100,"-")) -> 7.942238267
A69: Landsk. Arkt. | C69: =IF(OR('Tabel 4F H'!C69<5,'Tabel 4 H'!C69<0.5),"-",IFERROR('Tabel 4 H'!C69/'Tabel 4F H'!C69*100,"-")) -> 25 | D69: =IF(OR('Tabel 4F H'!D69<5,'Tabel 4 H'!D69<0.5),"-",IFERROR('Tabel 4 H'!D69/'Tabel 4F H'!D69*100,"-")) -> 14.1509434 | E69: =IF(OR('Tabel 4F H'!E69<5,'Tabel 4 H'!E69<0.5),"-",IFERROR('Tabel 4 H'!E69/'Tabel 4F H'!E69*100,"-")) -> - | F69: =IF(OR('Tabel 4F H'!F69<5,'Tabel 4 H'!F69<0.5),"-",IFERROR('Tabel 4 H'!F69/'Tabel 4F H'!F69*100,"-")) -> 3.333333333 | G69: =IF(OR('Tabel 4F H'!G69<5,'Tabel 4 H'!G69<0.5),"-",IFERROR('Tabel 4 H'!G69/'Tabel 4F H'!G69*100,"-")) -> - | I69: =IF(OR('Tabel 4F H'!I69<5,'Tabel 4 H'!I69<0.5),"-",IFERROR('Tabel 4 H'!I69/'Tabel 4F H'!I69*100,"-")) -> 11.95219124
A70: Hortonom | C70: =IF(OR('Tabel 4F H'!C70<5,'Tabel 4 H'!C70<0.5),"-",IFERROR('Tabel 4 H'!C70/'Tabel 4F H'!C70*100,"-")) -> - | D70: =IF(OR('Tabel 4F H'!D70<5,'Tabel 4 H'!D70<0.5),"-",IFERROR('Tabel 4 H'!D70/'Tabel 4F H'!D70*100,"-")) -> - | E70: =IF(OR('Tabel 4F H'!E70<5,'Tabel 4 H'!E70<0.5),"-",IFERROR('Tabel 4 H'!E70/'Tabel 4F H'!E70*100,"-")) -> 7.692307692 | F70: =IF(OR('Tabel 4F H'!F70<5,'Tabel 4 H'!F70<0.5),"-",IFERROR('Tabel 4 H'!F70/'Tabel 4F H'!F70*100,"-")) -> - | G70: =IF(OR('Tabel 4F H'!G70<5,'Tabel 4 H'!G70<0.5),"-",IFERROR('Tabel 4 H'!G70/'Tabel 4F H'!G70*100,"-")) -> - | I70: =IF(OR('Tabel 4F H'!I70<5,'Tabel 4 H'!I70<0.5),"-",IFERROR('Tabel 4 H'!I70/'Tabel 4F H'!I70*100,"-")) -> 1.886792453
A71: Forstkand. | C71: =IF(OR('Tabel 4F H'!C71<5,'Tabel 4 H'!C71<0.5),"-",IFERROR('Tabel 4 H'!C71/'Tabel 4F H'!C71*100,"-")) -> 37.5 | D71: =IF(OR('Tabel 4F H'!D71<5,'Tabel 4 H'!D71<0.5),"-",IFERROR('Tabel 4 H'!D71/'Tabel 4F H'!D71*100,"-")) -> 18.18181818 | E71: =IF(OR('Tabel 4F H'!E71<5,'Tabel 4 H'!E71<0.5),"-",IFERROR('Tabel 4 H'!E71/'Tabel 4F H'!E71*100,"-")) -> - | F71: =IF(OR('Tabel 4F H'!F71<5,'Tabel 4 H'!F71<0.5),"-",IFERROR('Tabel 4 H'!F71/'Tabel 4F H'!F71*100,"-")) -> 5.263157895 | G71: =IF(OR('Tabel 4F H'!G71<5,'Tabel 4 H'!G71<0.5),"-",IFERROR('Tabel 4 H'!G71/'Tabel 4F H'!G71*100,"-")) -> - | I71: =IF(OR('Tabel 4F H'!I71<5,'Tabel 4 H'!I71<0.5),"-",IFERROR('Tabel 4 H'!I71/'Tabel 4F H'!I71*100,"-")) -> 12.94117647
A72: Jordbrugsakad. | C72: =IF(OR('Tabel 4F H'!C72<5,'Tabel 4 H'!C72<0.5),"-",IFERROR('Tabel 4 H'!C72/'Tabel 4F H'!C72*100,"-")) -> 27.77777778 | D72: =IF(OR('Tabel 4F H'!D72<5,'Tabel 4 H'!D72<0.5),"-",IFERROR('Tabel 4 H'!D72/'Tabel 4F H'!D72*100,"-")) -> 9.76744186 | E72: =IF(OR('Tabel 4F H'!E72<5,'Tabel 4 H'!E72<0.5),"-",IFERROR('Tabel 4 H'!E72/'Tabel 4F H'!E72*100,"-")) -> 3.773584906 | F72: =IF(OR('Tabel 4F H'!F72<5,'Tabel 4 H'!F72<0.5),"-",IFERROR('Tabel 4 H'!F72/'Tabel 4F H'!F72*100,"-")) -> 1.6 | G72: =IF(OR('Tabel 4F H'!G72<5,'Tabel 4 H'!G72<0.5),"-",IFERROR('Tabel 4 H'!G72/'Tabel 4F H'!G72*100,"-")) -> - | I72: =IF(OR('Tabel 4F H'!I72<5,'Tabel 4 H'!I72<0.5),"-",IFERROR('Tabel 4 H'!I72/'Tabel 4F H'!I72*100,"-")) -> 9.60960961
A73: Mejeriing. | C73: =IF(OR('Tabel 4F H'!C73<5,'Tabel 4 H'!C73<0.5),"-",IFERROR('Tabel 4 H'!C73/'Tabel 4F H'!C73*100,"-")) -> 26.66666667 | D73: =IF(OR('Tabel 4F H'!D73<5,'Tabel 4 H'!D73<0.5),"-",IFERROR('Tabel 4 H'!D73/'Tabel 4F H'!D73*100,"-")) -> - | E73: =IF(OR('Tabel 4F H'!E73<5,'Tabel 4 H'!E73<0.5),"-",IFERROR('Tabel 4 H'!E73/'Tabel 4F H'!E73*100,"-")) -> - | F73: =IF(OR('Tabel 4F H'!F73<5,'Tabel 4 H'!F73<0.5),"-",IFERROR('Tabel 4 H'!F73/'Tabel 4F H'!F73*100,"-")) -> - | G73: =IF(OR('Tabel 4F H'!G73<5,'Tabel 4 H'!G73<0.5),"-",IFERROR('Tabel 4 H'!G73/'Tabel 4F H'!G73*100,"-")) -> - | I73: =IF(OR('Tabel 4F H'!I73<5,'Tabel 4 H'!I73<0.5),"-",IFERROR('Tabel 4 H'!I73/'Tabel 4F H'!I73*100,"-")) -> 8.333333333
A74: Levn.m.kand. | C74: =IF(OR('Tabel 4F H'!C74<5,'Tabel 4 H'!C74<0.5),"-",IFERROR('Tabel 4 H'!C74/'Tabel 4F H'!C74*100,"-")) -> 28.07017544 | D74: =IF(OR('Tabel 4F H'!D74<5,'Tabel 4 H'!D74<0.5),"-",IFERROR('Tabel 4 H'!D74/'Tabel 4F H'!D74*100,"-")) -> 17.33333333 | E74: =IF(OR('Tabel 4F H'!E74<5,'Tabel 4 H'!E74<0.5),"-",IFERROR('Tabel 4 H'!E74/'Tabel 4F H'!E74*100,"-")) -> 4.761904762 | F74: =IF(OR('Tabel 4F H'!F74<5,'Tabel 4 H'!F74<0.5),"-",IFERROR('Tabel 4 H'!F74/'Tabel 4F H'!F74*100,"-")) -> - | G74: =IF(OR('Tabel 4F H'!G74<5,'Tabel 4 H'!G74<0.5),"-",IFERROR('Tabel 4 H'!G74/'Tabel 4F H'!G74*100,"-")) -> - | I74: =IF(OR('Tabel 4F H'!I74<5,'Tabel 4 H'!I74<0.5),"-",IFERROR('Tabel 4 H'!I74/'Tabel 4F H'!I74*100,"-")) -> 19.35483871
A75: Dyrlæge | C75: =IF(OR('Tabel 4F H'!C75<5,'Tabel 4 H'!C75<0.5),"-",IFERROR('Tabel 4 H'!C75/'Tabel 4F H'!C75*100,"-")) -> 18.07228916 | D75: =IF(OR('Tabel 4F H'!D75<5,'Tabel 4 H'!D75<0.5),"-",IFERROR('Tabel 4 H'!D75/'Tabel 4F H'!D75*100,"-")) -> 5.223880597 | E75: =IF(OR('Tabel 4F H'!E75<5,'Tabel 4 H'!E75<0.5),"-",IFERROR('Tabel 4 H'!E75/'Tabel 4F H'!E75*100,"-")) -> 5.660377358 | F75: =IF(OR('Tabel 4F H'!F75<5,'Tabel 4 H'!F75<0.5),"-",IFERROR('Tabel 4 H'!F75/'Tabel 4F H'!F75*100,"-")) -> 5 | G75: =IF(OR('Tabel 4F H'!G75<5,'Tabel 4 H'!G75<0.5),"-",IFERROR('Tabel 4 H'!G75/'Tabel 4F H'!G75*100,"-")) -> 18.18181818 | I75: =IF(OR('Tabel 4F H'!I75<5,'Tabel 4 H'!I75<0.5),"-",IFERROR('Tabel 4 H'!I75/'Tabel 4F H'!I75*100,"-")) -> 9.034267913
A76: Farmaceut | C76: =IF(OR('Tabel 4F H'!C76<5,'Tabel 4 H'!C76<0.5),"-",IFERROR('Tabel 4 H'!C76/'Tabel 4F H'!C76*100,"-")) -> 16.20879121 | D76: =IF(OR('Tabel 4F H'!D76<5,'Tabel 4 H'!D76<0.5),"-",IFERROR('Tabel 4 H'!D76/'Tabel 4F H'!D76*100,"-")) -> 4.23572744 | E76: =IF(OR('Tabel 4F H'!E76<5,'Tabel 4 H'!E76<0.5),"-",IFERROR('Tabel 4 H'!E76/'Tabel 4F H'!E76*100,"-")) -> 1.369863014 | F76: =IF(OR('Tabel 4F H'!F76<5,'Tabel 4 H'!F76<0.5),"-",IFERROR('Tabel 4 H'!F76/'Tabel 4F H'!F76*100,"-")) -> 4.761904762 | G76: =IF(OR('Tabel 4F H'!G76<5,'Tabel 4 H'!G76<0.5),"-",IFERROR('Tabel 4 H'!G76/'Tabel 4F H'!G76*100,"-")) -> - | I76: =IF(OR('Tabel 4F H'!I76<5,'Tabel 4 H'!I76<0.5),"-",IFERROR('Tabel 4 H'!I76/'Tabel 4F H'!I76*100,"-")) -> 7.092198582
A77: Læge | C77: =IF(OR('Tabel 4F H'!C77<5,'Tabel 4 H'!C77<0.5),"-",IFERROR('Tabel 4 H'!C77/'Tabel 4F H'!C77*100,"-")) -> 2.049180328 | D77: =IF(OR('Tabel 4F H'!D77<5,'Tabel 4 H'!D77<0.5),"-",IFERROR('Tabel 4 H'!D77/'Tabel 4F H'!D77*100,"-")) -> 2.115059222 | E77: =IF(OR('Tabel 4F H'!E77<5,'Tabel 4 H'!E77<0.5),"-",IFERROR('Tabel 4 H'!E77/'Tabel 4F H'!E77*100,"-")) -> 1.35501355 | F77: =IF(OR('Tabel 4F H'!F77<5,'Tabel 4 H'!F77<0.5),"-",IFERROR('Tabel 4 H'!F77/'Tabel 4F H'!F77*100,"-")) -> 1.5 | G77: =IF(OR('Tabel 4F H'!G77<5,'Tabel 4 H'!G77<0.5),"-",IFERROR('Tabel 4 H'!G77/'Tabel 4F H'!G77*100,"-")) -> - | I77: =IF(OR('Tabel 4F H'!I77<5,'Tabel 4 H'!I77<0.5),"-",IFERROR('Tabel 4 H'!I77/'Tabel 4F H'!I77*100,"-")) -> 1.837606838
A78: Tandlæge | C78: =IF(OR('Tabel 4F H'!C78<5,'Tabel 4 H'!C78<0.5),"-",IFERROR('Tabel 4 H'!C78/'Tabel 4F H'!C78*100,"-")) -> 2.666666667 | D78: =IF(OR('Tabel 4F H'!D78<5,'Tabel 4 H'!D78<0.5),"-",IFERROR('Tabel 4 H'!D78/'Tabel 4F H'!D78*100,"-")) -> 3.174603175 | E78: =IF(OR('Tabel 4F H'!E78<5,'Tabel 4 H'!E78<0.5),"-",IFERROR('Tabel 4 H'!E78/'Tabel 4F H'!E78*100,"-")) -> - | F78: =IF(OR('Tabel 4F H'!F78<5,'Tabel 4 H'!F78<0.5),"-",IFERROR('Tabel 4 H'!F78/'Tabel 4F H'!F78*100,"-")) -> 2.380952381 | G78: =IF(OR('Tabel 4F H'!G78<5,'Tabel 4 H'!G78<0.5),"-",IFERROR('Tabel 4 H'!G78/'Tabel 4F H'!G78*100,"-")) -> - | I78: =IF(OR('Tabel 4F H'!I78<5,'Tabel 4 H'!I78<0.5),"-",IFERROR('Tabel 4 H'!I78/'Tabel 4F H'!I78*100,"-")) -> 2.302631579
A79: Arkitekt | C79: =IF(OR('Tabel 4F H'!C79<5,'Tabel 4 H'!C79<0.5),"-",IFERROR('Tabel 4 H'!C79/'Tabel 4F H'!C79*100,"-")) -> 30.47619048 | D79: =IF(OR('Tabel 4F H'!D79<5,'Tabel 4 H'!D79<0.5),"-",IFERROR('Tabel 4 H'!D79/'Tabel 4F H'!D79*100,"-")) -> 8.457142857 | E79: =IF(OR('Tabel 4F H'!E79<5,'Tabel 4 H'!E79<0.5),"-",IFERROR('Tabel 4 H'!E79/'Tabel 4F H'!E79*100,"-")) -> 4.470938897 | F79: =IF(OR('Tabel 4F H'!F79<5,'Tabel 4 H'!F79<0.5),"-",IFERROR('Tabel 4 H'!F79/'Tabel 4F H'!F79*100,"-")) -> 4.825737265 | G79: =IF(OR('Tabel 4F H'!G79<5,'Tabel 4 H'!G79<0.5),"-",IFERROR('Tabel 4 H'!G79/'Tabel 4F H'!G79*100,"-")) -> 9.285714286 | I79: =IF(OR('Tabel 4F H'!I79<5,'Tabel 4 H'!I79<0.5),"-",IFERROR('Tabel 4 H'!I79/'Tabel 4F H'!I79*100,"-")) -> 8.770383429
A80: Landinspek. | C80: =IF(OR('Tabel 4F H'!C80<5,'Tabel 4 H'!C80<0.5),"-",IFERROR('Tabel 4 H'!C80/'Tabel 4F H'!C80*100,"-")) -> - | D80: =IF(OR('Tabel 4F H'!D80<5,'Tabel 4 H'!D80<0.5),"-",IFERROR('Tabel 4 H'!D80/'Tabel 4F H'!D80*100,"-")) -> - | E80: =IF(OR('Tabel 4F H'!E80<5,'Tabel 4 H'!E80<0.5),"-",IFERROR('Tabel 4 H'!E80/'Tabel 4F H'!E80*100,"-")) -> 8.333333333 | F80: =IF(OR('Tabel 4F H'!F80<5,'Tabel 4 H'!F80<0.5),"-",IFERROR('Tabel 4 H'!F80/'Tabel 4F H'!F80*100,"-")) -> - | G80: =IF(OR('Tabel 4F H'!G80<5,'Tabel 4 H'!G80<0.5),"-",IFERROR('Tabel 4 H'!G80/'Tabel 4F H'!G80*100,"-")) -> - | I80: =IF(OR('Tabel 4F H'!I80<5,'Tabel 4 H'!I80<0.5),"-",IFERROR('Tabel 4 H'!I80/'Tabel 4F H'!I80*100,"-")) -> 1.639344262
A81: Bibliotekar | C81: =IF(OR('Tabel 4F H'!C81<5,'Tabel 4 H'!C81<0.5),"-",IFERROR('Tabel 4 H'!C81/'Tabel 4F H'!C81*100,"-")) -> 23.52941176 | D81: =IF(OR('Tabel 4F H'!D81<5,'Tabel 4 H'!D81<0.5),"-",IFERROR('Tabel 4 H'!D81/'Tabel 4F H'!D81*100,"-")) -> 6.94980695 | E81: =IF(OR('Tabel 4F H'!E81<5,'Tabel 4 H'!E81<0.5),"-",IFERROR('Tabel 4 H'!E81/'Tabel 4F H'!E81*100,"-")) -> 5.098039216 | F81: =IF(OR('Tabel 4F H'!F81<5,'Tabel 4 H'!F81<0.5),"-",IFERROR('Tabel 4 H'!F81/'Tabel 4F H'!F81*100,"-")) -> 5.325443787 | G81: =IF(OR('Tabel 4F H'!G81<5,'Tabel 4 H'!G81<0.5),"-",IFERROR('Tabel 4 H'!G81/'Tabel 4F H'!G81*100,"-")) -> 1.739130435 | I81: =IF(OR('Tabel 4F H'!I81<5,'Tabel 4 H'!I81<0.5),"-",IFERROR('Tabel 4 H'!I81/'Tabel 4F H'!I81*100,"-")) -> 6.009615385
A82: Musikudd. | C82: =IF(OR('Tabel 4F H'!C82<5,'Tabel 4 H'!C82<0.5),"-",IFERROR('Tabel 4 H'!C82/'Tabel 4F H'!C82*100,"-")) -> - | D82: =IF(OR('Tabel 4F H'!D82<5,'Tabel 4 H'!D82<0.5),"-",IFERROR('Tabel 4 H'!D82/'Tabel 4F H'!D82*100,"-")) -> 8 | E82: =IF(OR('Tabel 4F H'!E82<5,'Tabel 4 H'!E82<0.5),"-",IFERROR('Tabel 4 H'!E82/'Tabel 4F H'!E82*100,"-")) -> - | F82: =IF(OR('Tabel 4F H'!F82<5,'Tabel 4 H'!F82<0.5),"-",IFERROR('Tabel 4 H'!F82/'Tabel 4F H'!F82*100,"-")) -> 3.225806452 | G82: =IF(OR('Tabel 4F H'!G82<5,'Tabel 4 H'!G82<0.5),"-",IFERROR('Tabel 4 H'!G82/'Tabel 4F H'!G82*100,"-")) -> - | I82: =IF(OR('Tabel 4F H'!I82<5,'Tabel 4 H'!I82<0.5),"-",IFERROR('Tabel 4 H'!I82/'Tabel 4F H'!I82*100,"-")) -> 3.311258278
A83: Teolog | C83: =IF(OR('Tabel 4F H'!C83<5,'Tabel 4 H'!C83<0.5),"-",IFERROR('Tabel 4 H'!C83/'Tabel 4F H'!C83*100,"-")) -> 33.33333333 | D83: =IF(OR('Tabel 4F H'!D83<5,'Tabel 4 H'!D83<0.5),"-",IFERROR('Tabel 4 H'!D83/'Tabel 4F H'!D83*100,"-")) -> 16.07142857 | E83: =IF(OR('Tabel 4F H'!E83<5,'Tabel 4 H'!E83<0.5),"-",IFERROR('Tabel 4 H'!E83/'Tabel 4F H'!E83*100,"-")) -> 2.197802198 | F83: =IF(OR('Tabel 4F H'!F83<5,'Tabel 4 H'!F83<0.5),"-",IFERROR('Tabel 4 H'!F83/'Tabel 4F H'!F83*100,"-")) -> 10.16949153 | G83: =IF(OR('Tabel 4F H'!G83<5,'Tabel 4 H'!G83<0.5),"-",IFERROR('Tabel 4 H'!G83/'Tabel 4F H'!G83*100,"-")) -> - | I83: =IF(OR('Tabel 4F H'!I83<5,'Tabel 4 H'!I83<0.5),"-",IFERROR('Tabel 4 H'!I83/'Tabel 4F H'!I83*100,"-")) -> 8.571428571
A84: Psykolog | C84: =IF(OR('Tabel 4F H'!C84<5,'Tabel 4 H'!C84<0.5),"-",IFERROR('Tabel 4 H'!C84/'Tabel 4F H'!C84*100,"-")) -> 12.55605381 | D84: =IF(OR('Tabel 4F H'!D84<5,'Tabel 4 H'!D84<0.5),"-",IFERROR('Tabel 4 H'!D84/'Tabel 4F H'!D84*100,"-")) -> 6.888068881 | E84: =IF(OR('Tabel 4F H'!E84<5,'Tabel 4 H'!E84<0.5),"-",IFERROR('Tabel 4 H'!E84/'Tabel 4F H'!E84*100,"-")) -> 2.398081535 | F84: =IF(OR('Tabel 4F H'!F84<5,'Tabel 4 H'!F84<0.5),"-",IFERROR('Tabel 4 H'!F84/'Tabel 4F H'!F84*100,"-")) -> - | G84: =IF(OR('Tabel 4F H'!G84<5,'Tabel 4 H'!G84<0.5),"-",IFERROR('Tabel 4 H'!G84/'Tabel 4F H'!G84*100,"-")) -> 1.960784314 | I84: =IF(OR('Tabel 4F H'!I84<5,'Tabel 4 H'!I84<0.5),"-",IFERROR('Tabel 4 H'!I84/'Tabel 4F H'!I84*100,"-")) -> 6.209313971
A85: Jurist | C85: =IF(OR('Tabel 4F H'!C85<5,'Tabel 4 H'!C85<0.5),"-",IFERROR('Tabel 4 H'!C85/'Tabel 4F H'!C85*100,"-")) -> 5.383936452 | D85: =IF(OR('Tabel 4F H'!D85<5,'Tabel 4 H'!D85<0.5),"-",IFERROR('Tabel 4 H'!D85/'Tabel 4F H'!D85*100,"-")) -> 1.397712834 | E85: =IF(OR('Tabel 4F H'!E85<5,'Tabel 4 H'!E85<0.5),"-",IFERROR('Tabel 4 H'!E85/'Tabel 4F H'!E85*100,"-")) -> 1.694915254 | F85: =IF(OR('Tabel 4F H'!F85<5,'Tabel 4 H'!F85<0.5),"-",IFERROR('Tabel 4 H'!F85/'Tabel 4F H'!F85*100,"-")) -> 2.425373134 | G85: =IF(OR('Tabel 4F H'!G85<5,'Tabel 4 H'!G85<0.5),"-",IFERROR('Tabel 4 H'!G85/'Tabel 4F H'!G85*100,"-")) -> 4.635761589 | I85: =IF(OR('Tabel 4F H'!I85<5,'Tabel 4 H'!I85<0.5),"-",IFERROR('Tabel 4 H'!I85/'Tabel 4F H'!I85*100,"-")) -> 2.757653657
A86: Økonom | C86: =IF(OR('Tabel 4F H'!C86<5,'Tabel 4 H'!C86<0.5),"-",IFERROR('Tabel 4 H'!C86/'Tabel 4F H'!C86*100,"-")) -> 5.755395683 | D86: =IF(OR('Tabel 4F H'!D86<5,'Tabel 4 H'!D86<0.5),"-",IFERROR('Tabel 4 H'!D86/'Tabel 4F H'!D86*100,"-")) -> 1.918976546 | E86: =IF(OR('Tabel 4F H'!E86<5,'Tabel 4 H'!E86<0.5),"-",IFERROR('Tabel 4 H'!E86/'Tabel 4F H'!E86*100,"-")) -> 2.231237323 | F86: =IF(OR('Tabel 4F H'!F86<5,'Tabel 4 H'!F86<0.5),"-",IFERROR('Tabel 4 H'!F86/'Tabel 4F H'!F86*100,"-")) -> 2.593659942 | G86: =IF(OR('Tabel 4F H'!G86<5,'Tabel 4 H'!G86<0.5),"-",IFERROR('Tabel 4 H'!G86/'Tabel 4F H'!G86*100,"-")) -> 6.666666667 | I86: =IF(OR('Tabel 4F H'!I86<5,'Tabel 4 H'!I86<0.5),"-",IFERROR('Tabel 4 H'!I86/'Tabel 4F H'!I86*100,"-")) -> 3.257456829
A87: Samf. Adm. | C87: =IF(OR('Tabel 4F H'!C87<5,'Tabel 4 H'!C87<0.5),"-",IFERROR('Tabel 4 H'!C87/'Tabel 4F H'!C87*100,"-")) -> 16.92708333 | D87: =IF(OR('Tabel 4F H'!D87<5,'Tabel 4 H'!D87<0.5),"-",IFERROR('Tabel 4 H'!D87/'Tabel 4F H'!D87*100,"-")) -> 5.589929592 | E87: =IF(OR('Tabel 4F H'!E87<5,'Tabel 4 H'!E87<0.5),"-",IFERROR('Tabel 4 H'!E87/'Tabel 4F H'!E87*100,"-")) -> 3.37962963 | F87: =IF(OR('Tabel 4F H'!F87<5,'Tabel 4 H'!F87<0.5),"-",IFERROR('Tabel 4 H'!F87/'Tabel 4F H'!F87*100,"-")) -> 3.815937149 | G87: =IF(OR('Tabel 4F H'!G87<5,'Tabel 4 H'!G87<0.5),"-",IFERROR('Tabel 4 H'!G87/'Tabel 4F H'!G87*100,"-")) -> 3.773584906 | I87: =IF(OR('Tabel 4F H'!I87<5,'Tabel 4 H'!I87<0.5),"-",IFERROR('Tabel 4 H'!I87/'Tabel 4F H'!I87*100,"-")) -> 7.130487929
A88: Cand. Merc. | C88: =IF(OR('Tabel 4F H'!C88<5,'Tabel 4 H'!C88<0.5),"-",IFERROR('Tabel 4 H'!C88/'Tabel 4F H'!C88*100,"-")) -> 10.37764814 | D88: =IF(OR('Tabel 4F H'!D88<5,'Tabel 4 H'!D88<0.5),"-",IFERROR('Tabel 4 H'!D88/'Tabel 4F H'!D88*100,"-")) -> 4.643023798 | E88: =IF(OR('Tabel 4F H'!E88<5,'Tabel 4 H'!E88<0.5),"-",IFERROR('Tabel 4 H'!E88/'Tabel 4F H'!E88*100,"-")) -> 4.338070307 | F88: =IF(OR('Tabel 4F H'!F88<5,'Tabel 4 H'!F88<0.5),"-",IFERROR('Tabel 4 H'!F88/'Tabel 4F H'!F88*100,"-")) -> 4.87012987 | G88: =IF(OR('Tabel 4F H'!G88<5,'Tabel 4 H'!G88<0.5),"-",IFERROR('Tabel 4 H'!G88/'Tabel 4F H'!G88*100,"-")) -> 5.555555556 | I88: =IF(OR('Tabel 4F H'!I88<5,'Tabel 4 H'!I88<0.5),"-",IFERROR('Tabel 4 H'!I88/'Tabel 4F H'!I88*100,"-")) -> 6.573996656
A89: HA | C89: =IF(OR('Tabel 4F H'!C89<5,'Tabel 4 H'!C89<0.5),"-",IFERROR('Tabel 4 H'!C89/'Tabel 4F H'!C89*100,"-")) -> 17.59776536 | D89: =IF(OR('Tabel 4F H'!D89<5,'Tabel 4 H'!D89<0.5),"-",IFERROR('Tabel 4 H'!D89/'Tabel 4F H'!D89*100,"-")) -> 7.220216606 | E89: =IF(OR('Tabel 4F H'!E89<5,'Tabel 4 H'!E89<0.5),"-",IFERROR('Tabel 4 H'!E89/'Tabel 4F H'!E89*100,"-")) -> 3.546099291 | F89: =IF(OR('Tabel 4F H'!F89<5,'Tabel 4 H'!F89<0.5),"-",IFERROR('Tabel 4 H'!F89/'Tabel 4F H'!F89*100,"-")) -> 3.93258427 | G89: =IF(OR('Tabel 4F H'!G89<5,'Tabel 4 H'!G89<0.5),"-",IFERROR('Tabel 4 H'!G89/'Tabel 4F H'!G89*100,"-")) -> 6.666666667 | I89: =IF(OR('Tabel 4F H'!I89<5,'Tabel 4 H'!I89<0.5),"-",IFERROR('Tabel 4 H'!I89/'Tabel 4F H'!I89*100,"-")) -> 9.857723577
A90: HD | C90: =IF(OR('Tabel 4F H'!C90<5,'Tabel 4 H'!C90<0.5),"-",IFERROR('Tabel 4 H'!C90/'Tabel 4F H'!C90*100,"-")) -> 24.60496614 | D90: =IF(OR('Tabel 4F H'!D90<5,'Tabel 4 H'!D90<0.5),"-",IFERROR('Tabel 4 H'!D90/'Tabel 4F H'!D90*100,"-")) -> 9.935897436 | E90: =IF(OR('Tabel 4F H'!E90<5,'Tabel 4 H'!E90<0.5),"-",IFERROR('Tabel 4 H'!E90/'Tabel 4F H'!E90*100,"-")) -> 3.529411765 | F90: =IF(OR('Tabel 4F H'!F90<5,'Tabel 4 H'!F90<0.5),"-",IFERROR('Tabel 4 H'!F90/'Tabel 4F H'!F90*100,"-")) -> 5.442176871 | G90: =IF(OR('Tabel 4F H'!G90<5,'Tabel 4 H'!G90<0.5),"-",IFERROR('Tabel 4 H'!G90/'Tabel 4F H'!G90*100,"-")) -> 11.9047619 | I90: =IF(OR('Tabel 4F H'!I90<5,'Tabel 4 H'!I90<0.5),"-",IFERROR('Tabel 4 H'!I90/'Tabel 4F H'!I90*100,"-")) -> 15.16034985
A91: Komm. og Sprog | C91: =IF(OR('Tabel 4F H'!C91<5,'Tabel 4 H'!C91<0.5),"-",IFERROR('Tabel 4 H'!C91/'Tabel 4F H'!C91*100,"-")) -> 14.55696203 | D91: =IF(OR('Tabel 4F H'!D91<5,'Tabel 4 H'!D91<0.5),"-",IFERROR('Tabel 4 H'!D91/'Tabel 4F H'!D91*100,"-")) -> 8.941877794 | E91: =IF(OR('Tabel 4F H'!E91<5,'Tabel 4 H'!E91<0.5),"-",IFERROR('Tabel 4 H'!E91/'Tabel 4F H'!E91*100,"-")) -> 7.746478873 | F91: =IF(OR('Tabel 4F H'!F91<5,'Tabel 4 H'!F91<0.5),"-",IFERROR('Tabel 4 H'!F91/'Tabel 4F H'!F91*100,"-")) -> 6.140350877 | G91: =IF(OR('Tabel 4F H'!G91<5,'Tabel 4 H'!G91<0.5),"-",IFERROR('Tabel 4 H'!G91/'Tabel 4F H'!G91*100,"-")) -> 7.042253521 | I91: =IF(OR('Tabel 4F H'!I91<5,'Tabel 4 H'!I91<0.5),"-",IFERROR('Tabel 4 H'!I91/'Tabel 4F H'!I91*100,"-")) -> 9.679144385
A92: Cand. IT. | C92: =IF(OR('Tabel 4F H'!C92<5,'Tabel 4 H'!C92<0.5),"-",IFERROR('Tabel 4 H'!C92/'Tabel 4F H'!C92*100,"-")) -> 13.79310345 | D92: =IF(OR('Tabel 4F H'!D92<5,'Tabel 4 H'!D92<0.5),"-",IFERROR('Tabel 4 H'!D92/'Tabel 4F H'!D92*100,"-")) -> 5.419354839 | E92: =IF(OR('Tabel 4F H'!E92<5,'Tabel 4 H'!E92<0.5),"-",IFERROR('Tabel 4 H'!E92/'Tabel 4F H'!E92*100,"-")) -> 4.529616725 | F92: =IF(OR('Tabel 4F H'!F92<5,'Tabel 4 H'!F92<0.5),"-",IFERROR('Tabel 4 H'!F92/'Tabel 4F H'!F92*100,"-")) -> 15.625 | G92: =IF(OR('Tabel 4F H'!G92<5,'Tabel 4 H'!G92<0.5),"-",IFERROR('Tabel 4 H'!G92/'Tabel 4F H'!G92*100,"-")) -> - | I92: =IF(OR('Tabel 4F H'!I92<5,'Tabel 4 H'!I92<0.5),"-",IFERROR('Tabel 4 H'!I92/'Tabel 4F H'!I92*100,"-")) -> 7.898172324
A93: Bac. Samf. | C93: =IF(OR('Tabel 4F H'!C93<5,'Tabel 4 H'!C93<0.5),"-",IFERROR('Tabel 4 H'!C93/'Tabel 4F H'!C93*100,"-")) -> 11.23595506 | D93: =IF(OR('Tabel 4F H'!D93<5,'Tabel 4 H'!D93<0.5),"-",IFERROR('Tabel 4 H'!D93/'Tabel 4F H'!D93*100,"-")) -> 5.223880597 | E93: =IF(OR('Tabel 4F H'!E93<5,'Tabel 4 H'!E93<0.5),"-",IFERROR('Tabel 4 H'!E93/'Tabel 4F H'!E93*100,"-")) -> 3.669724771 | F93: =IF(OR('Tabel 4F H'!F93<5,'Tabel 4 H'!F93<0.5),"-",IFERROR('Tabel 4 H'!F93/'Tabel 4F H'!F93*100,"-")) -> 2.739726027 | G93: =IF(OR('Tabel 4F H'!G93<5,'Tabel 4 H'!G93<0.5),"-",IFERROR('Tabel 4 H'!G93/'Tabel 4F H'!G93*100,"-")) -> 22.22222222 | I93: =IF(OR('Tabel 4F H'!I93<5,'Tabel 4 H'!I93<0.5),"-",IFERROR('Tabel 4 H'!I93/'Tabel 4F H'!I93*100,"-")) -> 6.038647343
A94: Bac. Hum. | C94: =IF(OR('Tabel 4F H'!C94<5,'Tabel 4 H'!C94<0.5),"-",IFERROR('Tabel 4 H'!C94/'Tabel 4F H'!C94*100,"-")) -> 20.28571429 | D94: =IF(OR('Tabel 4F H'!D94<5,'Tabel 4 H'!D94<0.5),"-",IFERROR('Tabel 4 H'!D94/'Tabel 4F H'!D94*100,"-")) -> 13.25301205 | E94: =IF(OR('Tabel 4F H'!E94<5,'Tabel 4 H'!E94<0.5),"-",IFERROR('Tabel 4 H'!E94/'Tabel 4F H'!E94*100,"-")) -> 8.658008658 | F94: =IF(OR('Tabel 4F H'!F94<5,'Tabel 4 H'!F94<0.5),"-",IFERROR('Tabel 4 H'!F94/'Tabel 4F H'!F94*100,"-")) -> 3.592814371 | G94: =IF(OR('Tabel 4F H'!G94<5,'Tabel 4 H'!G94<0.5),"-",IFERROR('Tabel 4 H'!G94/'Tabel 4F H'!G94*100,"-")) -> 11.36363636 | I94: =IF(OR('Tabel 4F H'!I94<5,'Tabel 4 H'!I94<0.5),"-",IFERROR('Tabel 4 H'!I94/'Tabel 4F H'!I94*100,"-")) -> 12.96829971
A95: Bac. Nat. | C95: =IF(OR('Tabel 4F H'!C95<5,'Tabel 4 H'!C95<0.5),"-",IFERROR('Tabel 4 H'!C95/'Tabel 4F H'!C95*100,"-")) -> 18.77256318 | D95: =IF(OR('Tabel 4F H'!D95<5,'Tabel 4 H'!D95<0.5),"-",IFERROR('Tabel 4 H'!D95/'Tabel 4F H'!D95*100,"-")) -> 7.751937984 | E95: =IF(OR('Tabel 4F H'!E95<5,'Tabel 4 H'!E95<0.5),"-",IFERROR('Tabel 4 H'!E95/'Tabel 4F H'!E95*100,"-")) -> 2.941176471 | F95: =IF(OR('Tabel 4F H'!F95<5,'Tabel 4 H'!F95<0.5),"-",IFERROR('Tabel 4 H'!F95/'Tabel 4F H'!F95*100,"-")) -> 9.090909091 | G95: =IF(OR('Tabel 4F H'!G95<5,'Tabel 4 H'!G95<0.5),"-",IFERROR('Tabel 4 H'!G95/'Tabel 4F H'!G95*100,"-")) -> - | I95: =IF(OR('Tabel 4F H'!I95<5,'Tabel 4 H'!I95<0.5),"-",IFERROR('Tabel 4 H'!I95/'Tabel 4F H'!I95*100,"-")) -> 12.20657277
A96: Andre | C96: =IF(OR('Tabel 4F H'!C96<5,'Tabel 4 H'!C96<0.5),"-",IFERROR('Tabel 4 H'!C96/'Tabel 4F H'!C96*100,"-")) -> 17.32925586 | D96: =IF(OR('Tabel 4F H'!D96<5,'Tabel 4 H'!D96<0.5),"-",IFERROR('Tabel 4 H'!D96/'Tabel 4F H'!D96*100,"-")) -> 7.872928177 | E96: =IF(OR('Tabel 4F H'!E96<5,'Tabel 4 H'!E96<0.5),"-",IFERROR('Tabel 4 H'!E96/'Tabel 4F H'!E96*100,"-")) -> 5.535055351 | F96: =IF(OR('Tabel 4F H'!F96<5,'Tabel 4 H'!F96<0.5),"-",IFERROR('Tabel 4 H'!F96/'Tabel 4F H'!F96*100,"-")) -> 8.323424495 | G96: =IF(OR('Tabel 4F H'!G96<5,'Tabel 4 H'!G96<0.5),"-",IFERROR('Tabel 4 H'!G96/'Tabel 4F H'!G96*100,"-")) -> 8.363636364 | I96: =IF(OR('Tabel 4F H'!I96<5,'Tabel 4 H'!I96<0.5),"-",IFERROR('Tabel 4 H'!I96/'Tabel 4F H'!I96*100,"-")) -> 8.777760991
A98: Total | C98: =IF(OR('Tabel 4F H'!C98<5,'Tabel 4 H'!C98<0.5),"-",IFERROR('Tabel 4 H'!C98/'Tabel 4F H'!C98*100,"-")) -> 15.21515339 | D98: =IF(OR('Tabel 4F H'!D98<5,'Tabel 4 H'!D98<0.5),"-",IFERROR('Tabel 4 H'!D98/'Tabel 4F H'!D98*100,"-")) -> 6.455787203 | E98: =IF(OR('Tabel 4F H'!E98<5,'Tabel 4 H'!E98<0.5),"-",IFERROR('Tabel 4 H'!E98/'Tabel 4F H'!E98*100,"-")) -> 4.044324446 | F98: =IF(OR('Tabel 4F H'!F98<5,'Tabel 4 H'!F98<0.5),"-",IFERROR('Tabel 4 H'!F98/'Tabel 4F H'!F98*100,"-")) -> 4.398764512 | G98: =IF(OR('Tabel 4F H'!G98<5,'Tabel 4 H'!G98<0.5),"-",IFERROR('Tabel 4 H'!G98/'Tabel 4F H'!G98*100,"-")) -> 5.434380776 | I98: =IF(OR('Tabel 4F H'!I98<5,'Tabel 4 H'!I98<0.5),"-",IFERROR('Tabel 4 H'!I98/'Tabel 4F H'!I98*100,"-")) -> 7.707404103
A100: Ingeniører i alt | C100: =IF(OR('Tabel 4F H'!C100<5,'Tabel 4 H'!C100<0.5),"-",IFERROR('Tabel 4 H'!C100/'Tabel 4F H'!C100*100,"-")) -> 9.308372335 | D100: =IF(OR('Tabel 4F H'!D100<5,'Tabel 4 H'!D100<0.5),"-",IFERROR('Tabel 4 H'!D100/'Tabel 4F H'!D100*100,"-")) -> 2.727272727 | E100: =IF(OR('Tabel 4F H'!E100<5,'Tabel 4 H'!E100<0.5),"-",IFERROR('Tabel 4 H'!E100/'Tabel 4F H'!E100*100,"-")) -> 2.354326074 | F100: =IF(OR('Tabel 4F H'!F100<5,'Tabel 4 H'!F100<0.5),"-",IFERROR('Tabel 4 H'!F100/'Tabel 4F H'!F100*100,"-")) -> 2.841677943 | G100: =IF(OR('Tabel 4F H'!G100<5,'Tabel 4 H'!G100<0.5),"-",IFERROR('Tabel 4 H'!G100/'Tabel 4F H'!G100*100,"-")) -> 3.787878788 | I100: =IF(OR('Tabel 4F H'!I100<5,'Tabel 4 H'!I100<0.5),"-",IFERROR('Tabel 4 H'!I100/'Tabel 4F H'!I100*100,"-")) -> 4.160982265
A101: Magistre i alt | C101: =IF(OR('Tabel 4F H'!C101<5,'Tabel 4 H'!C101<0.5),"-",IFERROR('Tabel 4 H'!C101/'Tabel 4F H'!C101*100,"-")) -> 23.0890217 | D101: =IF(OR('Tabel 4F H'!D101<5,'Tabel 4 H'!D101<0.5),"-",IFERROR('Tabel 4 H'!D101/'Tabel 4F H'!D101*100,"-")) -> 9.962706446 | E101: =IF(OR('Tabel 4F H'!E101<5,'Tabel 4 H'!E101<0.5),"-",IFERROR('Tabel 4 H'!E101/'Tabel 4F H'!E101*100,"-")) -> 4.858375539 | F101: =IF(OR('Tabel 4F H'!F101<5,'Tabel 4 H'!F101<0.5),"-",IFERROR('Tabel 4 H'!F101/'Tabel 4F H'!F101*100,"-")) -> 5.024239753 | G101: =IF(OR('Tabel 4F H'!G101<5,'Tabel 4 H'!G101<0.5),"-",IFERROR('Tabel 4 H'!G101/'Tabel 4F H'!G101*100,"-")) -> 6.189821183 | I101: =IF(OR('Tabel 4F H'!I101<5,'Tabel 4 H'!I101<0.5),"-",IFERROR('Tabel 4 H'!I101/'Tabel 4F H'!I101*100,"-")) -> 9.992637004
A102: DJØF'ere i alt | C102: =IF(OR('Tabel 4F H'!C102<5,'Tabel 4 H'!C102<0.5),"-",IFERROR('Tabel 4 H'!C102/'Tabel 4F H'!C102*100,"-")) -> 11.23183485 | D102: =IF(OR('Tabel 4F H'!D102<5,'Tabel 4 H'!D102<0.5),"-",IFERROR('Tabel 4 H'!D102/'Tabel 4F H'!D102*100,"-")) -> 4.429518789 | E102: =IF(OR('Tabel 4F H'!E102<5,'Tabel 4 H'!E102<0.5),"-",IFERROR('Tabel 4 H'!E102/'Tabel 4F H'!E102*100,"-")) -> 3.229665072 | F102: =IF(OR('Tabel 4F H'!F102<5,'Tabel 4 H'!F102<0.5),"-",IFERROR('Tabel 4 H'!F102/'Tabel 4F H'!F102*100,"-")) -> 3.621495327 | G102: =IF(OR('Tabel 4F H'!G102<5,'Tabel 4 H'!G102<0.5),"-",IFERROR('Tabel 4 H'!G102/'Tabel 4F H'!G102*100,"-")) -> 4.928131417 | I102: =IF(OR('Tabel 4F H'!I102<5,'Tabel 4 H'!I102<0.5),"-",IFERROR('Tabel 4 H'!I102/'Tabel 4F H'!I102*100,"-")) -> 5.982497426
A109: Frederiksberg
C111: Under 30 år | D111: 30 - 39 år | E111: 40 - 49 år | F111: 50 - 59 år | G111: Over 60 år | I111: I alt
A113: Civ. ing. | C113: =IF(OR('Tabel 4F H'!C113<5,'Tabel 4 H'!C113<0.5),"-",IFERROR('Tabel 4 H'!C113/'Tabel 4F H'!C113*100,"-")) -> 7.303370787 | D113: =IF(OR('Tabel 4F H'!D113<5,'Tabel 4 H'!D113<0.5),"-",IFERROR('Tabel 4 H'!D113/'Tabel 4F H'!D113*100,"-")) -> 2.247191011 | E113: =IF(OR('Tabel 4F H'!E113<5,'Tabel 4 H'!E113<0.5),"-",IFERROR('Tabel 4 H'!E113/'Tabel 4F H'!E113*100,"-")) -> 2.358490566 | F113: =IF(OR('Tabel 4F H'!F113<5,'Tabel 4 H'!F113<0.5),"-",IFERROR('Tabel 4 H'!F113/'Tabel 4F H'!F113*100,"-")) -> 2.732240437 | G113: =IF(OR('Tabel 4F H'!G113<5,'Tabel 4 H'!G113<0.5),"-",IFERROR('Tabel 4 H'!G113/'Tabel 4F H'!G113*100,"-")) -> 1.818181818 | I113: =IF(OR('Tabel 4F H'!I113<5,'Tabel 4 H'!I113<0.5),"-",IFERROR('Tabel 4 H'!I113/'Tabel 4F H'!I113*100,"-")) -> 3.168685927
A114: Diplom ing. | C114: =IF(OR('Tabel 4F H'!C114<5,'Tabel 4 H'!C114<0.5),"-",IFERROR('Tabel 4 H'!C114/'Tabel 4F H'!C114*100,"-")) -> 10.76923077 | D114: =IF(OR('Tabel 4F H'!D114<5,'Tabel 4 H'!D114<0.5),"-",IFERROR('Tabel 4 H'!D114/'Tabel 4F H'!D114*100,"-")) -> 3.225806452 | E114: =IF(OR('Tabel 4F H'!E114<5,'Tabel 4 H'!E114<0.5),"-",IFERROR('Tabel 4 H'!E114/'Tabel 4F H'!E114*100,"-")) -> 4.379562044 | F114: =IF(OR('Tabel 4F H'!F114<5,'Tabel 4 H'!F114<0.5),"-",IFERROR('Tabel 4 H'!F114/'Tabel 4F H'!F114*100,"-")) -> 2.645502646 | G114: =IF(OR('Tabel 4F H'!G114<5,'Tabel 4 H'!G114<0.5),"-",IFERROR('Tabel 4 H'!G114/'Tabel 4F H'!G114*100,"-")) -> 3.846153846 | I114: =IF(OR('Tabel 4F H'!I114<5,'Tabel 4 H'!I114<0.5),"-",IFERROR('Tabel 4 H'!I114/'Tabel 4F H'!I114*100,"-")) -> 4.232804233
A115: Cand. Scient. Tek | C115: =IF(OR('Tabel 4F H'!C115<5,'Tabel 4 H'!C115<0.5),"-",IFERROR('Tabel 4 H'!C115/'Tabel 4F H'!C115*100,"-")) -> 17.07317073 | D115: =IF(OR('Tabel 4F H'!D115<5,'Tabel 4 H'!D115<0.5),"-",IFERROR('Tabel 4 H'!D115/'Tabel 4F H'!D115*100,"-")) -> 5.25 | E115: =IF(OR('Tabel 4F H'!E115<5,'Tabel 4 H'!E115<0.5),"-",IFERROR('Tabel 4 H'!E115/'Tabel 4F H'!E115*100,"-")) -> 2.857142857 | F115: =IF(OR('Tabel 4F H'!F115<5,'Tabel 4 H'!F115<0.5),"-",IFERROR('Tabel 4 H'!F115/'Tabel 4F H'!F115*100,"-")) -> 3.846153846 | G115: =IF(OR('Tabel 4F H'!G115<5,'Tabel 4 H'!G115<0.5),"-",IFERROR('Tabel 4 H'!G115/'Tabel 4F H'!G115*100,"-")) -> - | I115: =IF(OR('Tabel 4F H'!I115<5,'Tabel 4 H'!I115<0.5),"-",IFERROR('Tabel 4 H'!I115/'Tabel 4F H'!I115*100,"-")) -> 8.58974359
A116: MA. Hum. | C116: =IF(OR('Tabel 4F H'!C116<5,'Tabel 4 H'!C116<0.5),"-",IFERROR('Tabel 4 H'!C116/'Tabel 4F H'!C116*100,"-")) -> 22.62443439 | D116: =IF(OR('Tabel 4F H'!D116<5,'Tabel 4 H'!D116<0.5),"-",IFERROR('Tabel 4 H'!D116/'Tabel 4F H'!D116*100,"-")) -> 8.635578584 | E116: =IF(OR('Tabel 4F H'!E116<5,'Tabel 4 H'!E116<0.5),"-",IFERROR('Tabel 4 H'!E116/'Tabel 4F H'!E116*100,"-")) -> 4.484304933 | F116: =IF(OR('Tabel 4F H'!F116<5,'Tabel 4 H'!F116<0.5),"-",IFERROR('Tabel 4 H'!F116/'Tabel 4F H'!F116*100,"-")) -> 5.220883534 | G116: =IF(OR('Tabel 4F H'!G116<5,'Tabel 4 H'!G116<0.5),"-",IFERROR('Tabel 4 H'!G116/'Tabel 4F H'!G116*100,"-")) -> 8.75 | I116: =IF(OR('Tabel 4F H'!I116<5,'Tabel 4 H'!I116<0.5),"-",IFERROR('Tabel 4 H'!I116/'Tabel 4F H'!I116*100,"-")) -> 8.342602892
A117: MA. Nat. | C117: =IF(OR('Tabel 4F H'!C117<5,'Tabel 4 H'!C117<0.5),"-",IFERROR('Tabel 4 H'!C117/'Tabel 4F H'!C117*100,"-")) -> 24.3902439 | D117: =IF(OR('Tabel 4F H'!D117<5,'Tabel 4 H'!D117<0.5),"-",IFERROR('Tabel 4 H'!D117/'Tabel 4F H'!D117*100,"-")) -> 6.422018349 | E117: =IF(OR('Tabel 4F H'!E117<5,'Tabel 4 H'!E117<0.5),"-",IFERROR('Tabel 4 H'!E117/'Tabel 4F H'!E117*100,"-")) -> 2.173913043 | F117: =IF(OR('Tabel 4F H'!F117<5,'Tabel 4 H'!F117<0.5),"-",IFERROR('Tabel 4 H'!F117/'Tabel 4F H'!F117*100,"-")) -> 2.307692308 | G117: =IF(OR('Tabel 4F H'!G117<5,'Tabel 4 H'!G117<0.5),"-",IFERROR('Tabel 4 H'!G117/'Tabel 4F H'!G117*100,"-")) -> 2.564102564 | I117: =IF(OR('Tabel 4F H'!I117<5,'Tabel 4 H'!I117<0.5),"-",IFERROR('Tabel 4 H'!I117/'Tabel 4F H'!I117*100,"-")) -> 4.970178926
A118: MA. Ph.d. | C118: =IF(OR('Tabel 4F H'!C118<5,'Tabel 4 H'!C118<0.5),"-",IFERROR('Tabel 4 H'!C118/'Tabel 4F H'!C118*100,"-")) -> - | D118: =IF(OR('Tabel 4F H'!D118<5,'Tabel 4 H'!D118<0.5),"-",IFERROR('Tabel 4 H'!D118/'Tabel 4F H'!D118*100,"-")) -> 4.87804878 | E118: =IF(OR('Tabel 4F H'!E118<5,'Tabel 4 H'!E118<0.5),"-",IFERROR('Tabel 4 H'!E118/'Tabel 4F H'!E118*100,"-")) -> 11.11111111 | F118: =IF(OR('Tabel 4F H'!F118<5,'Tabel 4 H'!F118<0.5),"-",IFERROR('Tabel 4 H'!F118/'Tabel 4F H'!F118*100,"-")) -> 3.703703704 | G118: =IF(OR('Tabel 4F H'!G118<5,'Tabel 4 H'!G118<0.5),"-",IFERROR('Tabel 4 H'!G118/'Tabel 4F H'!G118*100,"-")) -> 16.66666667 | I118: =IF(OR('Tabel 4F H'!I118<5,'Tabel 4 H'!I118<0.5),"-",IFERROR('Tabel 4 H'!I118/'Tabel 4F H'!I118*100,"-")) -> 7.518796992
A119: MA. Samf. | C119: =IF(OR('Tabel 4F H'!C119<5,'Tabel 4 H'!C119<0.5),"-",IFERROR('Tabel 4 H'!C119/'Tabel 4F H'!C119*100,"-")) -> 17.94871795 | D119: =IF(OR('Tabel 4F H'!D119<5,'Tabel 4 H'!D119<0.5),"-",IFERROR('Tabel 4 H'!D119/'Tabel 4F H'!D119*100,"-")) -> 9.77443609 | E119: =IF(OR('Tabel 4F H'!E119<5,'Tabel 4 H'!E119<0.5),"-",IFERROR('Tabel 4 H'!E119/'Tabel 4F H'!E119*100,"-")) -> 8.620689655 | F119: =IF(OR('Tabel 4F H'!F119<5,'Tabel 4 H'!F119<0.5),"-",IFERROR('Tabel 4 H'!F119/'Tabel 4F H'!F119*100,"-")) -> 6.896551724 | G119: =IF(OR('Tabel 4F H'!G119<5,'Tabel 4 H'!G119<0.5),"-",IFERROR('Tabel 4 H'!G119/'Tabel 4F H'!G119*100,"-")) -> - | I119: =IF(OR('Tabel 4F H'!I119<5,'Tabel 4 H'!I119<0.5),"-",IFERROR('Tabel 4 H'!I119/'Tabel 4F H'!I119*100,"-")) -> 11.29568106
A120: Øvrige Mag. | C120: =IF(OR('Tabel 4F H'!C120<5,'Tabel 4 H'!C120<0.5),"-",IFERROR('Tabel 4 H'!C120/'Tabel 4F H'!C120*100,"-")) -> 25 | D120: =IF(OR('Tabel 4F H'!D120<5,'Tabel 4 H'!D120<0.5),"-",IFERROR('Tabel 4 H'!D120/'Tabel 4F H'!D120*100,"-")) -> 10.34482759 | E120: =IF(OR('Tabel 4F H'!E120<5,'Tabel 4 H'!E120<0.5),"-",IFERROR('Tabel 4 H'!E120/'Tabel 4F H'!E120*100,"-")) -> 9.523809524 | F120: =IF(OR('Tabel 4F H'!F120<5,'Tabel 4 H'!F120<0.5),"-",IFERROR('Tabel 4 H'!F120/'Tabel 4F H'!F120*100,"-")) -> 10.71428571 | G120: =IF(OR('Tabel 4F H'!G120<5,'Tabel 4 H'!G120<0.5),"-",IFERROR('Tabel 4 H'!G120/'Tabel 4F H'!G120*100,"-")) -> 10 | I120: =IF(OR('Tabel 4F H'!I120<5,'Tabel 4 H'!I120<0.5),"-",IFERROR('Tabel 4 H'!I120/'Tabel 4F H'!I120*100,"-")) -> 11.57024793
A121: Agronom | C121: =IF(OR('Tabel 4F H'!C121<5,'Tabel 4 H'!C121<0.5),"-",IFERROR('Tabel 4 H'!C121/'Tabel 4F H'!C121*100,"-")) -> 44.44444444 | D121: =IF(OR('Tabel 4F H'!D121<5,'Tabel 4 H'!D121<0.5),"-",IFERROR('Tabel 4 H'!D121/'Tabel 4F H'!D121*100,"-")) -> - | E121: =IF(OR('Tabel 4F H'!E121<5,'Tabel 4 H'!E121<0.5),"-",IFERROR('Tabel 4 H'!E121/'Tabel 4F H'!E121*100,"-")) -> - | F121: =IF(OR('Tabel 4F H'!F121<5,'Tabel 4 H'!F121<0.5),"-",IFERROR('Tabel 4 H'!F121/'Tabel 4F H'!F121*100,"-")) -> 3.703703704 | G121: =IF(OR('Tabel 4F H'!G121<5,'Tabel 4 H'!G121<0.5),"-",IFERROR('Tabel 4 H'!G121/'Tabel 4F H'!G121*100,"-")) -> - | I121: =IF(OR('Tabel 4F H'!I121<5,'Tabel 4 H'!I121<0.5),"-",IFERROR('Tabel 4 H'!I121/'Tabel 4F H'!I121*100,"-")) -> 6.172839506
A122: Landsk. Arkt. | C122: =IF(OR('Tabel 4F H'!C122<5,'Tabel 4 H'!C122<0.5),"-",IFERROR('Tabel 4 H'!C122/'Tabel 4F H'!C122*100,"-")) -> - | D122: =IF(OR('Tabel 4F H'!D122<5,'Tabel 4 H'!D122<0.5),"-",IFERROR('Tabel 4 H'!D122/'Tabel 4F H'!D122*100,"-")) -> - | E122: =IF(OR('Tabel 4F H'!E122<5,'Tabel 4 H'!E122<0.5),"-",IFERROR('Tabel 4 H'!E122/'Tabel 4F H'!E122*100,"-")) -> - | F122: =IF(OR('Tabel 4F H'!F122<5,'Tabel 4 H'!F122<0.5),"-",IFERROR('Tabel 4 H'!F122/'Tabel 4F H'!F122*100,"-")) -> - | G122: =IF(OR('Tabel 4F H'!G122<5,'Tabel 4 H'!G122<0.5),"-",IFERROR('Tabel 4 H'!G122/'Tabel 4F H'!G122*100,"-")) -> - | I122: =IF(OR('Tabel 4F H'!I122<5,'Tabel 4 H'!I122<0.5),"-",IFERROR('Tabel 4 H'!I122/'Tabel 4F H'!I122*100,"-")) -> 7.894736842
A123: Hortonom | C123: =IF(OR('Tabel 4F H'!C123<5,'Tabel 4 H'!C123<0.5),"-",IFERROR('Tabel 4 H'!C123/'Tabel 4F H'!C123*100,"-")) -> - | D123: =IF(OR('Tabel 4F H'!D123<5,'Tabel 4 H'!D123<0.5),"-",IFERROR('Tabel 4 H'!D123/'Tabel 4F H'!D123*100,"-")) -> - | E123: =IF(OR('Tabel 4F H'!E123<5,'Tabel 4 H'!E123<0.5),"-",IFERROR('Tabel 4 H'!E123/'Tabel 4F H'!E123*100,"-")) -> - | F123: =IF(OR('Tabel 4F H'!F123<5,'Tabel 4 H'!F123<0.5),"-",IFERROR('Tabel 4 H'!F123/'Tabel 4F H'!F123*100,"-")) -> - | G123: =IF(OR('Tabel 4F H'!G123<5,'Tabel 4 H'!G123<0.5),"-",IFERROR('Tabel 4 H'!G123/'Tabel 4F H'!G123*100,"-")) -> - | I123: =IF(OR('Tabel 4F H'!I123<5,'Tabel 4 H'!I123<0.5),"-",IFERROR('Tabel 4 H'!I123/'Tabel 4F H'!I123*100,"-")) -> -
A124: Forstkand. | C124: =IF(OR('Tabel 4F H'!C124<5,'Tabel 4 H'!C124<0.5),"-",IFERROR('Tabel 4 H'!C124/'Tabel 4F H'!C124*100,"-")) -> - | D124: =IF(OR('Tabel 4F H'!D124<5,'Tabel 4 H'!D124<0.5),"-",IFERROR('Tabel 4 H'!D124/'Tabel 4F H'!D124*100,"-")) -> - | E124: =IF(OR('Tabel 4F H'!E124<5,'Tabel 4 H'!E124<0.5),"-",IFERROR('Tabel 4 H'!E124/'Tabel 4F H'!E124*100,"-")) -> - | F124: =IF(OR('Tabel 4F H'!F124<5,'Tabel 4 H'!F124<0.5),"-",IFERROR('Tabel 4 H'!F124/'Tabel 4F H'!F124*100,"-")) -> - | G124: =IF(OR('Tabel 4F H'!G124<5,'Tabel 4 H'!G124<0.5),"-",IFERROR('Tabel 4 H'!G124/'Tabel 4F H'!G124*100,"-")) -> - | I124: =IF(OR('Tabel 4F H'!I124<5,'Tabel 4 H'!I124<0.5),"-",IFERROR('Tabel 4 H'!I124/'Tabel 4F H'!I124*100,"-")) -> -
A125: Jordbrugsakad. | C125: =IF(OR('Tabel 4F H'!C125<5,'Tabel 4 H'!C125<0.5),"-",IFERROR('Tabel 4 H'!C125/'Tabel 4F H'!C125*100,"-")) -> 46.66666667 | D125: =IF(OR('Tabel 4F H'!D125<5,'Tabel 4 H'!D125<0.5),"-",IFERROR('Tabel 4 H'!D125/'Tabel 4F H'!D125*100,"-")) -> - | E125: =IF(OR('Tabel 4F H'!E125<5,'Tabel 4 H'!E125<0.5),"-",IFERROR('Tabel 4 H'!E125/'Tabel 4F H'!E125*100,"-")) -> - | F125: =IF(OR('Tabel 4F H'!F125<5,'Tabel 4 H'!F125<0.5),"-",IFERROR('Tabel 4 H'!F125/'Tabel 4F H'!F125*100,"-")) -> 2.5 | G125: =IF(OR('Tabel 4F H'!G125<5,'Tabel 4 H'!G125<0.5),"-",IFERROR('Tabel 4 H'!G125/'Tabel 4F H'!G125*100,"-")) -> - | I125: =IF(OR('Tabel 4F H'!I125<5,'Tabel 4 H'!I125<0.5),"-",IFERROR('Tabel 4 H'!I125/'Tabel 4F H'!I125*100,"-")) -> 5.714285714
A126: Mejeriing. | C126: =IF(OR('Tabel 4F H'!C126<5,'Tabel 4 H'!C126<0.5),"-",IFERROR('Tabel 4 H'!C126/'Tabel 4F H'!C126*100,"-")) -> 40 | D126: =IF(OR('Tabel 4F H'!D126<5,'Tabel 4 H'!D126<0.5),"-",IFERROR('Tabel 4 H'!D126/'Tabel 4F H'!D126*100,"-")) -> - | E126: =IF(OR('Tabel 4F H'!E126<5,'Tabel 4 H'!E126<0.5),"-",IFERROR('Tabel 4 H'!E126/'Tabel 4F H'!E126*100,"-")) -> - | F126: =IF(OR('Tabel 4F H'!F126<5,'Tabel 4 H'!F126<0.5),"-",IFERROR('Tabel 4 H'!F126/'Tabel 4F H'!F126*100,"-")) -> - | G126: =IF(OR('Tabel 4F H'!G126<5,'Tabel 4 H'!G126<0.5),"-",IFERROR('Tabel 4 H'!G126/'Tabel 4F H'!G126*100,"-")) -> - | I126: =IF(OR('Tabel 4F H'!I126<5,'Tabel 4 H'!I126<0.5),"-",IFERROR('Tabel 4 H'!I126/'Tabel 4F H'!I126*100,"-")) -> 13.33333333
A127: Levn.m.kand. | C127: =IF(OR('Tabel 4F H'!C127<5,'Tabel 4 H'!C127<0.5),"-",IFERROR('Tabel 4 H'!C127/'Tabel 4F H'!C127*100,"-")) -> 31.25 | D127: =IF(OR('Tabel 4F H'!D127<5,'Tabel 4 H'!D127<0.5),"-",IFERROR('Tabel 4 H'!D127/'Tabel 4F H'!D127*100,"-")) -> 5.882352941 | E127: =IF(OR('Tabel 4F H'!E127<5,'Tabel 4 H'!E127<0.5),"-",IFERROR('Tabel 4 H'!E127/'Tabel 4F H'!E127*100,"-")) -> 20 | F127: =IF(OR('Tabel 4F H'!F127<5,'Tabel 4 H'!F127<0.5),"-",IFERROR('Tabel 4 H'!F127/'Tabel 4F H'!F127*100,"-")) -> - | G127: =IF(OR('Tabel 4F H'!G127<5,'Tabel 4 H'!G127<0.5),"-",IFERROR('Tabel 4 H'!G127/'Tabel 4F H'!G127*100,"-")) -> - | I127: =IF(OR('Tabel 4F H'!I127<5,'Tabel 4 H'!I127<0.5),"-",IFERROR('Tabel 4 H'!I127/'Tabel 4F H'!I127*100,"-")) -> 18.42105263
A128: Dyrlæge | C128: =IF(OR('Tabel 4F H'!C128<5,'Tabel 4 H'!C128<0.5),"-",IFERROR('Tabel 4 H'!C128/'Tabel 4F H'!C128*100,"-")) -> - | D128: =IF(OR('Tabel 4F H'!D128<5,'Tabel 4 H'!D128<0.5),"-",IFERROR('Tabel 4 H'!D128/'Tabel 4F H'!D128*100,"-")) -> - | E128: =IF(OR('Tabel 4F H'!E128<5,'Tabel 4 H'!E128<0.5),"-",IFERROR('Tabel 4 H'!E128/'Tabel 4F H'!E128*100,"-")) -> - | F128: =IF(OR('Tabel 4F H'!F128<5,'Tabel 4 H'!F128<0.5),"-",IFERROR('Tabel 4 H'!F128/'Tabel 4F H'!F128*100,"-")) -> 15.38461538 | G128: =IF(OR('Tabel 4F H'!G128<5,'Tabel 4 H'!G128<0.5),"-",IFERROR('Tabel 4 H'!G128/'Tabel 4F H'!G128*100,"-")) -> - | I128: =IF(OR('Tabel 4F H'!I128<5,'Tabel 4 H'!I128<0.5),"-",IFERROR('Tabel 4 H'!I128/'Tabel 4F H'!I128*100,"-")) -> 2.631578947
A129: Farmaceut | C129: =IF(OR('Tabel 4F H'!C129<5,'Tabel 4 H'!C129<0.5),"-",IFERROR('Tabel 4 H'!C129/'Tabel 4F H'!C129*100,"-")) -> 16.32653061 | D129: =IF(OR('Tabel 4F H'!D129<5,'Tabel 4 H'!D129<0.5),"-",IFERROR('Tabel 4 H'!D129/'Tabel 4F H'!D129*100,"-")) -> 3.703703704 | E129: =IF(OR('Tabel 4F H'!E129<5,'Tabel 4 H'!E129<0.5),"-",IFERROR('Tabel 4 H'!E129/'Tabel 4F H'!E129*100,"-")) -> - | F129: =IF(OR('Tabel 4F H'!F129<5,'Tabel 4 H'!F129<0.5),"-",IFERROR('Tabel 4 H'!F129/'Tabel 4F H'!F129*100,"-")) -> 2.272727273 | G129: =IF(OR('Tabel 4F H'!G129<5,'Tabel 4 H'!G129<0.5),"-",IFERROR('Tabel 4 H'!G129/'Tabel 4F H'!G129*100,"-")) -> - | I129: =IF(OR('Tabel 4F H'!I129<5,'Tabel 4 H'!I129<0.5),"-",IFERROR('Tabel 4 H'!I129/'Tabel 4F H'!I129*100,"-")) -> 5.263157895
A130: Læge | C130: =IF(OR('Tabel 4F H'!C130<5,'Tabel 4 H'!C130<0.5),"-",IFERROR('Tabel 4 H'!C130/'Tabel 4F H'!C130*100,"-")) -> 4.109589041 | D130: =IF(OR('Tabel 4F H'!D130<5,'Tabel 4 H'!D130<0.5),"-",IFERROR('Tabel 4 H'!D130/'Tabel 4F H'!D130*100,"-")) -> 0.5494505495 | E130: =IF(OR('Tabel 4F H'!E130<5,'Tabel 4 H'!E130<0.5),"-",IFERROR('Tabel 4 H'!E130/'Tabel 4F H'!E130*100,"-")) -> - | F130: =IF(OR('Tabel 4F H'!F130<5,'Tabel 4 H'!F130<0.5),"-",IFERROR('Tabel 4 H'!F130/'Tabel 4F H'!F130*100,"-")) -> - | G130: =IF(OR('Tabel 4F H'!G130<5,'Tabel 4 H'!G130<0.5),"-",IFERROR('Tabel 4 H'!G130/'Tabel 4F H'!G130*100,"-")) -> - | I130: =IF(OR('Tabel 4F H'!I130<5,'Tabel 4 H'!I130<0.5),"-",IFERROR('Tabel 4 H'!I130/'Tabel 4F H'!I130*100,"-")) -> 0.8528784648
A131: Tandlæge | C131: =IF(OR('Tabel 4F H'!C131<5,'Tabel 4 H'!C131<0.5),"-",IFERROR('Tabel 4 H'!C131/'Tabel 4F H'!C131*100,"-")) -> 5.555555556 | D131: =IF(OR('Tabel 4F H'!D131<5,'Tabel 4 H'!D131<0.5),"-",IFERROR('Tabel 4 H'!D131/'Tabel 4F H'!D131*100,"-")) -> 3.571428571 | E131: =IF(OR('Tabel 4F H'!E131<5,'Tabel 4 H'!E131<0.5),"-",IFERROR('Tabel 4 H'!E131/'Tabel 4F H'!E131*100,"-")) -> - | F131: =IF(OR('Tabel 4F H'!F131<5,'Tabel 4 H'!F131<0.5),"-",IFERROR('Tabel 4 H'!F131/'Tabel 4F H'!F131*100,"-")) -> - | G131: =IF(OR('Tabel 4F H'!G131<5,'Tabel 4 H'!G131<0.5),"-",IFERROR('Tabel 4 H'!G131/'Tabel 4F H'!G131*100,"-")) -> - | I131: =IF(OR('Tabel 4F H'!I131<5,'Tabel 4 H'!I131<0.5),"-",IFERROR('Tabel 4 H'!I131/'Tabel 4F H'!I131*100,"-")) -> 3.076923077
A132: Arkitekt | C132: =IF(OR('Tabel 4F H'!C132<5,'Tabel 4 H'!C132<0.5),"-",IFERROR('Tabel 4 H'!C132/'Tabel 4F H'!C132*100,"-")) -> 33.33333333 | D132: =IF(OR('Tabel 4F H'!D132<5,'Tabel 4 H'!D132<0.5),"-",IFERROR('Tabel 4 H'!D132/'Tabel 4F H'!D132*100,"-")) -> 4 | E132: =IF(OR('Tabel 4F H'!E132<5,'Tabel 4 H'!E132<0.5),"-",IFERROR('Tabel 4 H'!E132/'Tabel 4F H'!E132*100,"-")) -> 2.797202797 | F132: =IF(OR('Tabel 4F H'!F132<5,'Tabel 4 H'!F132<0.5),"-",IFERROR('Tabel 4 H'!F132/'Tabel 4F H'!F132*100,"-")) -> 4.597701149 | G132: =IF(OR('Tabel 4F H'!G132<5,'Tabel 4 H'!G132<0.5),"-",IFERROR('Tabel 4 H'!G132/'Tabel 4F H'!G132*100,"-")) -> 5.405405405 | I132: =IF(OR('Tabel 4F H'!I132<5,'Tabel 4 H'!I132<0.5),"-",IFERROR('Tabel 4 H'!I132/'Tabel 4F H'!I132*100,"-")) -> 6.117647059
